Workbook

Sheet Schedule
A2: ALTERATIONS AND ADDITIONS AT PROTEA FLATS - NEW GSA OFFICES
A4: BILL NO. 1 : PROVISIONAL AND SUPERVISION AMOUNTS | I4: Material | J4: Labour | K4: PC Amounts | L4: SMME Management | M4: Lightning Protection | N4: Busbar Installations | O4: Barloworld
A5: ITEM | B5: DESCRIPTION | C5: UNIT | D5: QTY | E5: RATE | F5: TENDER AMOUNT
B7: A Preliminary and General item is provided to cover the Contractor's charges for compliance with the Conditions of Contract and this Specification, including the provision, maintenance and removal of his site establishment, etc.
A8: 1.10 | B8: FIXED CHARGES
A9: 1.1.1 | B9: Site Establishment | C9: Sum | D9: 1
A10: 1.1.2 | B10: Removal of Site Establishment | C10: Sum | D10: 1
A11: 1.1.3 | B11: Provision of Electricity and Water | C11: Sum | D11: 1
A12: 1.1.4 | B12: Provision of Toilet Facilities | C12: Sum | D12: 1
A13: 1.1.5 | B13: Other Fixed-charge Obligations | C13: Sum | D13: 1
B14: (Please Specify). . . . . . . . . . . . . | C14: Sum | D14: 1
B15: . . . . . . . . . . . . . . . . . . | C15: Sum | D15: 1
A16: 1.20 | B16: CONTRACTUAL REQUIREMENTS
A17: 1.2.1 | B17: Provision of Sureties | C17: Sum | D17: 1
A18: 1.2.2 | B18: Insurances | C18: Sum | D18: 1
A19: 1.2.3 | B19: Third Party Insurance | C19: Sum | D19: 1
A20: 1.2.4 | B20: Guarantee of the Works | C20: Sum | D20: 1
A21: 1.2.5 | B21: Provide Test Results | C21: Sum | D21: 1
A22: 1.2.6 | B22: Provision of Record Drawings | C22: Sum | D22: 1
A23: 1.2.7 | B23: All OHSA Requirements including safety equipment and clothing | C23: Sum | D23: 1
A24: 1.2.8 | B24: All HIV / AIDS Specification Requirements | C24: Sum | D24: 1
A25: 1.2.9 | B25: Other Value Related Obligations | C25: Sum | D25: 1
B26: (Please Specify). . . . . . . . . . . . . | C26: Sum | D26: 1
B27: . . . . . . . . . . . . . . . . . . | C27: Sum | D27: 1
A28: 1.30 | B28: TIME-RELATED ITEMS | D28: 1
A29: 1.3.1 | B29: Contractual Requirements | C29: Sum | D29: 1
A30: 1.3.2 | B30: Operation and Maintenance of Site Establishment | C30: Sum | D30: 1
A31: 1.3.3 | B31: Supervision for the Duration of Contract | C31: Sum | D31: 1
A32: 1.3.4 | B32: Other Time-Related Obligations | C32: Sum | D32: 1
B33: (Please Specify). . . . . . . . . . . . . . | C33: Sum | D33: 1
B34: . . . . . . . . . . . . . . . . . . . | C34: Sum | D34: 1
A47: TOTAL SCHEDULE NO. 1 TO PRICE SUMMARY
A51: =A2 -> ALTERATIONS AND ADDITIONS AT PROTEA FLATS - NEW GSA OFFICES
A52: BILL NO. 2 : DISTRIBUTION BOARDS (DB)
A54: ITEM | B54: DESCRIPTION | C54: UNIT | D54: QTY | E54: RATE | F54: TENDER AMOUNT
A55: 2.1 | B55: Distribution board
B56: Supply and Install new DB to specifications and drawings
A58: 2.1.1 | B58: MDB
B59: Supply | C59: each | D59: 1 | I59: =+D59*E59 -> 0.00
B60: Install | C60: each | D60: =D59 -> 1 | J60: =+D60*E60 -> 0.00
A62: 2.1.2 | B62: Existing DB
A63: 2.1.2.1 | B63: Replace existing circuit breaker with new 300A 3pole Circuit Breaker Curve 2 in the existing DB including labling | I63: =+D63*E63 -> 0.00
B64: Supply | C64: each | D64: 1 | J64: =+D64*E64 -> 0.00
B65: Install | C65: each | D65: =D64 -> 1
A67: 2.1.2.2 | B67: Remove and dispose existing Distribution Board including feeder cables and conductors | C67: each | D67: 1
A115: TOTAL SCHEDULE NO. 2 TO PRICE SUMMARY
A118: =A2 -> ALTERATIONS AND ADDITIONS AT PROTEA FLATS - NEW GSA OFFICES
A119: BILL NO. 3 : GENERAL LIGHTING
A121: ITEM | B121: DESCRIPTION | C121: UNIT | D121: QTY | E121: RATE | F121: TENDER AMOUNT
A123: 3.1 | B123: Remove and dispose existing Luminaires
B124: Remove and dispose existing lights including; conductors, conduits, etc
A125: 3.1.1 | B125: Concrete/Wall/Ceiling mounted bulkhead | C125: each | D125: 10
A127: 3.1.2 | B127: Open channel fluorescent luminaires | C127: each | D127: 15
A129: 3.1.3 | B129: Surface mounted open channel fluorescent luminaire with reflector or diffuser | C129: each | D129: 80
A131: 3.2 | B131: Luminaires
B132: Luminaires mounted on concrete or suspended ceilings, or on brickwork including lamps and fixing material.
A133: 3.2.1 | B133: Type-A (40W LED Channel Luminaire)
B134: Supply | C134: each | D134: 2
B135: Install | C135: each | D135: =D134 -> 2
A137: 3.2.2 | B137: Type-JSS (600 x 600mm LED luminaire with surface bracket)
B138: Supply | C138: each | D138: 74
B139: Install | C139: each | D139: =D138 -> 74
A141: 3.2.3 | B141: Type-N (20W LED Bulk Head - Wall Mounted)
B142: Supply | C142: each | D142: 10
B143: Install | C143: each | D143: =D142 -> 10
A145: 3.2.4 | B145: Type-EX (1W LED Maintained Emergency Exit Sign)
B146: Supply | C146: each | D146: 1
B147: Install | C147: each | D147: =D146 -> 1
A149: 3.3 | B149: Occupancy Sensors
B150: Ceiling mounted occupancy sensors with accessories for a complete installation
A152: 3.3.1 | B152: Motion Detector (Passive Infra Red)
B153: Supply | C153: each | D153: 10
B154: Install | C154: each | D154: =D153 -> 10
A156: 3.4 | B156: Photo-cell
A158: 3.4.1 | B158: 5 Amp photo-cell.
B159: Supply | C159: each | D159: 2
B160: Install | C160: each | D160: =D159 -> 2 | I160: =+D134*E134 -> 0.00
J161: =+D135*E135 -> 0.00
A162: 3.5 | B162: Conduit
B163: Galvanised conduit fixed on steel trusses including cutting, bending, reaming, setting, joining, draw boxes and fixing material (average).
I164: =+D138*E138 -> 0.00
A165: 3.5.1 | B165: 20mm | J165: =+D139*E139 -> 0.00
B166: Supply | C166: m | D166: 2,500
B167: Install | C167: m | D167: =D166 -> 2,500
A169: 3.6 | B169: Conduit Boxes
B170: Round galvanised box for 20mm conduit, back or side entry for 1, 2, 3 or 4-way fixed on trusses including couplings bushes cover plates and fixing materials (average rate) | I170: =+D159*E159 -> 0.00
A171: 3.6.1 | B171: 20mm Galvanised round box | J171: =+D160*E160 -> 0.00
B172: Supply | C172: each | D172: 100
B173: Install | C173: each | D173: =D172 -> 100
A175: 3.6.2 | B175: Galvanised boxes with 20mm knockouts as specified chased into brickwork.
A177: 3.6.3 | B177: 100mm x 50mm x 50mm | I177: =+D166*E166 -> 0.00
B178: Supply | C178: each | D178: 35 | J178: =+D167*E167 -> 0.00
B179: Install | C179: each | D179: =D178 -> 35
A181: 3.6.4 | B181: 100mm x 100mm x 50mm
B182: Supply | C182: each | D182: 6
B183: Install | C183: each | D183: =D182 -> 6 | I183: =+D172*E172 -> 0.00
J184: =+D173*E173 -> 0.00
A185: TOTAL SCHEDULE NO. 3 TO NEXT PAGE
A187: =A2 -> ALTERATIONS AND ADDITIONS AT PROTEA FLATS - NEW GSA OFFICES
A188: BILL NO. 3 : GENERAL LIGHTING
A190: ITEM | B190: DESCRIPTION | C190: UNIT | D190: QTY | E190: RATE | F190: TENDER AMOUNT
A191: TOTAL FROM PREVIOUS PAGE
A192: 3.7 | B192: Conductors
B193: 600/1000 grade PVC insulated single core copper
B194: conductors drawn into conduit
A196: 3.7.1 | B196: 1,5mm² red/black
B197: Supply | C197: m | D197: 5,500
B198: Install | C198: m | D198: =D197 -> 5,500
A200: 3.7.2 | B200: 2,5mm² yellow & green | I200: =+D182*E182 -> 0.00
B201: Supply | C201: m | D201: =D197/2 -> 2,750 | J201: =+D183*E183 -> 0.00
B202: Install | C202: m | D202: =D201 -> 2,750
A204: 3.8 | B204: Light Switches
B205: 16 Amp rocker type light switch with coverplate installed into a flush box measured elsewhere.
A207: 3.8.1 | B207: Single lever, one way
B208: Supply | C208: each | D208: 12 | I208: =+D197*E197 -> 0.00
B209: Install | C209: each | D209: =D208 -> 12 | J209: =+D198*E198 -> 0.00
A211: 3.8.2 | B211: Double lever, one way
B212: Supply | C212: each | D212: 2 | I212: =+D201*E201 -> 0.00
B213: Install | C213: each | D213: =D212 -> 2 | J213: =+D202*E202 -> 0.00
A249: TOTAL SCHEDULE NO. 3 TO PRICE SUMMARY
A251: =A2 -> ALTERATIONS AND ADDITIONS AT PROTEA FLATS - NEW GSA OFFICES | J251: =+D209*E209 -> 0.00
A252: BILL NO. 4: GENERAL POWER
A254: ITEM | B254: DESCRIPTION | C254: UNIT | D254: QTY | E254: RATE | F254: TENDER AMOUNT
A255: 4.1 | B255: Remove and dispose existing Socket Outlets and Isolators
B256: Remove and dispose existing light-switches, socket outlets and isolators including conductors, conduits, etc
A257: 4.1.1 | B257: Isolator | C257: each | D257: 10
A259: 4.1.2 | B259: Switch | C259: each | D259: 10
A261: 4.1.3 | B261: Socket Outlet | C261: each | D261: 20
A263: 4.2 | B263: Socket Outlets
A265: 4.2.1 | B265: 16 Amp 3 pin switched socket outlets with cover plates Standard: installed into existing flush wall Box (single). Colour: White
B266: Supply | C266: each | D266: 30
B267: Install | C267: each | D267: =D266 -> 30
A269: 4.2.1 | B269: 16 Amp 3 pin Dedicated switched socket outlets with cover plates Standard: installed into surface-mounted Box (single). Colour: Red
B270: Supply | C270: each | D270: 6
B271: Install | C271: each | D271: =D270 -> 6
A273: 4.2.4 | B273: 16 Amp 3 pin standard switched socket outlets with cover plates and craddles installed in power skirting. Colour: White
B274: Supply | C274: each | D274: 16
B275: Install | C275: each | D275: =D274 -> 16
A277: 4.2.5 | B277: 16 Amp 3 pin dedicated switched socket outlets with cover plates and craddles installed in a power skirting. Colour: RED
B278: Supply | C278: each | D278: 16
B279: Install | C279: each | D279: =D278 -> 16
A281: 4.2.6 | B281: 16 Amp 3 pin Euro switched socket outlets with cover plates and craddles installed in a power skirting. Colour: White
B282: Supply | C282: each | D282: 16
B283: Install | C283: each | D283: =D282 -> 16
A285: 4.2.7 | B285: Purpose made floor flush mounted cluster box with 1 x 16 Amp 3 pin normal switched, 2 x dedicated switched, 1 x euro, 2 x data
B286: Supply | C286: each | D286: 2
B287: Install | C287: each | D287: =D286 -> 2
A289: 4.2.8 | B289: 5 amp unswitched Socket outlet for lights in the ceiling void
B290: Supply | C290: each | D290: 110
B291: Install | C291: each | D291: =D290 -> 110
A293: 4.3 | B293: Conduit
B294: Galvanised conduit fixed on steel trusses including cutting, bending, reaming, setting, joining, draw boxes and fixing material (average).
A295: 4.3.1 | B295: 20mm
B296: Supply | C296: m | D296: 2,000
B297: Install | C297: m | D297: =D296 -> 2,000
A299: 4.3 | B299: Data and Network
A300: 4.4.1 | B300: Data and PC network outlets mounted in power skirting complete with cover plate and craddles
B301: Supply | C301: each | D301: 32
B302: Install | C302: each | D302: =D301 -> 32
A304: 4.5 | B304: ISOLATORS FOR HVAC AND VENTILATION
B305: Supply and install complete including all surface boxes, isolators and associated equipment.
A306: 4.5.1 | B306: 20 Amp indoor flush wall mounted double isolator. | C306: Nº | D306: 2
A307: 4.5.2 | B307: 20 Amp outdoor flush wall mounted double isolator. | C307: Nº | D307: 9
A308: 4.5.3 | B308: 20 Amp three phase outdoor surface mount isolator for AC Condenser. | C308: Nº | D308: 1
A313: TOTAL SCHEDULE NO. 4 TO NEXT PAGE
A314: =A2 -> ALTERATIONS AND ADDITIONS AT PROTEA FLATS - NEW GSA OFFICES
A315: =A252 -> BILL NO. 4: GENERAL POWER
A317: ITEM | B317: DESCRIPTION | C317: UNIT | D317: QTY | E317: RATE | F317: TENDER AMOUNT
A318: TOTAL FROM PREVIOUS PAGE
A320: 4.6 | B320: Conductors
B321: 600/1000 grade PVC insulated single core copper | I321: =+D296*E296 -> 0.00
B322: conductors drawn into conduit | J322: =+D297*E297 -> 0.00
A324: 4.6.1 | B324: 2,5mm² red/black
B325: Supply | C325: m | D325: 4,200
B326: Install | C326: m | D326: =D325 -> 4,200
A328: 4.6.2 | B328: 2,5mm² yellow & green | I328: =+#REF!*#REF! -> 
B329: Supply | C329: m | D329: =D325/2 -> 2,100 | J329: =+#REF!*#REF! -> 
B330: Install | C330: m | D330: =D329 -> 2,100
A332: 4.6.3 | B332: 2,5mm² surffix cable
B333: Supply | C333: m | D333: 30
B334: Install | C334: m | D334: =D333 -> 30
A367: 4.6.4 | B367: 4mm² surffix cable
B368: Supply | C368: m | D368: 120
B369: Install | C369: m | D369: =D368 -> 120
A411: TOTAL SCHEDULE NO. 4 TO PRICE SUMMARY
A412: =A2 -> ALTERATIONS AND ADDITIONS AT PROTEA FLATS - NEW GSA OFFICES
A413: BILL NO. 5 : CABLING AND CABLE SLEEVES | I413: =+D325*E325 -> 0.00
J414: =+D326*E326 -> 0.00
A415: ITEM | B415: DESCRIPTION | C415: UNIT | D415: QTY | E415: RATE | F415: TENDER AMOUNT
A416: 5.1 | B416: LV Cabling
A417: 5.1.1 | B417: Multicore PVCSWAPVC cable with stranded copper conductors to SANS 1507-3 drawn into cable sleeves, installed on cable trays/ladders or laid in open trenches and ducts. All cables to be complete with ECC for earthing | I417: =+D329*E329 -> 0.00
J418: =+D330*E330 -> 0.00
A419: 5.1.1.1 | B419: 120mm2 4 Core
B420: Supply | C420: m | D420: 120
B421: Install | C421: m | D421: =D420 -> 120
B422: Terminations | C422: No. | D422: 2
A497: TOTAL SCHEDULE NO. 5 TO PRICE SUMMARY
A498: =A2 -> ALTERATIONS AND ADDITIONS AT PROTEA FLATS - NEW GSA OFFICES
A500: BILL NO. 6 : POWER RETICULATION EQUIPMENT
A501: ITEM | B501: DESCRIPTION | C501: UNIT | D501: QTY | E501: RATE | F501: TENDER AMOUNT
... 46 more rows

Sheet SUMMARY PAGE 1
B2: =Schedule!A2 -> ALTERATIONS AND ADDITIONS AT PROTEA FLATS - NEW GSA OFFICES
B4: ELECTRICAL INSTALLATION
B5: SUMMARY OF MAIN BILL
B8: DESCRIPTION | C8: TENDER
B10: =Schedule!A4 -> BILL NO. 1 : PROVISIONAL AND SUPERVISION AMOUNTS
B11: =Schedule!A52 -> BILL NO. 2 : DISTRIBUTION BOARDS (DB)
B12: =Schedule!A119 -> BILL NO. 3 : GENERAL LIGHTING
B13: =Schedule!A252 -> BILL NO. 4: GENERAL POWER
B14: =Schedule!A413 -> BILL NO. 5 : CABLING AND CABLE SLEEVES
B15: =Schedule!A500 -> BILL NO. 6 : POWER RETICULATION EQUIPMENT
B16: =Schedule!A564 -> BILL NO. 7 : SUNDRY ITEMS
B17: SUBTOTAL EXCLUDING VAT @ 15%
B18: MAIN CONTRACTOR'S PROFIT AND ATTENDANCE
B19: TOTAL (EXCLUDING VAT) CARRIED OVER TO SECTION 9 ON FINAL SUMMARY IN BOQ PAGE 345

Sheet P&G'S (MV & LV) (hidden)
A2: SECTION 01 - PRELIMINARIES (LV RETICULATION)
D4: Tender | E4: Prev. | F4: This | G4: Cum. | J4: VALUE | K4: TIME | L4: TENDER AMOUNT | M4: Claim No.1 | N4: Sub Total CL1 | O4: Claim No2 | P4: SubTotal CL 2 | Q4: Claim No3 | R4: SubTotal CL 3 | S4: Claim No4 | T4: SubTotal CL 4 | U4: Claim No5 | V4: SubTotal CL 5 | W4: Claim No.6 | X4: SubTotal CL 6 | Y4: Claim No.7 | Z4: SubTotal CL 7 | AA4: Claim No.8 | AB4: SubTotal CL 8 | AC4: Claim No.9 | AD4: SubTotal CL 9 | AE4: Claim No.10 | AF4: SubTotal CL 10 | AG4: Claim No.11 | AH4: SubTotal CL 11 | AI4: Claim No.12 | AJ4: SubTotal CL 12 | AK4: Claim No.13 | AL4: SubTotal CL 13 | AM4: Claim No.14 | AN4: SubTotal CL 14 | AO4: Claim No.15 | AP4: SubTotal CL 15 | AQ4: Claim No.16 | AR4: SubTotal CL 16 | AS4: Claim No.17 | AT4: SubTotal CL 17 | AU4: Claim No.18 | AV4: SubTotal CL 18 | AW4: Claim No.19 | AX4: SubTotal CL 19 | AY4: Claim No.20 | AZ4: SubTotal CL 20 | BA4: Claim No.21 | BB4: SubTotal CL 21 | BC4: Claim No.22 | BD4: SubTotal CL 22 | BE4: Claim No.23 | BF4: SubTotal CL 23 | BG4: Claim No.24 | BH4: SubTotal CL 24 | BI4: Claim No.25 | BJ4: SubTotal CL 25 | BK4: Claim No.26 | BL4: SubTotal CL 26 | BM4: Claim No.28 | BN4: SubTotal CL 28 | BO4: Claim No.29 | BP4: SubTotal CL 29 | BQ4: Claim No.30 | BR4: SubTotal CL 30 | BS4: Claim No.31 | BT4: SubTotal CL 31 | BU4: Claim No.32 | BV4: SubTotal CL 32 | BW4: Claim No.33 | BX4: SubTotal CL 33 | BY4: Claim No.34 | BZ4: SubTotal CL 34 | CA4: Claim No.35 | CB4: SubTotal CL 35 | CC4: Claim No.49 | CD4: SubTotal CL 49 | CE4: Claim No.50 | CF4: SubTotal CL 50 | CG4: Claim No.51 | CH4: SubTotal CL 51 | CI4: Claim No.52 | CJ4: SubTotal CL 52 | CK4: Claim No.53 | CL4: SubTotal CL 53 | CM4: Total QTY | CN4: Total Amount
A5: ITEM | B5: DESCRIPTION | C5: UNIT | D5: Qty | H5: RATE | I5: FIXED | J5: RELATED | K5: RELATED
A7: A6.0 | B7: Subcontractor's Site Represantative | C7: Sum | D7: 1 | E7: 1 | G7: =+E7+F7 -> 1 | H7: 851 000.00 | K7: =+G7*H7 -> 851 000.00 | L7: =+D7*H7 -> 851 000.00 | O7: =3/36 -> 0.08 | P7: =+H7*O7 -> 70,916.67 | Q7: =1/36 -> 0.03 | R7: =+H7*Q7 -> 23,638.89 | S7: =5/36-O7-Q7 -> 0.03 | T7: =+H7*S7 -> 23,638.89 | U7: =6/36-O7-Q7-S7 -> 0.03 | V7: =+$H7*U7 -> 23,638.89 | W7: =7/36-O7-Q7-S7-U7 -> 0.03 | X7: =+$H7*W7 -> 23,638.89 | Y7: =8/36-M7-O7-Q7-S7-U7-W7 -> 0.03 | Z7: =+$H7*Y7 -> 23,638.89 | AA7: =9/36-O7-Q7-S7-U7-W7-Y7 -> 0.03 | AB7: =+$H7*AA7 -> 23,638.89 | AC7: =10/36-O7-Q7-S7-U7-W7-Y7-AA7 -> 0.03 | AD7: =+$H7*AC7 -> 23,638.89 | AE7: =11/36-O7-Q7-S7-U7-W7-Y7-AA7-AC7 -> 0.03 | AF7: =+$H7*AE7 -> 23,638.89 | AG7: =12/36-O7-Q7-S7-U7-W7-Y7-AA7-AC7-AE7 -> 0.03 | AH7: =+$H7*AG7 -> 23,638.89 | AI7: =13/36-O7-Q7-S7-U7-W7-Y7-AA7-AC7-AE7-AG7 -> 0.03 | AJ7: =+$H7*AI7 -> 23,638.89 | AK7: =14/36-O7-Q7-S7-U7-W7-Y7-AA7-AC7-AE7-AG7-AI7 -> 0.03 | AL7: =+$H7*AK7 -> 23,638.89 | AM7: =15/36-Q7-S7-U7-W7-Y7-AA7-AC7-AE7-AG7-AI7-AK7-O7 -> 0.03 | AN7: =+$H7*AM7 -> 23,638.89 | AO7: =1/36 -> 0.03 | AP7: =+$H7*AO7 -> 23,638.89 | AQ7: =1/36 -> 0.03 | AR7: =+$H7*AQ7 -> 23,638.89 | AS7: =1/36 -> 0.03 | AT7: =+$H7*AS7 -> 23,638.89 | AU7: =1/36 -> 0.03 | AV7: =+$H7*AU7 -> 23,638.89 | AW7: =1/36 -> 0.03 | AX7: =+$H7*AW7 -> 23,638.89 | AY7: =1/36 -> 0.03 | AZ7: =+$H7*AY7 -> 23,638.89 | BA7: =1/36 -> 0.03 | BB7: =+$H7*BA7 -> 23,638.89 | BC7: =1/36 -> 0.03 | BD7: =+$H7*BC7 -> 23,638.89 | BE7: =1/36 -> 0.03 | BF7: =+$H7*BE7 -> 23,638.89 | BG7: =1/36 -> 0.03 | BH7: =+$H7*BG7 -> 23,638.89 | BI7: =2/36 -> 0.06 | BJ7: =+$H7*BI7 -> 47,277.78 | BK7: 0.03 | BL7: =+BK7*H7 -> 23,638.89 | BM7: 0.03 | BN7: =+BM7*H7 -> 23,638.89 | BO7: 0.03 | BP7: =+BO7*H7 -> 23,638.89 | BQ7: 0.028 | BR7: =+BQ7*H7 -> 23,638.89 | BS7: 0.028 | BT7: =+BS7*H7 -> 23,638.89 | BU7: 0.028 | BV7: =+BU7*H7 -> 23,638.89 | BW7: 0.028 | BX7: =+BW7*H7 -> 23,638.89 | BY7: 0.028 | BZ7: =+BY7*H7 -> 23,638.89 | CA7: 0.03 | CB7: =+CA7*K7 -> 23,638.89 | CD7: =H7*CC7 -> 0.00 | CF7: =J7*CE7 -> 0.00 | CH7: =L7*CG7 -> 0.00 | CJ7: =K7*CI7 -> 0.00 | CL7: =K7*CK7 -> 0.00 | CM7: =M7+O7+Q7+S7+U7+W7+Y7+AA7+AC7+AE7+AG7+AI7+AK7+AM7+AO7+AQ7+AS7+AU7+AW7+AY7+BA7+BC7+BE7+BG7+BI7+BK7+BM7+BO7+BQ7+BS7+BU7+BW7+BY7+CA7+CC7+CE7+CG7+CI7+CK7 -> 1 | CN7: =+H7*CM7 -> 851,000.00 | CO7: 0.333333333333333 | CP7: =+I7+J7+K7 -> 851 000.00 | CQ7: =+CP7-CN7 -> 0.00
AO8: =1/36 -> 0.03 | AQ8: =1/36 -> 0.03 | AS8: =1/36 -> 0.03 | AU8: =1/36 -> 0.03 | AW8: =1/36 -> 0.03 | AY8: =1/36 -> 0.03 | BA8: =1/36 -> 0.03 | BC8: =1/36 -> 0.03 | BE8: =1/36 -> 0.03 | CP8: 0.00 | CQ8: =+CP8-CN8 -> 0.00
A9: A7.0 | B9: Compliance with Laws and Regulations | C9: Sum | D9: 1 | E9: 1 | G9: =+E9+F9 -> 1 | H9: 10 000.00 | I9: =+G9*H9 -> 10 000.00 | L9: =+D9*H9 -> 10 000.00 | M9: 1 | N9: =+H9*M9 -> 10,000.00 | BN9: =+BM9*H9 -> 0.00 | BP9: =+BO9*H9 -> 0.00 | BR9: =+BQ9*H9 -> 0.00 | BT9: =+BS9*H9 -> 0.00 | BV9: =+BU9*H9 -> 0.00 | BX9: =+BW9*H9 -> 0.00 | BZ9: =+BY9*H9 -> 0.00 | CB9: =+CA9*K9 -> 0.00 | CD9: =H9*CC9 -> 0.00 | CF9: =J9*CE9 -> 0.00 | CH9: =L9*CG9 -> 0.00 | CJ9: =K9*CI9 -> 0.00 | CL9: =K9*CK9 -> 0.00 | CM9: =M9+O9+Q9+S9+U9+W9+Y9+AA9+AC9+AE9+AG9+AI9+AK9+AM9+AO9+AQ9+AS9+AU9+AW9+AY9+BA9+BC9+BE9+BG9+BI9+BK9+BM9+BO9+BQ9+BS9+BU9+BW9+BY9+CA9+CC9+CE9+CG9+CI9+CK9 -> 1 | CN9: =+H9*CM9 -> 10,000.00 | CO9: 1 | CP9: 10 000.00 | CQ9: -0.00
AO10: 0.03 | AQ10: 0.03 | AS10: 0.03 | AU10: 0.03 | AW10: =1/36 -> 0.03 | AY10: =1/36 -> 0.03 | BA10: =1/36 -> 0.03 | BC10: =1/36 -> 0.03 | BE10: =1/36 -> 0.03 | CP10: 0.00 | CQ10: 0.00
A11: A10.0 | B11: General Insurances | C11: Sum | D11: 1 | E11: 1 | G11: =+E11+F11 -> 1 | H11: 5 000.00 | J11: =+G11*H11 -> 5 000.00 | L11: =+D11*H11 -> 5 000.00 | O11: =3/36 -> 0.08 | P11: =+H11*O11 -> 416.67 | Q11: =1/36 -> 0.03 | R11: =+H11*Q11 -> 138.89 | S11: =5/36-O11-Q11 -> 0.03 | T11: =+H11*S11 -> 138.89 | U11: =6/36-O11-Q11-S11 -> 0.03 | V11: =+$H11*U11 -> 138.89 | W11: 0.03 | X11: =+$H11*W11 -> 138.89 | Y11: 0.03 | Z11: =+$H11*Y11 -> 138.89 | AA11: 0.03 | AB11: =+$H11*AA11 -> 138.89 | AC11: 0.03 | AD11: =+$H11*AC11 -> 138.89 | AE11: 0.03 | AF11: =+$H11*AE11 -> 138.89 | AG11: 0.03 | AH11: =+$H11*AG11 -> 138.89 | AI11: 0.03 | AJ11: =+$H11*AI11 -> 138.89 | AK11: 0.03 | AL11: =+$H11*AK11 -> 138.89 | AM11: 0.03 | AN11: =+$H11*AM11 -> 138.89 | AO11: 0.03 | AP11: =+$H11*AO11 -> 138.89 | AQ11: 0.03 | AR11: =+$H11*AQ11 -> 138.89 | AS11: 0.03 | AT11: =+$H11*AS11 -> 138.89 | AU11: 0.03 | AV11: =+$H11*AU11 -> 138.89 | AW11: =1/36 -> 0.03 | AX11: =+$H11*AW11 -> 138.89 | AY11: =1/36 -> 0.03 | AZ11: =+$H11*AY11 -> 138.89 | BA11: =1/36 -> 0.03 | BB11: =+$H11*BA11 -> 138.89 | BC11: =1/36 -> 0.03 | BD11: =+$H11*BC11 -> 138.89 | BE11: =1/36 -> 0.03 | BF11: =+$H11*BE11 -> 138.89 | BG11: =1/36 -> 0.03 | BH11: =+$H11*BG11 -> 138.89 | BI11: =2/36 -> 0.06 | BJ11: =+$H11*BI11 -> 277.78 | BK11: 0.03 | BL11: =+BK11*H11 -> 138.89 | BM11: 0.03 | BN11: =+BM11*H11 -> 138.89 | BO11: 0.03 | BP11: =+BO11*H11 -> 138.89 | BQ11: 0.03 | BR11: =+BQ11*H11 -> 138.89 | BS11: 0.03 | BT11: =+BS11*H11 -> 138.89 | BU11: 0.03 | BV11: =+BU11*H11 -> 138.89 | BW11: 0.03 | BX11: =+BW11*H11 -> 138.89 | BY11: 0.03 | BZ11: =+BY11*H11 -> 138.89 | CA11: 0.03 | CB11: =+CA11*K11 -> 0.00 | CD11: =H11*CC11 -> 0.00 | CF11: =J11*CE11 -> 0.00 | CH11: =L11*CG11 -> 0.00 | CJ11: =K11*CI11 -> 0.00 | CL11: =K11*CK11 -> 0.00 | CM11: =M11+O11+Q11+S11+U11+W11+Y11+AA11+AC11+AE11+AG11+AI11+AK11+AM11+AO11+AQ11+AS11+AU11+AW11+AY11+BA11+BC11+BE11+BG11+BI11+BK11+BM11+BO11+BQ11+BS11+BU11+BW11+BY11+CA11+CC11+CE11+CG11+CI11+CK11 -> 1 | CN11: =+H11*CM11 -> 5,000.00 | CO11: 0.61 | CP11: 5 000.00 | CQ11: 0.00
AO12: 0.03 | AQ12: 0.03 | AS12: 0.03 | AU12: 0.03 | CP12: 0.00 | CQ12: 0.00
A13: A11.0 | B13: Special Insurances | C13: Sum | D13: 1 | E13: 1 | G13: =+E13+F13 -> 1 | H13: 60 000.00 | I13: =+G13*H13 -> 60 000.00 | L13: =+D13*H13 -> 60 000.00 | M13: 1 | N13: =+H13*M13 -> 60,000.00 | BN13: =+BM13*H13 -> 0.00 | BP13: =+BO13*H13 -> 0.00 | BR13: =+BQ13*H13 -> 0.00 | BT13: =+BS13*H13 -> 0.00 | BV13: =+BU13*H13 -> 0.00 | BX13: =+BW13*H13 -> 0.00 | BZ13: =+BY13*H13 -> 0.00 | CB13: =+CA13*K13 -> 0.00 | CD13: =H13*CC13 -> 0.00 | CF13: =J13*CE13 -> 0.00 | CH13: =L13*CG13 -> 0.00 | CJ13: =K13*CI13 -> 0.00 | CL13: =K13*CK13 -> 0.00 | CM13: =M13+O13+Q13+S13+U13+W13+Y13+AA13+AC13+AE13+AG13+AI13+AK13+AM13+AO13+AQ13+AS13+AU13+AW13+AY13+BA13+BC13+BE13+BG13+BI13+BK13+BM13+BO13+BQ13+BS13+BU13+BW13+BY13+CA13+CC13+CE13+CG13+CI13+CK13 -> 1 | CN13: =+H13*CM13 -> 60,000.00 | CO13: 1 | CP13: 60 000.00 | CQ13: -0.00
AO14: 0.03 | AQ14: 0.03 | AS14: 0.03 | AU14: 0.03 | CP14: 0.00 | CQ14: 0.00
A15: A12.0 | B15: Effecting Insurances | C15: Sum | D15: 1 | E15: 1 | G15: =+E15+F15 -> 1 | H15: 10 000.00 | K15: =+G15*H15 -> 10 000.00 | L15: =+D15*H15 -> 10 000.00 | O15: =3/36 -> 0.08 | P15: =+H15*O15 -> 833.33 | Q15: =4/36-O15 -> 0.03 | R15: =+H15*Q15 -> 277.78 | S15: =5/36-O15-Q15 -> 0.03 | T15: =+H15*S15 -> 277.78 | U15: =6/36-O15-Q15-S15 -> 0.03 | V15: =+$H15*U15 -> 277.78 | W15: =7/36-O15-Q15-S15-U15 -> 0.03 | X15: =+$H15*W15 -> 277.78 | Y15: =8/36-M15-O15-Q15-S15-U15-W15 -> 0.03 | Z15: =+$H15*Y15 -> 277.78 | AA15: =9/36-O15-Q15-S15-U15-W15-Y15 -> 0.03 | AB15: =+$H15*AA15 -> 277.78 | AC15: =10/36-O15-Q15-S15-U15-W15-Y15-AA15 -> 0.03 | AD15: =+$H15*AC15 -> 277.78 | AE15: =11/36-O15-Q15-S15-U15-W15-Y15-AA15-AC15 -> 0.03 | AF15: =+$H15*AE15 -> 277.78 | AG15: =12/36-O15-Q15-S15-U15-W15-Y15-AA15-AC15-AE15 -> 0.03 | AH15: =+$H15*AG15 -> 277.78 | AI15: =13/36-O15-Q15-S15-U15-W15-Y15-AA15-AC15-AE15-AG15 -> 0.03 | AJ15: =+$H15*AI15 -> 277.78 | AK15: =14/36-O15-Q15-S15-U15-W15-Y15-AA15-AC15-AE15-AG15-AI15 -> 0.03 | AL15: =+$H15*AK15 -> 277.78 | AM15: =15/36-Q15-S15-U15-W15-Y15-AA15-AC15-AE15-AG15-AI15-AK15-O15 -> 0.03 | AN15: =+$H15*AM15 -> 277.78 | AO15: 0.03 | AP15: =+$H15*AO15 -> 277.78 | AQ15: 0.03 | AR15: =+$H15*AQ15 -> 277.78 | AS15: 0.03 | AT15: =+$H15*AS15 -> 277.78 | AU15: 0.03 | AV15: =+$H15*AU15 -> 277.78 | AW15: =1/36 -> 0.03 | AX15: =+$H15*AW15 -> 277.78 | AY15: =1/36 -> 0.03 | AZ15: =+$H15*AY15 -> 277.78 | BA15: =1/36 -> 0.03 | BB15: =+$H15*BA15 -> 277.78 | BC15: =1/36 -> 0.03 | BD15: =+$H15*BC15 -> 277.78 | BE15: =1/36 -> 0.03 | BF15: =+$H15*BE15 -> 277.78 | BG15: =1/36 -> 0.03 | BH15: =+$H15*BG15 -> 277.78 | BI15: =2/36 -> 0.06 | BJ15: =+$H15*BI15 -> 555.56 | BK15: 0.03 | BL15: =+BK15*H15 -> 277.78 | BM15: 0.03 | BN15: =+BM15*H15 -> 277.78 | BO15: 0.03 | BP15: =+BO15*H15 -> 277.78 | BQ15: 0.03 | BR15: =+BQ15*H15 -> 277.78 | BS15: 0.03 | BT15: =+BS15*H15 -> 277.78 | BU15: 0.03 | BV15: =+BU15*H15 -> 277.78 | BW15: 0.03 | BX15: =+BW15*H15 -> 277.78 | BY15: 0.03 | BZ15: =+BY15*H15 -> 277.78 | CA15: 0.03 | CB15: =+CA15*K15 -> 277.78 | CD15: =H15*CC15 -> 0.00 | CF15: =J15*CE15 -> 0.00 | CH15: =L15*CG15 -> 0.00 | CJ15: =K15*CI15 -> 0.00 | CL15: =K15*CK15 -> 0.00 | CM15: =M15+O15+Q15+S15+U15+W15+Y15+AA15+AC15+AE15+AG15+AI15+AK15+AM15+AO15+AQ15+AS15+AU15+AW15+AY15+BA15+BC15+BE15+BG15+BI15+BK15+BM15+BO15+BQ15+BS15+BU15+BW15+BY15+CA15+CC15+CE15+CG15+CI15+CK15 -> 1 | CN15: =+H15*CM15 -> 10,000.00 | CP15: 10 000.00 | CQ15: 0.00
AO16: 0.03 | AQ16: 0.03 | AS16: 0.03 | AU16: 0.03 | CP16: 0.00 | CQ16: 0.00
A17: A14.0 | B17: Security | C17: Sum | D17: 1 | E17: 1 | G17: =+E17+F17 -> 1 | H17: 150 000.00 | I17: =+G17*H17 -> 150 000.00 | L17: =+D17*H17 -> 150 000.00 | O17: 1 | P17: =+H17*O17 -> 150,000.00 | BN17: =+BM17*H17 -> 0.00 | BR17: =+BQ17*H17 -> 0.00 | BT17: =+BS17*H17 -> 0.00 | BV17: =+BU17*H17 -> 0.00 | BX17: =+BW17*H17 -> 0.00 | BZ17: =+BY17*H17 -> 0.00 | CB17: =+CA17*K17 -> 0.00 | CD17: =H17*CC17 -> 0.00 | CF17: =J17*CE17 -> 0.00 | CH17: =L17*CG17 -> 0.00 | CJ17: =K17*CI17 -> 0.00 | CL17: =K17*CK17 -> 0.00 | CM17: =M17+O17+Q17+S17+U17+W17+Y17+AA17+AC17+AE17+AG17+AI17+AK17+AM17+AO17+AQ17+AS17+AU17+AW17+AY17+BA17+BC17+BE17+BG17+BI17+BK17+BM17+BO17+BQ17+BS17+BU17+BW17+BY17+CA17+CC17+CE17+CG17+CI17+CK17 -> 1 | CN17: =+H17*CM17 -> 150,000.00 | CO17: 1 | CP17: 150 000.00 | CQ17: -0.00
AO18: 0.03 | AQ18: 0.03 | AS18: 0.03 | AU18: 0.03 | CP18: 0.00 | CQ18: 0.00
A19: A21.0 | B19: Subcontractor's Plant and Services | C19: Sum | D19: 1 | E19: 1 | G19: =+E19+F19 -> 1 | H19: 57 050.00 | I19: 55 000.00 | K19: =+G19*H19 -> 57 050.00 | L19: =+D19*(H19+I19) -> 112 050.00 | M19: =55000/57050 -> 0.96 | N19: 55,000.00 | O19: =3/36 -> 0.08 | P19: =+H19*O19 -> 4,754.17 | Q19: =4/36-O19 -> 0.03 | R19: =+H19*Q19 -> 1,584.72 | S19: =5/36-O19-Q19 -> 0.03 | T19: =+H19*S19 -> 1,584.72 | U19: =6/36-O19-Q19-S19 -> 0.03 | V19: =+$H19*U19 -> 1,584.72 | W19: =7/36-O19-Q19-S19-U19 -> 0.03 | X19: =+$H19*W19 -> 1,584.72 | Y19: =8/36-M19-O19-Q19-S19-U19-W19 -> -0.94 | Z19: =+$H19*Y19 -> -53,415.28 | AA19: =9/36-O19-Q19-S19-U19-W19-Y19 -> 0.99 | AB19: =+$H19*AA19 -> 56,584.72 | AC19: =10/36-O19-Q19-S19-U19-W19-Y19-AA19 -> 0.03 | AD19: =+$H19*AC19 -> 1,584.72 | AE19: =11/36-O19-Q19-S19-U19-W19-Y19-AA19-AC19 -> 0.03 | AF19: =+$H19*AE19 -> 1,584.72 | AG19: =12/36-O19-Q19-S19-U19-W19-Y19-AA19-AC19-AE19 -> 0.03 | AH19: =+$H19*AG19 -> 1,584.72 | AI19: =13/36-O19-Q19-S19-U19-W19-Y19-AA19-AC19-AE19-AG19 -> 0.03 | AJ19: =+$H19*AI19 -> 1,584.72 | AK19: =14/36-O19-Q19-S19-U19-W19-Y19-AA19-AC19-AE19-AG19-AI19 -> 0.03 | AL19: =+$H19*AK19 -> 1,584.72 | AM19: =15/36-Q19-S19-U19-W19-Y19-AA19-AC19-AE19-AG19-AI19-AK19-O19 -> 0.03 | AN19: =+$H19*AM19 -> 1,584.72 | AO19: 0.03 | AP19: =+$H19*AO19 -> 1,584.72 | AQ19: 0.03 | AR19: =+$H19*AQ19 -> 1,584.72 | AS19: 0.03 | AT19: =+$H19*AS19 -> 1,584.72 | AU19: 0.03 | AV19: =+$H19*AU19 -> 1,584.72 | AW19: =1/36 -> 0.03 | AX19: =+$H19*AW19 -> 1,584.72 | AY19: =1/36 -> 0.03 | AZ19: =+$H19*AY19 -> 1,584.72 | BA19: =1/36 -> 0.03 | BB19: =+$H19*BA19 -> 1,584.72 | BC19: =1/36 -> 0.03 | BD19: =+$H19*BC19 -> 1,584.72 | BE19: =1/36 -> 0.03 | BF19: =+$H19*BE19 -> 1,584.72 | BG19: =1/36 -> 0.03 | BH19: =+$H19*BG19 -> 1,584.72 | BI19: =2/36 -> 0.06 | BJ19: =+$H19*BI19 -> 3,169.44 | BK19: 0.03 | BL19: =+BK19*H19 -> 1,584.72 | BM19: 0.03 | BN19: =+BM19*H19 -> 1,584.72 | BO19: 0.03 | BP19: =+BO19*H19 -> 1,584.72 | BQ19: 0.03 | BR19: =+BQ19*H19 -> 1,584.72 | BS19: 0.03 | BT19: =+BS19*H19 -> 1,584.72 | BU19: 0.03 | BV19: =+BU19*H19 -> 1,584.72 | BW19: 0.03 | BX19: =+BW19*H19 -> 1,584.72 | BY19: 0.03 | BZ19: =+BY19*H19 -> 1,584.72 | CA19: 0.03 | CB19: =+CA19*K19 -> 1,584.72 | CD19: =H19*CC19 -> 0.00 | CF19: =J19*CE19 -> 0.00 | CH19: =L19*CG19 -> 0.00 | CJ19: =K19*CI19 -> 0.00 | CL19: =K19*CK19 -> 0.00 | CM19: =M19+O19+Q19+S19+U19+W19+Y19+AA19+AC19+AE19+AG19+AI19+AK19+AM19+AO19+AQ19+AS19+AU19+AW19+AY19+BA19+BC19+BE19+BG19+BI19+BK19+BM19+BO19+BQ19+BS19+BU19+BW19+BY19+CA19+CC19+CE19+CG19+CI19+CK19 -> 2 | CN19: =+H19*CM19 -> 112,050.00 | CP19: 112 050.00 | CQ19: 0.00
AO20: 0.03 | AQ20: 0.03 | AS20: 0.03 | AU20: 0.03 | CP20: 0.00 | CQ20: 0.00
A21: B4.0 | B21: MANAGEMENT OF CONTRACT | AO21: 0.03 | AQ21: 0.03 | AS21: 0.03 | AU21: 0.03 | CP21: 0.00 | CQ21: 0.00
AO22: 0.03 | AQ22: 0.03 | AS22: 0.03 | AU22: 0.03 | CP22: 0.00 | CQ22: 0.00
A23: B4.1 | B23: Management of Works | C23: Sum | D23: 1 | E23: 1.38 | F23: 0.53 | G23: =+E23+F23 -> 1.91 | H23: 703 000.00 | K23: =G23*H23 -> 1345 016.94 | L23: =+D23*H23 -> 703 000.00 | O23: =3/36 -> 0.08 | P23: =+H23*O23 -> 58,583.33 | Q23: =4/36-O23 -> 0.03 | R23: =+H23*Q23 -> 19,527.78 | S23: =5/36-O23-Q23 -> 0.03 | T23: =+H23*S23 -> 19,527.78 | U23: =6/36-O23-Q23-S23 -> 0.03 | V23: =+$H23*U23 -> 19,527.78 | W23: =7/36-O23-Q23-S23-U23 -> 0.03 | X23: =+$H23*W23 -> 19,527.78 | Y23: =8/36-M23-O23-Q23-S23-U23-W23 -> 0.03 | Z23: =+$H23*Y23 -> 19,527.78 | AA23: =9/36-O23-Q23-S23-U23-W23-Y23 -> 0.03 | AB23: =+$H23*AA23 -> 19,527.78 | AC23: =10/36-O23-Q23-S23-U23-W23-Y23-AA23 -> 0.03 | AD23: =+$H23*AC23 -> 19,527.78 | AE23: =11/36-O23-Q23-S23-U23-W23-Y23-AA23-AC23 -> 0.03 | AF23: =+$H23*AE23 -> 19,527.78 | AG23: =12/36-O23-Q23-S23-U23-W23-Y23-AA23-AC23-AE23 -> 0.03 | AH23: =+$H23*AG23 -> 19,527.78 | AI23: =13/36-O23-Q23-S23-U23-W23-Y23-AA23-AC23-AE23-AG23 -> 0.03 | AJ23: =+$H23*AI23 -> 19,527.78 | AK23: =14/36-O23-Q23-S23-U23-W23-Y23-AA23-AC23-AE23-AG23-AI23 -> 0.03 | AL23: =+$H23*AK23 -> 19,527.78 | AM23: =15/36-Q23-S23-U23-W23-Y23-AA23-AC23-AE23-AG23-AI23-AK23-O23 -> 0.03 | AN23: =+$H23*AM23 -> 19,527.78 | AO23: 0.03 | AP23: =+$H23*AO23 -> 19,527.78 | AQ23: 0.03 | AR23: =+$H23*AQ23 -> 19,527.78 | AS23: 0.03 | AT23: =+$H23*AS23 -> 19,527.78 | AU23: 0.03 | AV23: =+$H23*AU23 -> 19,527.78 | AW23: =1/36 -> 0.03 | AX23: =+$H23*AW23 -> 19,527.78 | AY23: =1/36 -> 0.03 | AZ23: =+$H23*AY23 -> 19,527.78 | BA23: =1/36 -> 0.03 | BB23: =+$H23*BA23 -> 19,527.78 | BC23: =1/36 -> 0.03 | BD23: =+$H23*BC23 -> 19,527.78 | BE23: =1/36 -> 0.03 | BF23: =+$H23*BE23 -> 19,527.78 | BG23: =1/36 -> 0.03 | BH23: =+$H23*BG23 -> 19,527.78 | BI23: =2/36 -> 0.06 | BJ23: =+$H23*BI23 -> 39,055.56 | BK23: 0.03 | BL23: =+BK23*H23 -> 19,527.78 | BM23: 0.03 | BN23: =+BM23*H23 -> 19,527.78 | BO23: 0.03 | BP23: =+BO23*H23 -> 19,527.78 | BQ23: 0.03 | BR23: =+BQ23*H23 -> 19,527.78 | BS23: 0.03 | BT23: =+BS23*H23 -> 19,527.78 | BU23: 0.03 | BV23: =+BU23*H23 -> 19,527.78 | BW23: 0.03 | BX23: =+BW23*H23 -> 19,527.78 | BY23: 0.03 | BZ23: =+BY23*H23 -> 19,527.78 | CA23: 0.03 | CB23: =+CA23*K23 -> 37,361.58 | CC23: 0.38 | CD23: =H23*CC23 -> 268,659.93 | CF23: =J23*CE23 -> 0.00 | CH23: =L23*CG23 -> 0.00 | CJ23: =L23*CI23 -> 0.00 | CK23: 0.53 | CL23: =L23*CK23 -> 373,357.01 | CM23: =M23+O23+Q23+S23+U23+W23+Y23+AA23+AC23+AE23+AG23+AI23+AK23+AM23+AO23+AQ23+AS23+AU23+AW23+AY23+BA23+BC23+BE23+BG23+BI23+BK23+BM23+BO23+BQ23+BS23+BU23+BW23+BY23+CA23+CC23+CE23+CG23+CI23+CK23 -> 1.9133 | CN23: =+H23*CM23 -> 1,345,016.94 | CP23: 1345 016.94 | CQ23: 0.00
AO24: 0.03 | AQ24: 0.03 | AS24: 0.03 | AU24: 0.03 | CP24: 0.00 | CQ24: 0.00
A25: B4.2 | B25: Programme for the Works | C25: Sum | D25: 1 | E25: 1 | G25: =+E25+F25 -> 1 | H25: 151 500.00 | K25: =G25*H25 -> 151 500.00 | L25: =+D25*H25 -> 151 500.00 | O25: =3/36 -> 0.08 | P25: =+H25*O25 -> 12,625.00 | Q25: =4/36-O25 -> 0.03 | R25: =+H25*Q25 -> 4,208.33 | S25: =5/36-O25-Q25 -> 0.03 | T25: =+H25*S25 -> 4,208.33 | U25: =6/36-O25-Q25-S25 -> 0.03 | V25: =+$H25*U25 -> 4,208.33 | W25: =7/36-O25-Q25-S25-U25 -> 0.03 | X25: =+$H25*W25 -> 4,208.33 | Y25: =8/36-M25-O25-Q25-S25-U25-W25 -> 0.03 | Z25: =+$H25*Y25 -> 4,208.33 | AA25: =9/36-O25-Q25-S25-U25-W25-Y25 -> 0.03 | AB25: =+$H25*AA25 -> 4,208.33 | AC25: =10/36-O25-Q25-S25-U25-W25-Y25-AA25 -> 0.03 | AD25: =+$H25*AC25 -> 4,208.33 | AE25: =11/36-O25-Q25-S25-U25-W25-Y25-AA25-AC25 -> 0.03 | AF25: =+$H25*AE25 -> 4,208.33 | AG25: =12/36-O25-Q25-S25-U25-W25-Y25-AA25-AC25-AE25 -> 0.03 | AH25: =+$H25*AG25 -> 4,208.33 | AI25: =13/36-O25-Q25-S25-U25-W25-Y25-AA25-AC25-AE25-AG25 -> 0.03 | AJ25: =+$H25*AI25 -> 4,208.33 | AK25: =14/36-O25-Q25-S25-U25-W25-Y25-AA25-AC25-AE25-AG25-AI25 -> 0.03 | AL25: =+$H25*AK25 -> 4,208.33 | AM25: =15/36-Q25-S25-U25-W25-Y25-AA25-AC25-AE25-AG25-AI25-AK25-O25 -> 0.03 | AN25: =+$H25*AM25 -> 4,208.33 | AO25: 0.03 | AP25: =+$H25*AO25 -> 4,208.33 | AQ25: 0.03 | AR25: =+$H25*AQ25 -> 4,208.33 | AS25: 0.03 | AT25: =+$H25*AS25 -> 4,208.33 | AU25: 0.03 | AV25: =+$H25*AU25 -> 4,208.33 | AW25: =1/36 -> 0.03 | AX25: =+$H25*AW25 -> 4,208.33 | AY25: =1/36 -> 0.03 | AZ25: =+$H25*AY25 -> 4,208.33 | BA25: =1/36 -> 0.03 | BB25: =+$H25*BA25 -> 4,208.33 | BC25: =1/36 -> 0.03 | BD25: =+$H25*BC25 -> 4,208.33 | BE25: =1/36 -> 0.03 | BF25: =+$H25*BE25 -> 4,208.33 | BG25: =1/36 -> 0.03 | BH25: =+$H25*BG25 -> 4,208.33 | BI25: =2/36 -> 0.06 | BJ25: =+$H25*BI25 -> 8,416.67 | BK25: 0.03 | BL25: =+BK25*H25 -> 4,208.33 | BM25: 0.03 | BN25: =+BM25*H25 -> 4,208.33 | BO25: 0.03 | BP25: =+BO25*H25 -> 4,208.33 | BQ25: 0.03 | BR25: =+BQ25*H25 -> 4,208.33 | BS25: 0.03 | BT25: =+BS25*H25 -> 4,208.33 | BU25: 0.03 | BV25: =+BU25*H25 -> 4,208.33 | BW25: 0.03 | BX25: =+BW25*H25 -> 4,208.33 | BY25: 0.03 | BZ25: =+BY25*H25 -> 4,208.33 | CA25: 0.03 | CB25: =+CA25*K25 -> 4,208.33 | CD25: =H25*CC25 -> 0.00 | CF25: =J25*CE25 -> 0.00 | CH25: =L25*CG25 -> 0.00 | CJ25: =K25*CI25 -> 0.00 | CL25: =K25*CK25 -> 0.00 | CM25: =M25+O25+Q25+S25+U25+W25+Y25+AA25+AC25+AE25+AG25+AI25+AK25+AM25+AO25+AQ25+AS25+AU25+AW25+AY25+BA25+BC25+BE25+BG25+BI25+BK25+BM25+BO25+BQ25+BS25+BU25+BW25+BY25+CA25+CC25+CE25+CG25+CI25+CK25 -> 1 | CN25: =+H25*CM25 -> 151,500.00 | CP25: 151 500.00 | CQ25: 0.00
AO26: 0.03 | AQ26: 0.03 | AS26: 0.03 | AU26: 0.03 | CP26: 0.00 | CQ26: 0.00
A27: B4.3 | B27: Progress Meetings | C27: Sum | D27: 1 | E27: 1 | G27: =+E27+F27 -> 1 | H27: 75 800.00 | K27: =G27*H27 -> 75 800.00 | L27: =+D27*H27 -> 75 800.00 | O27: =3/36 -> 0.08 | P27: =+H27*O27 -> 6,316.67 | Q27: =4/36-O27 -> 0.03 | R27: =+H27*Q27 -> 2,105.56 | S27: =5/36-O27-Q27 -> 0.03 | T27: =+H27*S27 -> 2,105.56 | U27: =6/36-O27-Q27-S27 -> 0.03 | V27: =+$H27*U27 -> 2,105.56 | W27: =7/36-O27-Q27-S27-U27 -> 0.03 | X27: =+$H27*W27 -> 2,105.56 | Y27: =8/36-M27-O27-Q27-S27-U27-W27 -> 0.03 | Z27: =+$H27*Y27 -> 2,105.56 | AA27: =9/36-O27-Q27-S27-U27-W27-Y27 -> 0.03 | AB27: =+$H27*AA27 -> 2,105.56 | AC27: =10/36-O27-Q27-S27-U27-W27-Y27-AA27 -> 0.03 | AD27: =+$H27*AC27 -> 2,105.56 | AE27: =11/36-O27-Q27-S27-U27-W27-Y27-AA27-AC27 -> 0.03 | AF27: =+$H27*AE27 -> 2,105.56 | AG27: =12/36-O27-Q27-S27-U27-W27-Y27-AA27-AC27-AE27 -> 0.03 | AH27: =+$H27*AG27 -> 2,105.56 | AI27: =13/36-O27-Q27-S27-U27-W27-Y27-AA27-AC27-AE27-AG27 -> 0.03 | AJ27: =+$H27*AI27 -> 2,105.56 | AK27: =14/36-O27-Q27-S27-U27-W27-Y27-AA27-AC27-AE27-AG27-AI27 -> 0.03 | AL27: =+$H27*AK27 -> 2,105.56 | AM27: =15/36-Q27-S27-U27-W27-Y27-AA27-AC27-AE27-AG27-AI27-AK27-O27 -> 0.03 | AN27: =+$H27*AM27 -> 2,105.56 | AO27: 0.03 | AP27: =+$H27*AO27 -> 2,105.56 | AQ27: 0.03 | AR27: =+$H27*AQ27 -> 2,105.56 | AS27: 0.03 | AT27: =+$H27*AS27 -> 2,105.56 | AU27: 0.03 | AV27: =+$H27*AU27 -> 2,105.56 | AW27: =1/36 -> 0.03 | AX27: =+$H27*AW27 -> 2,105.56 | AY27: =1/36 -> 0.03 | AZ27: =+$H27*AY27 -> 2,105.56 | BA27: =1/36 -> 0.03 | BB27: =+$H27*BA27 -> 2,105.56 | BC27: =1/36 -> 0.03 | BD27: =+$H27*BC27 -> 2,105.56 | BE27: =1/36 -> 0.03 | BF27: =+$H27*BE27 -> 2,105.56 | BG27: =1/36 -> 0.03 | BH27: =+$H27*BG27 -> 2,105.56 | BI27: =2/36 -> 0.06 | BJ27: =+$H27*BI27 -> 4,211.11 | BK27: 0.03 | BL27: =+BK27*H27 -> 2,105.56 | BM27: 0.03 | BN27: =+BM27*H27 -> 2,105.56 | BO27: 0.03 | BP27: =+BO27*H27 -> 2,105.56 | BQ27: 0.03 | BR27: =+BQ27*H27 -> 2,105.56 | BS27: 0.03 | BT27: =+BS27*H27 -> 2,105.56 | BU27: 0.03 | BV27: =+BU27*H27 -> 2,105.56 | BW27: 0.03 | BX27: =+BW27*H27 -> 2,105.56 | BY27: 0.03 | BZ27: =+BY27*H27 -> 2,105.56 | CA27: 0.03 | CB27: =+CA27*K27 -> 2,105.56 | CD27: =H27*CC27 -> 0.00 | CF27: =J27*CE27 -> 0.00 | CH27: =L27*CG27 -> 0.00 | CJ27: =K27*CI27 -> 0.00 | CL27: =K27*CK27 -> 0.00 | CM27: =M27+O27+Q27+S27+U27+W27+Y27+AA27+AC27+AE27+AG27+AI27+AK27+AM27+AO27+AQ27+AS27+AU27+AW27+AY27+BA27+BC27+BE27+BG27+BI27+BK27+BM27+BO27+BQ27+BS27+BU27+BW27+BY27+CA27+CC27+CE27+CG27+CI27+CK27 -> 1 | CN27: =+H27*CM27 -> 75,800.00 | CP27: 75 800.00 | CQ27: 0.00
AO28: 0.03 | AQ28: 0.03 | AS28: 0.03 | AU28: 0.03 | CP28: 0.00 | CQ28: 0.00
A29: B4.4 | B29: Technical Meetings | C29: Sum | D29: 1 | E29: 1 | G29: =+E29+F29 -> 1 | H29: 50 500.00 | K29: =+G29*H29 -> 50 500.00 | L29: =+D29*H29 -> 50 500.00 | O29: =3/36 -> 0.08 | P29: =+H29*O29 -> 4,208.33 | Q29: =4/36-O29 -> 0.03 | R29: =+H29*Q29 -> 1,402.78 | S29: =5/36-O29-Q29 -> 0.03 | T29: =+H29*S29 -> 1,402.78 | U29: =6/36-O29-Q29-S29 -> 0.03 | V29: =+$H29*U29 -> 1,402.78 | W29: =7/36-O29-Q29-S29-U29 -> 0.03 | X29: =+$H29*W29 -> 1,402.78 | Y29: =8/36-M29-O29-Q29-S29-U29-W29 -> 0.03 | Z29: =+$H29*Y29 -> 1,402.78 | AA29: =9/36-O29-Q29-S29-U29-W29-Y29 -> 0.03 | AB29: =+$H29*AA29 -> 1,402.78 | AC29: =10/36-O29-Q29-S29-U29-W29-Y29-AA29 -> 0.03 | AD29: =+$H29*AC29 -> 1,402.78 | AE29: =11/36-O29-Q29-S29-U29-W29-Y29-AA29-AC29 -> 0.03 | AF29: =+$H29*AE29 -> 1,402.78 | AG29: =12/36-O29-Q29-S29-U29-W29-Y29-AA29-AC29-AE29 -> 0.03 | AH29: =+$H29*AG29 -> 1,402.78 | AI29: =13/36-O29-Q29-S29-U29-W29-Y29-AA29-AC29-AE29-AG29 -> 0.03 | AJ29: =+$H29*AI29 -> 1,402.78 | AK29: =14/36-O29-Q29-S29-U29-W29-Y29-AA29-AC29-AE29-AG29-AI29 -> 0.03 | AL29: =+$H29*AK29 -> 1,402.78 | AM29: =15/36-Q29-S29-U29-W29-Y29-AA29-AC29-AE29-AG29-AI29-AK29-O29 -> 0.03 | AN29: =+$H29*AM29 -> 1,402.78 | AO29: 0.03 | AP29: =+$H29*AO29 -> 1,402.78 | AQ29: 0.03 | AR29: =+$H29*AQ29 -> 1,402.78 | AS29: 0.03 | AT29: =+$H29*AS29 -> 1,402.78 | AU29: 0.03 | AV29: =+$H29*AU29 -> 1,402.78 | AW29: =1/36 -> 0.03 | AX29: =+$H29*AW29 -> 1,402.78 | AY29: =1/36 -> 0.03 | AZ29: =+$H29*AY29 -> 1,402.78 | BA29: =1/36 -> 0.03 | BB29: =+$H29*BA29 -> 1,402.78 | BC29: =1/36 -> 0.03 | BD29: =+$H29*BC29 -> 1,402.78 | BE29: =1/36 -> 0.03 | BF29: =+$H29*BE29 -> 1,402.78 | BG29: =1/36 -> 0.03 | BH29: =+$H29*BG29 -> 1,402.78 | BI29: =2/36 -> 0.06 | BJ29: =+$H29*BI29 -> 2,805.56 | BK29: 0.03 | BL29: =+BK29*H29 -> 1,402.78 | BM29: 0.03 | BN29: =+BM29*H29 -> 1,402.78 | BO29: 0.03 | BP29: =+BO29*H29 -> 1,402.78 | BQ29: 0.03 | BR29: =+BQ29*H29 -> 1,402.78 | BS29: 0.03 | BT29: =+BS29*H29 -> 1,402.78 | BU29: 0.03 | BV29: =+BU29*H29 -> 1,402.78 | BW29: 0.03 | BX29: =+BW29*H29 -> 1,402.78 | BY29: 0.03 | BZ29: =+BY29*H29 -> 1,402.78 | CA29: 0.03 | CB29: =+CA29*K29 -> 1,402.78 | CD29: =H29*CC29 -> 0.00 | CF29: =J29*CE29 -> 0.00 | CH29: =L29*CG29 -> 0.00 | CJ29: =K29*CI29 -> 0.00 | CL29: =K29*CK29 -> 0.00 | CM29: =M29+O29+Q29+S29+U29+W29+Y29+AA29+AC29+AE29+AG29+AI29+AK29+AM29+AO29+AQ29+AS29+AU29+AW29+AY29+BA29+BC29+BE29+BG29+BI29+BK29+BM29+BO29+BQ29+BS29+BU29+BW29+BY29+CA29+CC29+CE29+CG29+CI29+CK29 -> 1 | CN29: =+H29*CM29 -> 50,500.00 | CP29: 50 500.00 | CQ29: 0.00
AO30: 0.03 | AQ30: 0.03 | AS30: 0.03 | AU30: 0.03 | CP30: 0.00 | CQ30: 0.00
A31: B4.5 | B31: Labour and Plant Records | C31: Sum | D31: 1 | E31: 1 | G31: =+E31+F31 -> 1 | H31: 175 750.00 | K31: =G31*H31 -> 175 750.00 | L31: =+D31*H31 -> 175 750.00 | O31: =3/36 -> 0.08 | P31: =+H31*O31 -> 14,645.83 | Q31: =4/36-O31 -> 0.03 | R31: =+H31*Q31 -> 4,881.94 | S31: =5/36-O31-Q31 -> 0.03 | T31: =+H31*S31 -> 4,881.94 | U31: =6/36-O31-Q31-S31 -> 0.03 | V31: =+$H31*U31 -> 4,881.94 | W31: =7/36-O31-Q31-S31-U31 -> 0.03 | X31: =+$H31*W31 -> 4,881.94 | Y31: =8/36-M31-O31-Q31-S31-U31-W31 -> 0.03 | Z31: =+$H31*Y31 -> 4,881.94 | AA31: =9/36-O31-Q31-S31-U31-W31-Y31 -> 0.03 | AB31: =+$H31*AA31 -> 4,881.94 | AC31: =10/36-O31-Q31-S31-U31-W31-Y31-AA31 -> 0.03 | AD31: =+$H31*AC31 -> 4,881.94 | AE31: =11/36-O31-Q31-S31-U31-W31-Y31-AA31-AC31 -> 0.03 | AF31: =+$H31*AE31 -> 4,881.94 | AG31: =12/36-O31-Q31-S31-U31-W31-Y31-AA31-AC31-AE31 -> 0.03 | AH31: =+$H31*AG31 -> 4,881.94 | AI31: =13/36-O31-Q31-S31-U31-W31-Y31-AA31-AC31-AE31-AG31 -> 0.03 | AJ31: =+$H31*AI31 -> 4,881.94 | AK31: =14/36-O31-Q31-S31-U31-W31-Y31-AA31-AC31-AE31-AG31-AI31 -> 0.03 | AL31: =+$H31*AK31 -> 4,881.94 | AM31: =15/36-Q31-S31-U31-W31-Y31-AA31-AC31-AE31-AG31-AI31-AK31-O31 -> 0.03 | AN31: =+$H31*AM31 -> 4,881.94 | AO31: 0.03 | AP31: =+$H31*AO31 -> 4,881.94 | AQ31: 0.03 | AR31: =+$H31*AQ31 -> 4,881.94 | AS31: 0.03 | AT31: =+$H31*AS31 -> 4,881.94 | AU31: 0.03 | AV31: =+$H31*AU31 -> 4,881.94 | AW31: =1/36 -> 0.03 | AX31: =+$H31*AW31 -> 4,881.94 | AY31: =1/36 -> 0.03 | AZ31: =+$H31*AY31 -> 4,881.94 | BA31: =1/36 -> 0.03 | BB31: =+$H31*BA31 -> 4,881.94 | BC31: =1/36 -> 0.03 | BD31: =+$H31*BC31 -> 4,881.94 | BE31: =1/36 -> 0.03 | BF31: =+$H31*BE31 -> 4,881.94 | BG31: =1/36 -> 0.03 | BH31: =+$H31*BG31 -> 4,881.94 | BI31: =2/36 -> 0.06 | BJ31: =+$H31*BI31 -> 9,763.89 | BK31: 0.03 | BL31: =+BK31*H31 -> 4,881.94 | BM31: 0.03 | BN31: =+BM31*H31 -> 4,881.94 | BO31: 0.03 | BP31: =+BO31*H31 -> 4,881.94 | BQ31: 0.03 | BR31: =+BQ31*H31 -> 4,881.94 | BS31: 0.03 | BT31: =+BS31*H31 -> 4,881.94 | BU31: 0.03 | BV31: =+BU31*H31 -> 4,881.94 | BW31: 0.03 | BX31: =+BW31*H31 -> 4,881.94 | BY31: 0.03 | BZ31: =+BY31*H31 -> 4,881.94 | CA31: 0.03 | CB31: =+CA31*K31 -> 4,881.94 | CD31: =H31*CC31 -> 0.00 | CF31: =J31*CE31 -> 0.00 | CH31: =L31*CG31 -> 0.00 | CJ31: =K31*CI31 -> 0.00 | CL31: =K31*CK31 -> 0.00 | CM31: =M31+O31+Q31+S31+U31+W31+Y31+AA31+AC31+AE31+AG31+AI31+AK31+AM31+AO31+AQ31+AS31+AU31+AW31+AY31+BA31+BC31+BE31+BG31+BI31+BK31+BM31+BO31+BQ31+BS31+BU31+BW31+BY31+CA31+CC31+CE31+CG31+CI31+CK31 -> 1 | CN31: =+H31*CM31 -> 175,750.00 | CP31: 175 750.00 | CQ31: 0.00
AO32: 0.03 | AQ32: 0.03 | AS32: 0.03 | AU32: 0.03 | AW32: =1/36 -> 0.03 | CP32: 0.00 | CQ32: 0.00
A33: B5.0 | B33: SAMPLES, SHOP DRAWINGS AND MANUFACTURE'S INSTRUCTIONS | AO33: 0.03 | AQ33: 0.03 | AS33: 0.03 | AU33: 0.03 | CP33: 0.00 | CQ33: 0.00
AO34: 0.03 | AQ34: 0.03 | AS34: 0.03 | AU34: 0.03 | CP34: 0.00 | CQ34: 0.00
A35: B5.1 | B35: Samples of Materials | C35: Sum | D35: 1 | E35: 1 | G35: =+E35+F35 -> 1 | H35: 2 000.00 | I35: =+G35*H35 -> 2 000.00 | L35: =+D35*H35 -> 2 000.00 | M35: 1 | N35: =+H35*M35 -> 2,000.00 | BJ35: =+$H35*BI35 -> 0.00 | BL35: =+BK35*H35 -> 0.00 | BN35: =+BM35*H35 -> 0.00 | BP35: =+BO35*H35 -> 0.00 | BR35: =+BQ35*H35 -> 0.00 | BT35: =+BS35*H35 -> 0.00 | BV35: =+BU35*J35 -> 0.00 | BX35: =+BW35*H35 -> 0.00 | BZ35: =+BY35*H35 -> 0.00 | CB35: =+CA35*K35 -> 0.00 | CD35: =H35*CC35 -> 0.00 | CF35: =J35*CE35 -> 0.00 | CH35: =L35*CG35 -> 0.00 | CJ35: =K35*CI35 -> 0.00 | CL35: =K35*CK35 -> 0.00 | CM35: =M35+O35+Q35+S35+U35+W35+Y35+AA35+AC35+AE35+AG35+AI35+AK35+AM35+AO35+AQ35+AS35+AU35+AW35+AY35+BA35+BC35+BE35+BG35+BI35+BK35+BM35+BO35+BQ35+BS35+BU35+BW35+BY35+CA35+CC35+CE35+CG35+CI35+CK35 -> 1 | CN35: =+H35*CM35 -> 2,000.00 | CO35: 1 | CP35: =+I35+J35+K35 -> 2 000.00 | CQ35: =+CP35-CN35 -> -0.00
CP36: =+I36+J36+K36 -> 0.00 | CQ36: =+CP36-CN36 -> 0.00
A37: B5.3 | B37: Shop Drawings | C37: Sum | D37: 1 | E37: 1 | G37: =+E37+F37 -> 1 | H37: 3 000.00 | I37: =+G37*H37 -> 3 000.00 | L37: =+D37*H37 -> 3 000.00 | M37: 1 | N37: =+H37*M37 -> 3,000.00 | BJ37: =+$H37*BI37 -> 0.00 | BL37: =+BK37*H37 -> 0.00 | BN37: =+BM37*H37 -> 0.00 | BP37: =+BO37*H37 -> 0.00 | BR37: =+BQ37*H37 -> 0.00 | BT37: =+BS37*H37 -> 0.00 | BV37: =+BU37*J37 -> 0.00 | BX37: =+BW37*H37 -> 0.00 | BZ37: =+BY37*H37 -> 0.00 | CB37: =+CA37*K37 -> 0.00 | CD37: =H37*CC37 -> 0.00 | CF37: =J37*CE37 -> 0.00 | CH37: =L37*CG37 -> 0.00 | CJ37: =K37*CI37 -> 0.00 | CL37: =K37*CK37 -> 0.00 | CM37: =M37+O37+Q37+S37+U37+W37+Y37+AA37+AC37+AE37+AG37+AI37+AK37+AM37+AO37+AQ37+AS37+AU37+AW37+AY37+BA37+BC37+BE37+BG37+BI37+BK37+BM37+BO37+BQ37+BS37+BU37+BW37+BY37+CA37+CC37+CE37+CG37+CI37+CK37 -> 1 | CN37: =+H37*CM37 -> 3,000.00 | CO37: 1 | CP37: 3 000.00 | CQ37: -0.00
CP38: 0.00 | CQ38: 0.00
A39: B6.0 | B39: TEMPORARY WORKS AND PLANT | CP39: 0.00 | CQ39: 0.00
CP40: 0.00 | CQ40: 0.00
A41: B6.2 | B41: Enclosure of the Works | C41: Sum | D41: 1 | E41: 1 | G41: =+E41+F41 -> 1 | H41: 5 000.00 | I41: =+G41*H41 -> 5 000.00 | L41: =+D41*H41 -> 5 000.00 | M41: 1 | N41: =+H41*M41 -> 5,000.00 | BJ41: =+$H41*BI41 -> 0.00 | BL41: =+BK41*H41 -> 0.00 | BN41: =+BM41*H41 -> 0.00 | BP41: =+BO41*H41 -> 0.00 | BR41: =+BQ41*H41 -> 0.00 | BT41: =+BS41*H41 -> 0.00 | BV41: =+BU41*J41 -> 0.00 | BX41: =+BW41*H41 -> 0.00 | BZ41: =+BY41*H41 -> 0.00 | CB41: =+CA41*K41 -> 0.00 | CD41: =H41*CC41 -> 0.00 | CF41: =J41*CE41 -> 0.00 | CH41: =L41*CG41 -> 0.00 | CJ41: =K41*CI41 -> 0.00 | CL41: =K41*CK41 -> 0.00 | CM41: =M41+O41+Q41+S41+U41+W41+Y41+AA41+AC41+AE41+AG41+AI41+AK41+AM41+AO41+AQ41+AS41+AU41+AW41+AY41+BA41+BC41+BE41+BG41+BI41+BK41+BM41+BO41+BQ41+BS41+BU41+BW41+BY41+CA41+CC41+CE41+CG41+CI41+CK41 -> 1 | CN41: =+H41*CM41 -> 5,000.00 | CO41: 1 | CP41: 5 000.00 | CQ41: -0.00
CP42: 0.00 | CQ42: 0.00
A43: B6.4 | B43: Plant, Equipment, Sheds and Offices | C43: Sum | D43: 1 | E43: 1 | G43: =+E43+F43 -> 1 | H43: 10 000.00 | I43: =+G43*H43 -> 10 000.00 | L43: =+D43*H43 -> 10 000.00 | M43: 1 | N43: =+H43*M43 -> 10,000.00 | BJ43: =+$H43*BI43 -> 0.00 | BL43: =+BK43*H43 -> 0.00 | BN43: =+BM43*H43 -> 0.00 | BP43: =+BO43*H43 -> 0.00 | BR43: =+BQ43*H43 -> 0.00 | BT43: =+BS43*H43 -> 0.00 | BV43: =+BU43*J43 -> 0.00 | BX43: =+BW43*H43 -> 0.00 | BZ43: =+BY43*H43 -> 0.00 | CB43: =+CA43*K43 -> 0.00 | CD43: =H43*CC43 -> 0.00 | CF43: =J43*CE43 -> 0.00 | CH43: =L43*CG43 -> 0.00 | CJ43: =K43*CI43 -> 0.00 | CL43: =K43*CK43 -> 0.00 | CM43: =M43+O43+Q43+S43+U43+W43+Y43+AA43+AC43+AE43+AG43+AI43+AK43+AM43+AO43+AQ43+AS43+AU43+AW43+AY43+BA43+BC43+BE43+BG43+BI43+BK43+BM43+BO43+BQ43+BS43+BU43+BW43+BY43+CA43+CC43+CE43+CG43+CI43+CK43 -> 1 | CN43: =+H43*CM43 -> 10,000.00 | CO43: 1 | CP43: 10 000.00 | CQ43: -0.00
AO44: 0.03 | AQ44: 0.03 | AS44: 0.03 | AU44: 0.03 | CP44: 0.00 | CQ44: 0.00
A45: B7.0 | B45: TEMPORARY SERVICES | AO45: 0.03 | AQ45: 0.03 | AS45: 0.03 | AU45: 0.03 | BL45: =+BK45*H45 -> 0.00 | CP45: 0.00 | CQ45: 0.00
AO46: 0.03 | AQ46: 0.03 | AS46: 0.03 | AU46: 0.03 | CP46: 0.00 | CQ46: 0.00
A47: B7.2 | B47: Water | C47: Sum | D47: 1 | E47: 1 | G47: =+E47+F47 -> 1 | H47: 5 000.00 | K47: =+G47*H47 -> 5 000.00 | L47: =+D47*H47 -> 5 000.00 | O47: =3/36 -> 0.08 | P47: =+H47*O47 -> 416.67 | Q47: =4/36-O47 -> 0.03 | R47: =+H47*Q47 -> 138.89 | S47: =5/36-O47-Q47 -> 0.03 | T47: =+H47*S47 -> 138.89 | U47: =6/36-O47-Q47-S47 -> 0.03 | V47: =+$H47*U47 -> 138.89 | W47: =7/36-O47-Q47-S47-U47 -> 0.03 | X47: =+$H47*W47 -> 138.89 | Y47: =8/36-M47-O47-Q47-S47-U47-W47 -> 0.03 | Z47: =+$H47*Y47 -> 138.89 | AA47: =9/36-O47-Q47-S47-U47-W47-Y47 -> 0.03 | AB47: =+$H47*AA47 -> 138.89 | AC47: =10/36-O47-Q47-S47-U47-W47-Y47-AA47 -> 0.03 | AD47: =+$H47*AC47 -> 138.89 | AE47: =11/36-O47-Q47-S47-U47-W47-Y47-AA47-AC47 -> 0.03 | AF47: =+$H47*AE47 -> 138.89 | AG47: =12/36-O47-Q47-S47-U47-W47-Y47-AA47-AC47-AE47 -> 0.03 | AH47: =+$H47*AG47 -> 138.89 | AI47: =13/36-O47-Q47-S47-U47-W47-Y47-AA47-AC47-AE47-AG47 -> 0.03 | AJ47: =+$H47*AI47 -> 138.89 | AK47: =14/36-O47-Q47-S47-U47-W47-Y47-AA47-AC47-AE47-AG47-AI47 -> 0.03 | AL47: =+$H47*AK47 -> 138.89 | AM47: =15/36-Q47-S47-U47-W47-Y47-AA47-AC47-AE47-AG47-AI47-AK47-O47 -> 0.03 | AN47: =+$H47*AM47 -> 138.89 | AO47: 0.03 | AP47: =+$H47*AO47 -> 138.89 | AQ47: 0.03 | AR47: =+$H47*AQ47 -> 138.89 | AS47: 0.03 | AT47: =+$H47*AS47 -> 138.89 | AU47: 0.03 | AV47: =+$H47*AU47 -> 138.89 | AW47: =1/36 -> 0.03 | AX47: =+$H47*AW47 -> 138.89 | AY47: =1/36 -> 0.03 | AZ47: =+$H47*AY47 -> 138.89 | BA47: =1/36 -> 0.03 | BB47: =+$H47*BA47 -> 138.89 | BC47: =1/36 -> 0.03 | BD47: =+$H47*BC47 -> 138.89 | BE47: =1/36 -> 0.03 | BF47: =+$H47*BE47 -> 138.89 | BG47: =1/36 -> 0.03 | BH47: =+$H47*BG47 -> 138.89 | BI47: =2/36 -> 0.06 | BJ47: =+$H47*BI47 -> 277.78 | BK47: 0.03 | BL47: =+BK47*H47 -> 138.89 | BM47: 0.03 | BN47: =+BM47*H47 -> 138.89 | BO47: 0.03 | BP47: =+BO47*H47 -> 138.89 | BQ47: 0.03 | BR47: =+BQ47*H47 -> 138.89 | BS47: 0.03 | BT47: =+BS47*H47 -> 138.89 | BU47: 0.03 | BV47: =+BU47*H47 -> 138.89 | BW47: 0.03 | BX47: =+BW47*H47 -> 138.89 | BY47: 0.03 | BZ47: =+BY47*H47 -> 138.89 | CA47: 0.03 | CB47: =+CA47*K47 -> 138.89 | CD47: =H47*CC47 -> 0.00 | CF47: =J47*CE47 -> 0.00 | CH47: =L47*CG47 -> 0.00 | CJ47: =K47*CI47 -> 0.00 | CL47: =K47*CK47 -> 0.00 | CM47: =M47+O47+Q47+S47+U47+W47+Y47+AA47+AC47+AE47+AG47+AI47+AK47+AM47+AO47+AQ47+AS47+AU47+AW47+AY47+BA47+BC47+BE47+BG47+BI47+BK47+BM47+BO47+BQ47+BS47+BU47+BW47+BY47+CA47+CC47+CE47+CG47+CI47+CK47 -> 1 | CN47: =+H47*CM47 -> 5,000.00 | CP47: 5 000.00 | CQ47: 0.00
AO48: 0.03 | AQ48: 0.03 | AS48: 0.03 | AU48: 0.03 | CP48: 0.00 | CQ48: 0.00
A49: B7.3 | B49: Electricity | C49: Sum | D49: 1 | E49: 1 | G49: =+E49+F49 -> 1 | H49: 6 250.00 | K49: =G49*H49 -> 6 250.00 | L49: =+D49*H49 -> 6 250.00 | O49: =3/36 -> 0.08 | P49: =+H49*O49 -> 520.83 | Q49: =4/36-O49 -> 0.03 | R49: =+H49*Q49 -> 173.61 | S49: =5/36-O49-Q49 -> 0.03 | T49: =+H49*S49 -> 173.61 | U49: =6/36-O49-Q49-S49 -> 0.03 | V49: =+$H49*U49 -> 173.61 | W49: =7/36-O49-Q49-S49-U49 -> 0.03 | X49: =+$H49*W49 -> 173.61 | Y49: =8/36-M49-O49-Q49-S49-U49-W49 -> 0.03 | Z49: =+$H49*Y49 -> 173.61 | AA49: =9/36-O49-Q49-S49-U49-W49-Y49 -> 0.03 | AB49: =+$H49*AA49 -> 173.61 | AC49: =10/36-O49-Q49-S49-U49-W49-Y49-AA49 -> 0.03 | AD49: =+$H49*AC49 -> 173.61 | AE49: =11/36-O49-Q49-S49-U49-W49-Y49-AA49-AC49 -> 0.03 | AF49: =+$H49*AE49 -> 173.61 | AG49: =12/36-O49-Q49-S49-U49-W49-Y49-AA49-AC49-AE49 -> 0.03 | AH49: =+$H49*AG49 -> 173.61 | AI49: =13/36-O49-Q49-S49-U49-W49-Y49-AA49-AC49-AE49-AG49 -> 0.03 | AJ49: =+$H49*AI49 -> 173.61 | AK49: =14/36-O49-Q49-S49-U49-W49-Y49-AA49-AC49-AE49-AG49-AI49 -> 0.03 | AL49: =+$H49*AK49 -> 173.61 | AM49: =15/36-Q49-S49-U49-W49-Y49-AA49-AC49-AE49-AG49-AI49-AK49-O49 -> 0.03 | AN49: =+$H49*AM49 -> 173.61 | AO49: 0.03 | AP49: =+$H49*AO49 -> 173.61 | AQ49: 0.03 | AR49: =+$H49*AQ49 -> 173.61 | AS49: 0.03 | AT49: =+$H49*AS49 -> 173.61 | AU49: 0.03 | AV49: =+$H49*AU49 -> 173.61 | AW49: =1/36 -> 0.03 | AX49: =+$H49*AW49 -> 173.61 | AY49: =1/36 -> 0.03 | AZ49: =+$H49*AY49 -> 173.61 | BA49: =1/36 -> 0.03 | BB49: =+$H49*BA49 -> 173.61 | BC49: =1/36 -> 0.03 | BD49: =+$H49*BC49 -> 173.61 | BE49: =1/36 -> 0.03 | BF49: =+$H49*BE49 -> 173.61 | BG49: =1/36 -> 0.03 | BH49: =+$H49*BG49 -> 173.61 | BI49: =2/36 -> 0.06 | BJ49: =+$H49*BI49 -> 347.22 | BK49: 0.03 | BL49: =+BK49*H49 -> 173.61 | BM49: 0.03 | BN49: =+BM49*H49 -> 173.61 | BO49: 0.03 | BP49: =+BO49*H49 -> 173.61 | BQ49: 0.03 | BR49: =+BQ49*H49 -> 173.61 | BS49: 0.03 | BT49: =+BS49*H49 -> 173.61 | BU49: 0.03 | BV49: =+BU49*H49 -> 173.61 | BW49: 0.03 | BX49: =+BW49*H49 -> 173.61 | BY49: 0.03 | BZ49: =+BY49*H49 -> 173.61 | CA49: 0.03 | CB49: =+CA49*K49 -> 173.61 | CD49: =H49*CC49 -> 0.00 | CF49: =J49*CE49 -> 0.00 | CH49: =L49*CG49 -> 0.00 | CJ49: =K49*CI49 -> 0.00 | CL49: =K49*CK49 -> 0.00 | CM49: =M49+O49+Q49+S49+U49+W49+Y49+AA49+AC49+AE49+AG49+AI49+AK49+AM49+AO49+AQ49+AS49+AU49+AW49+AY49+BA49+BC49+BE49+BG49+BI49+BK49+BM49+BO49+BQ49+BS49+BU49+BW49+BY49+CA49+CC49+CE49+CG49+CI49+CK49 -> 1 | CN49: =+H49*CM49 -> 6,250.00 | CP49: 6 250.00 | CQ49: 0.00
AO50: 0.03 | AQ50: 0.03 | AS50: 0.03 | AU50: 0.03 | BA50: =1/36 -> 0.03 | BC50: =1/36 -> 0.03 | BE50: =1/36 -> 0.03 | BG50: =1/36 -> 0.03 | BI50: =2/36 -> 0.06 | BK50: 0.03 | CP50: 0.00 | CQ50: 0.00
A51: B7.4 | B51: Telecommunication Facilities | C51: Sum | D51: 1 | E51: 1 | G51: =+E51+F51 -> 1 | H51: 71 000.00 | K51: =G51*H51 -> 71 000.00 | L51: =+D51*H51 -> 71 000.00 | O51: =3/36 -> 0.08 | P51: =+H51*O51 -> 5,916.67 | Q51: =4/36-O51 -> 0.03 | R51: =+H51*Q51 -> 1,972.22 | S51: =5/36-O51-Q51 -> 0.03 | T51: =+H51*S51 -> 1,972.22 | U51: =6/36-O51-Q51-S51 -> 0.03 | V51: =+$H51*U51 -> 1,972.22 | W51: =7/36-O51-Q51-S51-U51 -> 0.03 | X51: =+$H51*W51 -> 1,972.22 | Y51: =8/36-M51-O51-Q51-S51-U51-W51 -> 0.03 | Z51: =+$H51*Y51 -> 1,972.22 | AA51: =9/36-O51-Q51-S51-U51-W51-Y51 -> 0.03 | AB51: =+$H51*AA51 -> 1,972.22 | AC51: =10/36-O51-Q51-S51-U51-W51-Y51-AA51 -> 0.03 | AD51: =+$H51*AC51 -> 1,972.22 | AE51: =11/36-O51-Q51-S51-U51-W51-Y51-AA51-AC51 -> 0.03 | AF51: =+$H51*AE51 -> 1,972.22 | AG51: =12/36-O51-Q51-S51-U51-W51-Y51-AA51-AC51-AE51 -> 0.03 | AH51: =+$H51*AG51 -> 1,972.22 | AI51: =13/36-O51-Q51-S51-U51-W51-Y51-AA51-AC51-AE51-AG51 -> 0.03 | AJ51: =+$H51*AI51 -> 1,972.22 | AK51: =14/36-O51-Q51-S51-U51-W51-Y51-AA51-AC51-AE51-AG51-AI51 -> 0.03 | AL51: =+$H51*AK51 -> 1,972.22 | AM51: =15/36-Q51-S51-U51-W51-Y51-AA51-AC51-AE51-AG51-AI51-AK51-O51 -> 0.03 | AN51: =+$H51*AM51 -> 1,972.22 | AO51: 0.03 | AP51: =+$H51*AO51 -> 1,972.22 | AQ51: 0.03 | AR51: =+$H51*AQ51 -> 1,972.22 | AS51: 0.03 | AT51: =+$H51*AS51 -> 1,972.22 | AU51: 0.03 | AV51: =+$H51*AU51 -> 1,972.22 | AW51: =1/36 -> 0.03 | AX51: =+$H51*AW51 -> 1,972.22 | AY51: =1/36 -> 0.03 | AZ51: =+$H51*AY51 -> 1,972.22 | BA51: =1/36 -> 0.03 | BB51: =+$H51*BA51 -> 1,972.22 | BC51: =1/36 -> 0.03 | BD51: =+$H51*BC51 -> 1,972.22 | BE51: =1/36 -> 0.03 | BF51: =+$H51*BE51 -> 1,972.22 | BG51: =1/36 -> 0.03 | BH51: =+$H51*BG51 -> 1,972.22 | BI51: =2/36 -> 0.06 | BJ51: =+$H51*BI51 -> 3,944.44 | BK51: 0.03 | BL51: =+BK51*H51 -> 1,972.22 | BM51: 0.03 | BN51: =+BM51*H51 -> 1,972.22 | BO51: 0.03 | BP51: =+BO51*H51 -> 1,972.22 | BQ51: 0.03 | BR51: =+BQ51*H51 -> 1,972.22 | BS51: 0.03 | BT51: =+BS51*H51 -> 1,972.22 | BU51: 0.03 | BV51: =+BU51*H51 -> 1,972.22 | BW51: 0.03 | BX51: =+BW51*H51 -> 1,972.22 | BY51: 0.03 | BZ51: =+BY51*H51 -> 1,972.22 | CA51: 0.03 | CB51: =+CA51*K51 -> 1,972.22 | CD51: =H51*CC51 -> 0.00 | CF51: =J51*CE51 -> 0.00 | CH51: =L51*CG51 -> 0.00 | CJ51: =K51*CI51 -> 0.00 | CL51: =K51*CK51 -> 0.00 | CM51: =M51+O51+Q51+S51+U51+W51+Y51+AA51+AC51+AE51+AG51+AI51+AK51+AM51+AO51+AQ51+AS51+AU51+AW51+AY51+BA51+BC51+BE51+BG51+BI51+BK51+BM51+BO51+BQ51+BS51+BU51+BW51+BY51+CA51+CC51+CE51+CG51+CI51+CK51 -> 1 | CN51: =+H51*CM51 -> 71,000.00 | CP51: 71 000.00 | CQ51: 0.00
AO52: 0.03 | AQ52: 0.03 | AS52: 0.03 | AU52: 0.03 | BA52: =1/36 -> 0.03 | BC52: =1/36 -> 0.03 | BE52: =1/36 -> 0.03 | BG52: =1/36 -> 0.03 | BI52: =2/36 -> 0.06 | BK52: 0.03 | CP52: 0.00 | CQ52: 0.00
A53: B7.5 | B53: Ablution Facilities | C53: Sum | D53: 1 | E53: 1 | G53: =+E53+F53 -> 1 | H53: 15 200.00 | K53: =G53*H53 -> 15 200.00 | L53: =+D53*H53 -> 15 200.00 | O53: =3/36 -> 0.08 | P53: =+H53*O53 -> 1,266.67 | Q53: =4/36-O53 -> 0.03 | R53: =+H53*Q53 -> 422.22 | S53: =5/36-O53-Q53 -> 0.03 | T53: =+H53*S53 -> 422.22 | U53: =6/36-O53-Q53-S53 -> 0.03 | V53: =+$H53*U53 -> 422.22 | W53: =7/36-O53-Q53-S53-U53 -> 0.03 | X53: =+$H53*W53 -> 422.22 | Y53: =8/36-M53-O53-Q53-S53-U53-W53 -> 0.03 | Z53: =+$H53*Y53 -> 422.22 | AA53: =9/36-O53-Q53-S53-U53-W53-Y53 -> 0.03 | AB53: =+$H53*AA53 -> 422.22 | AC53: =10/36-O53-Q53-S53-U53-W53-Y53-AA53 -> 0.03 | AD53: =+$H53*AC53 -> 422.22 | AE53: =11/36-O53-Q53-S53-U53-W53-Y53-AA53-AC53 -> 0.03 | AF53: =+$H53*AE53 -> 422.22 | AG53: =12/36-O53-Q53-S53-U53-W53-Y53-AA53-AC53-AE53 -> 0.03 | AH53: =+$H53*AG53 -> 422.22 | AI53: =13/36-O53-Q53-S53-U53-W53-Y53-AA53-AC53-AE53-AG53 -> 0.03 | AJ53: =+$H53*AI53 -> 422.22 | AK53: =14/36-O53-Q53-S53-U53-W53-Y53-AA53-AC53-AE53-AG53-AI53 -> 0.03 | AL53: =+$H53*AK53 -> 422.22 | AM53: =15/36-Q53-S53-U53-W53-Y53-AA53-AC53-AE53-AG53-AI53-AK53-O53 -> 0.03 | AN53: =+$H53*AM53 -> 422.22 | AO53: 0.03 | AP53: =+$H53*AO53 -> 422.22 | AQ53: 0.03 | AR53: =+$H53*AQ53 -> 422.22 | AS53: 0.03 | AT53: =+$H53*AS53 -> 422.22 | AU53: 0.03 | AV53: =+$H53*AU53 -> 422.22 | AW53: =1/36 -> 0.03 | AX53: =+$H53*AW53 -> 422.22 | AY53: =1/36 -> 0.03 | AZ53: =+$H53*AY53 -> 422.22 | BA53: =1/36 -> 0.03 | BB53: =+$H53*BA53 -> 422.22 | BC53: =1/36 -> 0.03 | BD53: =+$H53*BC53 -> 422.22 | BE53: =1/36 -> 0.03 | BF53: =+$H53*BE53 -> 422.22 | BG53: =1/36 -> 0.03 | BH53: =+$H53*BG53 -> 422.22 | BI53: =2/36 -> 0.06 | BJ53: =+$H53*BI53 -> 844.44 | BK53: 0.03 | BL53: =+BK53*H53 -> 422.22 | BM53: 0.03 | BN53: =+BM53*H53 -> 422.22 | BO53: 0.03 | BP53: =+BO53*H53 -> 422.22 | BQ53: 0.03 | BR53: =+BQ53*H53 -> 422.22 | BS53: 0.03 | BT53: =+BS53*H53 -> 422.22 | BU53: 0.03 | BV53: =+BU53*H53 -> 422.22 | BW53: 0.03 | BX53: =+BW53*H53 -> 422.22 | BY53: 0.03 | BZ53: =+BY53*H53 -> 422.22 | CA53: 0.03 | CB53: =+CA53*K53 -> 422.22 | CD53: =H53*CC53 -> 0.00 | CF53: =J53*CE53 -> 0.00 | CH53: =L53*CG53 -> 0.00 | CJ53: =K53*CI53 -> 0.00 | CL53: =K53*CK53 -> 0.00 | CM53: =M53+O53+Q53+S53+U53+W53+Y53+AA53+AC53+AE53+AG53+AI53+AK53+AM53+AO53+AQ53+AS53+AU53+AW53+AY53+BA53+BC53+BE53+BG53+BI53+BK53+BM53+BO53+BQ53+BS53+BU53+BW53+BY53+CA53+CC53+CE53+CG53+CI53+CK53 -> 1 | CN53: =+H53*CM53 -> 15,200.00 | CP53: 15 200.00 | CQ53: 0.00
AO54: 0.03 | AQ54: 0.03 | AS54: 0.03 | AU54: 0.03 | CP54: 0.00 | CQ54: 0.00
A55: B11.0 | B55: GENERAL | AO55: 0.03 | AQ55: 0.03 | AS55: 0.03 | AU55: 0.03 | CP55: 0.00 | CQ55: 0.00
AO56: 0.03 | AQ56: 0.03 | AS56: 0.03 | AU56: 0.03 | CP56: 0.00 | CQ56: 0.00
A57: B11.11 | B57: As Built Information | C57: Sum | D57: 1 | E57: 1 | G57: =+E57+F57 -> 1 | H57: 10 000.00 | I57: =+G57*H57 -> 10 000.00 | L57: =+D57*H57 -> 10 000.00 | M57: 1 | N57: =+H57*M57 -> 10,000.00 | BJ57: =+$H57*BI57 -> 0.00 | BL57: =+BK57*H57 -> 0.00 | BN57: =+BM57*H57 -> 0.00 | BP57: =+BO57*H57 -> 0.00 | BR57: =+BQ57*H57 -> 0.00 | BT57: =+BS57*H57 -> 0.00 | BV57: =+BU57*J57 -> 0.00 | BX57: =+BW57*H57 -> 0.00 | BZ57: =+BY57*H57 -> 0.00 | CB57: =+CA57*K57 -> 0.00 | CD57: =H57*CC57 -> 0.00 | CF57: =J57*CE57 -> 0.00 | CH57: =L57*CG57 -> 0.00 | CJ57: =K57*CI57 -> 0.00 | CL57: =K57*CK57 -> 0.00 | CM57: =M57+O57+Q57+S57+U57+W57+Y57+AA57+AC57+AE57+AG57+AI57+AK57+AM57+AO57+AQ57+AS57+AU57+AW57+AY57+BA57+BC57+BE57+BG57+BI57+BK57+BM57+BO57+BQ57+BS57+BU57+BW57+BY57+CA57+CC57+CE57+CG57+CI57+CK57 -> 1 | CN57: =+H57*CM57 -> 10,000.00 | CO57: 1 | CP57: 10 000.00 | CQ57: -0.00
AO58: 0.03 | AQ58: 0.03 | AS58: 0.03 | AU58: 0.03 | CP58: 0.00 | CQ58: 0.00
A59: C10 | B59: HIV/AIDS AWARENESS | AO59: 0.03 | AQ59: 0.03 | AS59: 0.03 | AU59: 0.03 | CP59: 0.00 | CQ59: 0.00
AO60: 0.03 | AQ60: 0.03 | AS60: 0.03 | AU60: 0.03 | CP60: 0.00 | CQ60: 0.00
A61: C10.1 | B61: Awareness Champion | C61: Sum | D61: 1 | E61: 1 | G61: =+E61+F61 -> 1 | H61: 25 000.00 | K61: =G61*H61 -> 25 000.00 | L61: =+D61*H61 -> 25 000.00 | O61: =3/36 -> 0.08 | P61: =+H61*O61 -> 2,083.33 | Q61: =4/36-O61 -> 0.03 | R61: =+H61*Q61 -> 694.44 | S61: =5/36-O61-Q61 -> 0.03 | T61: =+H61*S61 -> 694.44 | U61: =6/36-O61-Q61-S61 -> 0.03 | V61: =+$H61*U61 -> 694.44 | W61: =7/36-O61-Q61-S61-U61 -> 0.03 | X61: =+$H61*W61 -> 694.44 | Y61: =8/36-M61-O61-Q61-S61-U61-W61 -> 0.03 | Z61: =+$H61*Y61 -> 694.44 | AA61: =9/36-O61-Q61-S61-U61-W61-Y61 -> 0.03 | AB61: =+$H61*AA61 -> 694.44 | AC61: =10/36-O61-Q61-S61-U61-W61-Y61-AA61 -> 0.03 | AD61: =+$H61*AC61 -> 694.44 | AE61: =11/36-O61-Q61-S61-U61-W61-Y61-AA61-AC61 -> 0.03 | AF61: =+$H61*AE61 -> 694.44 | AG61: =12/36-O61-Q61-S61-U61-W61-Y61-AA61-AC61-AE61 -> 0.03 | AH61: =+$H61*AG61 -> 694.44 | AI61: =13/36-O61-Q61-S61-U61-W61-Y61-AA61-AC61-AE61-AG61 -> 0.03 | AJ61: =+$H61*AI61 -> 694.44 | AK61: =14/36-O61-Q61-S61-U61-W61-Y61-AA61-AC61-AE61-AG61-AI61 -> 0.03 | AL61: =+$H61*AK61 -> 694.44 | AM61: =15/36-Q61-S61-U61-W61-Y61-AA61-AC61-AE61-AG61-AI61-AK61-O61 -> 0.03 | AN61: =+$H61*AM61 -> 694.44 | AO61: 0.03 | AP61: =+$H61*AO61 -> 694.44 | AQ61: 0.03 | AR61: =+$H61*AQ61 -> 694.44 | AS61: 0.03 | AT61: =+$H61*AS61 -> 694.44 | AU61: 0.03 | AV61: =+$H61*AU61 -> 694.44 | AW61: =1/36 -> 0.03 | AX61: =+$H61*AW61 -> 694.44 | AY61: =1/36 -> 0.03 | AZ61: =+$H61*AY61 -> 694.44 | BA61: =1/36 -> 0.03 | BB61: =+$H61*BA61 -> 694.44 | BC61: =1/36 -> 0.03 | BD61: =+$H61*BC61 -> 694.44 | BE61: =1/36 -> 0.03 | BF61: =+$H61*BE61 -> 694.44 | BG61: =1/36 -> 0.03 | BH61: =+$H61*BG61 -> 694.44 | BI61: =2/36 -> 0.06 | BJ61: =+$H61*BI61 -> 1,388.89 | BK61: 0.03 | BL61: =+BK61*H61 -> 694.44 | BM61: 0.03 | BN61: =+BM61*H61 -> 694.44 | BO61: 0.03 | BP61: =+BO61*H61 -> 694.44 | BQ61: 0.03 | BR61: =+BQ61*H61 -> 694.44 | BS61: 0.03 | BT61: =+BS61*H61 -> 694.44 | BU61: 0.03 | BV61: =+BU61*H61 -> 694.44 | BW61: 0.03 | BX61: =+BW61*H61 -> 694.44 | BY61: 0.03 | BZ61: =+BY61*H61 -> 694.44 | CA61: 0.03 | CB61: =+CA61*K61 -> 694.44 | CD61: =H61*CC61 -> 0.00 | CF61: =J61*CE61 -> 0.00 | CH61: =L61*CG61 -> 0.00 | CJ61: =K61*CI61 -> 0.00 | CL61: =K61*CK61 -> 0.00 | CM61: =M61+O61+Q61+S61+U61+W61+Y61+AA61+AC61+AE61+AG61+AI61+AK61+AM61+AO61+AQ61+AS61+AU61+AW61+AY61+BA61+BC61+BE61+BG61+BI61+BK61+BM61+BO61+BQ61+BS61+BU61+BW61+BY61+CA61+CC61+CE61+CG61+CI61+CK61 -> 1 | CN61: =+H61*CM61 -> 25,000.00 | CP61: 25 000.00 | CQ61: 0.00
AO62: 0.03 | AQ62: 0.03 | AS62: 0.03 | AU62: 0.03 | CP62: 0.00 | CQ62: 0.00
A63: C10.2 | B63: Awareness Workshops | C63: Sum | D63: 1 | E63: 1 | G63: =+E63+F63 -> 1 | H63: 15 000.00 | K63: =G63*H63 -> 15 000.00 | L63: =+D63*H63 -> 15 000.00 | O63: =3/36 -> 0.08 | P63: =+H63*O63 -> 1,250.00 | Q63: =4/36-O63 -> 0.03 | R63: =+H63*Q63 -> 416.67 | S63: =5/36-O63-Q63 -> 0.03 | T63: =+H63*S63 -> 416.67 | U63: =6/36-O63-Q63-S63 -> 0.03 | V63: =+$H63*U63 -> 416.67 | W63: =7/36-O63-Q63-S63-U63 -> 0.03 | X63: =+$H63*W63 -> 416.67 | Y63: =8/36-M63-O63-Q63-S63-U63-W63 -> 0.03 | Z63: =+$H63*Y63 -> 416.67 | AA63: =9/36-O63-Q63-S63-U63-W63-Y63 -> 0.03 | AB63: =+$H63*AA63 -> 416.67 | AC63: =10/36-O63-Q63-S63-U63-W63-Y63-AA63 -> 0.03 | AD63: =+$H63*AC63 -> 416.67 | AE63: =11/36-O63-Q63-S63-U63-W63-Y63-AA63-AC63 -> 0.03 | AF63: =+$H63*AE63 -> 416.67 | AG63: =12/36-O63-Q63-S63-U63-W63-Y63-AA63-AC63-AE63 -> 0.03 | AH63: =+$H63*AG63 -> 416.67 | AI63: =13/36-O63-Q63-S63-U63-W63-Y63-AA63-AC63-AE63-AG63 -> 0.03 | AJ63: =+$H63*AI63 -> 416.67 | AK63: =14/36-O63-Q63-S63-U63-W63-Y63-AA63-AC63-AE63-AG63-AI63 -> 0.03 | AL63: =+$H63*AK63 -> 416.67 | AM63: =15/36-Q63-S63-U63-W63-Y63-AA63-AC63-AE63-AG63-AI63-AK63-O63 -> 0.03 | AN63: =+$H63*AM63 -> 416.67 | AO63: 0.03 | AP63: =+$H63*AO63 -> 416.67 | AQ63: 0.03 | AR63: =+$H63*AQ63 -> 416.67 | AS63: 0.03 | AT63: =+$H63*AS63 -> 416.67 | AU63: 0.03 | AV63: =+$H63*AU63 -> 416.67 | AW63: =1/36 -> 0.03 | AX63: =+$H63*AW63 -> 416.67 | AY63: =1/36 -> 0.03 | AZ63: =+$H63*AY63 -> 416.67 | BA63: =1/36 -> 0.03 | BB63: =+$H63*BA63 -> 416.67 | BC63: =1/36 -> 0.03 | BD63: =+$H63*BC63 -> 416.67 | BE63: =1/36 -> 0.03 | BF63: =+$H63*BE63 -> 416.67 | BG63: =1/36 -> 0.03 | BH63: =+$H63*BG63 -> 416.67 | BI63: =2/36 -> 0.06 | BJ63: =+$H63*BI63 -> 833.33 | BK63: 0.03 | BL63: =+BK63*H63 -> 416.67 | BM63: 0.03 | BN63: =+BM63*H63 -> 416.67 | BO63: 0.03 | BP63: =+BO63*H63 -> 416.67 | BQ63: 0.03 | BR63: =+BQ63*H63 -> 416.67 | BS63: 0.03 | BT63: =+BS63*H63 -> 416.67 | BU63: 0.03 | BV63: =+BU63*H63 -> 416.67 | BW63: 0.03 | BX63: =+BW63*H63 -> 416.67 | BY63: 0.03 | BZ63: =+BY63*H63 -> 416.67 | CA63: 0.03 | CB63: =+CA63*K63 -> 416.67 | CD63: =H63*CC63 -> 0.00 | CF63: =J63*CE63 -> 0.00 | CH63: =L63*CG63 -> 0.00 | CJ63: =K63*CI63 -> 0.00 | CL63: =K63*CK63 -> 0.00 | CM63: =M63+O63+Q63+S63+U63+W63+Y63+AA63+AC63+AE63+AG63+AI63+AK63+AM63+AO63+AQ63+AS63+AU63+AW63+AY63+BA63+BC63+BE63+BG63+BI63+BK63+BM63+BO63+BQ63+BS63+BU63+BW63+BY63+CA63+CC63+CE63+CG63+CI63+CK63 -> 1 | CN63: =+H63*CM63 -> 15,000.00 | CP63: 15 000.00 | CQ63: 0.00
AO64: 0.03 | AQ64: 0.03 | AS64: 0.03 | AU64: 0.03 | CP64: 0.00 | CQ64: 0.00
A65: C10.3 | B65: Posters, Booklets, Videos, etc | C65: Sum | D65: 1 | E65: 1 | G65: =+E65+F65 -> 1 | H65: 10 000.00 | K65: =G65*H65 -> 10 000.00 | L65: =+D65*H65 -> 10 000.00 | O65: =3/36 -> 0.08 | P65: =+H65*O65 -> 833.33 | Q65: =4/36-O65 -> 0.03 | R65: =+H65*Q65 -> 277.78 | S65: =5/36-O65-Q65 -> 0.03 | T65: =+H65*S65 -> 277.78 | U65: =6/36-O65-Q65-S65 -> 0.03 | V65: =+$H65*U65 -> 277.78 | W65: =7/36-O65-Q65-S65-U65 -> 0.03 | X65: =+$H65*W65 -> 277.78 | Y65: =8/36-M65-O65-Q65-S65-U65-W65 -> 0.03 | Z65: =+$H65*Y65 -> 277.78 | AA65: =9/36-O65-Q65-S65-U65-W65-Y65 -> 0.03 | AB65: =+$H65*AA65 -> 277.78 | AC65: =10/36-O65-Q65-S65-U65-W65-Y65-AA65 -> 0.03 | AD65: =+$H65*AC65 -> 277.78 | AE65: =11/36-O65-Q65-S65-U65-W65-Y65-AA65-AC65 -> 0.03 | AF65: =+$H65*AE65 -> 277.78 | AG65: =12/36-O65-Q65-S65-U65-W65-Y65-AA65-AC65-AE65 -> 0.03 | AH65: =+$H65*AG65 -> 277.78 | AI65: =13/36-O65-Q65-S65-U65-W65-Y65-AA65-AC65-AE65-AG65 -> 0.03 | AJ65: =+$H65*AI65 -> 277.78 | AK65: =14/36-O65-Q65-S65-U65-W65-Y65-AA65-AC65-AE65-AG65-AI65 -> 0.03 | AL65: =+$H65*AK65 -> 277.78 | AM65: =15/36-Q65-S65-U65-W65-Y65-AA65-AC65-AE65-AG65-AI65-AK65-O65 -> 0.03 | AN65: =+$H65*AM65 -> 277.78 | AO65: 0.03 | AP65: =+$H65*AO65 -> 277.78 | AQ65: 0.03 | AR65: =+$H65*AQ65 -> 277.78 | AS65: 0.03 | AT65: =+$H65*AS65 -> 277.78 | AU65: 0.03 | AV65: =+$H65*AU65 -> 277.78 | AW65: =1/36 -> 0.03 | AX65: =+$H65*AW65 -> 277.78 | AY65: =1/36 -> 0.03 | AZ65: =+$H65*AY65 -> 277.78 | BA65: =1/36 -> 0.03 | BB65: =+$H65*BA65 -> 277.78 | BC65: =1/36 -> 0.03 | BD65: =+$H65*BC65 -> 277.78 | BE65: =1/36 -> 0.03 | BF65: =+$H65*BE65 -> 277.78 | BG65: =1/36 -> 0.03 | BH65: =+$H65*BG65 -> 277.78 | BI65: =2/36 -> 0.06 | BJ65: =+$H65*BI65 -> 555.56 | BK65: 0.03 | BL65: =+BK65*H65 -> 277.78 | BM65: 0.03 | BN65: =+BM65*H65 -> 277.78 | BO65: 0.03 | BP65: =+BO65*H65 -> 277.78 | BQ65: 0.03 | BR65: =+BQ65*H65 -> 277.78 | BS65: 0.03 | BT65: =+BS65*H65 -> 277.78 | BU65: 0.03 | BV65: =+BU65*H65 -> 277.78 | BW65: 0.03 | BX65: =+BW65*H65 -> 277.78 | BY65: 0.03 | BZ65: =+BY65*H65 -> 277.78 | CA65: 0.03 | CB65: =+CA65*K65 -> 277.78 | CD65: =H65*CC65 -> 0.00 | CF65: =J65*CE65 -> 0.00 | CH65: =L65*CG65 -> 0.00 | CJ65: =K65*CI65 -> 0.00 | CL65: =K65*CK65 -> 0.00 | CM65: =M65+O65+Q65+S65+U65+W65+Y65+AA65+AC65+AE65+AG65+AI65+AK65+AM65+AO65+AQ65+AS65+AU65+AW65+AY65+BA65+BC65+BE65+BG65+BI65+BK65+BM65+BO65+BQ65+BS65+BU65+BW65+BY65+CA65+CC65+CE65+CG65+CI65+CK65 -> 1 | CN65: =+H65*CM65 -> 10,000.00 | CP65: 10 000.00 | CQ65: 0.00
AO66: 0.03 | AQ66: 0.03 | AS66: 0.03 | AU66: 0.03 | CP66: 0.00 | CQ66: 0.00
A67: C10.4 | B67: Access to Condoms | C67: Sum | D67: 1 | E67: 1 | G67: =+E67+F67 -> 1 | H67: 1 000.00 | K67: =G67*H67 -> 1 000.00 | L67: =+D67*H67 -> 1 000.00 | O67: =3/36 -> 0.08 | P67: =+H67*O67 -> 83.33 | Q67: =4/36-O67 -> 0.03 | R67: =+H67*Q67 -> 27.78 | S67: =5/36-O67-Q67 -> 0.03 | T67: =+H67*S67 -> 27.78 | U67: =6/36-O67-Q67-S67 -> 0.03 | V67: =+$H67*U67 -> 27.78 | W67: =7/36-O67-Q67-S67-U67 -> 0.03 | X67: =+$H67*W67 -> 27.78 | Y67: =8/36-M67-O67-Q67-S67-U67-W67 -> 0.03 | Z67: =+$H67*Y67 -> 27.78 | AA67: =9/36-O67-Q67-S67-U67-W67-Y67 -> 0.03 | AB67: =+$H67*AA67 -> 27.78 | AC67: =10/36-O67-Q67-S67-U67-W67-Y67-AA67 -> 0.03 | AD67: =+$H67*AC67 -> 27.78 | AE67: =11/36-O67-Q67-S67-U67-W67-Y67-AA67-AC67 -> 0.03 | AF67: =+$H67*AE67 -> 27.78 | AG67: =12/36-O67-Q67-S67-U67-W67-Y67-AA67-AC67-AE67 -> 0.03 | AH67: =+$H67*AG67 -> 27.78 | AI67: =13/36-O67-Q67-S67-U67-W67-Y67-AA67-AC67-AE67-AG67 -> 0.03 | AJ67: =+$H67*AI67 -> 27.78 | AK67: =14/36-O67-Q67-S67-U67-W67-Y67-AA67-AC67-AE67-AG67-AI67 -> 0.03 | AL67: =+$H67*AK67 -> 27.78 | AM67: =15/36-Q67-S67-U67-W67-Y67-AA67-AC67-AE67-AG67-AI67-AK67-O67 -> 0.03 | AN67: =+$H67*AM67 -> 27.78 | AO67: 0.03 | AP67: =+$H67*AO67 -> 27.78 | AQ67: 0.03 | AR67: =+$H67*AQ67 -> 27.78 | AS67: 0.03 | AT67: =+$H67*AS67 -> 27.78 | AU67: 0.03 | AV67: =+$H67*AU67 -> 27.78 | AW67: =1/36 -> 0.03 | AX67: =+$H67*AW67 -> 27.78 | AY67: =1/36 -> 0.03 | AZ67: =+$H67*AY67 -> 27.78 | BA67: =1/36 -> 0.03 | BB67: =+$H67*BA67 -> 27.78 | BC67: =1/36 -> 0.03 | BD67: =+$H67*BC67 -> 27.78 | BE67: =1/36 -> 0.03 | BF67: =+$H67*BE67 -> 27.78 | BG67: =1/36 -> 0.03 | BH67: =+$H67*BG67 -> 27.78 | BI67: =2/36 -> 0.06 | BJ67: =+$H67*BI67 -> 55.56 | BK67: 0.03 | BL67: =+BK67*H67 -> 27.78 | BM67: 0.03 | BN67: =+BM67*H67 -> 27.78 | BO67: 0.03 | BP67: =+BO67*H67 -> 27.78 | BQ67: 0.03 | BR67: =+BQ67*H67 -> 27.78 | BS67: 0.03 | BT67: =+BS67*H67 -> 27.78 | BU67: 0.03 | BV67: =+BU67*H67 -> 27.78 | BW67: 0.03 | BX67: =+BW67*H67 -> 27.78 | BY67: 0.03 | BZ67: =+BY67*H67 -> 27.78 | CA67: 0.03 | CB67: =+CA67*K67 -> 27.78 | CD67: =H67*CC67 -> 0.00 | CF67: =J67*CE67 -> 0.00 | CH67: =L67*CG67 -> 0.00 | CJ67: =K67*CI67 -> 0.00 | CL67: =K67*CK67 -> 0.00 | CM67: =M67+O67+Q67+S67+U67+W67+Y67+AA67+AC67+AE67+AG67+AI67+AK67+AM67+AO67+AQ67+AS67+AU67+AW67+AY67+BA67+BC67+BE67+BG67+BI67+BK67+BM67+BO67+BQ67+BS67+BU67+BW67+BY67+CA67+CC67+CE67+CG67+CI67+CK67 -> 1 | CN67: =+H67*CM67 -> 1,000.00 | CP67: 1 000.00 | CQ67: 0.00
AO68: 0.03 | AQ68: 0.03 | AS68: 0.03 | AU68: 0.03 | CP68: 0.00 | CQ68: 0.00
A69: C10.5 | B69: Monitoring | C69: Sum | D69: 1 | E69: 1 | G69: =+E69+F69 -> 1 | H69: 28 935.58 | K69: =G69*H69 -> 28 935.58 | L69: =+D69*H69 -> 28 935.58 | O69: =3/36 -> 0.08 | P69: =+H69*O69 -> 2,411.30 | Q69: =4/36-O69 -> 0.03 | R69: =+H69*Q69 -> 803.77 | S69: =5/36-O69-Q69 -> 0.03 | T69: =+H69*S69 -> 803.77 | U69: =6/36-O69-Q69-S69 -> 0.03 | V69: =+$H69*U69 -> 803.77 | W69: =7/36-O69-Q69-S69-U69 -> 0.03 | X69: =+$H69*W69 -> 803.77 | Y69: =8/36-M69-O69-Q69-S69-U69-W69 -> 0.03 | Z69: =+$H69*Y69 -> 803.77 | AA69: =9/36-O69-Q69-S69-U69-W69-Y69 -> 0.03 | AB69: =+$H69*AA69 -> 803.77 | AC69: =10/36-O69-Q69-S69-U69-W69-Y69-AA69 -> 0.03 | AD69: =+$H69*AC69 -> 803.77 | AE69: =11/36-O69-Q69-S69-U69-W69-Y69-AA69-AC69 -> 0.03 | AF69: =+$H69*AE69 -> 803.77 | AG69: =12/36-O69-Q69-S69-U69-W69-Y69-AA69-AC69-AE69 -> 0.03 | AH69: =+$H69*AG69 -> 803.77 | AI69: =13/36-O69-Q69-S69-U69-W69-Y69-AA69-AC69-AE69-AG69 -> 0.03 | AJ69: =+$H69*AI69 -> 803.77 | AK69: =14/36-O69-Q69-S69-U69-W69-Y69-AA69-AC69-AE69-AG69-AI69 -> 0.03 | AL69: =+$H69*AK69 -> 803.77 | AM69: =15/36-Q69-S69-U69-W69-Y69-AA69-AC69-AE69-AG69-AI69-AK69-O69 -> 0.03 | AN69: =+$H69*AM69 -> 803.77 | AO69: 0.03 | AP69: =+$H69*AO69 -> 803.77 | AQ69: 0.03 | AR69: =+$H69*AQ69 -> 803.77 | AS69: 0.03 | AT69: =+$H69*AS69 -> 803.77 | AU69: 0.03 | AV69: =+$H69*AU69 -> 803.77 | AW69: =1/36 -> 0.03 | AX69: =+$H69*AW69 -> 803.77 | AY69: =1/36 -> 0.03 | AZ69: =+$H69*AY69 -> 803.77 | BA69: =1/36 -> 0.03 | BB69: =+$H69*BA69 -> 803.77 | BC69: =1/36 -> 0.03 | BD69: =+$H69*BC69 -> 803.77 | BE69: =1/36 -> 0.03 | BF69: =+$H69*BE69 -> 803.77 | BG69: =1/36 -> 0.03 | BH69: =+$H69*BG69 -> 803.77 | BI69: =2/36 -> 0.06 | BJ69: =+$H69*BI69 -> 1,607.53 | BK69: 0.03 | BL69: =+BK69*H69 -> 803.77 | BM69: 0.03 | BN69: =+BM69*H69 -> 803.77 | BO69: 0.03 | BP69: =+BO69*H69 -> 803.77 | BQ69: 0.03 | BR69: =+BQ69*H69 -> 803.77 | BS69: 0.03 | BT69: =+BS69*H69 -> 803.77 | BU69: 0.03 | BV69: =+BU69*H69 -> 803.77 | BW69: 0.03 | BX69: =+BW69*H69 -> 803.77 | BY69: 0.03 | BZ69: =+BY69*H69 -> 803.77 | CA69: 0.03 | CB69: =+CA69*K69 -> 803.77 | CD69: =H69*CC69 -> 0.00 | CF69: =J69*CE69 -> 0.00 | CH69: =L69*CG69 -> 0.00 | CJ69: =K69*CI69 -> 0.00 | CL69: =K69*CK69 -> 0.00 | CM69: =M69+O69+Q69+S69+U69+W69+Y69+AA69+AC69+AE69+AG69+AI69+AK69+AM69+AO69+AQ69+AS69+AU69+AW69+AY69+BA69+BC69+BE69+BG69+BI69+BK69+BM69+BO69+BQ69+BS69+BU69+BW69+BY69+CA69+CC69+CE69+CG69+CI69+CK69 -> 1 | CN69: =+H69*CM69 -> 28,935.58 | CP69: 28 935.58 | CQ69: 0.00
AO70: 0.03 | AQ70: 0.03 | AS70: 0.03 | AU70: 0.03 | CP70: 0.00 | CQ70: 0.00
A71: C11 | B71: Occupational Health and Safety Act | C71: Sum | D71: 1 | E71: 1 | G71: =+E71+F71 -> 1 | H71: 204 950.00 | K71: =G71*H71 -> 204 950.00 | L71: =+D71*H71 -> 204 950.00 | O71: =3/36 -> 0.08 | P71: =+H71*O71 -> 17,079.17 | Q71: =4/36-O71 -> 0.03 | R71: =+H71*Q71 -> 5,693.06 | S71: =5/36-O71-Q71 -> 0.03 | T71: =+H71*S71 -> 5,693.06 | U71: =6/36-O71-Q71-S71 -> 0.03 | V71: =+$H71*U71 -> 5,693.06 | W71: =7/36-O71-Q71-S71-U71 -> 0.03 | X71: =+$H71*W71 -> 5,693.06 | Y71: =8/36-M71-O71-Q71-S71-U71-W71 -> 0.03 | Z71: =+$H71*Y71 -> 5,693.06 | AA71: =9/36-O71-Q71-S71-U71-W71-Y71 -> 0.03 | AB71: =+$H71*AA71 -> 5,693.06 | AC71: =10/36-O71-Q71-S71-U71-W71-Y71-AA71 -> 0.03 | AD71: =+$H71*AC71 -> 5,693.06 | AE71: =11/36-O71-Q71-S71-U71-W71-Y71-AA71-AC71 -> 0.03 | AF71: =+$H71*AE71 -> 5,693.06 | AG71: =12/36-O71-Q71-S71-U71-W71-Y71-AA71-AC71-AE71 -> 0.03 | AH71: =+$H71*AG71 -> 5,693.06 | AI71: =13/36-O71-Q71-S71-U71-W71-Y71-AA71-AC71-AE71-AG71 -> 0.03 | AJ71: =+$H71*AI71 -> 5,693.06 | AK71: =14/36-O71-Q71-S71-U71-W71-Y71-AA71-AC71-AE71-AG71-AI71 -> 0.03 | AL71: =+$H71*AK71 -> 5,693.06 | AM71: =15/36-Q71-S71-U71-W71-Y71-AA71-AC71-AE71-AG71-AI71-AK71-O71 -> 0.03 | AN71: =+$H71*AM71 -> 5,693.06 | AO71: 0.03 | AP71: =+$H71*AO71 -> 5,693.06 | AQ71: 0.03 | AR71: =+$H71*AQ71 -> 5,693.06 | AS71: 0.03 | AT71: =+$H71*AS71 -> 5,693.06 | AU71: 0.03 | AV71: =+$H71*AU71 -> 5,693.06 | AW71: =1/36 -> 0.03 | AX71: =+$H71*AW71 -> 5,693.06 | AY71: =1/36 -> 0.03 | AZ71: =+$H71*AY71 -> 5,693.06 | BA71: =1/36 -> 0.03 | BB71: =+$H71*BA71 -> 5,693.06 | BC71: =1/36 -> 0.03 | BD71: =+$H71*BC71 -> 5,693.06 | BE71: =1/36 -> 0.03 | BF71: =+$H71*BE71 -> 5,693.06 | BG71: =1/36 -> 0.03 | BH71: =+$H71*BG71 -> 5,693.06 | BI71: =2/36 -> 0.06 | BJ71: =+$H71*BI71 -> 11,386.11 | BK71: 0.03 | BL71: =+BK71*H71 -> 5,693.06 | BM71: 0.03 | BN71: =+BM71*H71 -> 5,693.06 | BO71: 0.03 | BP71: =+BO71*H71 -> 5,693.06 | BQ71: 0.03 | BR71: =+BQ71*H71 -> 5,693.06 | BS71: 0.03 | BT71: =+BS71*H71 -> 5,693.06 | BU71: 0.03 | BV71: =+BU71*H71 -> 5,693.06 | BW71: 0.03 | BX71: =+BW71*H71 -> 5,693.06 | BY71: 0.03 | BZ71: =+BY71*H71 -> 5,693.06 | CA71: 0.03 | CB71: =+CA71*K71 -> 5,693.06 | CD71: =H71*CC71 -> 0.00 | CF71: =J71*CE71 -> 0.00 | CH71: =L71*CG71 -> 0.00 | CJ71: =K71*CI71 -> 0.00 | CL71: =K71*CK71 -> 0.00 | CM71: =M71+O71+Q71+S71+U71+W71+Y71+AA71+AC71+AE71+AG71+AI71+AK71+AM71+AO71+AQ71+AS71+AU71+AW71+AY71+BA71+BC71+BE71+BG71+BI71+BK71+BM71+BO71+BQ71+BS71+BU71+BW71+BY71+CA71+CC71+CE71+CG71+CI71+CK71 -> 1 | CN71: =+H71*CM71 -> 204,950.00 | CP71: 204 950.00 | CQ71: 0.00
B73: Totals to be carried forward to Price Summary | I73: =SUM(I6:I72) -> 305 000.00 | J73: =SUM(J6:J72) -> 5 000.00 | K73: =SUM(K6:K72) -> 3098 952.52 | L73: =SUM(L6:L72) -> 2,766,935.58 | N73: =SUM(N6:N72) -> 155,000.00 | P73: =SUM(P6:P72) -> 355,161.30 | R73: =SUM(R6:R72) -> 68,387.10 | T73: =SUM(T6:T72) -> 68,387.10 | V73: =SUM(V6:V72) -> 68,387.10 | X73: =SUM(X6:X72) -> 68,387.10 | Z73: =SUM(Z6:Z72) -> 13,387.10 | AB73: =SUM(AB6:AB72) -> 123,387.10 | AD73: =SUM(AD6:AD72) -> 68,387.10 | AF73: =SUM(AF6:AF72) -> 68,387.10 | AH73: =SUM(AH6:AH72) -> 68,387.10 | AJ73: =SUM(AJ6:AJ72) -> 68,387.10 | AL73: =SUM(AL6:AL72) -> 68,387.10 | AN73: =SUM(AN6:AN72) -> 68,387.10 | AP73: =SUM(AP6:AP72) -> 68,387.10 | AR73: =SUM(AR6:AR72) -> 68,387.10 | AT73: =SUM(AT6:AT72) -> 68,387.10 | AV73: =SUM(AV6:AV72) -> 68,387.10 | AX73: =SUM(AX6:AX72) -> 68,387.10 | AZ73: =SUM(AZ6:AZ72) -> 68,387.10 | BB73: =SUM(BB6:BB72) -> 68,387.10 | BD73: =SUM(BD6:BD72) -> 68,387.10 | BF73: =SUM(BF6:BF72) -> 68,387.10 | BH73: =SUM(BH6:BH72) -> 68,387.10 | BJ73: =SUM(BJ6:BJ72) -> 136,774.20 | BL73: =SUM(BL6:BL72) -> 68,387.10 | BN73: =SUM(BN6:BN72) -> 68,387.10 | BP73: =SUM(BP6:BP72) -> 68,387.10 | BR73: =SUM(BR6:BR72) -> 68,387.10 | BT73: =SUM(BT6:BT72) -> 68,387.10 | BV73: =SUM(BV6:BV72) -> 68,387.10 | BX73: =SUM(BX6:BX72) -> 68,387.10 | BZ73: =SUM(BZ6:BZ72) -> 68,387.10 | CB73: =SUM(CB6:CB72) -> 86,082.01 | CD73: =SUM(CD6:CD72) -> 268,659.93 | CF73: =SUM(CF6:CF72) -> 0.00 | CH73: =SUM(CH6:CH72) -> 0.00 | CJ73: =SUM(CJ6:CJ72) -> 0.00 | CL73: =SUM(CL6:CL72) -> 373,357.01 | CN73: =SUM(CN6:CN72) -> 3,408,952.52
A75: SECTION 01 - PRELIMINARIES (MV RETICULATION) | K75: =+K73+J73+I73 -> 3,408,952.520
D77: Tender | E77: Prev. | F77: This | G77: Cum. | J77: VALUE | K77: TIME | M77: Claim No.1 | N77: Sub Total CL1 | O77: Claim No2 | P77: SubTotal CL 2 | Q77: Claim No3 | R77: SubTotal CL 3 | S77: Claim No4 | T77: SubTotal CL 4 | U77: Claim No5 | V77: SubTotal CL 5 | W77: Claim No.6 | X77: SubTotal CL 6 | Y77: Claim No.6 | Z77: SubTotal CL 6 | AA77: Claim No.8 | AB77: SubTotal CL 8 | AC77: Claim No.9 | AD77: SubTotal CL 9 | AE77: Claim No.10 | AF77: SubTotal CL 10 | AG77: Claim No.11 | AH77: SubTotal CL 11 | AI77: Claim No.12 | AJ77: SubTotal CL 12 | AK77: Claim No.13 | AL77: SubTotal CL 13 | AM77: Claim No.14 | AN77: SubTotal CL 14 | AO77: Claim No.15 | AP77: SubTotal CL 15 | AQ77: Claim No.15 | AR77: SubTotal CL 16 | AS77: Claim No.17 | AT77: SubTotal CL 17 | AU77: Claim No.18 | AV77: SubTotal CL 18 | AW77: Claim No.19 | AX77: SubTotal CL 19 | AY77: Claim No.20 | AZ77: SubTotal CL 20 | BA77: Claim No.21 | BB77: SubTotal CL 21 | BC77: Claim No.22 | BD77: SubTotal CL 22 | BG77: Claim No.24 | BH77: SubTotal CL 24 | BI77: Claim No.25 | BJ77: SubTotal CL 25 | BK77: Claim No.26 | BL77: SubTotal CL 26 | BM77: Claim No.28 | BN77: SubTotal CL 28 | BO77: Claim No.29 | BP77: SubTotal CL 29 | BQ77: Claim No.30 | BR77: SubTotal CL 30 | CC77: Claim No.49 | CD77: SubTotal CL 49 | CE77: Claim No.50 | CF77: SubTotal CL 50 | CG77: Claim No.51 | CH77: SubTotal CL 51 | CI77: Claim No.52 | CJ77: SubTotal CL 52 | CK77: Claim No.53 | CL77: SubTotal CL 53 | CM77: Total QTY | CN77: Total Amount
A78: ITEM | B78: DESCRIPTION | C78: UNIT | D78: Qty | H78: RATE | I78: FIXED | J78: RELATED | K78: RELATED
A80: A6.0 | B80: SUB-CONTRACTOR'S SITE REPRESENTATIVE | C80: Sum | D80: 1 | E80: 1 | G80: =+E80+F80 -> 1 | H80: 80 000.00 | K80: =+G80*H80 -> 80 000.00 | L80: =+D80*H80 -> 80 000.00 | O80: =3/36 -> 0.08 | P80: =+H80*O80 -> 6,666.67 | Q80: =4/36-O80 -> 0.03 | R80: =+H80*Q80 -> 2,222.22 | S80: =5/36-O80-Q80 -> 0.03 | T80: =+H80*S80 -> 2,222.22 | U80: =6/36-O80-Q80-S80 -> 0.03 | V80: =+$H80*U80 -> 2,222.22 | W80: =7/36-O80-Q80-S80-U80 -> 0.03 | X80: =+$H80*W80 -> 2,222.22 | Y80: =8/36-M80-O80-Q80-S80-U80-W80 -> 0.03 | Z80: =+$H80*Y80 -> 2,222.22 | AA80: =9/36-O80-Q80-S80-U80-W80-Y80 -> 0.03 | AB80: =+$H80*AA80 -> 2,222.22 | AC80: =10/36-O80-Q80-S80-U80-W80-Y80-AA80 -> 0.03 | AD80: =+$H80*AC80 -> 2,222.22 | AE80: =11/36-O80-Q80-S80-U80-W80-Y80-AA80-AC80 -> 0.03 | AF80: =+$H80*AE80 -> 2,222.22 | AG80: =12/36-O80-Q80-S80-U80-W80-Y80-AA80-AC80-AE80 -> 0.03 | AH80: =+$H80*AG80 -> 2,222.22 | AI80: =13/36-O80-Q80-S80-U80-W80-Y80-AA80-AC80-AE80-AG80 -> 0.03 | AJ80: =+$H80*AI80 -> 2,222.22 | AK80: =14/36-O80-Q80-S80-U80-W80-Y80-AA80-AC80-AE80-AG80-AI80 -> 0.03 | AL80: =+$H80*AK80 -> 2,222.22 | AM80: =15/36-O80-S80-Q80-U80-W80-Y80-AA80-AC80-AE80-AG80-AI80-AK80 -> 0.03 | AN80: =+$H80*AM80 -> 2,222.22 | AO80: =1/36 -> 0.03 | AP80: =+$H80*AO80 -> 2,222.22 | AQ80: 0.03 | AR80: =+$H80*AQ80 -> 2,222.22 | AS80: =1/36 -> 0.03 | AT80: =+$H80*AS80 -> 2,222.22 | AU80: =1/36 -> 0.03 | AV80: =+$H80*AU80 -> 2,222.22 | AW80: =1/36 -> 0.03 | AX80: =+$H80*AW80 -> 2,222.22 | AY80: =1/36 -> 0.03 | AZ80: =+$H80*AY80 -> 2,222.22 | BA80: =1/36 -> 0.03 | BB80: =+$H80*BA80 -> 2,222.22 | BC80: 0.03 | BD80: =+$H80*BC80 -> 2,222.22 | BE80: 0.03 | BF80: =+$H80*BE80 -> 2,222.22 | BG80: 0.03 | BH80: =+$H80*BG80 -> 2,222.22 | BI80: =2/36 -> 0.06 | BJ80: =+$H80*BI80 -> 4,444.44 | BK80: 0.03 | BL80: =+$H80*BK80 -> 2,222.22 | BM80: 0.03 | BN80: =+BM80*H80 -> 2,222.22 | BO80: 0.03 | BP80: =+BO80*H80 -> 2,222.22 | BQ80: 0.03 | BR80: =+BQ80*H80 -> 2,222.22 | BS80: 0.03 | BT80: =+BS80*H80 -> 2,222.22 | BU80: 0.03 | BV80: =+BU80*H80 -> 2,222.22 | BW80: 0.03 | BX80: =+BW80*H80 -> 2,222.22 | BY80: 0.03 | BZ80: =+BY80*H80 -> 2,222.22 | CA80: 0.03 | CB80: =+CA80*K80 -> 2,222.22 | CD80: =H80*CC80 -> 0.00 | CF80: =J80*CE80 -> 0.00 | CH80: =L80*CG80 -> 0.00 | CJ80: =K80*CI80 -> 0.00 | CL80: =K80*CK80 -> 0.00 | CM80: =M80+O80+Q80+S80+U80+W80+Y80+AA80+AC80+AE80+AG80+AI80+AK80+AM80+AO80+AQ80+AS80+AU80+AW80+AY80+BA80+BC80+BE80+BG80+BI80+BK80+BM80+BO80+BQ80+BS80+BU80+BW80+BY80+CA80+CC80+CE80+CG80+CI80+CK80 -> 1 | CN80: =+H80*CM80 -> 80,000.00
AO81: 0.03 | AQ81: 0.03
A82: A12.0 | B82: EFFECTING INSURANCES | C82: Sum | D82: 1 | E82: 1 | G82: =+E82+F82 -> 1 | H82: 3 350.00 | K82: =+G82*H82 -> 3 350.00 | L82: =+D82*H82 -> 3 350.00 | O82: =3/36 -> 0.08 | P82: =+H82*O82 -> 279.17 | Q82: =4/36-O82 -> 0.03 | R82: =+H82*Q82 -> 93.06 | S82: =5/36-O82-Q82 -> 0.03 | T82: =+H82*S82 -> 93.06 | U82: =6/36-O82-Q82-S82 -> 0.03 | V82: =+$H82*U82 -> 93.06 | W82: =7/36-O82-Q82-S82-U82 -> 0.03 | X82: =+$H82*W82 -> 93.06 | Y82: =8/36-M82-O82-Q82-S82-U82-W82 -> 0.03 | Z82: =+$H82*Y82 -> 93.06 | AA82: =9/36-O82-Q82-S82-U82-W82-Y82 -> 0.03 | AB82: =+$H82*AA82 -> 93.06 | AC82: =10/36-O82-Q82-S82-U82-W82-Y82-AA82 -> 0.03 | AD82: =+$H82*AC82 -> 93.06 | AE82: =11/36-O82-Q82-S82-U82-W82-Y82-AA82-AC82 -> 0.03 | AF82: =+$H82*AE82 -> 93.06 | AG82: =12/36-O82-Q82-S82-U82-W82-Y82-AA82-AC82-AE82 -> 0.03 | AH82: =+$H82*AG82 -> 93.06 | AI82: =13/36-O82-Q82-S82-U82-W82-Y82-AA82-AC82-AE82-AG82 -> 0.03 | AJ82: =+$H82*AI82 -> 93.06 | AK82: =14/36-O82-Q82-S82-U82-W82-Y82-AA82-AC82-AE82-AG82-AI82 -> 0.03 | AL82: =+$H82*AK82 -> 93.06 | AM82: =15/36-O82-S82-Q82-U82-W82-Y82-AA82-AC82-AE82-AG82-AI82-AK82 -> 0.03 | AN82: =+$H82*AM82 -> 93.06 | AO82: 0.03 | AP82: =+$H82*AO82 -> 93.06 | AQ82: 0.03 | AR82: =+$H82*AQ82 -> 93.06 | AS82: =1/36 -> 0.03 | AT82: =+$H82*AS82 -> 93.06 | AU82: =1/36 -> 0.03 | AV82: =+$H82*AU82 -> 93.06 | AW82: =1/36 -> 0.03 | AX82: =+$H82*AW82 -> 93.06 | AY82: =1/36 -> 0.03 | AZ82: =+$H82*AY82 -> 93.06 | BA82: =1/36 -> 0.03 | BB82: =+$H82*BA82 -> 93.06 | BC82: 0.03 | BD82: =+$H82*BC82 -> 93.06 | BE82: 0.03 | BF82: =+$H82*BE82 -> 93.06 | BG82: 0.03 | BH82: =+$H82*BG82 -> 93.06 | BI82: =2/36 -> 0.06 | BJ82: =+$H82*BI82 -> 186.11 | BK82: 0.03 | BL82: =+$H82*BK82 -> 93.06 | BM82: 0.03 | BN82: =+BM82*H82 -> 93.06 | BO82: 0.03 | BP82: =+BO82*H82 -> 93.06 | BQ82: 0.03 | BR82: =+BQ82*H82 -> 93.06 | BS82: 0.03 | BT82: =+BS82*H82 -> 93.06 | BU82: 0.03 | BV82: =+BU82*H82 -> 93.06 | BW82: 0.03 | BX82: =+BW82*H82 -> 93.06 | BY82: 0.03 | BZ82: =+BY82*H82 -> 93.06 | CA82: 0.03 | CB82: =+CA82*K82 -> 93.06 | CD82: =H82*CC82 -> 0.00 | CF82: =J82*CE82 -> 0.00 | CH82: =L82*CG82 -> 0.00 | CJ82: =K82*CI82 -> 0.00 | CL82: =K82*CK82 -> 0.00 | CM82: =M82+O82+Q82+S82+U82+W82+Y82+AA82+AC82+AE82+AG82+AI82+AK82+AM82+AO82+AQ82+AS82+AU82+AW82+AY82+BA82+BC82+BE82+BG82+BI82+BK82+BM82+BO82+BQ82+BS82+BU82+BW82+BY82+CA82+CC82+CE82+CG82+CI82+CK82 -> 1 | CN82: =+H82*CM82 -> 3,350.00
AO83: 0.03 | AQ83: 0.03
A84: A14.0 | B84: SECURITY | C84: Sum | D84: 1 | E84: 1 | G84: =+E84+F84 -> 1 | H84: 16 000.00 | I84: =+G84*H84 -> 16 000.00 | L84: =+D84*H84 -> 16 000.00 | M84: 1 | N84: =+H84*M84 -> 16,000.00 | BJ84: 0.00 | BN84: 0.00 | BP84: 0.00 | BR84: =+BQ84*H84 -> 0.00 | BT84: 0.00 | BV84: =+BU84*H84 -> 0.00 | BX84: =+BW84*H84 -> 0.00 | BZ84: =+BY84*H84 -> 0.00 | CB84: =+CA84*K84 -> 0.00 | CD84: =H84*CC84 -> 0.00 | CF84: =J84*CE84 -> 0.00 | CH84: =L84*CG84 -> 0.00 | CJ84: =K84*CI84 -> 0.00 | CL84: =K84*CK84 -> 0.00 | CM84: =M84+O84+Q84+S84+U84+W84+Y84+AA84+AC84+AE84+AG84+AI84+AK84+AM84+AO84+AQ84+AS84+AU84+AW84+AY84+BA84+BC84+BE84+BG84+BI84+BK84+BM84+BO84+BQ84+BS84+BU84+BW84+BY84+CA84+CC84+CE84+CG84+CI84+CK84 -> 1 | CN84: =+H84*CM84 -> 16,000.00
AO85: 0.03 | AQ85: 0.03
A86: B4.0 | B86: MANAGEMENT OF CONTRACT | AO86: 0.03 | AQ86: 0.03
AO87: 0.03 | AQ87: 0.03
A88: B4.1 | B88: Management of Works | C88: Sum | D88: 1 | E88: 1 | F88: 0 | G88: =+E88+F88 -> 1 | H88: 77 000.00 | K88: =G88*H88 -> 108 226.58 | L88: =+D88*H88 -> 77 000.00 | O88: =3/36 -> 0.08 | P88: =+H88*O88 -> 6,416.67 | Q88: =4/36-O88 -> 0.03 | R88: =+H88*Q88 -> 2,138.89 | S88: =5/36-O88-Q88 -> 0.03 | T88: =+H88*S88 -> 2,138.89 | U88: =6/36-O88-Q88-S88 -> 0.03 | V88: =+$H88*U88 -> 2,138.89 | W88: =7/36-O88-Q88-S88-U88 -> 0.03 | X88: =+$H88*W88 -> 2,138.89 | Y88: =8/36-M88-O88-Q88-S88-U88-W88 -> 0.03 | Z88: =+$H88*Y88 -> 2,138.89 | AA88: =9/36-O88-Q88-S88-U88-W88-Y88 -> 0.03 | AB88: =+$H88*AA88 -> 2,138.89 | AC88: =10/36-O88-Q88-S88-U88-W88-Y88-AA88 -> 0.03 | AD88: =+$H88*AC88 -> 2,138.89 | AE88: =11/36-O88-Q88-S88-U88-W88-Y88-AA88-AC88 -> 0.03 | AF88: =+$H88*AE88 -> 2,138.89 | AG88: =12/36-O88-Q88-S88-U88-W88-Y88-AA88-AC88-AE88 -> 0.03 | AH88: =+$H88*AG88 -> 2,138.89 | AI88: =13/36-O88-Q88-S88-U88-W88-Y88-AA88-AC88-AE88-AG88 -> 0.03 | AJ88: =+$H88*AI88 -> 2,138.89 | AK88: =14/36-O88-Q88-S88-U88-W88-Y88-AA88-AC88-AE88-AG88-AI88 -> 0.03 | AL88: =+$H88*AK88 -> 2,138.89 | AM88: =15/36-O88-S88-Q88-U88-W88-Y88-AA88-AC88-AE88-AG88-AI88-AK88 -> 0.03 | AN88: =+$H88*AM88 -> 2,138.89 | AO88: 0.03 | AP88: =+$H88*AO88 -> 2,138.89 | AQ88: 0.03 | AR88: =+$H88*AQ88 -> 2,138.89 | AS88: =1/36 -> 0.03 | AT88: =+$H88*AS88 -> 2,138.89 | AU88: =1/36 -> 0.03 | AV88: =+$H88*AU88 -> 2,138.89 | AW88: =1/36 -> 0.03 | AX88: =+$H88*AW88 -> 2,138.89 | AY88: =1/36 -> 0.03 | AZ88: =+$H88*AY88 -> 2,138.89 | BA88: =1/36 -> 0.03 | BB88: =+$H88*BA88 -> 2,138.89 | BC88: 0.03 | BD88: =+$H88*BC88 -> 2,138.89 | BE88: 0.03 | BF88: =+$H88*BE88 -> 2,138.89 | BG88: 0.03 | BH88: =+$H88*BG88 -> 2,138.89 | BI88: =2/36 -> 0.06 | BJ88: 4,277.78 | BK88: 0.03 | BL88: =+$H88*BK88 -> 2,138.89 | BM88: 0.03 | BN88: 2,138.89 | BO88: 0.03 | BP88: 2,138.89 | BQ88: 0.03 | BR88: =+BQ88*H88 -> 2,138.89 | BS88: 0.03 | BT88: 2,138.89 | BU88: 0.03 | BV88: =+BU88*H88 -> 2,138.89 | BW88: 0.03 | BX88: =+BW88*H88 -> 2,138.89 | BY88: 0.03 | BZ88: =+BY88*H88 -> 2,138.89 | CA88: 0.03 | CB88: =+CA88*K88 -> 3,006.29 | CD88: =H88*CC88 -> 0.00 | CF88: =J88*CE88 -> 0.00 | CH88: =L88*CG88 -> 0.00 | CJ88: =K88*CI88 -> 0.00 | CK88: 0.41 | CL88: =K88*CK88 -> 43,890.21 | CM88: =M88+O88+Q88+S88+U88+W88+Y88+AA88+AC88+AE88+AG88+AI88+AK88+AM88+AO88+AQ88+AS88+AU88+AW88+AY88+BA88+BC88+BE88+BG88+BI88+BK88+BM88+BO88+BQ88+BS88+BU88+BW88+BY88+CA88+CC88+CE88+CG88+CI88+CK88 -> 1.406 | CN88: =+H88*CM88 -> 108,226.58
AO89: 0.03 | AQ89: 0.03
A90: B4.2 | B90: Programme for the Works | C90: Sum | D90: 1 | E90: 1 | G90: =+E90+F90 -> 1 | H90: 25 000.00 | K90: =+G90*H90 -> 25 000.00 | L90: =+D90*H90 -> 25 000.00 | O90: =3/36 -> 0.08 | P90: =+H90*O90 -> 2,083.33 | Q90: =4/36-O90 -> 0.03 | R90: =+H90*Q90 -> 694.44 | S90: =5/36-O90-Q90 -> 0.03 | T90: =+H90*S90 -> 694.44 | U90: =6/36-O90-Q90-S90 -> 0.03 | V90: =+$H90*U90 -> 694.44 | W90: =7/36-O90-Q90-S90-U90 -> 0.03 | X90: =+$H90*W90 -> 694.44 | Y90: =8/36-M90-O90-Q90-S90-U90-W90 -> 0.03 | Z90: =+$H90*Y90 -> 694.44 | AA90: =9/36-O90-Q90-S90-U90-W90-Y90 -> 0.03 | AB90: =+$H90*AA90 -> 694.44 | AC90: =10/36-O90-Q90-S90-U90-W90-Y90-AA90 -> 0.03 | AD90: =+$H90*AC90 -> 694.44 | AE90: =11/36-O90-Q90-S90-U90-W90-Y90-AA90-AC90 -> 0.03 | AF90: =+$H90*AE90 -> 694.44 | AG90: =12/36-O90-Q90-S90-U90-W90-Y90-AA90-AC90-AE90 -> 0.03 | AH90: =+$H90*AG90 -> 694.44 | AI90: =13/36-O90-Q90-S90-U90-W90-Y90-AA90-AC90-AE90-AG90 -> 0.03 | AJ90: =+$H90*AI90 -> 694.44 | AK90: =14/36-O90-Q90-S90-U90-W90-Y90-AA90-AC90-AE90-AG90-AI90 -> 0.03 | AL90: =+$H90*AK90 -> 694.44 | AM90: =15/36-O90-S90-Q90-U90-W90-Y90-AA90-AC90-AE90-AG90-AI90-AK90 -> 0.03 | AN90: =+$H90*AM90 -> 694.44 | AO90: 0.03 | AP90: =+$H90*AO90 -> 694.44 | AQ90: 0.03 | AR90: =+$H90*AQ90 -> 694.44 | AS90: =1/36 -> 0.03 | AT90: =+$H90*AS90 -> 694.44 | AU90: =1/36 -> 0.03 | AV90: =+$H90*AU90 -> 694.44 | AW90: =1/36 -> 0.03 | AX90: =+$H90*AW90 -> 694.44 | AY90: =1/36 -> 0.03 | AZ90: =+$H90*AY90 -> 694.44 | BA90: =1/36 -> 0.03 | BB90: =+$H90*BA90 -> 694.44 | BC90: 0.03 | BD90: =+$H90*BC90 -> 694.44 | BE90: 0.03 | BF90: =+$H90*BE90 -> 694.44 | BG90: 0.03 | BH90: =+$H90*BG90 -> 694.44 | BI90: =2/36 -> 0.06 | BJ90: 1,388.89 | BK90: 0.03 | BL90: =+$H90*BK90 -> 694.44 | BM90: 0.03 | BN90: 694.44 | BO90: 0.03 | BP90: 694.44 | BQ90: 0.03 | BR90: =+BQ90*H90 -> 694.44 | BS90: 0.03 | BT90: 694.44 | BU90: 0.03 | BV90: =+BU90*H90 -> 694.44 | BW90: 0.03 | BX90: =+BW90*H90 -> 694.44 | BY90: 0.03 | BZ90: =+BY90*H90 -> 694.44 | CA90: 0.03 | CB90: =+CA90*K90 -> 694.44 | CD90: =H90*CC90 -> 0.00 | CF90: =J90*CE90 -> 0.00 | CH90: =L90*CG90 -> 0.00 | CJ90: =K90*CI90 -> 0.00 | CL90: =K90*CK90 -> 0.00 | CM90: =M90+O90+Q90+S90+U90+W90+Y90+AA90+AC90+AE90+AG90+AI90+AK90+AM90+AO90+AQ90+AS90+AU90+AW90+AY90+BA90+BC90+BE90+BG90+BI90+BK90+BM90+BO90+BQ90+BS90+BU90+BW90+BY90+CA90+CC90+CE90+CG90+CI90+CK90 -> 1 | CN90: =+H90*CM90 -> 25,000.00
AO91: 0.03 | AQ91: 0.03
A92: B4.3 | B92: Progress Meetings | C92: Sum | D92: 1 | E92: 1 | G92: =+E92+F92 -> 1 | H92: 10 000.00 | K92: =+G92*H92 -> 10 000.00 | L92: =+D92*H92 -> 10 000.00 | O92: =3/36 -> 0.08 | P92: =+H92*O92 -> 833.33 | Q92: =4/36-O92 -> 0.03 | R92: =+H92*Q92 -> 277.78 | S92: =5/36-O92-Q92 -> 0.03 | T92: =+H92*S92 -> 277.78 | U92: =6/36-O92-Q92-S92 -> 0.03 | V92: =+$H92*U92 -> 277.78 | W92: =7/36-O92-Q92-S92-U92 -> 0.03 | X92: =+$H92*W92 -> 277.78 | Y92: =8/36-M92-O92-Q92-S92-U92-W92 -> 0.03 | Z92: =+$H92*Y92 -> 277.78 | AA92: =9/36-O92-Q92-S92-U92-W92-Y92 -> 0.03 | AB92: =+$H92*AA92 -> 277.78 | AC92: =10/36-O92-Q92-S92-U92-W92-Y92-AA92 -> 0.03 | AD92: =+$H92*AC92 -> 277.78 | AE92: =11/36-O92-Q92-S92-U92-W92-Y92-AA92-AC92 -> 0.03 | AF92: =+$H92*AE92 -> 277.78 | AG92: =12/36-O92-Q92-S92-U92-W92-Y92-AA92-AC92-AE92 -> 0.03 | AH92: =+$H92*AG92 -> 277.78 | AI92: =13/36-O92-Q92-S92-U92-W92-Y92-AA92-AC92-AE92-AG92 -> 0.03 | AJ92: =+$H92*AI92 -> 277.78 | AK92: =14/36-O92-Q92-S92-U92-W92-Y92-AA92-AC92-AE92-AG92-AI92 -> 0.03 | AL92: =+$H92*AK92 -> 277.78 | AM92: =15/36-O92-S92-Q92-U92-W92-Y92-AA92-AC92-AE92-AG92-AI92-AK92 -> 0.03 | AN92: =+$H92*AM92 -> 277.78 | AO92: 0.03 | AP92: =+$H92*AO92 -> 277.78 | AQ92: 0.03 | AR92: =+$H92*AQ92 -> 277.78 | AS92: =1/36 -> 0.03 | AT92: =+$H92*AS92 -> 277.78 | AU92: =1/36 -> 0.03 | AV92: =+$H92*AU92 -> 277.78 | AW92: =1/36 -> 0.03 | AX92: =+$H92*AW92 -> 277.78 | AY92: =1/36 -> 0.03 | AZ92: =+$H92*AY92 -> 277.78 | BA92: =1/36 -> 0.03 | BB92: =+$H92*BA92 -> 277.78 | BC92: 0.03 | BD92: =+$H92*BC92 -> 277.78 | BE92: 0.03 | BF92: =+$H92*BE92 -> 277.78 | BG92: 0.03 | BH92: =+$H92*BG92 -> 277.78 | BI92: =2/36 -> 0.06 | BJ92: 555.56 | BK92: 0.03 | BL92: =+$H92*BK92 -> 277.78 | BM92: 0.03 | BN92: 277.78 | BO92: 0.03 | BP92: 277.78 | BQ92: 0.03 | BR92: =+BQ92*H92 -> 277.78 | BS92: 0.03 | BT92: 277.78 | BU92: 0.03 | BV92: =+BU92*H92 -> 277.78 | BW92: 0.03 | BX92: =+BW92*H92 -> 277.78 | BY92: 0.03 | BZ92: =+BY92*H92 -> 277.78 | CA92: 0.03 | CB92: =+CA92*K92 -> 277.78 | CD92: =H92*CC92 -> 0.00 | CF92: =J92*CE92 -> 0.00 | CH92: =L92*CG92 -> 0.00 | CJ92: =K92*CI92 -> 0.00 | CL92: =K92*CK92 -> 0.00 | CM92: =M92+O92+Q92+S92+U92+W92+Y92+AA92+AC92+AE92+AG92+AI92+AK92+AM92+AO92+AQ92+AS92+AU92+AW92+AY92+BA92+BC92+BE92+BG92+BI92+BK92+BM92+BO92+BQ92+BS92+BU92+BW92+BY92+CA92+CC92+CE92+CG92+CI92+CK92 -> 1 | CN92: =+H92*CM92 -> 10,000.00
AO93: 0.03 | AQ93: 0.03
A94: B4.4 | B94: Technical Meetings | C94: Sum | D94: 1 | E94: 1 | G94: =+E94+F94 -> 1 | H94: 5 000.00 | K94: =+G94*H94 -> 5 000.00 | L94: =+D94*H94 -> 5 000.00 | O94: =3/36 -> 0.08 | P94: =+H94*O94 -> 416.67 | Q94: =4/36-O94 -> 0.03 | R94: =+H94*Q94 -> 138.89 | S94: =5/36-O94-Q94 -> 0.03 | T94: =+H94*S94 -> 138.89 | U94: =6/36-O94-Q94-S94 -> 0.03 | V94: =+$H94*U94 -> 138.89 | W94: =7/36-O94-Q94-S94-U94 -> 0.03 | X94: =+$H94*W94 -> 138.89 | Y94: =8/36-M94-O94-Q94-S94-U94-W94 -> 0.03 | Z94: =+$H94*Y94 -> 138.89 | AA94: =9/36-O94-Q94-S94-U94-W94-Y94 -> 0.03 | AB94: =+$H94*AA94 -> 138.89 | AC94: =10/36-O94-Q94-S94-U94-W94-Y94-AA94 -> 0.03 | AD94: =+$H94*AC94 -> 138.89 | AE94: =11/36-O94-Q94-S94-U94-W94-Y94-AA94-AC94 -> 0.03 | AF94: =+$H94*AE94 -> 138.89 | AG94: =12/36-O94-Q94-S94-U94-W94-Y94-AA94-AC94-AE94 -> 0.03 | AH94: =+$H94*AG94 -> 138.89 | AI94: =13/36-O94-Q94-S94-U94-W94-Y94-AA94-AC94-AE94-AG94 -> 0.03 | AJ94: =+$H94*AI94 -> 138.89 | AK94: =14/36-O94-Q94-S94-U94-W94-Y94-AA94-AC94-AE94-AG94-AI94 -> 0.03 | AL94: =+$H94*AK94 -> 138.89 | AM94: =15/36-O94-S94-Q94-U94-W94-Y94-AA94-AC94-AE94-AG94-AI94-AK94 -> 0.03 | AN94: =+$H94*AM94 -> 138.89 | AO94: 0.03 | AP94: =+$H94*AO94 -> 138.89 | AQ94: 0.03 | AR94: =+$H94*AQ94 -> 138.89 | AS94: =1/36 -> 0.03 | AT94: =+$H94*AS94 -> 138.89 | AU94: =1/36 -> 0.03 | AV94: =+$H94*AU94 -> 138.89 | AW94: =1/36 -> 0.03 | AX94: =+$H94*AW94 -> 138.89 | AY94: =1/36 -> 0.03 | AZ94: =+$H94*AY94 -> 138.89 | BA94: =1/36 -> 0.03 | BB94: =+$H94*BA94 -> 138.89 | BC94: 0.03 | BD94: =+$H94*BC94 -> 138.89 | BE94: 0.03 | BF94: =+$H94*BE94 -> 138.89 | BG94: 0.03 | BH94: =+$H94*BG94 -> 138.89 | BI94: =2/36 -> 0.06 | BJ94: 277.78 | BK94: 0.03 | BL94: =+$H94*BK94 -> 138.89 | BM94: 0.03 | BN94: 138.89 | BO94: 0.03 | BP94: 138.89 | BQ94: 0.03 | BR94: =+BQ94*H94 -> 138.89 | BS94: 0.03 | BT94: 138.89 | BU94: 0.03 | BV94: =+BU94*H94 -> 138.89 | BW94: 0.03 | BX94: =+BW94*H94 -> 138.89 | BY94: 0.03 | BZ94: =+BY94*H94 -> 138.89 | CA94: 0.03 | CB94: =+CA94*K94 -> 138.89 | CD94: =H94*CC94 -> 0.00 | CF94: =J94*CE94 -> 0.00 | CH94: =L94*CG94 -> 0.00 | CJ94: =K94*CI94 -> 0.00 | CL94: =K94*CK94 -> 0.00 | CM94: =M94+O94+Q94+S94+U94+W94+Y94+AA94+AC94+AE94+AG94+AI94+AK94+AM94+AO94+AQ94+AS94+AU94+AW94+AY94+BA94+BC94+BE94+BG94+BI94+BK94+BM94+BO94+BQ94+BS94+BU94+BW94+BY94+CA94+CC94+CE94+CG94+CI94+CK94 -> 1 | CN94: =+H94*CM94 -> 5,000.00
AO95: 0.03 | AQ95: 0.03
A96: B4.5 | B96: Labour and Plant Records | C96: Sum | D96: 1 | E96: 1 | G96: =+E96+F96 -> 1 | H96: 5 000.00 | K96: =G96*H96 -> 5 000.00 | L96: =+D96*H96 -> 5 000.00 | O96: =3/36 -> 0.08 | P96: =+H96*O96 -> 416.67 | Q96: =4/36-O96 -> 0.03 | R96: =+H96*Q96 -> 138.89 | S96: =5/36-O96-Q96 -> 0.03 | T96: =+H96*S96 -> 138.89 | U96: =6/36-O96-Q96-S96 -> 0.03 | V96: =+$H96*U96 -> 138.89 | W96: =7/36-O96-Q96-S96-U96 -> 0.03 | X96: =+$H96*W96 -> 138.89 | Y96: =8/36-M96-O96-Q96-S96-U96-W96 -> 0.03 | Z96: =+$H96*Y96 -> 138.89 | AA96: =9/36-O96-Q96-S96-U96-W96-Y96 -> 0.03 | AB96: =+$H96*AA96 -> 138.89 | AC96: =10/36-O96-Q96-S96-U96-W96-Y96-AA96 -> 0.03 | AD96: =+$H96*AC96 -> 138.89 | AE96: =11/36-O96-Q96-S96-U96-W96-Y96-AA96-AC96 -> 0.03 | AF96: =+$H96*AE96 -> 138.89 | AG96: =12/36-O96-Q96-S96-U96-W96-Y96-AA96-AC96-AE96 -> 0.03 | AH96: =+$H96*AG96 -> 138.89 | AI96: =13/36-O96-Q96-S96-U96-W96-Y96-AA96-AC96-AE96-AG96 -> 0.03 | AJ96: =+$H96*AI96 -> 138.89 | AK96: =14/36-O96-Q96-S96-U96-W96-Y96-AA96-AC96-AE96-AG96-AI96 -> 0.03 | AL96: =+$H96*AK96 -> 138.89 | AM96: =15/36-O96-S96-Q96-U96-W96-Y96-AA96-AC96-AE96-AG96-AI96-AK96 -> 0.03 | AN96: =+$H96*AM96 -> 138.89 | AO96: 0.03 | AP96: =+$H96*AO96 -> 138.89 | AQ96: 0.03 | AR96: =+$H96*AQ96 -> 138.89 | AS96: =1/36 -> 0.03 | AT96: =+$H96*AS96 -> 138.89 | AU96: =1/36 -> 0.03 | AV96: =+$H96*AU96 -> 138.89 | AW96: =1/36 -> 0.03 | AX96: =+$H96*AW96 -> 138.89 | AY96: =1/36 -> 0.03 | AZ96: =+$H96*AY96 -> 138.89 | BA96: =1/36 -> 0.03 | BB96: =+$H96*BA96 -> 138.89 | BC96: 0.03 | BD96: =+$H96*BC96 -> 138.89 | BE96: 0.03 | BF96: =+$H96*BE96 -> 138.89 | BG96: 0.03 | BH96: =+$H96*BG96 -> 138.89 | BI96: =2/36 -> 0.06 | BJ96: 277.78 | BK96: 0.03 | BL96: =+$H96*BK96 -> 138.89 | BM96: 0.03 | BN96: 138.89 | BO96: 0.03 | BP96: 138.89 | BQ96: 0.03 | BR96: =+BQ96*H96 -> 138.89 | BS96: 0.03 | BT96: 138.89 | BU96: 0.03 | BV96: =+BU96*H96 -> 138.89 | BW96: 0.03 | BX96: =+BW96*H96 -> 138.89 | BY96: 0.03 | BZ96: =+BY96*H96 -> 138.89 | CA96: 0.03 | CB96: =+CA96*K96 -> 138.89 | CD96: =H96*CC96 -> 0.00 | CF96: =J96*CE96 -> 0.00 | CH96: =L96*CG96 -> 0.00 | CJ96: =K96*CI96 -> 0.00 | CL96: =K96*CK96 -> 0.00 | CM96: =M96+O96+Q96+S96+U96+W96+Y96+AA96+AC96+AE96+AG96+AI96+AK96+AM96+AO96+AQ96+AS96+AU96+AW96+AY96+BA96+BC96+BE96+BG96+BI96+BK96+BM96+BO96+BQ96+BS96+BU96+BW96+BY96+CA96+CC96+CE96+CG96+CI96+CK96 -> 1 | CN96: =+H96*CM96 -> 5,000.00
A98: B11.0 | B98: GENERAL
A100: B11.11 | B100: As Built Information | C100: Sum | D100: 1 | E100: 1 | G100: =+E100+F100 -> 1 | H100: 2 557.87 | I100: =+G100*H100 -> 2 557.87 | L100: =+D100*H100 -> 2 557.87 | M100: 1 | N100: =+H100*M100 -> 2,557.87 | BR100: =+BQ100*H100 -> 0.00 | CM100: =M100+O100+Q100+S100+U100+W100+Y100+AA100+AC100+AE100+AG100+AI100+AK100+AM100+AO100+AQ100+AS100+AU100+AW100+AY100+BA100+BC100+BE100+BG100+BI100+BK100+BM100+BO100+BQ100+BS100+BU100+BW100+BY100+CA100+CC100+CE100+CG100+CI100+CK100 -> 1 | CN100: =+H100*CM100 -> 2,557.87
B102: Totals to be carried forward to Price Summary | I102: =SUM(I79:I101) -> 18 557.87 | J102: =SUM(J79:J101) -> 0.00 | K102: =SUM(K79:K101) -> 236 576.58 | L102: =SUM(L79:L101) -> 223,907.87 | N102: =SUM(N79:N101) -> 18,557.87 | P102: =SUM(P79:P101) -> 17,112.50 | R102: =SUM(R79:R101) -> 5,704.17 | T102: =SUM(T79:T101) -> 5,704.17 | V102: =SUM(V79:V101) -> 5,704.17 | X102: =SUM(X79:X101) -> 5,704.17 | Z102: =SUM(Z79:Z101) -> 5,704.17 | AB102: =SUM(AB79:AB101) -> 5,704.17 | AD102: =SUM(AD79:AD101) -> 5,704.17 | AF102: =SUM(AF79:AF101) -> 5,704.17 | AH102: =SUM(AH79:AH101) -> 5,704.17 | AJ102: =SUM(AJ79:AJ101) -> 5,704.17 | AL102: =SUM(AL79:AL101) -> 5,704.17 | AN102: =SUM(AN79:AN101) -> 5,704.17 | AP102: =SUM(AP79:AP101) -> 5,704.17 | AR102: =SUM(AR79:AR101) -> 5,704.17 | AT102: =SUM(AT79:AT101) -> 5,704.17 | AV102: =SUM(AV79:AV101) -> 5,704.17 | AX102: =SUM(AX79:AX101) -> 5,704.17 | AZ102: =SUM(AZ79:AZ101) -> 5,704.17 | BB102: =SUM(BB79:BB101) -> 5,704.17 | BD102: 5,704.17 | BF102: 5,704.17 | BH102: 5,704.17 | BJ102: =SUM(BJ79:BJ101) -> 11,408.33 | BL102: =SUM(BL79:BL101) -> 5,704.17 | BN102: =SUM(BN79:BN101) -> 5,704.17 | BP102: =SUM(BP79:BP101) -> 5,704.17 | BR102: =SUM(BR79:BR101) -> 5,704.17 | BT102: =SUM(BT79:BT101) -> 5,704.17 | BV102: =SUM(BV79:BV101) -> 5,704.17 | BX102: =SUM(BX79:BX101) -> 5,704.17 | BZ102: =SUM(BZ79:BZ101) -> 5,704.17 | CB102: =SUM(CB79:CB101) -> 6,571.57 | CD102: =SUM(CD79:CD101) -> 0.00 | CF102: =SUM(CF79:CF101) -> 0.00 | CH102: =SUM(CH79:CH101) -> 0.00 | CJ102: =SUM(CJ79:CJ101) -> 0.00 | CL102: =SUM(CL79:CL101) -> 43,890.21 | CN102: =SUM(CN79:CN101) -> 255,134.45
K104: =SUM(I102:K102) -> 255 134.45
H108: Fixed | I108: =+I102+I73 -> 323,557.87
H109: Value | I109: =+J73+J102 -> 5,000.00
H110: Time | I110: =+K102+K73 -> 3,335,529.10

Sheet Block Breakdown Prev (hidden)
A2: MAIN HOSPITAL ELECTRICAL INSTALLATION
A3: CECILIA MAKIWANE HOSPITAL : PHASE 4C
A5: BILL NO. 1 : PROVISIONAL AND SUPERVISION AMOUNTS | E5: Besamandla
A6: ITEM | B6: DESCRIPTION | C6: UNIT | D6: QTY | E6: RATE | F6: TENDER AMOUNT | G6: Total Quantity Claimed to Date | AA6: Total Value Claimed Previously | AS6: Total Claimed
G7: A | H7: B | I7: D | J7: E1 | K7: E2 | L7: F1 | M7: F2 | N7: G1 | O7: G2 | P7: H1 | Q7: H2 | R7: J1 | S7: J2 | T7: J3 | U7: Substation | V7: G/House | W7: K | X7: N | Y7: Other | Z7: Total Qty | AA7: A | AB7: B | AC7: D | AD7: E1 | AE7: E2 | AF7: F1 | AG7: F2 | AH7: G1 | AI7: G2 | AJ7: H1 | AK7: H2 | AL7: J1 | AM7: J2 | AN7: J3 | AO7: K | AP7: N | AQ7: Other | AR7: Total Amount
B9: P&G Claim amounts For LV and MV | F9: WG 190 | AS9: =#REF!+#REF!+#REF!+#REF!+#REF!+#REF!+#REF!+#REF!+#REF!+#REF!+#REF!+#REF!+#REF!+#REF!+#REF!+#REF!+#REF!+#REF!+#REF!+#REF!+#REF!+#REF!+#REF!+#REF!+#REF!+#REF!+#REF!+#REF!+#REF!+#REF!+#REF!+#REF!+#REF!+#REF!+#REF!+#REF! -> 
A12: 1.00 | B12: Provisional amounts, pertaining specifically to the Electrical Installation Contract
B14: Provisional Amounts
A16: 1.10 | B16: An amount to receive, store, install and connect complete new Digital Xray viewing panels from Radiology Contractor or supplier | C16: Sum | D16: 1 | E16: 125,000.00 | F16: =$D16*E16 -> 125,000.00 | G16: 0.00 | H16: 0.00 | I16: 0.00 | J16: 0.00 | K16: 0.00 | L16: 0.00 | M16: 0.00 | N16: 0.00 | O16: 0.00 | P16: 0.00 | Q16: 0.00 | R16: 0.00 | S16: 0.00 | T16: 0.00 | X16: 0.00 | Y16: 0.00 | Z16: =SUM(G16:Y16) -> 0.00 | AA16: =G16*E16 -> 0 | AB16: =H16*E16 -> 0 | AC16: =I16*E16 -> 0 | AD16: =J16*E16 -> 0 | AE16: =K16*E16 -> 0 | AF16: =L16*E16 -> 0 | AG16: =+M16*E16 -> 0 | AH16: =N16*E16 -> 0 | AI16: =O16*E16 -> 0 | AJ16: =P16*E16 -> 0 | AK16: =Q16*E16 -> 0 | AL16: =R16*E16 -> 0 | AM16: =S16*E16 -> 0 | AN16: =T16*E16 -> 0 | AO16: =W16*E16 -> 0 | AP16: =X16*E16 -> 0 | AQ16: =Y16*E16 -> 0 | AR16: =SUM(AA16:AQ16) -> 0 | AS16: =+E16*Z16 -> 0.00
AG17: 0
A18: 1.1.1 | B18: Contractor's Profit on the above amount | C18: % | E18: 0.10 | F18: =F16*E18 -> 12,500.00 | G18: 0.00 | H18: 0.00 | I18: 0.00 | J18: 0.00 | K18: 0.00 | L18: 0.00 | M18: 0.00 | N18: 0.00 | O18: 0.00 | P18: 0.00 | Q18: 0.00 | R18: 0.00 | S18: 0.00 | T18: 0.00 | X18: 0.00 | Y18: 0.00 | Z18: =SUM(G18:Y18) -> 0.00 | AA18: =G18*E18 -> 0 | AB18: =H18*E18 -> 0 | AC18: =I18*E18 -> 0 | AD18: =J18*E18 -> 0 | AE18: =K18*E18 -> 0 | AF18: =L18*E18 -> 0 | AG18: 0 | AH18: =N18*E18 -> 0 | AI18: =O18*E18 -> 0 | AJ18: =P18*E18 -> 0 | AK18: =Q18*E18 -> 0 | AL18: =R18*E18 -> 0 | AM18: =S18*E18 -> 0 | AN18: =T18*E18 -> 0 | AO18: =W18*E18 -> 0 | AP18: =X18*E18 -> 0 | AQ18: =Y18*E18 -> 0 | AR18: =SUM(AA18:AQ18) -> 0 | AS18: =+E18*Z18 -> 0.00
AG19: 0
A20: 1.30 | B20: Specialist Lighting Contractor to complete the main Entrance and Façade of the Main Hospital | C20: Sum | D20: 1 | E20: 250,000.00 | F20: =$D20*E20 -> 250,000.00 | G20: 0.00 | H20: 0.00 | I20: 0.00 | J20: 0.00 | K20: 0.00 | L20: 0.00 | M20: 0.00 | N20: 0.00 | O20: 0.00 | P20: 0.00 | Q20: 0.00 | R20: 0.00 | S20: 0.00 | T20: 0.00 | X20: 0.00 | Y20: 0.00 | Z20: 0.00 | AA20: =G20*E20 -> 0 | AB20: =H20*E20 -> 0 | AC20: =I20*E20 -> 0 | AD20: =J20*E20 -> 0 | AE20: =K20*E20 -> 0 | AF20: =L20*E20 -> 0 | AG20: 0 | AH20: =N20*E20 -> 0 | AI20: =O20*E20 -> 0 | AJ20: =P20*E20 -> 0 | AK20: =Q20*E20 -> 0 | AL20: =R20*E20 -> 0 | AM20: =S20*E20 -> 0 | AN20: =T20*E20 -> 0 | AO20: =W20*E20 -> 0 | AP20: =X20*E20 -> 0 | AQ20: =Y20*E20 -> 0 | AR20: 0 | AS20: =+E20*Z20 -> 0.00
AG21: 0
A22: 1.3.1 | B22: Contractor's Profit on the above amount | C22: % | E22: 0.10 | F22: =F20*E22 -> 25,000.00 | G22: 0.00 | H22: 0.00 | I22: 0.00 | J22: 0.00 | K22: 0.00 | L22: 0.00 | M22: 0.00 | N22: 0.00 | O22: 0.00 | P22: 0.00 | Q22: 0.00 | R22: 0.00 | S22: 0.00 | T22: 0.00 | X22: 0.00 | Y22: 0.00 | Z22: 0.00 | AA22: =G22*E22 -> 0 | AB22: =H22*E22 -> 0 | AC22: =I22*E22 -> 0 | AD22: =J22*E22 -> 0 | AE22: =K22*E22 -> 0 | AF22: =L22*E22 -> 0 | AG22: 0 | AH22: =N22*E22 -> 0 | AI22: =O22*E22 -> 0 | AJ22: =P22*E22 -> 0 | AK22: =Q22*E22 -> 0 | AL22: =R22*E22 -> 0 | AM22: =S22*E22 -> 0 | AN22: =T22*E22 -> 0 | AO22: =W22*E22 -> 0 | AP22: =X22*E22 -> 0 | AQ22: =Y22*E22 -> 0 | AR22: 0 | AS22: =+E22*Z22 -> 0.00
AG23: 0
A24: 1.40 | B24: UPS System complete for the Main Hospital | C24: Sum | D24: 1 | E24: 3,200,000.00 | F24: =$D24*E24 -> 3,200,000.00 | G24: 0.00 | H24: 0.00 | I24: 0.00 | J24: 0.00 | K24: 0.00 | L24: 0.00 | M24: 0.00 | N24: 0.00 | O24: 0.00 | P24: 0.00 | Q24: 0.00 | R24: 0.00 | S24: 0.00 | T24: 0.00 | X24: 0.00 | Y24: 0.00 | Z24: 0.00 | AA24: =G24*E24 -> 0 | AB24: =H24*E24 -> 0 | AC24: =I24*E24 -> 0 | AD24: =J24*E24 -> 0 | AE24: =K24*E24 -> 0 | AF24: =L24*E24 -> 0 | AG24: 0 | AH24: =N24*E24 -> 0 | AI24: =O24*E24 -> 0 | AJ24: =P24*E24 -> 0 | AK24: =Q24*E24 -> 0 | AL24: =R24*E24 -> 0 | AM24: =S24*E24 -> 0 | AN24: =T24*E24 -> 0 | AO24: =W24*E24 -> 0 | AP24: =X24*E24 -> 0 | AQ24: =Y24*E24 -> 0 | AR24: 0 | AS24: =+E24*Z24 -> 0.00
AG25: 0
A26: 1.4.1 | B26: Contractor's Profit on the above amount | C26: % | E26: 0.03 | F26: =F24*E26 -> 80,000.00 | G26: 0.00 | H26: 0.00 | I26: 0.00 | J26: 0.00 | K26: 0.00 | L26: 0.00 | M26: 0.00 | N26: 0.00 | O26: 0.00 | P26: 0.00 | Q26: 0.00 | R26: 0.00 | S26: 0.00 | T26: 0.00 | X26: 0.00 | Y26: 0.00 | Z26: 0.00 | AA26: =G26*E26 -> 0 | AB26: =H26*E26 -> 0 | AC26: =I26*E26 -> 0 | AD26: =J26*E26 -> 0 | AE26: =K26*E26 -> 0 | AF26: =L26*E26 -> 0 | AG26: 0 | AH26: =N26*E26 -> 0 | AI26: =O26*E26 -> 0 | AJ26: =P26*E26 -> 0 | AK26: =Q26*E26 -> 0 | AL26: =R26*E26 -> 0 | AM26: =S26*E26 -> 0 | AN26: =T26*E26 -> 0 | AO26: =W26*E26 -> 0 | AP26: =X26*E26 -> 0 | AQ26: =Y26*E26 -> 0 | AR26: 0 | AS26: =+E26*Z26 -> 0.00
AG27: 0
A28: 1.50 | B28: Connection Fees for Power Supply | C28: Sum | D28: 1 | E28: 9,000,000.00 | F28: =$D28*E28 -> 9,000,000.00 | G28: 0.00 | H28: 0.00 | I28: 0.00 | J28: 0.00 | K28: 0.00 | L28: 0.00 | M28: 0.00 | N28: 0.00 | O28: 0.00 | P28: 0.00 | Q28: 0.00 | R28: 0.00 | S28: 0.00 | T28: 0.00 | X28: 0.00 | Y28: 0.00 | Z28: 0.00 | AA28: =G28*E28 -> 0 | AB28: =H28*E28 -> 0 | AC28: =I28*E28 -> 0 | AD28: =J28*E28 -> 0 | AE28: =K28*E28 -> 0 | AF28: =L28*E28 -> 0 | AG28: 0 | AH28: =N28*E28 -> 0 | AI28: =O28*E28 -> 0 | AJ28: =P28*E28 -> 0 | AK28: =Q28*E28 -> 0 | AL28: =R28*E28 -> 0 | AM28: =S28*E28 -> 0 | AN28: =T28*E28 -> 0 | AO28: =W28*E28 -> 0 | AP28: =X28*E28 -> 0 | AQ28: =Y28*E28 -> 0 | AR28: 0 | AS28: =+E28*Z28 -> 0.00
AG29: 0
A30: 1.5.1 | B30: Contractor's Profit on the above amount | C30: % | E30: 0.01 | F30: =F28*E30 -> 90,000.00 | G30: 0.00 | H30: 0.00 | I30: 0.00 | J30: 0.00 | K30: 0.00 | L30: 0.00 | M30: 0.00 | N30: 0.00 | O30: 0.00 | P30: 0.00 | Q30: 0.00 | R30: 0.00 | S30: 0.00 | T30: 0.00 | X30: 0.00 | Y30: 0.00 | Z30: 0.00 | AA30: =G30*E30 -> 0 | AB30: =H30*E30 -> 0 | AC30: =I30*E30 -> 0 | AD30: =J30*E30 -> 0 | AE30: =K30*E30 -> 0 | AF30: =L30*E30 -> 0 | AG30: 0 | AH30: =N30*E30 -> 0 | AI30: =O30*E30 -> 0 | AJ30: =P30*E30 -> 0 | AK30: =Q30*E30 -> 0 | AL30: =R30*E30 -> 0 | AM30: =S30*E30 -> 0 | AN30: =T30*E30 -> 0 | AO30: =W30*E30 -> 0 | AP30: =X30*E30 -> 0 | AQ30: =Y30*E30 -> 0 | AR30: 0 | AS30: =+E30*Z30 -> 0.00
AG31: 0
A32: 1.60 | B32: Dome lighting System complete as per specialist lighting Engineer | C32: Sum | D32: 1 | E32: 350,000.00 | F32: =$D32*E32 -> 350,000.00 | G32: 0.00 | H32: 0.00 | I32: 0.00 | J32: 0.00 | K32: 0.00 | L32: 0.00 | M32: 0.00 | N32: 0.00 | O32: 0.00 | P32: 0.00 | Q32: 0.00 | R32: 0.00 | S32: 0.00 | T32: 0.00 | X32: 0.00 | Y32: 0.00 | Z32: 0.00 | AA32: =G32*E32 -> 0 | AB32: =H32*E32 -> 0 | AC32: =I32*E32 -> 0 | AD32: =J32*E32 -> 0 | AE32: =K32*E32 -> 0 | AF32: =L32*E32 -> 0 | AG32: 0 | AH32: =N32*E32 -> 0 | AI32: =O32*E32 -> 0 | AJ32: =P32*E32 -> 0 | AK32: =Q32*E32 -> 0 | AL32: =R32*E32 -> 0 | AM32: =S32*E32 -> 0 | AN32: =T32*E32 -> 0 | AO32: =W32*E32 -> 0 | AP32: =X32*E32 -> 0 | AQ32: =Y32*E32 -> 0 | AR32: 0 | AS32: =+E32*Z32 -> 0.00
AG33: 0
A34: 1.6.1 | B34: Contractor's Profit on the above amount | C34: % | E34: 0.10 | F34: =F32*E34 -> 35,000.00 | G34: 0.00 | H34: 0.00 | I34: 0.00 | J34: 0.00 | K34: 0.00 | L34: 0.00 | M34: 0.00 | N34: 0.00 | O34: 0.00 | P34: 0.00 | Q34: 0.00 | R34: 0.00 | S34: 0.00 | T34: 0.00 | X34: 0.00 | Y34: 0.00 | Z34: 0.00 | AA34: =G34*E34 -> 0 | AB34: =H34*E34 -> 0 | AC34: =I34*E34 -> 0 | AD34: =J34*E34 -> 0 | AE34: =K34*E34 -> 0 | AF34: =L34*E34 -> 0 | AG34: 0 | AH34: =N34*E34 -> 0 | AI34: =O34*E34 -> 0 | AJ34: =P34*E34 -> 0 | AK34: =Q34*E34 -> 0 | AL34: =R34*E34 -> 0 | AM34: =S34*E34 -> 0 | AN34: =T34*E34 -> 0 | AO34: =W34*E34 -> 0 | AP34: =X34*E34 -> 0 | AQ34: =Y34*E34 -> 0 | AR34: 0 | AS34: =+E34*Z34 -> 0.00
AG35: 0
A36: 1.70 | B36: Power Monitoring System complete as per specialist Contractor | C36: Sum | D36: 1 | E36: 2,000,000.00 | F36: =$D36*E36 -> 2,000,000.00 | G36: 0.00 | H36: 0.00 | I36: 0.00 | J36: 0.00 | K36: 0.00 | L36: 0.00 | M36: 0.00 | N36: 0.00 | O36: 0.00 | P36: 0.00 | Q36: 0.00 | R36: 0.00 | S36: 0.00 | T36: 0.00 | X36: 0.00 | Y36: 0.00 | Z36: 0.00 | AA36: =G36*E36 -> 0 | AB36: =H36*E36 -> 0 | AC36: =I36*E36 -> 0 | AD36: =J36*E36 -> 0 | AE36: =K36*E36 -> 0 | AF36: =L36*E36 -> 0 | AG36: 0 | AH36: =N36*E36 -> 0 | AI36: =O36*E36 -> 0 | AJ36: =P36*E36 -> 0 | AK36: =Q36*E36 -> 0 | AL36: =R36*E36 -> 0 | AM36: =S36*E36 -> 0 | AN36: =T36*E36 -> 0 | AO36: =W36*E36 -> 0 | AP36: =X36*E36 -> 0 | AQ36: =Y36*E36 -> 0 | AR36: 0 | AS36: =+E36*Z36 -> 0.00
AG37: 0
A38: 1.7.1 | B38: Contractor's Profit on the above amount | C38: % | E38: 0.03 | F38: =F36*E38 -> 50,000.00 | G38: 0.00 | H38: 0.00 | I38: 0.00 | J38: 0.00 | K38: 0.00 | L38: 0.00 | M38: 0.00 | N38: 0.00 | O38: 0.00 | P38: 0.00 | Q38: 0.00 | R38: 0.00 | S38: 0.00 | T38: 0.00 | X38: 0.00 | Y38: 0.00 | Z38: 0.00 | AA38: =G38*E38 -> 0 | AB38: =H38*E38 -> 0 | AC38: =I38*E38 -> 0 | AD38: =J38*E38 -> 0 | AE38: =K38*E38 -> 0 | AF38: =L38*E38 -> 0 | AG38: 0 | AH38: =N38*E38 -> 0 | AI38: =O38*E38 -> 0 | AJ38: =P38*E38 -> 0 | AK38: =Q38*E38 -> 0 | AL38: =R38*E38 -> 0 | AM38: =S38*E38 -> 0 | AN38: =T38*E38 -> 0 | AO38: =W38*E38 -> 0 | AP38: =X38*E38 -> 0 | AQ38: =Y38*E38 -> 0 | AR38: 0 | AS38: =+E38*Z38 -> 0.00
AG39: 0
A40: 1.80 | B40: Building Management System complete as per specialist Contractor | C40: Sum | D40: 1 | E40: 2,100,000.00 | F40: =$D40*E40 -> 2,100,000.00 | G40: 0.00 | H40: 0.00 | I40: 0.00 | J40: 0.00 | K40: 0.00 | L40: 0.00 | M40: 0.00 | N40: 0.00 | O40: 0.00 | P40: 0.00 | Q40: 0.00 | R40: 0.00 | S40: 0.00 | T40: 0.00 | X40: 0.00 | Y40: 0.00 | Z40: 0.00 | AA40: =G40*E40 -> 0 | AB40: =H40*E40 -> 0 | AC40: =I40*E40 -> 0 | AD40: =J40*E40 -> 0 | AE40: =K40*E40 -> 0 | AF40: =L40*E40 -> 0 | AG40: 0 | AH40: =N40*E40 -> 0 | AI40: =O40*E40 -> 0 | AJ40: =P40*E40 -> 0 | AK40: =Q40*E40 -> 0 | AL40: =R40*E40 -> 0 | AM40: =S40*E40 -> 0 | AN40: =T40*E40 -> 0 | AO40: =W40*E40 -> 0 | AP40: =X40*E40 -> 0 | AQ40: =Y40*E40 -> 0 | AR40: 0 | AS40: =+E40*Z40 -> 0.00
AG41: 0
A42: 1.8.1 | B42: Contractor's Profit on the above amount | C42: % | E42: 0.03 | F42: =F40*E42 -> 52,500.00 | G42: 0.00 | H42: 0.00 | I42: 0.00 | J42: 0.00 | K42: 0.00 | L42: 0.00 | M42: 0.00 | N42: 0.00 | O42: 0.00 | P42: 0.00 | Q42: 0.00 | R42: 0.00 | S42: 0.00 | T42: 0.00 | X42: 0.00 | Y42: 0.00 | Z42: 0.00 | AA42: =G42*E42 -> 0 | AB42: =H42*E42 -> 0 | AC42: =I42*E42 -> 0 | AD42: =J42*E42 -> 0 | AE42: =K42*E42 -> 0 | AF42: =L42*E42 -> 0 | AG42: 0 | AH42: =N42*E42 -> 0 | AI42: =O42*E42 -> 0 | AJ42: =P42*E42 -> 0 | AK42: =Q42*E42 -> 0 | AL42: =R42*E42 -> 0 | AM42: =S42*E42 -> 0 | AN42: =T42*E42 -> 0 | AO42: =W42*E42 -> 0 | AP42: =X42*E42 -> 0 | AQ42: =Y42*E42 -> 0 | AR42: 0 | AS42: =+E42*Z42 -> 0.00
B46: Amount Carried Forward | F46: =SUM(F16:F45) -> 17,370,000.00 | AS46: =SUM(AS16:AS45) -> 0.00
A48: MAIN HOSPITAL ELECTRICAL INSTALLATION
A49: CECILIA MAKIWANE HOSPITAL : PHASE 4C
A51: BILL NO. 2 : DISTRIBUTION BOARDS
A52: ITEM | B52: DESCRIPTION | C52: UNIT | D52: QTY | E52: RATE | F52: TENDER AMOUNT | G52: A | H52: B | I52: D | J52: E1 | K52: E2 | L52: F1 | M52: F2 | N52: G1 | O52: G2 | P52: H1 | Q52: H2 | R52: J1 | S52: J2 | T52: J3 | V52: G/House | X52: N | Y52: Other | Z52: Total Qty | AA52: A | AB52: B | AC52: D | AD52: E1 | AE52: E2 | AF52: F1 | AG52: F2 | AH52: G1 | AI52: G2 | AJ52: H1 | AK52: H2 | AL52: J1 | AM52: J2 | AN52: J3 | AO52: K | AP52: N | AQ52: Other | AR52: Total Amount | AS52: Total Claimed
B53: AMOUNT CARRIED FORWARD FROM PREVIOUS BILL | F53: =F46 -> 17,370,000.00 | AS53: =+AS46 -> 0.00
A55: 1.10 | B55: Technical Training | C55: Sum | D55: 1 | E55: 250,000.00 | F55: =$D55*E55 -> 250,000.00 | G55: 0.00 | H55: 0.00 | I55: 0.00 | J55: 0.00 | K55: 0.00 | L55: 0.00 | M55: 0.00 | N55: 0.00 | O55: 0.00 | P55: 0.00 | Q55: 0.00 | R55: 0.00 | S55: 0.00 | T55: 0.00 | X55: 0.00 | Y55: 0.10 | Z55: =SUM(G55:Y55) -> 0.10 | AA55: =G55*E55 -> 0 | AB55: =H55*E55 -> 0.00 | AC55: =I55*E55 -> 0.00 | AD55: =J55*E55 -> 0.00 | AE55: =K55*E55 -> 0.00 | AF55: =L55*E5 ->  | AG55: =+M55*E55 -> 0.00 | AH55: =N55*E55 -> 0.00 | AI55: =O55*E55 -> 0.00 | AJ55: =P55*E55 -> 0.00 | AK55: =Q55*E55 -> 0.00 | AL55: =R55*E55 -> 0.00 | AM55: =S55*E55 -> 0.00 | AN55: =T55*E55 -> 0.00 | AO55: =W55*E55 -> 0.00 | AP55: =X55*E55 -> 0.00 | AQ55: =Y55*E55 -> 25,000.00 | AR55: =SUM(AA55:AQ55) ->  | AS55: =+E55*Z55 -> 25,000.00
AG56: 0.00
A57: 1.10.1 | B57: Contractor's Profit on the above amount | C57: % | E57: 0.10 | F57: =F55*E57 -> 25,000.00 | G57: 0.00 | H57: 0.00 | I57: 0.00 | J57: 0.00 | K57: 0.00 | L57: 0.00 | M57: 0.00 | N57: 0.00 | O57: 0.00 | P57: 0.00 | Q57: 0.00 | R57: 0.00 | S57: 0.00 | T57: 0.00 | X57: 0.00 | Y57: 0.40 | Z57: =SUM(G57:Y57) -> 0.40 | AA57: =G57*E57 -> 0 | AB57: =H57*E57 -> 0.00 | AC57: =I57*E57 -> 0.00 | AD57: =J57*E57 -> 0.00 | AE57: =K57*E57 -> 0.00 | AF57: =L57*E7 -> 0.00 | AG57: 0.00 | AH57: =N57*E57 -> 0.00 | AI57: =O57*E57 -> 0.00 | AJ57: =P57*E57 -> 0.00 | AK57: =Q57*E57 -> 0.00 | AL57: =R57*E57 -> 0.00 | AM57: =S57*E57 -> 0.00 | AN57: =T57*E57 -> 0.00 | AO57: =W57*E57 -> 0.00 | AP57: =X57*E57 -> 0.00 | AQ57: =Y57*E57 -> 0.04 | AR57: =SUM(AA57:AQ57) -> 0.04 | AS57: =+AS55*E57 -> 2,500.00
AG58: 0.00
A59: 1.11 | B59: Life Skills Training | C59: Sum | D59: 1 | E59: 50,000.00 | F59: =$D59*E59 -> 50,000.00 | G59: 0.00 | H59: 0.00 | I59: 0.00 | J59: 0.00 | K59: 0.00 | L59: 0.00 | M59: 0.00 | N59: 0.00 | O59: 0.00 | P59: 0.00 | Q59: 0.00 | R59: 0.00 | S59: 0.00 | T59: 0.00 | X59: 0.00 | Y59: 0.00 | Z59: 0.00 | AA59: =G59*E59 -> 0 | AB59: =H59*E59 -> 0.00 | AC59: =I59*E59 -> 0.00 | AD59: =J59*E59 -> 0.00 | AE59: =K59*E59 -> 0.00 | AF59: =L59*E9 -> 0.00 | AG59: 0.00 | AH59: =N59*E59 -> 0.00 | AI59: =O59*E59 -> 0.00 | AJ59: =P59*E59 -> 0.00 | AK59: =Q59*E59 -> 0.00 | AL59: =R59*E59 -> 0.00 | AM59: =S59*E59 -> 0.00 | AN59: =T59*E59 -> 0.00 | AO59: =W59*E59 -> 0.00 | AP59: =X59*E59 -> 0.00 | AQ59: =Y59*E59 -> 0.00 | AR59: 0.00 | AS59: =+E59*Z59 -> 0.00
AG60: 0.00
A61: 1.11.1 | B61: Contractor's Profit on the above amount | C61: % | E61: 0.10 | F61: =F59*E61 -> 5,000.00 | G61: 0.00 | H61: 0.00 | I61: 0.00 | J61: 0.00 | K61: 0.00 | L61: 0.00 | M61: 0.00 | N61: 0.00 | O61: 0.00 | P61: 0.00 | Q61: 0.00 | R61: 0.00 | S61: 0.00 | T61: 0.00 | X61: 0.00 | Y61: 0.00 | Z61: 0.00 | AA61: =G61*E61 -> 0 | AB61: =H61*E61 -> 0.00 | AC61: =I61*E61 -> 0.00 | AD61: =J61*E61 -> 0.00 | AE61: =K61*E61 -> 0.00 | AF61: =L61*E11 -> 0.00 | AG61: 0.00 | AH61: =N61*E61 -> 0.00 | AI61: =O61*E61 -> 0.00 | AJ61: =P61*E61 -> 0.00 | AK61: =Q61*E61 -> 0.00 | AL61: =R61*E61 -> 0.00 | AM61: =S61*E61 -> 0.00 | AN61: =T61*E61 -> 0.00 | AO61: =W61*E61 -> 0.00 | AP61: =X61*E61 -> 0.00 | AQ61: =Y61*E61 -> 0.00 | AR61: 0.00 | AS61: =+F61*Z61 -> 0.00
AG62: 0.00
A63: 1.12. | B63: Learners Stipend | C63: Sum | D63: 1 | E63: 75,000.00 | F63: =$D63*E63 -> 75,000.00 | G63: 0.00 | H63: 0.00 | I63: 0.00 | J63: 0.00 | K63: 0.00 | L63: 0.00 | M63: 0.00 | N63: 0.00 | O63: 0.00 | P63: 0.00 | Q63: 0.00 | R63: 0.00 | S63: 0.00 | T63: 0.00 | X63: 0.00 | Y63: 0.00 | Z63: 0.00 | AA63: =G63*E63 -> 0 | AB63: =H63*E63 -> 0.00 | AC63: =I63*E63 -> 0.00 | AD63: =J63*E63 -> 0.00 | AE63: =K63*E63 -> 0.00 | AF63: =L63*E13 -> 0.00 | AG63: 0.00 | AH63: =N63*E63 -> 0.00 | AI63: =O63*E63 -> 0.00 | AJ63: =P63*E63 -> 0.00 | AK63: =Q63*E63 -> 0.00 | AL63: =R63*E63 -> 0.00 | AM63: =S63*E63 -> 0.00 | AN63: =T63*E63 -> 0.00 | AO63: =W63*E63 -> 0.00 | AP63: =X63*E63 -> 0.00 | AQ63: =Y63*E63 -> 0.00 | AR63: 0.00 | AS63: =+E63*Z63 -> 0.00
AG64: 0.00
A65: 1.12.1 | B65: Contractor's Profit on the above amount | C65: % | E65: 0.10 | F65: =F63*E65 -> 7,500.00 | G65: 0.00 | H65: 0.00 | I65: 0.00 | J65: 0.00 | K65: 0.00 | L65: 0.00 | M65: 0.00 | N65: 0.00 | O65: 0.00 | P65: 0.00 | Q65: 0.00 | R65: 0.00 | S65: 0.00 | T65: 0.00 | X65: 0.00 | Y65: 0.00 | Z65: 0.00 | AA65: =G65*E65 -> 0 | AB65: =H65*E65 -> 0.00 | AC65: =I65*E65 -> 0.00 | AD65: =J65*E65 -> 0.00 | AE65: =K65*E65 -> 0.00 | AF65: =L65*E15 -> 0.00 | AG65: 0.00 | AH65: =N65*E65 -> 0.00 | AI65: =O65*E65 -> 0.00 | AJ65: =P65*E65 -> 0.00 | AK65: =Q65*E65 -> 0.00 | AL65: =R65*E65 -> 0.00 | AM65: =S65*E65 -> 0.00 | AN65: =T65*E65 -> 0.00 | AO65: =W65*E65 -> 0.00 | AP65: =X65*E65 -> 0.00 | AQ65: =Y65*E65 -> 0.00 | AR65: 0.00 | AS65: =+F65*Z65 -> 0.00
AG66: 0.00
A67: 1.13 | B67: SMME MANAGER | AG67: 0.00
AG68: 0.00
A69: 1.13.1 | B69: SMME Manager for all SMME Contracts as per Specification for the duration of the Project | C69: Sum | D69: 1 | E69: 320,000.00 | F69: =$D69*E69 -> 320,000.00 | G69: 0.00 | H69: 0.00 | I69: 0.00 | J69: 0.00 | K69: 0.00 | L69: 0.00 | M69: 0.00 | N69: 0.00 | O69: 0.00 | P69: 0.00 | Q69: 0.00 | R69: 0.00 | S69: 0.00 | T69: 0.00 | X69: 0.00 | Y69: 0.62 | Z69: =SUM(G69:Y69) -> 0.62 | AA69: =G69*E69 -> 0 | AB69: =H69*E69 -> 0.00 | AC69: =I69*E69 -> 0.00 | AD69: =J69*E69 -> 0.00 | AE69: =K69*E69 -> 0.00 | AF69: =L69*E19 -> 0.00 | AG69: 0.00 | AH69: =N69*E69 -> 0.00 | AI69: =O69*E69 -> 0.00 | AJ69: =P69*E69 -> 0.00 | AK69: =Q69*E69 -> 0.00 | AL69: =R69*E69 -> 0.00 | AM69: =S69*E69 -> 0.00 | AN69: =T69*E69 -> 0.00 | AO69: =W69*E69 -> 0.00 | AP69: =X69*E69 -> 0.00 | AQ69: =Y69*E69 -> 196,977.78 | AR69: 196,977.78 | AS69: =+E69*Z69 -> 196,977.78
B72: Amount Carried Forward to Summary Page | F72: =SUM(F53:F71) -> 18,102,500.00 | AS72: =SUM(AS53:AS71) -> 224,477.78
A74: MAIN HOSPITAL ELECTRICAL INSTALLATION
A75: CECILIA MAKIWANE HOSPITAL : PHASE 4C
A77: BILL NO. 2 : DISTRIBUTION BOARDS
A79: ITEM | B79: DESCRIPTION | C79: UNIT | D79: QTY | E79: RATE | F79: TENDER AMOUNT | G79: A-LV05 | H79: B-LV04 | I79: D-LV03 | J79: E1-LV03 | K79: E2 | L79: F1 | M79: F2 | N79: G1 | O79: G2 | P79: H1 | Q79: H2 | R79: J1 | S79: J2 | T79: J3 | V79: G/House | X79: N | Y79: Other | Z79: Total Qty | AA79: A | AB79: B | AC79: D | AD79: E1 | AE79: E2 | AF79: F1 | AG79: F2 | AH79: G1 | AI79: G2 | AJ79: H1 | AK79: H2 | AL79: J1 | AM79: J2 | AN79: J3 | AO79: K | AP79: N | AQ79: Other | AR79: Total Amount | AS79: Total Claimed
A82: 2.0. | B82: Distrubution Board
B83: Flush mounted Distribution Boards fitted into frames and Trays with Doors to Specification
A85: 2.10 | B85: Peadiatric Ward
B86: Supply | C86: each | D86: 1 | E86: 39,286.80 | F86: =E86*D86 -> 39,286.80 | G86: 1.00 | H86: 0.00 | I86: 0.00 | J86: 0.00 | K86: 0.00 | L86: 0.00 | M86: 0.00 | N86: 0.00 | O86: 0.00 | P86: 0.00 | Q86: 0.00 | R86: 0.00 | S86: 0.00 | T86: 0.00 | X86: 0.00 | Y86: 0.00 | Z86: =SUM(G86:Y86) -> 1.00 | AA86: =G86*E86 -> 39,287 | AB86: =H86*E86 -> 0 | AC86: =I86*E86 -> 0 | AD86: =J86*E86 -> 0 | AE86: =K86*E86 -> 0 | AF86: =L86*E86 -> 0 | AG86: =+M86*E86 -> 0 | AH86: =N86*E86 -> 0 | AI86: =O86*E86 -> 0 | AJ86: =P86*E86 -> 0 | AK86: =Q86*E86 -> 0 | AL86: =R86*E86 -> 0 | AM86: =S86*E86 -> 0 | AN86: =T86*E86 -> 0 | AO86: =W86*E86 -> 0 | AP86: =X86*E86 -> 0 | AQ86: =Y86*E86 -> 0 | AR86: =SUM(AA86:AQ86) -> 39,287 | AS86: =+E86*Z86 -> 39,286.80
B87: Install | C87: each | D87: 1 | E87: 3,929.00 | F87: =E87*D87 -> 3,929.00 | G87: 1.00 | H87: 0.00 | I87: 0.00 | J87: 0.00 | K87: 0.00 | L87: 0.00 | M87: 0.00 | N87: 0.00 | O87: 0.00 | P87: 0.00 | Q87: 0.00 | R87: 0.00 | S87: 0.00 | T87: 0.00 | X87: 0.00 | Y87: 0.00 | Z87: =SUM(G87:Y87) -> 1.00 | AA87: =G87*E87 -> 3,929 | AB87: =H87*E87 -> 0 | AC87: =I87*E87 -> 0 | AD87: =J87*E87 -> 0 | AE87: =K87*E87 -> 0 | AF87: =L87*E87 -> 0 | AG87: 0 | AH87: =N87*E87 -> 0 | AI87: =O87*E87 -> 0 | AJ87: =P87*E87 -> 0 | AK87: =Q87*E87 -> 0 | AL87: =R87*E87 -> 0 | AM87: =S87*E87 -> 0 | AN87: =T87*E87 -> 0 | AO87: =W87*E87 -> 0 | AP87: =X87*E87 -> 0 | AQ87: =Y87*E87 -> 0 | AR87: =SUM(AA87:AQ87) -> 3,929 | AS87: =+E87*Z87 -> 3,929.00
AG88: 0
A89: 2.20 | B89: Babies and Toddlers Ward | AG89: 0
B90: Supply | C90: each | D90: 1 | E90: 39,438.99 | F90: 39,438.99 | G90: 1.00 | H90: 0.00 | I90: 0.00 | J90: 0.00 | K90: 0.00 | L90: 0.00 | M90: 0.00 | N90: 0.00 | O90: 0.00 | P90: 0.00 | Q90: 0.00 | R90: 0.00 | S90: 0.00 | T90: 0.00 | X90: 0.00 | Y90: 0.00 | Z90: 1.00 | AA90: =G90*E90 -> 39,439 | AB90: =H90*E90 -> 0 | AC90: =I90*E90 -> 0 | AD90: =J90*E90 -> 0 | AE90: =K90*E90 -> 0 | AF90: =L90*E90 -> 0 | AG90: 0 | AH90: =N90*E90 -> 0 | AI90: =O90*E90 -> 0 | AJ90: =P90*E90 -> 0 | AK90: =Q90*E90 -> 0 | AL90: =R90*E90 -> 0 | AM90: =S90*E90 -> 0 | AN90: =T90*E90 -> 0 | AO90: =W90*E90 -> 0 | AP90: =X90*E90 -> 0 | AQ90: =Y90*E90 -> 0 | AR90: 39,439 | AS90: =+E90*Z90 -> 39,438.99
B91: Install | C91: each | D91: 1 | E91: 3,944.00 | F91: 3,944.00 | G91: 1.00 | H91: 0.00 | I91: 0.00 | J91: 0.00 | K91: 0.00 | L91: 0.00 | M91: 0.00 | N91: 0.00 | O91: 0.00 | P91: 0.00 | Q91: 0.00 | R91: 0.00 | S91: 0.00 | T91: 0.00 | X91: 0.00 | Y91: 0.00 | Z91: 1.00 | AA91: =G91*E91 -> 3,944 | AB91: =H91*E91 -> 0 | AC91: =I91*E91 -> 0 | AD91: =J91*E91 -> 0 | AE91: =K91*E91 -> 0 | AF91: =L91*E91 -> 0 | AG91: 0 | AH91: =N91*E91 -> 0 | AI91: =O91*E91 -> 0 | AJ91: =P91*E91 -> 0 | AK91: =Q91*E91 -> 0 | AL91: =R91*E91 -> 0 | AM91: =S91*E91 -> 0 | AN91: =T91*E91 -> 0 | AO91: =W91*E91 -> 0 | AP91: =X91*E91 -> 0 | AQ91: =Y91*E91 -> 0 | AR91: 3,944 | AS91: =+E91*Z91 -> 3,944.00
AG92: 0
A93: 2.30 | B93: Male Medical Ward - Block D | AG93: 0
B94: Supply | C94: each | D94: 1 | E94: 34,635.14 | F94: 34,635.14 | G94: 0.00 | H94: 0.00 | I94: 1.00 | J94: 0.00 | K94: 0.00 | L94: 0.00 | M94: 0.00 | N94: 0.00 | O94: 0.00 | P94: 0.00 | Q94: 0.00 | R94: 0.00 | S94: 0.00 | T94: 0.00 | X94: 0.00 | Y94: 0.00 | Z94: 1.00 | AA94: =G94*E94 -> 0 | AB94: =H94*E94 -> 0 | AC94: =I94*E94 -> 34,635 | AD94: =J94*E94 -> 0 | AE94: =K94*E94 -> 0 | AF94: =L94*E94 -> 0 | AG94: 0 | AH94: =N94*E94 -> 0 | AI94: =O94*E94 -> 0 | AJ94: =P94*E94 -> 0 | AK94: =Q94*E94 -> 0 | AL94: =R94*E94 -> 0 | AM94: =S94*E94 -> 0 | AN94: =T94*E94 -> 0 | AO94: =W94*E94 -> 0 | AP94: =X94*E94 -> 0 | AQ94: =Y94*E94 -> 0 | AR94: 34,635 | AS94: =+E94*Z94 -> 34,635.14
B95: Install | C95: each | D95: 1 | E95: 3,464.00 | F95: 3,464.00 | G95: 0.00 | H95: 0.00 | I95: 1.00 | J95: 0.00 | K95: 0.00 | L95: 0.00 | M95: 0.00 | N95: 0.00 | O95: 0.00 | P95: 0.00 | Q95: 0.00 | R95: 0.00 | S95: 0.00 | T95: 0.00 | X95: 0.00 | Y95: 0.00 | Z95: 1.00 | AA95: =G95*E95 -> 0 | AB95: =H95*E95 -> 0 | AC95: =I95*E95 -> 3,464 | AD95: =J95*E95 -> 0 | AE95: =K95*E95 -> 0 | AF95: =L95*E95 -> 0 | AG95: 0 | AH95: =N95*E95 -> 0 | AI95: =O95*E95 -> 0 | AJ95: =P95*E95 -> 0 | AK95: =Q95*E95 -> 0 | AL95: =R95*E95 -> 0 | AM95: =S95*E95 -> 0 | AN95: =T95*E95 -> 0 | AO95: =W95*E95 -> 0 | AP95: =X95*E95 -> 0 | AQ95: =Y95*E95 -> 0 | AR95: 3,464 | AS95: =+E95*Z95 -> 3,464.00
AG96: 0
A97: 2.40 | B97: Acute Psyciatric Unit Ward | AG97: 0
B98: Supply | C98: each | D98: 1 | E98: 19,184.41 | F98: 19,184.41 | G98: 0.00 | H98: 1.00 | I98: 0.00 | J98: 0.00 | K98: 0.00 | L98: 0.00 | M98: 0.00 | N98: 0.00 | O98: 0.00 | P98: 0.00 | Q98: 0.00 | R98: 0.00 | S98: 0.00 | T98: 0.00 | X98: 0.00 | Y98: 0.00 | Z98: 1.00 | AA98: =G98*E98 -> 0 | AB98: =H98*E98 -> 19,184 | AC98: =I98*E98 -> 0 | AD98: =J98*E98 -> 0 | AE98: =K98*E98 -> 0 | AF98: =L98*E98 -> 0 | AG98: 0 | AH98: =N98*E98 -> 0 | AI98: =O98*E98 -> 0 | AJ98: =P98*E98 -> 0 | AK98: =Q98*E98 -> 0 | AL98: =R98*E98 -> 0 | AM98: =S98*E98 -> 0 | AN98: =T98*E98 -> 0 | AO98: =W98*E98 -> 0 | AP98: =X98*E98 -> 0 | AQ98: =Y98*E98 -> 0 | AR98: 19,184 | AS98: =+E98*Z98 -> 19,184.41
B99: Install | C99: each | D99: 1 | E99: 1,919.00 | F99: 1,919.00 | G99: 0.00 | H99: 1.00 | I99: 0.00 | J99: 0.00 | K99: 0.00 | L99: 0.00 | M99: 0.00 | N99: 0.00 | O99: 0.00 | P99: 0.00 | Q99: 0.00 | R99: 0.00 | S99: 0.00 | T99: 0.00 | X99: 0.00 | Y99: 0.00 | Z99: 1.00 | AA99: =G99*E99 -> 0 | AB99: =H99*E99 -> 1,919 | AC99: =I99*E99 -> 0 | AD99: =J99*E99 -> 0 | AE99: =K99*E99 -> 0 | AF99: =L99*E99 -> 0 | AG99: 0 | AH99: =N99*E99 -> 0 | AI99: =O99*E99 -> 0 | AJ99: =P99*E99 -> 0 | AK99: =Q99*E99 -> 0 | AL99: =R99*E99 -> 0 | AM99: =S99*E99 -> 0 | AN99: =T99*E99 -> 0 | AO99: =W99*E99 -> 0 | AP99: =X99*E99 -> 0 | AQ99: =Y99*E99 -> 0 | AR99: 1,919 | AS99: =+E99*Z99 -> 1,919.00
AG100: 0
A101: 2.50 | B101: Female Medical No1 Ward | AG101: 0
B102: Supply | C102: each | D102: 1 | E102: 40,020.42 | F102: 40,020.42 | G102: 0.00 | H102: 0.00 | I102: 1.00 | J102: 0.00 | K102: 0.00 | L102: 0.00 | M102: 0.00 | N102: 0.00 | O102: 0.00 | P102: 0.00 | Q102: 0.00 | R102: 0.00 | S102: 0.00 | T102: 0.00 | X102: 0.00 | Y102: 0.00 | Z102: 1.00 | AA102: =G102*E102 -> 0 | AB102: =H102*E102 -> 0 | AC102: =I102*E102 -> 40,020 | AD102: =J102*E102 -> 0 | AE102: =K102*E102 -> 0 | AF102: =L102*E102 -> 0 | AG102: 0 | AH102: =N102*E102 -> 0 | AI102: =O102*E102 -> 0 | AJ102: =P102*E102 -> 0 | AK102: =Q102*E102 -> 0 | AL102: =R102*E102 -> 0 | AM102: =S102*E102 -> 0 | AN102: =T102*E102 -> 0 | AO102: =W102*E102 -> 0 | AP102: =X102*E102 -> 0 | AQ102: =Y102*E102 -> 0 | AR102: 40,020 | AS102: =+E102*Z102 -> 40,020.42
B103: Install | C103: each | D103: 1 | E103: 4,003.00 | F103: 4,003.00 | G103: 0.00 | H103: 0.00 | I103: 1.00 | J103: 0.00 | K103: 0.00 | L103: 0.00 | M103: 0.00 | N103: 0.00 | O103: 0.00 | P103: 0.00 | Q103: 0.00 | R103: 0.00 | S103: 0.00 | T103: 0.00 | X103: 0.00 | Y103: 0.00 | Z103: 1.00 | AA103: =G103*E103 -> 0 | AB103: =H103*E103 -> 0 | AC103: =I103*E103 -> 4,003 | AD103: =J103*E103 -> 0 | AE103: =K103*E103 -> 0 | AF103: =L103*E103 -> 0 | AG103: 0 | AH103: =N103*E103 -> 0 | AI103: =O103*E103 -> 0 | AJ103: =P103*E103 -> 0 | AK103: =Q103*E103 -> 0 | AL103: =R103*E103 -> 0 | AM103: =S103*E103 -> 0 | AN103: =T103*E103 -> 0 | AO103: =W103*E103 -> 0 | AP103: =X103*E103 -> 0 | AQ103: =Y103*E103 -> 0 | AR103: 4,003 | AS103: =+E103*Z103 -> 4,003.00
AG104: 0
A105: 2.60 | B105: Female Medical No2 Ward | AG105: 0
B106: Supply | C106: each | D106: 1 | E106: 40,020.42 | F106: 40,020.42 | G106: 0.00 | H106: 0.00 | I106: 1.00 | J106: 0.00 | K106: 0.00 | L106: 0.00 | M106: 0.00 | N106: 0.00 | O106: 0.00 | P106: 0.00 | Q106: 0.00 | R106: 0.00 | S106: 0.00 | T106: 0.00 | X106: 0.00 | Y106: 0.00 | Z106: 1.00 | AA106: =G106*E106 -> 0 | AB106: =H106*E106 -> 0 | AC106: =I106*E106 -> 40,020 | AD106: =J106*E106 -> 0 | AE106: =K106*E106 -> 0 | AF106: =L106*E106 -> 0 | AG106: 0 | AH106: =N106*E106 -> 0 | AI106: =O106*E106 -> 0 | AJ106: =P106*E106 -> 0 | AK106: =Q106*E106 -> 0 | AL106: =R106*E106 -> 0 | AM106: =S106*E106 -> 0 | AN106: =T106*E106 -> 0 | AO106: =W106*E106 -> 0 | AP106: =X106*E106 -> 0 | AQ106: =Y106*E106 -> 0 | AR106: 40,020 | AS106: =+E106*Z106 -> 40,020.42
B107: Install | C107: each | D107: 1 | E107: 4,003.00 | F107: 4,003.00 | G107: 0.00 | H107: 0.00 | I107: 1.00 | J107: 0.00 | K107: 0.00 | L107: 0.00 | M107: 0.00 | N107: 0.00 | O107: 0.00 | P107: 0.00 | Q107: 0.00 | R107: 0.00 | S107: 0.00 | T107: 0.00 | X107: 0.00 | Y107: 0.00 | Z107: 1.00 | AA107: =G107*E107 -> 0 | AB107: =H107*E107 -> 0 | AC107: =I107*E107 -> 4,003 | AD107: =J107*E107 -> 0 | AE107: =K107*E107 -> 0 | AF107: =L107*E107 -> 0 | AG107: 0 | AH107: =N107*E107 -> 0 | AI107: =O107*E107 -> 0 | AJ107: =P107*E107 -> 0 | AK107: =Q107*E107 -> 0 | AL107: =R107*E107 -> 0 | AM107: =S107*E107 -> 0 | AN107: =T107*E107 -> 0 | AO107: =W107*E107 -> 0 | AP107: =X107*E107 -> 0 | AQ107: =Y107*E107 -> 0 | AR107: 4,003 | AS107: =+E107*Z107 -> 4,003.00
AG108: 0
A109: 2.70 | B109: Rehab / Stepdown Ward | AG109: 0
B110: Supply | C110: each | D110: 1 | E110: 39,305.55 | F110: 39,305.55 | G110: 0.00 | H110: 0.00 | I110: 1.00 | J110: 0.00 | K110: 0.00 | L110: 0.00 | M110: 0.00 | N110: 0.00 | O110: 0.00 | P110: 0.00 | Q110: 0.00 | R110: 0.00 | S110: 0.00 | T110: 0.00 | X110: 0.00 | Y110: 0.00 | Z110: 1.00 | AA110: =G110*E110 -> 0 | AB110: =H110*E110 -> 0 | AC110: =I110*E110 -> 39,306 | AD110: =J110*E110 -> 0 | AE110: =K110*E110 -> 0 | AF110: =L110*E110 -> 0 | AG110: 0 | AH110: =N110*E110 -> 0 | AI110: =O110*E110 -> 0 | AJ110: =P110*E110 -> 0 | AK110: =Q110*E110 -> 0 | AL110: =R110*E110 -> 0 | AM110: =S110*E110 -> 0 | AN110: =T110*E110 -> 0 | AO110: =W110*E110 -> 0 | AP110: =X110*E110 -> 0 | AQ110: =Y110*E110 -> 0 | AR110: 39,306 | AS110: =+E110*Z110 -> 39,305.55
B111: Install | C111: each | D111: 1 | E111: 3,931.00 | F111: 3,931.00 | G111: 0.00 | H111: 0.00 | I111: 1.00 | J111: 0.00 | K111: 0.00 | L111: 0.00 | M111: 0.00 | N111: 0.00 | O111: 0.00 | P111: 0.00 | Q111: 0.00 | R111: 0.00 | S111: 0.00 | T111: 0.00 | X111: 0.00 | Y111: 0.00 | Z111: 1.00 | AA111: =G111*E111 -> 0 | AB111: =H111*E111 -> 0 | AC111: =I111*E111 -> 3,931 | AD111: =J111*E111 -> 0 | AE111: =K111*E111 -> 0 | AF111: =L111*E111 -> 0 | AG111: 0 | AH111: =N111*E111 -> 0 | AI111: =O111*E111 -> 0 | AJ111: =P111*E111 -> 0 | AK111: =Q111*E111 -> 0 | AL111: =R111*E111 -> 0 | AM111: =S111*E111 -> 0 | AN111: =T111*E111 -> 0 | AO111: =W111*E111 -> 0 | AP111: =X111*E111 -> 0 | AQ111: =Y111*E111 -> 0 | AR111: 3,931 | AS111: =+E111*Z111 -> 3,931.00
AG112: 0
A113: 2.80 | B113: Female Surgical Ward No1 | AG113: 0
B114: Supply | C114: each | D114: 1 | E114: 25,541.19 | F114: 25,541.19 | G114: 1.00 | H114: 0.00 | I114: 0.00 | J114: 0.00 | K114: 0.00 | L114: 0.00 | M114: 0.00 | N114: 0.00 | O114: 0.00 | P114: 0.00 | Q114: 0.00 | R114: 0.00 | S114: 0.00 | T114: 0.00 | X114: 0.00 | Y114: 0.00 | Z114: 1.00 | AA114: =G114*E114 -> 25,541 | AB114: =H114*E114 -> 0 | AC114: =I114*E114 -> 0 | AD114: =J114*E114 -> 0 | AE114: =K114*E114 -> 0 | AF114: =L114*E114 -> 0 | AG114: 0 | AH114: =N114*E114 -> 0 | AI114: =O114*E114 -> 0 | AJ114: =P114*E114 -> 0 | AK114: =Q114*E114 -> 0 | AL114: =R114*E114 -> 0 | AM114: =S114*E114 -> 0 | AN114: =T114*E114 -> 0 | AO114: =W114*E114 -> 0 | AP114: =X114*E114 -> 0 | AQ114: =Y114*E114 -> 0 | AR114: 25,541 | AS114: =+E114*Z114 -> 25,541.19
B115: Install | C115: each | D115: 1 | E115: 2,555.00 | F115: 2,555.00 | G115: 1.00 | H115: 0.00 | I115: 0.00 | J115: 0.00 | K115: 0.00 | L115: 0.00 | M115: 0.00 | N115: 0.00 | O115: 0.00 | P115: 0.00 | Q115: 0.00 | R115: 0.00 | S115: 0.00 | T115: 0.00 | X115: 0.00 | Y115: 0.00 | Z115: 1.00 | AA115: =G115*E115 -> 2,555 | AB115: =H115*E115 -> 0 | AC115: =I115*E115 -> 0 | AD115: =J115*E115 -> 0 | AE115: =K115*E115 -> 0 | AF115: =L115*E115 -> 0 | AG115: 0 | AH115: =N115*E115 -> 0 | AI115: =O115*E115 -> 0 | AJ115: =P115*E115 -> 0 | AK115: =Q115*E115 -> 0 | AL115: =R115*E115 -> 0 | AM115: =S115*E115 -> 0 | AN115: =T115*E115 -> 0 | AO115: =W115*E115 -> 0 | AP115: =X115*E115 -> 0 | AQ115: =Y115*E115 -> 0 | AR115: 2,555 | AS115: =+E115*Z115 -> 2,555.00
AG116: 0
A117: 2.90 | B117: Female Surgical Ward No 2 | AG117: 0
B118: Supply | C118: each | D118: 1 | E118: 26,841.97 | F118: 26,841.97 | G118: 1.00 | H118: 0.00 | I118: 0.00 | J118: 0.00 | K118: 0.00 | L118: 0.00 | M118: 0.00 | N118: 0.00 | O118: 0.00 | P118: 0.00 | Q118: 0.00 | R118: 0.00 | S118: 0.00 | T118: 0.00 | X118: 0.00 | Y118: 0.00 | Z118: 1.00 | AA118: =G118*E118 -> 26,842 | AB118: =H118*E118 -> 0 | AC118: =I118*E118 -> 0 | AD118: =J118*E118 -> 0 | AE118: =K118*E118 -> 0 | AF118: =L118*E118 -> 0 | AG118: =+M118*E118 -> 0 | AH118: =N118*E118 -> 0 | AI118: =O118*E118 -> 0 | AJ118: =P118*E118 -> 0 | AK118: =Q118*E118 -> 0 | AL118: =R118*E118 -> 0 | AM118: =S118*E118 -> 0 | AN118: =T118*E118 -> 0 | AO118: =W118*E118 -> 0 | AP118: =X118*E118 -> 0 | AQ118: =Y118*E118 -> 0 | AR118: 26,842 | AS118: =+E118*Z118 -> 26,841.97
B119: Install | C119: each | D119: 1 | E119: 2,685.00 | F119: 2,685.00 | G119: 1.00 | H119: 0.00 | I119: 0.00 | J119: 0.00 | K119: 0.00 | L119: 0.00 | M119: 0.00 | N119: 0.00 | O119: 0.00 | P119: 0.00 | Q119: 0.00 | R119: 0.00 | S119: 0.00 | T119: 0.00 | X119: 0.00 | Y119: 0.00 | Z119: 1.00 | AA119: =G119*E119 -> 2,685 | AB119: =H119*E119 -> 0 | AC119: =I119*E119 -> 0 | AD119: =J119*E119 -> 0 | AE119: =K119*E119 -> 0 | AF119: =L119*E119 -> 0 | AG119: 0 | AH119: =N119*E119 -> 0 | AI119: =O119*E119 -> 0 | AJ119: =P119*E119 -> 0 | AK119: =Q119*E119 -> 0 | AL119: =R119*E119 -> 0 | AM119: =S119*E119 -> 0 | AN119: =T119*E119 -> 0 | AO119: =W119*E119 -> 0 | AP119: =X119*E119 -> 0 | AQ119: =Y119*E119 -> 0 | AR119: 2,685 | AS119: =+E119*Z119 -> 2,685.00
AG120: 0
A121: 2.10 | B121: Male Surgical Ward No 1 | AG121: 0
B122: Supply | C122: each | D122: 1 | E122: 25,838.15 | F122: 25,838.15 | G122: 0.00 | H122: 1.00 | I122: 0.00 | J122: 0.00 | K122: 0.00 | L122: 0.00 | M122: 0.00 | N122: 0.00 | O122: 0.00 | P122: 0.00 | Q122: 0.00 | R122: 0.00 | S122: 0.00 | T122: 0.00 | X122: 0.00 | Y122: 0.00 | Z122: 1.00 | AA122: =G122*E122 -> 0 | AB122: =H122*E122 -> 25,838 | AC122: =I122*E122 -> 0 | AD122: =J122*E122 -> 0 | AE122: =K122*E122 -> 0 | AF122: =L122*E122 -> 0 | AG122: 0 | AH122: =N122*E122 -> 0 | AI122: =O122*E122 -> 0 | AJ122: =P122*E122 -> 0 | AK122: =Q122*E122 -> 0 | AL122: =R122*E122 -> 0 | AM122: =S122*E122 -> 0 | AN122: =T122*E122 -> 0 | AO122: =W122*E122 -> 0 | AP122: =X122*E122 -> 0 | AQ122: =Y122*E122 -> 0 | AR122: 25,838 | AS122: =+E122*Z122 -> 25,838.15
B123: Install | C123: each | D123: 1 | E123: 2,584.00 | F123: 2,584.00 | G123: 0.00 | H123: 1.00 | I123: 0.00 | J123: 0.00 | K123: 0.00 | L123: 0.00 | M123: 0.00 | N123: 0.00 | O123: 0.00 | P123: 0.00 | Q123: 0.00 | R123: 0.00 | S123: 0.00 | T123: 0.00 | X123: 0.00 | Y123: 0.00 | Z123: 1.00 | AA123: =G123*E123 -> 0 | AB123: =H123*E123 -> 2,584 | AC123: =I123*E123 -> 0 | AD123: =J123*E123 -> 0 | AE123: =K123*E123 -> 0 | AF123: =L123*E123 -> 0 | AG123: 0 | AH123: =N123*E123 -> 0 | AI123: =O123*E123 -> 0 | AJ123: =P123*E123 -> 0 | AK123: =Q123*E123 -> 0 | AL123: =R123*E123 -> 0 | AM123: =S123*E123 -> 0 | AN123: =T123*E123 -> 0 | AO123: =W123*E123 -> 0 | AP123: =X123*E123 -> 0 | AQ123: =Y123*E123 -> 0 | AR123: 2,584 | AS123: =+E123*Z123 -> 2,584.00
AG124: 0
A125: 2.11 | B125: Male Surgical Ward No 2 | AG125: 0
B126: Supply | C126: each | D126: 1 | E126: 26,662.65 | F126: =E126*D126 -> 26,662.65 | G126: 0.00 | H126: 1.00 | I126: 0.00 | J126: 0.00 | K126: 0.00 | L126: 0.00 | M126: 0.00 | N126: 0.00 | O126: 0.00 | P126: 0.00 | Q126: 0.00 | R126: 0.00 | S126: 0.00 | T126: 0.00 | X126: 0.00 | Y126: 0.00 | Z126: 1.00 | AA126: =G126*E126 -> 0 | AB126: =H126*E126 -> 26,663 | AC126: =I126*E126 -> 0 | AD126: =J126*E126 -> 0 | AE126: =K126*E126 -> 0 | AF126: =L126*E126 -> 0 | AG126: 0 | AH126: =N126*E126 -> 0 | AI126: =O126*E126 -> 0 | AJ126: =P126*E126 -> 0 | AK126: =Q126*E126 -> 0 | AL126: =R126*E126 -> 0 | AM126: =S126*E126 -> 0 | AN126: =T126*E126 -> 0 | AO126: =W126*E126 -> 0 | AP126: =X126*E126 -> 0 | AQ126: =Y126*E126 -> 0 | AR126: 26,663 | AS126: =+E126*Z126 -> 26,662.65
B127: Install | C127: each | D127: 1 | E127: 2,667.00 | F127: 2,667.00 | G127: 0.00 | H127: 1.00 | I127: 0.00 | J127: 0.00 | K127: 0.00 | L127: 0.00 | M127: 0.00 | N127: 0.00 | O127: 0.00 | P127: 0.00 | Q127: 0.00 | R127: 0.00 | S127: 0.00 | T127: 0.00 | X127: 0.00 | Y127: 0.00 | Z127: 1.00 | AA127: =G127*E127 -> 0 | AB127: =H127*E127 -> 2,667 | AC127: =I127*E127 -> 0 | AD127: =J127*E127 -> 0 | AE127: =K127*E127 -> 0 | AF127: =L127*E127 -> 0 | AG127: 0 | AH127: =N127*E127 -> 0 | AI127: =O127*E127 -> 0 | AJ127: =P127*E127 -> 0 | AK127: =Q127*E127 -> 0 | AL127: =R127*E127 -> 0 | AM127: =S127*E127 -> 0 | AN127: =T127*E127 -> 0 | AO127: =W127*E127 -> 0 | AP127: =X127*E127 -> 0 | AQ127: =Y127*E127 -> 0 | AR127: 2,667 | AS127: =+E127*Z127 -> 2,667.00
AG128: 0
A129: 2.12 | B129: Female Medical Ward | AG129: 0
B130: Supply | C130: each | D130: 1 | E130: 27,180.07 | F130: 27,180.07 | G130: 0.00 | H130: 1.00 | I130: 0.00 | J130: 0.00 | K130: 0.00 | L130: 0.00 | M130: 0.00 | N130: 0.00 | O130: 0.00 | P130: 0.00 | Q130: 0.00 | R130: 0.00 | S130: 0.00 | T130: 0.00 | X130: 0.00 | Y130: 0.00 | Z130: 1.00 | AA130: =G130*E130 -> 0 | AB130: =H130*E130 -> 27,180 | AC130: =I130*E130 -> 0 | AD130: =J130*E130 -> 0 | AE130: =K130*E130 -> 0 | AF130: =L130*E130 -> 0 | AG130: 0 | AH130: =N130*E130 -> 0 | AI130: =O130*E130 -> 0 | AJ130: =P130*E130 -> 0 | AK130: =Q130*E130 -> 0 | AL130: =R130*E130 -> 0 | AM130: =S130*E130 -> 0 | AN130: =T130*E130 -> 0 | AO130: =W130*E130 -> 0 | AP130: =X130*E130 -> 0 | AQ130: =Y130*E130 -> 0 | AR130: 27,180 | AS130: =+E130*Z130 -> 27,180.07
B131: Install | C131: each | D131: 1 | E131: 2,719.00 | F131: 2,719.00 | G131: 0.00 | H131: 1.00 | I131: 0.00 | J131: 0.00 | K131: 0.00 | L131: 0.00 | M131: 0.00 | N131: 0.00 | O131: 0.00 | P131: 0.00 | Q131: 0.00 | R131: 0.00 | S131: 0.00 | T131: 0.00 | X131: 0.00 | Y131: 0.00 | Z131: 1.00 | AA131: =G131*E131 -> 0 | AB131: =H131*E131 -> 2,719 | AC131: =I131*E131 -> 0 | AD131: =J131*E131 -> 0 | AE131: =K131*E131 -> 0 | AF131: =L131*E131 -> 0 | AG131: 0 | AH131: =N131*E131 -> 0 | AI131: =O131*E131 -> 0 | AJ131: =P131*E131 -> 0 | AK131: =Q131*E131 -> 0 | AL131: =R131*E131 -> 0 | AM131: =S131*E131 -> 0 | AN131: =T131*E131 -> 0 | AO131: =W131*E131 -> 0 | AP131: =X131*E131 -> 0 | AQ131: =Y131*E131 -> 0 | AR131: 2,719 | AS131: =+E131*Z131 -> 2,719.00
AG132: 0
A133: 2.13 | B133: Male Medical Ward - Block B | AG133: 0
B134: Supply | C134: each | D134: 1 | E134: 24,680.15 | F134: 24,680.15 | G134: 0.00 | H134: 1.00 | I134: 0.00 | J134: 0.00 | K134: 0.00 | L134: 0.00 | M134: 0.00 | N134: 0.00 | O134: 0.00 | P134: 0.00 | Q134: 0.00 | R134: 0.00 | S134: 0.00 | T134: 0.00 | X134: 0.00 | Y134: 0.00 | Z134: 1.00 | AA134: =G134*E134 -> 0 | AB134: =H134*E134 -> 24,680 | AC134: =I134*E134 -> 0 | AD134: =J134*E134 -> 0 | AE134: =K134*E134 -> 0 | AF134: =L134*E134 -> 0 | AG134: 0 | AH134: =N134*E134 -> 0 | AI134: =O134*E134 -> 0 | AJ134: =P134*E134 -> 0 | AK134: =Q134*E134 -> 0 | AL134: =R134*E134 -> 0 | AM134: =S134*E134 -> 0 | AN134: =T134*E134 -> 0 | AO134: =W134*E134 -> 0 | AP134: =X134*E134 -> 0 | AQ134: =Y134*E134 -> 0 | AR134: 24,680 | AS134: =+E134*Z134 -> 24,680.15
B135: Install | C135: each | D135: 1 | E135: 2,469.00 | F135: 2,469.00 | G135: 0.00 | H135: 1.00 | I135: 0.00 | J135: 0.00 | K135: 0.00 | L135: 0.00 | M135: 0.00 | N135: 0.00 | O135: 0.00 | P135: 0.00 | Q135: 0.00 | R135: 0.00 | S135: 0.00 | T135: 0.00 | X135: 0.00 | Y135: 0.00 | Z135: 1.00 | AA135: =G135*E135 -> 0 | AB135: =H135*E135 -> 2,469 | AC135: =I135*E135 -> 0 | AD135: =J135*E135 -> 0 | AE135: =K135*E135 -> 0 | AF135: =L135*E135 -> 0 | AG135: 0 | AH135: =N135*E135 -> 0 | AI135: =O135*E135 -> 0 | AJ135: =P135*E135 -> 0 | AK135: =Q135*E135 -> 0 | AL135: =R135*E135 -> 0 | AM135: =S135*E135 -> 0 | AN135: =T135*E135 -> 0 | AO135: =W135*E135 -> 0 | AP135: =X135*E135 -> 0 | AQ135: =Y135*E135 -> 0 | AR135: =SUM(AA135:AQ135) -> 2,469 | AS135: =+E135*Z135 -> 2,469.00
B139: Amount Carried Forward | F139: =SUM(F81:F138) -> 449,507.91 | AS139: =SUM(AS81:AS138) -> 449,507.91
A141: MAIN HOSPITAL ELECTRICAL INSTALLATION
A142: CECILIA MAKIWANE HOSPITAL : PHASE 4C
A144: BILL NO. 2 : DISTRIBUTION BOARDS
A145: ITEM | B145: DESCRIPTION | C145: UNIT | D145: QTY | E145: RATE | F145: TENDER AMOUNT | G145: A-LV05 | H145: B-LV04 | I145: D-LV03 | J145: E1-LV03 | K145: E2 | L145: F1 | M145: F2 | N145: G1 | O145: G2 | P145: H1 | Q145: H2 | R145: J1 | S145: J2 | T145: J3 | V145: G/House | X145: N | Y145: Other | Z145: Total Qty | AA145: A | AB145: B | AC145: D | AD145: E1 | AE145: E2 | AF145: F1 | AG145: F2 | AH145: G1 | AI145: G2 | AJ145: H1 | AK145: H2 | AL145: J1 | AM145: J2 | AN145: J3 | AO145: K | AP145: N | AQ145: Other | AR145: Total Amount | AS145: Total Claimed
B146: AMOUNT CARRIED FORWARD FROM PREVIOUS BILL | F146: =F139 -> 449,507.91 | AS146: =AS139 -> 449,507.91
A149: 2.14 | B149: Delivery Ward
B150: Supply | C150: each | D150: 1 | E150: 29,249.98 | F150: =$D150*E150 -> 29,249.98 | G150: 0.00 | H150: 0.00 | I150: 0.00 | J150: 0.00 | K150: 0.00 | L150: 0.00 | M150: 0.00 | N150: 0.00 | O150: 0.00 | P150: 0.00 | Q150: 0.00 | R150: 0.00 | S150: 0.00 | T150: 0.00 | X150: 0.00 | Y150: 0.00 | Z150: =SUM(G150:Y150) -> 0.00 | AA150: =G150*E150 -> 0 | AB150: =H150*E150 -> 0 | AC150: =I150*E150 -> 0 | AD150: =J150*E150 -> 0 | AE150: =K150*E150 -> 0 | AF150: =L150*E150 -> 0 | AG150: =+M150*E150 -> 0 | AH150: =N150*E150 -> 0 | AI150: =O150*E150 -> 0 | AJ150: =P150*E150 -> 0 | AK150: =Q150*E150 -> 0 | AL150: =R150*E150 -> 0 | AM150: =S150*E150 -> 0 | AN150: =T150*E150 -> 0 | AO150: =W150*E150 -> 0 | AP150: =X150*E150 -> 0 | AQ150: =Y150*E150 -> 0 | AR150: =SUM(AA150:AQ150) -> 0 | AS150: =+E150*Z150 -> 0.00
B151: Install | C151: each | D151: 1 | E151: 2,925.00 | F151: =$D151*E151 -> 2,925.00 | G151: 0.00 | H151: 0.00 | I151: 0.00 | J151: 0.00 | K151: 0.00 | L151: 0.00 | M151: 0.00 | N151: 0.00 | O151: 0.00 | P151: 0.00 | Q151: 0.00 | R151: 0.00 | S151: 0.00 | T151: 0.00 | X151: 0.00 | Y151: 0.00 | Z151: =SUM(G151:Y151) -> 0.00 | AA151: =G151*E151 -> 0 | AB151: =H151*E151 -> 0 | AC151: =I151*E151 -> 0 | AD151: =J151*E151 -> 0 | AE151: =K151*E151 -> 0 | AF151: =L151*E151 -> 0 | AG151: 0 | AH151: =N151*E151 -> 0 | AI151: =O151*E151 -> 0 | AJ151: =P151*E151 -> 0 | AK151: =Q151*E151 -> 0 | AL151: =R151*E151 -> 0 | AM151: =S151*E151 -> 0 | AN151: =T151*E151 -> 0 | AO151: =W151*E151 -> 0 | AP151: =X151*E151 -> 0 | AQ151: =Y151*E151 -> 0 | AR151: =SUM(AA151:AQ151) -> 0 | AS151: =+E151*Z151 -> 0.00
AG152: 0
A153: 2.15 | B153: Antenatal Ward | AG153: 0
B154: Supply | C154: each | D154: 1 | E154: 20,787.62 | F154: =$D154*E154 -> 20,787.62 | G154: 0.00 | H154: 0.00 | I154: 0.00 | J154: 0.00 | K154: 0.00 | L154: 0.00 | M154: 0.00 | N154: 0.00 | O154: 0.00 | P154: 0.00 | Q154: 0.00 | R154: 0.00 | S154: 0.00 | T154: 0.00 | X154: 0.00 | Y154: 0.00 | Z154: 0.00 | AA154: =G154*E154 -> 0 | AB154: =H154*E154 -> 0 | AC154: =I154*E154 -> 0 | AD154: =J154*E154 -> 0 | AE154: =K154*E154 -> 0 | AF154: =L154*E154 -> 0 | AG154: 0 | AH154: =N154*E154 -> 0 | AI154: =O154*E154 -> 0 | AJ154: =P154*E154 -> 0 | AK154: =Q154*E154 -> 0 | AL154: =R154*E154 -> 0 | AM154: =S154*E154 -> 0 | AN154: =T154*E154 -> 0 | AO154: =W154*E154 -> 0 | AP154: =X154*E154 -> 0 | AQ154: =Y154*E154 -> 0 | AR154: 0 | AS154: =+E154*Z154 -> 0.00
B155: Install | C155: each | D155: 1 | E155: 2,079.00 | F155: 2,079.00 | G155: 0.00 | H155: 0.00 | I155: 0.00 | J155: 0.00 | K155: 0.00 | L155: 0.00 | M155: 0.00 | N155: 0.00 | O155: 0.00 | P155: 0.00 | Q155: 0.00 | R155: 0.00 | S155: 0.00 | T155: 0.00 | X155: 0.00 | Y155: 0.00 | Z155: 0.00 | AA155: =G155*E155 -> 0 | AB155: =H155*E155 -> 0 | AC155: =I155*E155 -> 0 | AD155: =J155*E155 -> 0 | AE155: =K155*E155 -> 0 | AF155: =L155*E155 -> 0 | AG155: 0 | AH155: =N155*E155 -> 0 | AI155: =O155*E155 -> 0 | AJ155: =P155*E155 -> 0 | AK155: =Q155*E155 -> 0 | AL155: =R155*E155 -> 0 | AM155: =S155*E155 -> 0 | AN155: =T155*E155 -> 0 | AO155: =W155*E155 -> 0 | AP155: =X155*E155 -> 0 | AQ155: =Y155*E155 -> 0 | AR155: 0 | AS155: =+E155*Z155 -> 0.00
AG156: 0
A157: 2.16 | B157: Neonatal Ward | AG157: 0
B158: Supply | C158: each | D158: 1 | E158: 42,850.58 | F158: 42,850.58 | G158: 0.00 | H158: 0.00 | I158: 0.00 | J158: 0.00 | K158: 0.00 | L158: 0.00 | M158: 0.00 | N158: 0.00 | O158: 0.00 | P158: 0.00 | Q158: 0.00 | R158: 0.00 | S158: 0.00 | T158: 0.00 | X158: 0.00 | Y158: 0.00 | Z158: 0.00 | AA158: =G158*E158 -> 0 | AB158: =H158*E158 -> 0 | AC158: =I158*E158 -> 0 | AD158: =J158*E158 -> 0 | AE158: =K158*E158 -> 0 | AF158: =L158*E158 -> 0 | AG158: 0 | AH158: =N158*E158 -> 0 | AI158: =O158*E158 -> 0 | AJ158: =P158*E158 -> 0 | AK158: =Q158*E158 -> 0 | AL158: =R158*E158 -> 0 | AM158: =S158*E158 -> 0 | AN158: =T158*E158 -> 0 | AO158: =W158*E158 -> 0 | AP158: =X158*E158 -> 0 | AQ158: =Y158*E158 -> 0 | AR158: 0 | AS158: =+E158*Z158 -> 0.00
B159: Install | C159: each | D159: 1 | E159: 4,286.00 | F159: 4,286.00 | G159: 0.00 | H159: 0.00 | I159: 0.00 | J159: 0.00 | K159: 0.00 | L159: 0.00 | M159: 0.00 | N159: 0.00 | O159: 0.00 | P159: 0.00 | Q159: 0.00 | R159: 0.00 | S159: 0.00 | T159: 0.00 | X159: 0.00 | Y159: 0.00 | Z159: 0.00 | AA159: =G159*E159 -> 0 | AB159: =H159*E159 -> 0 | AC159: =I159*E159 -> 0 | AD159: =J159*E159 -> 0 | AE159: =K159*E159 -> 0 | AF159: =L159*E159 -> 0 | AG159: 0 | AH159: =N159*E159 -> 0 | AI159: =O159*E159 -> 0 | AJ159: =P159*E159 -> 0 | AK159: =Q159*E159 -> 0 | AL159: =R159*E159 -> 0 | AM159: =S159*E159 -> 0 | AN159: =T159*E159 -> 0 | AO159: =W159*E159 -> 0 | AP159: =X159*E159 -> 0 | AQ159: =Y159*E159 -> 0 | AR159: 0 | AS159: =+E159*Z159 -> 0.00
AG160: 0
A161: 2.17 | B161: Main Dist Board 5 CSSD | AG161: 0
B162: Supply | C162: each | D162: 1 | E162: 86,988.30 | F162: 86,988.30 | G162: 0.00 | H162: 0.00 | I162: 0.00 | J162: 0.00 | K162: 0.00 | L162: 0.00 | M162: 0.00 | N162: 0.00 | O162: 0.00 | P162: 1.00 | Q162: 0.00 | R162: 0.00 | S162: 0.00 | T162: 0.00 | X162: 0.00 | Y162: 0.00 | Z162: 1.00 | AA162: =G162*E162 -> 0 | AB162: =H162*E162 -> 0 | AC162: =I162*E162 -> 0 | AD162: =J162*E162 -> 0 | AE162: =K162*E162 -> 0 | AF162: =L162*E162 -> 0 | AG162: 0 | AH162: =N162*E162 -> 0 | AI162: =O162*E162 -> 0 | AJ162: =P162*E162 -> 86,988 | AK162: =Q162*E162 -> 0 | AL162: =R162*E162 -> 0 | AM162: =S162*E162 -> 0 | AN162: =T162*E162 -> 0 | AO162: =W162*E162 -> 0 | AP162: =X162*E162 -> 0 | AQ162: =Y162*E162 -> 0 | AR162: 86,988 | AS162: =+E162*Z162 -> 86,988.30
B163: Install | C163: each | D163: 1 | E163: 6,525.00 | F163: 6,525.00 | G163: 0.00 | H163: 0.00 | I163: 0.00 | J163: 0.00 | K163: 0.00 | L163: 0.00 | M163: 0.00 | N163: 0.00 | O163: 0.00 | P163: 0.00 | Q163: 0.00 | R163: 0.00 | S163: 0.00 | T163: 0.00 | X163: 0.00 | Y163: 1.00 | Z163: 1.00 | AA163: =G163*E163 -> 0 | AB163: =H163*E163 -> 0 | AC163: =I163*E163 -> 0 | AD163: =J163*E163 -> 0 | AE163: =K163*E163 -> 0 | AF163: =L163*E163 -> 0 | AG163: 0 | AH163: =N163*E163 -> 0 | AI163: =O163*E163 -> 0 | AJ163: =P163*E163 -> 0 | AK163: =Q163*E163 -> 0 | AL163: =R163*E163 -> 0 | AM163: =S163*E163 -> 0 | AN163: =T163*E163 -> 0 | AO163: =W163*E163 -> 0 | AP163: =X163*E163 -> 0 | AQ163: =Y163*E163 -> 6,525 | AR163: 6,525 | AS163: =+E163*Z163 -> 6,525.00
AG164: 0
A165: 2.18 | B165: Post Natal Wards | AG165: 0
B166: Supply | C166: each | D166: 1 | E166: 25,531.91 | F166: 25,531.91 | G166: 0.00 | H166: 0.00 | I166: 0.00 | J166: 0.00 | K166: 0.00 | L166: 0.00 | M166: 0.00 | N166: 0.00 | O166: 0.00 | P166: 0.00 | Q166: 0.00 | R166: 0.00 | S166: 0.00 | T166: 0.00 | X166: 0.00 | Y166: 0.00 | Z166: 0.00 | AA166: =G166*E166 -> 0 | AB166: =H166*E166 -> 0 | AC166: =I166*E166 -> 0 | AD166: =J166*E166 -> 0 | AE166: =K166*E166 -> 0 | AF166: =L166*E166 -> 0 | AG166: 0 | AH166: =N166*E166 -> 0 | AI166: =O166*E166 -> 0 | AJ166: =P166*E166 -> 0 | AK166: =Q166*E166 -> 0 | AL166: =R166*E166 -> 0 | AM166: =S166*E166 -> 0 | AN166: =T166*E166 -> 0 | AO166: =W166*E166 -> 0 | AP166: =X166*E166 -> 0 | AQ166: =Y166*E166 -> 0 | AR166: 0 | AS166: =+E166*Z166 -> 0.00
B167: Install | C167: each | D167: 1 | E167: 2,554.00 | F167: 2,554.00 | G167: 0.00 | H167: 0.00 | I167: 0.00 | J167: 0.00 | K167: 0.00 | L167: 0.00 | M167: 0.00 | N167: 0.00 | O167: 0.00 | P167: 0.00 | Q167: 0.00 | R167: 0.00 | S167: 0.00 | T167: 0.00 | X167: 0.00 | Y167: 0.00 | Z167: 0.00 | AA167: =G167*E167 -> 0 | AB167: =H167*E167 -> 0 | AC167: =I167*E167 -> 0 | AD167: =J167*E167 -> 0 | AE167: =K167*E167 -> 0 | AF167: =L167*E167 -> 0 | AG167: 0 | AH167: =N167*E167 -> 0 | AI167: =O167*E167 -> 0 | AJ167: =P167*E167 -> 0 | AK167: =Q167*E167 -> 0 | AL167: =R167*E167 -> 0 | AM167: =S167*E167 -> 0 | AN167: =T167*E167 -> 0 | AO167: =W167*E167 -> 0 | AP167: =X167*E167 -> 0 | AQ167: =Y167*E167 -> 0 | AR167: 0 | AS167: =+E167*Z167 -> 0.00
AG168: 0
A169: 2.19 | B169: Post Caesarian Ward | AG169: 0
B170: Supply | C170: each | D170: 1 | E170: 22,622.41 | F170: 22,622.41 | G170: 0.00 | H170: 0.00 | I170: 0.00 | J170: 0.00 | K170: 0.00 | L170: 0.00 | M170: 0.00 | N170: 0.00 | O170: 0.00 | P170: 0.00 | Q170: 0.00 | R170: 0.00 | S170: 0.00 | T170: 0.00 | X170: 0.00 | Y170: 0.00 | Z170: 0.00 | AA170: =G170*E170 -> 0 | AB170: =H170*E170 -> 0 | AC170: =I170*E170 -> 0 | AD170: =J170*E170 -> 0 | AE170: =K170*E170 -> 0 | AF170: =L170*E170 -> 0 | AG170: 0 | AH170: =N170*E170 -> 0 | AI170: =O170*E170 -> 0 | AJ170: =P170*E170 -> 0 | AK170: =Q170*E170 -> 0 | AL170: =R170*E170 -> 0 | AM170: =S170*E170 -> 0 | AN170: =T170*E170 -> 0 | AO170: =W170*E170 -> 0 | AP170: =X170*E170 -> 0 | AQ170: =Y170*E170 -> 0 | AR170: 0 | AS170: =+E170*Z170 -> 0.00
B171: Install | C171: each | D171: 1 | E171: 2,263.00 | F171: 2,263.00 | G171: 0.00 | H171: 0.00 | I171: 0.00 | J171: 0.00 | K171: 0.00 | L171: 0.00 | M171: 0.00 | N171: 0.00 | O171: 1.00 | P171: 0.00 | Q171: 0.00 | R171: 0.00 | S171: 0.00 | T171: 0.00 | X171: 0.00 | Y171: 0.00 | Z171: 1.00 | AA171: =G171*E171 -> 0 | AB171: =H171*E171 -> 0 | AC171: =I171*E171 -> 0 | AD171: =J171*E171 -> 0 | AE171: =K171*E171 -> 0 | AF171: =L171*E171 -> 0 | AG171: 0 | AH171: =N171*E171 -> 0 | AI171: =O171*E171 -> 2,263 | AJ171: =P171*E171 -> 0 | AK171: =Q171*E171 -> 0 | AL171: =R171*E171 -> 0 | AM171: =S171*E171 -> 0 | AN171: =T171*E171 -> 0 | AO171: =W171*E171 -> 0 | AP171: =X171*E171 -> 0 | AQ171: =Y171*E171 -> 0 | AR171: 2,263 | AS171: =+E171*Z171 -> 2,263.00
AG172: 0
A173: 2.20 | B173: Main Dist Board 2 Peadiatric OPD | AG173: 0
B174: Supply | C174: each | D174: 1 | E174: 85,455.24 | F174: 85,455.24 | G174: 0.00 | H174: 0.00 | I174: 0.00 | J174: 0.00 | K174: 0.00 | L174: 0.00 | M174: 0.00 | N174: 0.00 | O174: 0.00 | P174: 1.00 | Q174: 0.00 | R174: 0.00 | S174: 0.00 | T174: 0.00 | X174: 0.00 | Y174: 0.00 | Z174: 1.00 | AA174: =G174*E174 -> 0 | AB174: =H174*E174 -> 0 | AC174: =I174*E174 -> 0 | AD174: =J174*E174 -> 0 | AE174: =K174*E174 -> 0 | AF174: =L174*E174 -> 0 | AG174: 0 | AH174: =N174*E174 -> 0 | AI174: =O174*E174 -> 0 | AJ174: =P174*E174 -> 85,455 | AK174: =Q174*E174 -> 0 | AL174: =R174*E174 -> 0 | AM174: =S174*E174 -> 0 | AN174: =T174*E174 -> 0 | AO174: =W174*E174 -> 0 | AP174: =X174*E174 -> 0 | AQ174: =Y174*E174 -> 0 | AR174: 85,455 | AS174: =+E174*Z174 -> 85,455.24
B175: Install | C175: each | D175: 1 | E175: 6,410.00 | F175: 6,410.00 | G175: 0.00 | H175: 0.00 | I175: 0.00 | J175: 0.00 | K175: 0.00 | L175: 0.00 | M175: 0.00 | N175: 0.00 | O175: 0.00 | P175: 0.00 | Q175: 0.00 | R175: 0.00 | S175: 0.00 | T175: 0.00 | X175: 0.00 | Y175: 1.00 | Z175: 1.00 | AA175: =G175*E175 -> 0 | AB175: =H175*E175 -> 0 | AC175: =I175*E175 -> 0 | AD175: =J175*E175 -> 0 | AE175: =K175*E175 -> 0 | AF175: =L175*E175 -> 0 | AG175: 0 | AH175: =N175*E175 -> 0 | AI175: =O175*E175 -> 0 | AJ175: =P175*E175 -> 0 | AK175: =Q175*E175 -> 0 | AL175: =R175*E175 -> 0 | AM175: =S175*E175 -> 0 | AN175: =T175*E175 -> 0 | AO175: =W175*E175 -> 0 | AP175: =X175*E175 -> 0 | AQ175: =Y175*E175 -> 6,410 | AR175: 6,410 | AS175: =+E175*Z175 -> 6,410.00
AG176: 0
A177: 2.21 | B177: Laboratory | AG177: 0
B178: Supply | C178: each | D178: 1 | E178: 15,044.66 | F178: 15,044.66 | G178: 0.00 | H178: 0.00 | I178: 0.00 | J178: 0.00 | K178: 0.00 | L178: 0.00 | M178: 0.00 | N178: 0.00 | O178: 0.00 | P178: 0.00 | Q178: 0.00 | R178: 0.00 | S178: 0.00 | T178: 0.00 | X178: 0.00 | Y178: 1.00 | Z178: 1.00 | AA178: =G178*E178 -> 0 | AB178: =H178*E178 -> 0 | AC178: =I178*E178 -> 0 | AD178: =J178*E178 -> 0 | AE178: =K178*E178 -> 0 | AF178: =L178*E178 -> 0 | AG178: 0 | AH178: =N178*E178 -> 0 | AI178: =O178*E178 -> 0 | AJ178: =P178*E178 -> 0 | AK178: =Q178*E178 -> 0 | AL178: =R178*E178 -> 0 | AM178: =S178*E178 -> 0 | AN178: =T178*E178 -> 0 | AO178: =W178*E178 -> 0 | AP178: =X178*E178 -> 0 | AQ178: =Y178*E178 -> 15,045 | AR178: 15,045 | AS178: =+E178*Z178 -> 15,044.66
B179: Install | C179: each | D179: 1 | E179: 1,505.00 | F179: 1,505.00 | G179: 0.00 | H179: 0.00 | I179: 0.00 | J179: 0.00 | K179: 0.00 | L179: 0.00 | M179: 0.00 | N179: 0.00 | O179: 0.00 | P179: 0.00 | Q179: 0.00 | R179: 0.00 | S179: 0.00 | T179: 0.00 | X179: 0.00 | Y179: 0.00 | Z179: 0.00 | AA179: =G179*E179 -> 0 | AB179: =H179*E179 -> 0 | AC179: =I179*E179 -> 0 | AD179: =J179*E179 -> 0 | AE179: =K179*E179 -> 0 | AF179: =L179*E179 -> 0 | AG179: 0 | AH179: =N179*E179 -> 0 | AI179: =O179*E179 -> 0 | AJ179: =P179*E179 -> 0 | AK179: =Q179*E179 -> 0 | AL179: =R179*E179 -> 0 | AM179: =S179*E179 -> 0 | AN179: =T179*E179 -> 0 | AO179: =W179*E179 -> 0 | AP179: =X179*E179 -> 0 | AQ179: =Y179*E179 -> 0 | AR179: 0 | AS179: =+E179*Z179 -> 0.00
AG180: 0
A181: 2.22 | B181: Pharmacy | AG181: 0
B182: Supply | C182: each | D182: 1 | E182: 18,937.44 | F182: 18,937.44 | G182: 0.00 | H182: 0.00 | I182: 0.00 | J182: 0.00 | K182: 0.00 | L182: 0.00 | M182: 0.00 | N182: 0.00 | O182: 0.00 | P182: 0.00 | Q182: 0.00 | R182: 0.00 | S182: 0.00 | T182: 0.00 | X182: 0.00 | Y182: 1.00 | Z182: 1.00 | AA182: =G182*E182 -> 0 | AB182: =H182*E182 -> 0 | AC182: =I182*E182 -> 0 | AD182: =J182*E182 -> 0 | AE182: =K182*E182 -> 0 | AF182: =L182*E182 -> 0 | AG182: =+M182*E182 -> 0 | AH182: =N182*E182 -> 0 | AI182: =O182*E182 -> 0 | AJ182: =P182*E182 -> 0 | AK182: =Q182*E182 -> 0 | AL182: =R182*E182 -> 0 | AM182: =S182*E182 -> 0 | AN182: =T182*E182 -> 0 | AO182: =W182*E182 -> 0 | AP182: =X182*E182 -> 0 | AQ182: =Y182*E182 -> 18,937 | AR182: 18,937 | AS182: =+E182*Z182 -> 18,937.44
B183: Install | C183: each | D183: 1 | E183: 1,894.00 | F183: 1,894.00 | G183: 0.00 | H183: 0.00 | I183: 0.00 | J183: 0.00 | K183: 0.00 | L183: 0.00 | M183: 0.00 | N183: 0.00 | O183: 0.00 | P183: 0.00 | Q183: 0.00 | R183: 0.00 | S183: 0.00 | T183: 0.00 | X183: 0.00 | Y183: 1.00 | Z183: 1.00 | AA183: =G183*E183 -> 0 | AB183: =H183*E183 -> 0 | AC183: =I183*E183 -> 0 | AD183: =J183*E183 -> 0 | AE183: =K183*E183 -> 0 | AF183: =L183*E183 -> 0 | AG183: 0 | AH183: =N183*E183 -> 0 | AI183: =O183*E183 -> 0 | AJ183: =P183*E183 -> 0 | AK183: =Q183*E183 -> 0 | AL183: =R183*E183 -> 0 | AM183: =S183*E183 -> 0 | AN183: =T183*E183 -> 0 | AO183: =W183*E183 -> 0 | AP183: =X183*E183 -> 0 | AQ183: =Y183*E183 -> 1,894 | AR183: 1,894 | AS183: =+E183*Z183 -> 1,894.00
AG184: 0
A185: 2.23 | B185: Ent, Opthalmology and Dental OPD | AG185: 0
B186: Supply | C186: each | D186: 1 | E186: 17,672.39 | F186: 17,672.39 | G186: 0.00 | H186: 0.00 | I186: 0.00 | J186: 0.00 | K186: 0.00 | L186: 0.00 | M186: 0.00 | N186: 0.00 | O186: 0.00 | P186: 0.00 | Q186: 0.00 | R186: 0.00 | S186: 0.00 | T186: 0.00 | X186: 0.00 | Y186: 0.00 | Z186: 0.00 | AA186: =G186*E186 -> 0 | AB186: =H186*E186 -> 0 | AC186: =I186*E186 -> 0 | AD186: =J186*E186 -> 0 | AE186: =K186*E186 -> 0 | AF186: =L186*E186 -> 0 | AG186: 0 | AH186: =N186*E186 -> 0 | AI186: =O186*E186 -> 0 | AJ186: =P186*E186 -> 0 | AK186: =Q186*E186 -> 0 | AL186: =R186*E186 -> 0 | AM186: =S186*E186 -> 0 | AN186: =T186*E186 -> 0 | AO186: =W186*E186 -> 0 | AP186: =X186*E186 -> 0 | AQ186: =Y186*E186 -> 0 | AR186: 0 | AS186: =+E186*Z186 -> 0.00
B187: Install | C187: each | D187: 1 | E187: 1,768.00 | F187: 1,768.00 | G187: 0.00 | H187: 0.00 | I187: 0.00 | J187: 0.00 | K187: 0.00 | L187: 0.00 | M187: 0.00 | N187: 0.00 | O187: 0.00 | P187: 0.00 | Q187: 0.00 | R187: 0.00 | S187: 0.00 | T187: 0.00 | X187: 0.00 | Y187: 0.00 | Z187: 0.00 | AA187: =G187*E187 -> 0 | AB187: =H187*E187 -> 0 | AC187: =I187*E187 -> 0 | AD187: =J187*E187 -> 0 | AE187: =K187*E187 -> 0 | AF187: =L187*E187 -> 0 | AG187: 0 | AH187: =N187*E187 -> 0 | AI187: =O187*E187 -> 0 | AJ187: =P187*E187 -> 0 | AK187: =Q187*E187 -> 0 | AL187: =R187*E187 -> 0 | AM187: =S187*E187 -> 0 | AN187: =T187*E187 -> 0 | AO187: =W187*E187 -> 0 | AP187: =X187*E187 -> 0 | AQ187: =Y187*E187 -> 0 | AR187: 0 | AS187: =+E187*Z187 -> 0.00
AG188: 0
A189: 2.24 | B189: Main Dist Board 3 OPD | AG189: 0
B190: Supply | C190: each | D190: 1 | E190: 64,169.02 | F190: 64,169.02 | G190: 0.00 | H190: 0.00 | I190: 0.00 | J190: 0.00 | K190: 0.00 | L190: 0.00 | M190: 0.00 | N190: 0.00 | O190: 0.00 | P190: 0.00 | Q190: 0.00 | R190: 0.00 | S190: 0.00 | T190: 0.00 | X190: 0.00 | Y190: 1.00 | Z190: 1.00 | AA190: =G190*E190 -> 0 | AB190: =H190*E190 -> 0 | AC190: =I190*E190 -> 0 | AD190: =J190*E190 -> 0 | AE190: =K190*E190 -> 0 | AF190: =L190*E190 -> 0 | AG190: 0 | AH190: =N190*E190 -> 0 | AI190: =O190*E190 -> 0 | AJ190: =P190*E190 -> 0 | AK190: =Q190*E190 -> 0 | AL190: =R190*E190 -> 0 | AM190: =S190*E190 -> 0 | AN190: =T190*E190 -> 0 | AO190: =W190*E190 -> 0 | AP190: =X190*E190 -> 0 | AQ190: =Y190*E190 -> 64,169 | AR190: 64,169 | AS190: =+E190*Z190 -> 64,169.02
B191: Install | C191: each | D191: 1 | E191: 6,417.00 | F191: 6,417.00 | G191: 0.00 | H191: 0.00 | I191: 0.00 | J191: 0.00 | K191: 0.00 | L191: 0.00 | M191: 0.00 | N191: 0.00 | O191: 0.00 | P191: 0.00 | Q191: 0.00 | R191: 0.00 | S191: 0.00 | T191: 0.00 | X191: 0.00 | Y191: 1.00 | Z191: 1.00 | AA191: =G191*E191 -> 0 | AB191: =H191*E191 -> 0 | AC191: =I191*E191 -> 0 | AD191: =J191*E191 -> 0 | AE191: =K191*E191 -> 0 | AF191: =L191*E191 -> 0 | AG191: 0 | AH191: =N191*E191 -> 0 | AI191: =O191*E191 -> 0 | AJ191: =P191*E191 -> 0 | AK191: =Q191*E191 -> 0 | AL191: =R191*E191 -> 0 | AM191: =S191*E191 -> 0 | AN191: =T191*E191 -> 0 | AO191: =W191*E191 -> 0 | AP191: =X191*E191 -> 0 | AQ191: =Y191*E191 -> 6,417 | AR191: 6,417 | AS191: =+E191*Z191 -> 6,417.00
AG192: 0
A193: 2.25 | B193: Radiology | AG193: 0
B194: Supply | C194: each | D194: 1 | E194: 38,396.48 | F194: 38,396.48 | G194: 0.00 | H194: 0.00 | I194: 0.00 | J194: 0.00 | K194: 0.00 | L194: 0.00 | M194: 0.00 | N194: 0.00 | O194: 0.00 | P194: 0.00 | Q194: 0.00 | R194: 0.00 | S194: 0.00 | T194: 0.00 | X194: 0.00 | Y194: 0.00 | Z194: 0.00 | AA194: =G194*E194 -> 0 | AB194: =H194*E194 -> 0 | AC194: =I194*E194 -> 0 | AD194: =J194*E194 -> 0 | AE194: =K194*E194 -> 0 | AF194: =L194*E194 -> 0 | AG194: 0 | AH194: =N194*E194 -> 0 | AI194: =O194*E194 -> 0 | AJ194: =P194*E194 -> 0 | AK194: =Q194*E194 -> 0 | AL194: =R194*E194 -> 0 | AM194: =S194*E194 -> 0 | AN194: =T194*E194 -> 0 | AO194: =W194*E194 -> 0 | AP194: =X194*E194 -> 0 | AQ194: =Y194*E194 -> 0 | AR194: 0 | AS194: =+E194*Z194 -> 0.00
B195: Install | C195: each | D195: 1 | E195: 3,840.00 | F195: 3,840.00 | G195: 0.00 | H195: 0.00 | I195: 0.00 | J195: 0.00 | K195: 0.00 | L195: 0.00 | M195: 0.00 | N195: 0.00 | O195: 0.00 | P195: 0.00 | Q195: 0.00 | R195: 0.00 | S195: 0.00 | T195: 0.00 | X195: 0.00 | Y195: 1.00 | Z195: 1.00 | AA195: =G195*E195 -> 0 | AB195: =H195*E195 -> 0 | AC195: =I195*E195 -> 0 | AD195: =J195*E195 -> 0 | AE195: =K195*E195 -> 0 | AF195: =L195*E195 -> 0 | AG195: 0 | AH195: =N195*E195 -> 0 | AI195: =O195*E195 -> 0 | AJ195: =P195*E195 -> 0 | AK195: =Q195*E195 -> 0 | AL195: =R195*E195 -> 0 | AM195: =S195*E195 -> 0 | AN195: =T195*E195 -> 0 | AO195: =W195*E195 -> 0 | AP195: =X195*E195 -> 0 | AQ195: =Y195*E195 -> 3,840 | AR195: 3,840 | AS195: =+E195*Z195 -> 3,840.00
AG196: 0
A197: 2.26 | B197: Main Dist Board 1 Admissions | AG197: 0
B198: Supply | C198: each | D198: 1 | E198: 62,978.27 | F198: 62,978.27 | G198: 0.00 | H198: 0.00 | I198: 0.00 | J198: 0.00 | K198: 0.00 | L198: 0.00 | M198: 0.00 | N198: 0.00 | O198: 0.00 | P198: 0.00 | Q198: 0.00 | R198: 0.00 | S198: 0.00 | T198: 0.00 | X198: 0.00 | Y198: 0.00 | Z198: 0.00 | AA198: =G198*E198 -> 0 | AB198: =H198*E198 -> 0 | AC198: =I198*E198 -> 0 | AD198: =J198*E198 -> 0 | AE198: =K198*E198 -> 0 | AF198: =L198*E198 -> 0 | AG198: 0 | AH198: =N198*E198 -> 0 | AI198: =O198*E198 -> 0 | AJ198: =P198*E198 -> 0 | AK198: =Q198*E198 -> 0 | AL198: =R198*E198 -> 0 | AM198: =S198*E198 -> 0 | AN198: =T198*E198 -> 0 | AO198: =W198*E198 -> 0 | AP198: =X198*E198 -> 0 | AQ198: =Y198*E198 -> 0 | AR198: 0 | AS198: =+E198*Z198 -> 0.00
B199: Install | C199: each | D199: 1 | E199: 6,298.00 | F199: 6,298.00 | G199: 0.00 | H199: 0.00 | I199: 0.00 | J199: 0.00 | K199: 0.00 | L199: 1.00 | M199: 0.00 | N199: 0.00 | O199: 0.00 | P199: 0.00 | Q199: 0.00 | R199: 0.00 | S199: 0.00 | T199: 0.00 | X199: 0.00 | Y199: 0.00 | Z199: 1.00 | AA199: =G199*E199 -> 0 | AB199: =H199*E199 -> 0 | AC199: =I199*E199 -> 0 | AD199: =J199*E199 -> 0 | AE199: =K199*E199 -> 0 | AF199: =L199*E199 -> 6,298 | AG199: 0 | AH199: =N199*E199 -> 0 | AI199: =O199*E199 -> 0 | AJ199: =P199*E199 -> 0 | AK199: =Q199*E199 -> 0 | AL199: =R199*E199 -> 0 | AM199: =S199*E199 -> 0 | AN199: =T199*E199 -> 0 | AO199: =W199*E199 -> 0 | AP199: =X199*E199 -> 0 | AQ199: =Y199*E199 -> 0 | AR199: 6,298 | AS199: =+E199*Z199 -> 6,298.00
B201: Amount Carried Forward | F201: =SUM(F146:F199) -> 1,028,956.21 | AS201: =SUM(AS146:AS199) -> 753,749.57
A203: MAIN HOSPITAL ELECTRICAL INSTALLATION
A204: CECILIA MAKIWANE HOSPITAL : PHASE 4C
A206: BILL NO. 2 : DISTRIBUTION BOARDS
A207: ITEM | B207: DESCRIPTION | C207: UNIT | D207: QTY | E207: RATE | F207: TENDER AMOUNT | G207: A-LV05 | H207: B-LV04 | I207: D-LV03 | J207: E1-LV03 | K207: E2 | L207: F1 | M207: F2 | N207: G1 | O207: G2 | P207: H1 | Q207: H2 | R207: J1 | S207: J2 | T207: J3 | V207: G/House | X207: N | Y207: Other | Z207: Total Qty | AA207: A | AB207: B | AC207: D | AD207: E1 | AE207: E2 | AF207: F1 | AG207: F2 | AH207: G1 | AI207: G2 | AJ207: H1 | AK207: H2 | AL207: J1 | AM207: J2 | AN207: J3 | AO207: K | AP207: N | AQ207: Other | AR207: Total Amount | AS207: Total Claimed
B208: AMOUNT CARRIED FORWARD FROM PREVIOUS BILL | F208: =F201 -> 1,028,956.21 | AS208: =AS201 -> 753,749.57
A210: 2.27 | B210: Cafeteria
B211: Supply | C211: each | D211: 1 | E211: 18,612.34 | F211: =$D211*E211 -> 18,612.34 | G211: 0.00 | H211: 0.00 | I211: 0.00 | J211: 0.00 | K211: 0.00 | L211: 0.00 | M211: 0.00 | N211: 0.00 | O211: 0.00 | P211: 0.00 | Q211: 0.00 | R211: 0.00 | S211: 0.00 | T211: 0.00 | X211: 0.00 | Y211: 0.00 | Z211: =SUM(G211:Y211) -> 0.00 | AA211: =G211*E211 -> 0 | AB211: =H211*E211 -> 0 | AC211: =I211*E211 -> 0 | AD211: =J211*E211 -> 0 | AE211: =K211*E211 -> 0 | AF211: =L211*E211 -> 0 | AG211: =+M211*E211 -> 0 | AH211: =N211*E211 -> 0 | AI211: =O211*E211 -> 0 | AJ211: =P211*E211 -> 0 | AK211: =Q211*E211 -> 0 | AL211: =R211*E211 -> 0 | AM211: =S211*E211 -> 0 | AN211: =T211*E211 -> 0 | AO211: =W211*E211 -> 0 | AP211: =X211*E211 -> 0 | AQ211: =Y211*E211 -> 0 | AR211: =SUM(AA211:AQ211) -> 0 | AS211: =+E211*Z211 -> 0.00
B212: Install | C212: each | D212: 1 | E212: 1,862.00 | F212: =$D212*E212 -> 1,862.00 | G212: 0.00 | H212: 0.00 | I212: 0.00 | J212: 2.00 | K212: 0.00 | L212: 0.00 | M212: 0.00 | N212: 0.00 | O212: 0.00 | P212: 0.00 | Q212: 0.00 | R212: 0.00 | S212: 0.00 | T212: 0.00 | X212: 0.00 | Y212: -1.00 | Z212: =SUM(G212:Y212) -> 1.00 | AA212: =G212*E212 -> 0 | AB212: =H212*E212 -> 0 | AC212: =I212*E212 -> 0 | AD212: =J212*E212 -> 3,724 | AE212: =K212*E212 -> 0 | AF212: =L212*E212 -> 0 | AG212: 0 | AH212: =N212*E212 -> 0 | AI212: =O212*E212 -> 0 | AJ212: =P212*E212 -> 0 | AK212: =Q212*E212 -> 0 | AL212: =R212*E212 -> 0 | AM212: =S212*E212 -> 0 | AN212: =T212*E212 -> 0 | AO212: =W212*E212 -> 0 | AP212: =X212*E212 -> 0 | AQ212: =Y212*E212 -> -1,862 | AR212: =SUM(AA212:AQ212) -> 1,862 | AS212: =+E212*Z212 -> 1,862.00
AG213: 0
A214: 2.28 | B214: Rehabilatation No1 | AG214: 0
B215: Supply | C215: each | D215: 1 | E215: 17,559.16 | F215: =$D215*E215 -> 17,559.16 | G215: 0.00 | H215: 0.00 | I215: 2.00 | J215: 0.00 | K215: 0.00 | L215: 0.00 | M215: 0.00 | N215: 0.00 | O215: 0.00 | P215: 0.00 | Q215: 0.00 | R215: 0.00 | S215: 0.00 | T215: 0.00 | X215: 0.00 | Y215: -1.00 | Z215: 1.00 | AA215: =G215*E215 -> 0 | AB215: =H215*E215 -> 0 | AC215: =I215*E215 -> 35,118 | AD215: =J215*E215 -> 0 | AE215: =K215*E215 -> 0 | AF215: =L215*E215 -> 0 | AG215: 0 | AH215: =N215*E215 -> 0 | AI215: =O215*E215 -> 0 | AJ215: =P215*E215 -> 0 | AK215: =Q215*E215 -> 0 | AL215: =R215*E215 -> 0 | AM215: =S215*E215 -> 0 | AN215: =T215*E215 -> 0 | AO215: =W215*E215 -> 0 | AP215: =X215*E215 -> 0 | AQ215: =Y215*E215 -> -17,559 | AR215: 17,559 | AS215: =+E215*Z215 -> 17,559.16
B216: Install | C216: each | D216: 1 | E216: 1,756.00 | F216: 1,756.00 | G216: 0.00 | H216: 0.00 | I216: 2.00 | J216: 0.00 | K216: 0.00 | L216: 0.00 | M216: 0.00 | N216: 0.00 | O216: 0.00 | P216: 0.00 | Q216: 0.00 | R216: 0.00 | S216: 0.00 | T216: 0.00 | X216: 0.00 | Y216: -1.00 | Z216: 1.00 | AA216: =G216*E216 -> 0 | AB216: =H216*E216 -> 0 | AC216: =I216*E216 -> 3,512 | AD216: =J216*E216 -> 0 | AE216: =K216*E216 -> 0 | AF216: =L216*E216 -> 0 | AG216: 0 | AH216: =N216*E216 -> 0 | AI216: =O216*E216 -> 0 | AJ216: =P216*E216 -> 0 | AK216: =Q216*E216 -> 0 | AL216: =R216*E216 -> 0 | AM216: =S216*E216 -> 0 | AN216: =T216*E216 -> 0 | AO216: =W216*E216 -> 0 | AP216: =X216*E216 -> 0 | AQ216: =Y216*E216 -> -1,756 | AR216: 1,756 | AS216: =+E216*Z216 -> 1,756.00
AG217: 0
A218: 2.29 | B218: Rehabilatation No2 | AG218: 0
B219: Supply | C219: each | D219: 1 | E219: 17,946.75 | F219: 17,946.75 | G219: 0.00 | H219: 0.00 | I219: 2.00 | J219: 0.00 | K219: 0.00 | L219: 0.00 | M219: 0.00 | N219: 0.00 | O219: 0.00 | P219: 0.00 | Q219: 0.00 | R219: 0.00 | S219: 0.00 | T219: 0.00 | X219: 0.00 | Y219: -1.00 | Z219: 1.00 | AA219: =G219*E219 -> 0 | AB219: =H219*E219 -> 0 | AC219: =I219*E219 -> 35,894 | AD219: =J219*E219 -> 0 | AE219: =K219*E219 -> 0 | AF219: =L219*E219 -> 0 | AG219: 0 | AH219: =N219*E219 -> 0 | AI219: =O219*E219 -> 0 | AJ219: =P219*E219 -> 0 | AK219: =Q219*E219 -> 0 | AL219: =R219*E219 -> 0 | AM219: =S219*E219 -> 0 | AN219: =T219*E219 -> 0 | AO219: =W219*E219 -> 0 | AP219: =X219*E219 -> 0 | AQ219: =Y219*E219 -> -17,947 | AR219: 17,947 | AS219: =+E219*Z219 -> 17,946.75
B220: Install | C220: each | D220: 1 | E220: 1,795.00 | F220: 1,795.00 | G220: 0.00 | H220: 0.00 | I220: 2.00 | J220: 0.00 | K220: 0.00 | L220: 0.00 | M220: 0.00 | N220: 0.00 | O220: 0.00 | P220: 0.00 | Q220: 0.00 | R220: 0.00 | S220: 0.00 | T220: 0.00 | X220: 0.00 | Y220: -1.00 | Z220: 1.00 | AA220: =G220*E220 -> 0 | AB220: =H220*E220 -> 0 | AC220: =I220*E220 -> 3,590 | AD220: =J220*E220 -> 0 | AE220: =K220*E220 -> 0 | AF220: =L220*E220 -> 0 | AG220: 0 | AH220: =N220*E220 -> 0 | AI220: =O220*E220 -> 0 | AJ220: =P220*E220 -> 0 | AK220: =Q220*E220 -> 0 | AL220: =R220*E220 -> 0 | AM220: =S220*E220 -> 0 | AN220: =T220*E220 -> 0 | AO220: =W220*E220 -> 0 | AP220: =X220*E220 -> 0 | AQ220: =Y220*E220 -> -1,795 | AR220: 1,795 | AS220: =+E220*Z220 -> 1,795.00
AG221: 0
A222: 2.30 | B222: Accident and Emergency No1 | AG222: 0
B223: Supply | C223: each | D223: 1 | E223: 32,030.88 | F223: 32,030.88 | G223: 0.00 | H223: 0.00 | I223: 0.00 | J223: 0.00 | K223: 0.00 | L223: 0.00 | M223: 0.00 | N223: 0.00 | O223: 0.00 | P223: 0.00 | Q223: 0.00 | R223: 0.00 | S223: 0.00 | T223: 0.00 | X223: 0.00 | Y223: 0.00 | Z223: 0.00 | AA223: =G223*E223 -> 0 | AB223: =H223*E223 -> 0 | AC223: =I223*E223 -> 0 | AD223: =J223*E223 -> 0 | AE223: =K223*E223 -> 0 | AF223: =L223*E223 -> 0 | AG223: 0 | AH223: =N223*E223 -> 0 | AI223: =O223*E223 -> 0 | AJ223: =P223*E223 -> 0 | AK223: =Q223*E223 -> 0 | AL223: =R223*E223 -> 0 | AM223: =S223*E223 -> 0 | AN223: =T223*E223 -> 0 | AO223: =W223*E223 -> 0 | AP223: =X223*E223 -> 0 | AQ223: =Y223*E223 -> 0 | AR223: 0 | AS223: =+E223*Z223 -> 0.00
B224: Install | C224: each | D224: 1 | E224: 3,204.00 | F224: 3,204.00 | G224: 0.00 | H224: 0.00 | I224: 0.00 | J224: 0.00 | K224: 0.00 | L224: 0.00 | M224: 0.00 | N224: 0.00 | O224: 0.00 | P224: 0.00 | Q224: 0.00 | R224: 0.00 | S224: 0.00 | T224: 0.00 | X224: 0.00 | Y224: 0.00 | Z224: 0.00 | AA224: =G224*E224 -> 0 | AB224: =H224*E224 -> 0 | AC224: =I224*E224 -> 0 | AD224: =J224*E224 -> 0 | AE224: =K224*E224 -> 0 | AF224: =L224*E224 -> 0 | AG224: 0 | AH224: =N224*E224 -> 0 | AI224: =O224*E224 -> 0 | AJ224: =P224*E224 -> 0 | AK224: =Q224*E224 -> 0 | AL224: =R224*E224 -> 0 | AM224: =S224*E224 -> 0 | AN224: =T224*E224 -> 0 | AO224: =W224*E224 -> 0 | AP224: =X224*E224 -> 0 | AQ224: =Y224*E224 -> 0 | AR224: 0 | AS224: =+E224*Z224 -> 0.00
AG225: 0
A226: 2.31 | B226: Accident and Emergency No2 | AG226: 0
B227: Supply | C227: each | D227: 1 | E227: 47,906.01 | F227: 47,906.01 | G227: 0.00 | H227: 0.00 | I227: 0.00 | J227: 0.00 | K227: 0.00 | L227: 0.00 | M227: 0.00 | N227: 0.00 | O227: 0.00 | P227: 0.00 | Q227: 0.00 | R227: 0.00 | S227: 0.00 | T227: 0.00 | X227: 0.00 | Y227: 0.00 | Z227: 0.00 | AA227: =G227*E227 -> 0 | AB227: =H227*E227 -> 0 | AC227: =I227*E227 -> 0 | AD227: =J227*E227 -> 0 | AE227: =K227*E227 -> 0 | AF227: =L227*E227 -> 0 | AG227: 0 | AH227: =N227*E227 -> 0 | AI227: =O227*E227 -> 0 | AJ227: =P227*E227 -> 0 | AK227: =Q227*E227 -> 0 | AL227: =R227*E227 -> 0 | AM227: =S227*E227 -> 0 | AN227: =T227*E227 -> 0 | AO227: =W227*E227 -> 0 | AP227: =X227*E227 -> 0 | AQ227: =Y227*E227 -> 0 | AR227: 0 | AS227: =+E227*Z227 -> 0.00
B228: Install | C228: each | D228: 1 | E228: 4,791.00 | F228: 4,791.00 | G228: 0.00 | H228: 0.00 | I228: 0.00 | J228: 0.00 | K228: 0.00 | L228: 0.00 | M228: 0.00 | N228: 0.00 | O228: 0.00 | P228: 0.00 | Q228: 0.00 | R228: 0.00 | S228: 0.00 | T228: 0.00 | X228: 0.00 | Y228: 0.00 | Z228: 0.00 | AA228: =G228*E228 -> 0 | AB228: =H228*E228 -> 0 | AC228: =I228*E228 -> 0 | AD228: =J228*E228 -> 0 | AE228: =K228*E228 -> 0 | AF228: =L228*E228 -> 0 | AG228: 0 | AH228: =N228*E228 -> 0 | AI228: =O228*E228 -> 0 | AJ228: =P228*E228 -> 0 | AK228: =Q228*E228 -> 0 | AL228: =R228*E228 -> 0 | AM228: =S228*E228 -> 0 | AN228: =T228*E228 -> 0 | AO228: =W228*E228 -> 0 | AP228: =X228*E228 -> 0 | AQ228: =Y228*E228 -> 0 | AR228: 0 | AS228: =+E228*Z228 -> 0.00
AG229: 0
A230: 2.32 | B230: Burns Unit | AG230: 0
B231: Supply | C231: each | D231: 1 | E231: 29,463.63 | F231: 29,463.63 | G231: 0.00 | H231: 0.00 | I231: 0.00 | J231: 0.00 | K231: 0.00 | L231: 0.00 | M231: 0.00 | N231: 1.00 | O231: 0.00 | P231: 0.00 | Q231: 0.00 | R231: 0.00 | S231: 0.00 | T231: 0.00 | X231: 0.00 | Y231: 0.00 | Z231: 1.00 | AA231: =G231*E231 -> 0 | AB231: =H231*E231 -> 0 | AC231: =I231*E231 -> 0 | AD231: =J231*E231 -> 0 | AE231: =K231*E231 -> 0 | AF231: =L231*E231 -> 0 | AG231: 0 | AH231: =N231*E231 -> 29,464 | AI231: =O231*E231 -> 0 | AJ231: =P231*E231 -> 0 | AK231: =Q231*E231 -> 0 | AL231: =R231*E231 -> 0 | AM231: =S231*E231 -> 0 | AN231: =T231*E231 -> 0 | AO231: =W231*E231 -> 0 | AP231: =X231*E231 -> 0 | AQ231: =Y231*E231 -> 0 | AR231: 29,464 | AS231: =+E231*Z231 -> 29,463.63
B232: Install | C232: each | D232: 1 | E232: 2,947.00 | F232: 2,947.00 | G232: 0.00 | H232: 0.00 | I232: 0.00 | J232: 0.00 | K232: 0.00 | L232: 0.00 | M232: 0.00 | N232: 0.00 | O232: 0.00 | P232: 0.00 | Q232: 0.00 | R232: 0.00 | S232: 0.00 | T232: 0.00 | X232: 0.00 | Y232: 1.00 | Z232: 1.00 | AA232: =G232*E232 -> 0 | AB232: =H232*E232 -> 0 | AC232: =I232*E232 -> 0 | AD232: =J232*E232 -> 0 | AE232: =K232*E232 -> 0 | AF232: =L232*E232 -> 0 | AG232: 0 | AH232: =N232*E232 -> 0 | AI232: =O232*E232 -> 0 | AJ232: =P232*E232 -> 0 | AK232: =Q232*E232 -> 0 | AL232: =R232*E232 -> 0 | AM232: =S232*E232 -> 0 | AN232: =T232*E232 -> 0 | AO232: =W232*E232 -> 0 | AP232: =X232*E232 -> 0 | AQ232: =Y232*E232 -> 2,947 | AR232: 2,947 | AS232: =+E232*Z232 -> 2,947.00
... 1820 more rows

Sheet Block Breakdown This (hidden)
A2: MAIN HOSPITAL ELECTRICAL INSTALLATION
A3: CECILIA MAKIWANE HOSPITAL : PHASE 4C
A5: BILL NO. 1 : PROVISIONAL AND SUPERVISION AMOUNTS | E5: Besamandla
A6: ITEM | B6: DESCRIPTION | C6: UNIT | D6: QTY | E6: RATE | F6: TENDER AMOUNT | G6: Total Quantity Claimed This Month | AA6: Total Value Claimed This Month | AS6: Total Claimed
G7: A | H7: B | I7: D | J7: E1 | K7: E2 | L7: F1 | M7: F2 | N7: G1 | O7: G2 | P7: H1 | Q7: H2 | R7: J1 | S7: J2 | T7: J3 | U7: Substation | V7: G/House | W7: K | X7: N | Y7: Other | Z7: Total Qty | AA7: A | AB7: B | AC7: D | AD7: E1 | AE7: E2 | AF7: F1 | AG7: F2 | AH7: G1 | AI7: G2 | AJ7: H1 | AK7: H2 | AL7: J1 | AM7: J2 | AN7: J3 | AO7: K | AP7: N | AQ7: Other | AR7: Total Amount
B9: P&G Claim amounts For LV and MV | F9: WG 190 | AS9: =#REF!+#REF!+#REF!+#REF!+#REF!+#REF!+#REF!+#REF!+#REF!+#REF!+#REF!+#REF!+#REF!+#REF!+#REF!+#REF!+#REF!+#REF!+#REF!+#REF!+#REF!+#REF!+#REF!+#REF!+#REF!+#REF!+#REF!+#REF!+#REF!+#REF!+#REF!+#REF!+#REF!+#REF!+#REF!+#REF! -> 
A12: 1.00 | B12: Provisional amounts, pertaining specifically to the Electrical Installation Contract
B14: Provisional Amounts
A16: 1.10 | B16: An amount to receive, store, install and connect complete new Digital Xray viewing panels from Radiology Contractor or supplier | C16: Sum | D16: 1 | E16: 125,000.00 | F16: =$D16*E16 -> 125,000.00 | Z16: =SUM(G16:Y16) -> 0 | AA16: =G16*E16 -> 0 | AB16: =H16*E16 -> 0 | AC16: =I16*E16 -> 0 | AD16: =J16*E16 -> 0 | AE16: =K16*E16 -> 0 | AF16: =L16*E16 -> 0 | AG16: =+M16*E16 -> 0 | AH16: =N16*E16 -> 0 | AI16: =O16*E16 -> 0 | AJ16: =P16*E16 -> 0 | AK16: =Q16*E16 -> 0 | AL16: =R16*E16 -> 0 | AM16: =S16*E16 -> 0 | AN16: =T16*E16 -> 0 | AO16: =W16*E16 -> 0 | AP16: =X16*E16 -> 0 | AQ16: =Y16*E16 -> 0 | AR16: =SUM(AA16:AQ16) -> 0 | AS16: =+E16*Z16 -> 0.00
AG17: 0
A18: 1.1.1 | B18: Contractor's Profit on the above amount | C18: % | E18: 0.10 | F18: =F16*E18 -> 12,500.00 | Z18: =SUM(G18:Y18) -> 0 | AA18: =G18*E18 -> 0 | AB18: =H18*E18 -> 0 | AC18: =I18*E18 -> 0 | AD18: =J18*E18 -> 0 | AE18: =K18*E18 -> 0 | AF18: =L18*E18 -> 0 | AG18: 0 | AH18: =N18*E18 -> 0 | AI18: =O18*E18 -> 0 | AJ18: =P18*E18 -> 0 | AK18: =Q18*E18 -> 0 | AL18: =R18*E18 -> 0 | AM18: =S18*E18 -> 0 | AN18: =T18*E18 -> 0 | AO18: =W18*E18 -> 0 | AP18: =X18*E18 -> 0 | AQ18: =Y18*E18 -> 0 | AR18: =SUM(AA18:AQ18) -> 0 | AS18: =+E18*Z18 -> 0.00
AG19: 0
A20: 1.30 | B20: Specialist Lighting Contractor to complete the main Entrance and Façade of the Main Hospital | C20: Sum | D20: 1 | E20: 250,000.00 | F20: =$D20*E20 -> 250,000.00 | Z20: 0 | AA20: =G20*E20 -> 0 | AB20: =H20*E20 -> 0 | AC20: =I20*E20 -> 0 | AD20: =J20*E20 -> 0 | AE20: =K20*E20 -> 0 | AF20: =L20*E20 -> 0 | AG20: 0 | AH20: =N20*E20 -> 0 | AI20: =O20*E20 -> 0 | AJ20: =P20*E20 -> 0 | AK20: =Q20*E20 -> 0 | AL20: =R20*E20 -> 0 | AM20: =S20*E20 -> 0 | AN20: =T20*E20 -> 0 | AO20: =W20*E20 -> 0 | AP20: =X20*E20 -> 0 | AQ20: =Y20*E20 -> 0 | AR20: 0 | AS20: =+E20*Z20 -> 0.00
AG21: 0
A22: 1.3.1 | B22: Contractor's Profit on the above amount | C22: % | E22: 0.10 | F22: =F20*E22 -> 25,000.00 | Z22: 0 | AA22: =G22*E22 -> 0 | AB22: =H22*E22 -> 0 | AC22: =I22*E22 -> 0 | AD22: =J22*E22 -> 0 | AE22: =K22*E22 -> 0 | AF22: =L22*E22 -> 0 | AG22: 0 | AH22: =N22*E22 -> 0 | AI22: =O22*E22 -> 0 | AJ22: =P22*E22 -> 0 | AK22: =Q22*E22 -> 0 | AL22: =R22*E22 -> 0 | AM22: =S22*E22 -> 0 | AN22: =T22*E22 -> 0 | AO22: =W22*E22 -> 0 | AP22: =X22*E22 -> 0 | AQ22: =Y22*E22 -> 0 | AR22: 0 | AS22: =+E22*Z22 -> 0.00
AG23: 0
A24: 1.40 | B24: UPS System complete for the Main Hospital | C24: Sum | D24: 1 | E24: 3,200,000.00 | F24: =$D24*E24 -> 3,200,000.00 | Z24: 0 | AA24: =G24*E24 -> 0 | AB24: =H24*E24 -> 0 | AC24: =I24*E24 -> 0 | AD24: =J24*E24 -> 0 | AE24: =K24*E24 -> 0 | AF24: =L24*E24 -> 0 | AG24: 0 | AH24: =N24*E24 -> 0 | AI24: =O24*E24 -> 0 | AJ24: =P24*E24 -> 0 | AK24: =Q24*E24 -> 0 | AL24: =R24*E24 -> 0 | AM24: =S24*E24 -> 0 | AN24: =T24*E24 -> 0 | AO24: =W24*E24 -> 0 | AP24: =X24*E24 -> 0 | AQ24: =Y24*E24 -> 0 | AR24: 0 | AS24: =+E24*Z24 -> 0.00
AG25: 0
A26: 1.4.1 | B26: Contractor's Profit on the above amount | C26: % | E26: 0.03 | F26: =F24*E26 -> 80,000.00 | Z26: 0 | AA26: =G26*E26 -> 0 | AB26: =H26*E26 -> 0 | AC26: =I26*E26 -> 0 | AD26: =J26*E26 -> 0 | AE26: =K26*E26 -> 0 | AF26: =L26*E26 -> 0 | AG26: 0 | AH26: =N26*E26 -> 0 | AI26: =O26*E26 -> 0 | AJ26: =P26*E26 -> 0 | AK26: =Q26*E26 -> 0 | AL26: =R26*E26 -> 0 | AM26: =S26*E26 -> 0 | AN26: =T26*E26 -> 0 | AO26: =W26*E26 -> 0 | AP26: =X26*E26 -> 0 | AQ26: =Y26*E26 -> 0 | AR26: 0 | AS26: =+E26*Z26 -> 0.00
AG27: 0
A28: 1.50 | B28: Connection Fees for Power Supply | C28: Sum | D28: 1 | E28: 9,000,000.00 | F28: =$D28*E28 -> 9,000,000.00 | Z28: 0 | AA28: =G28*E28 -> 0 | AB28: =H28*E28 -> 0 | AC28: =I28*E28 -> 0 | AD28: =J28*E28 -> 0 | AE28: =K28*E28 -> 0 | AF28: =L28*E28 -> 0 | AG28: 0 | AH28: =N28*E28 -> 0 | AI28: =O28*E28 -> 0 | AJ28: =P28*E28 -> 0 | AK28: =Q28*E28 -> 0 | AL28: =R28*E28 -> 0 | AM28: =S28*E28 -> 0 | AN28: =T28*E28 -> 0 | AO28: =W28*E28 -> 0 | AP28: =X28*E28 -> 0 | AQ28: =Y28*E28 -> 0 | AR28: 0 | AS28: =+E28*Z28 -> 0.00
AG29: 0
A30: 1.5.1 | B30: Contractor's Profit on the above amount | C30: % | E30: 0.01 | F30: =F28*E30 -> 90,000.00 | Z30: 0 | AA30: =G30*E30 -> 0 | AB30: =H30*E30 -> 0 | AC30: =I30*E30 -> 0 | AD30: =J30*E30 -> 0 | AE30: =K30*E30 -> 0 | AF30: =L30*E30 -> 0 | AG30: 0 | AH30: =N30*E30 -> 0 | AI30: =O30*E30 -> 0 | AJ30: =P30*E30 -> 0 | AK30: =Q30*E30 -> 0 | AL30: =R30*E30 -> 0 | AM30: =S30*E30 -> 0 | AN30: =T30*E30 -> 0 | AO30: =W30*E30 -> 0 | AP30: =X30*E30 -> 0 | AQ30: =Y30*E30 -> 0 | AR30: 0 | AS30: =+E30*Z30 -> 0.00
AG31: 0
A32: 1.60 | B32: Dome lighting System complete as per specialist lighting Engineer | C32: Sum | D32: 1 | E32: 350,000.00 | F32: =$D32*E32 -> 350,000.00 | Z32: 0 | AA32: =G32*E32 -> 0 | AB32: =H32*E32 -> 0 | AC32: =I32*E32 -> 0 | AD32: =J32*E32 -> 0 | AE32: =K32*E32 -> 0 | AF32: =L32*E32 -> 0 | AG32: 0 | AH32: =N32*E32 -> 0 | AI32: =O32*E32 -> 0 | AJ32: =P32*E32 -> 0 | AK32: =Q32*E32 -> 0 | AL32: =R32*E32 -> 0 | AM32: =S32*E32 -> 0 | AN32: =T32*E32 -> 0 | AO32: =W32*E32 -> 0 | AP32: =X32*E32 -> 0 | AQ32: =Y32*E32 -> 0 | AR32: 0 | AS32: =+E32*Z32 -> 0.00
AG33: 0
A34: 1.6.1 | B34: Contractor's Profit on the above amount | C34: % | E34: 0.10 | F34: =F32*E34 -> 35,000.00 | Z34: 0 | AA34: =G34*E34 -> 0 | AB34: =H34*E34 -> 0 | AC34: =I34*E34 -> 0 | AD34: =J34*E34 -> 0 | AE34: =K34*E34 -> 0 | AF34: =L34*E34 -> 0 | AG34: 0 | AH34: =N34*E34 -> 0 | AI34: =O34*E34 -> 0 | AJ34: =P34*E34 -> 0 | AK34: =Q34*E34 -> 0 | AL34: =R34*E34 -> 0 | AM34: =S34*E34 -> 0 | AN34: =T34*E34 -> 0 | AO34: =W34*E34 -> 0 | AP34: =X34*E34 -> 0 | AQ34: =Y34*E34 -> 0 | AR34: 0 | AS34: =+E34*Z34 -> 0.00
AG35: 0
A36: 1.70 | B36: Power Monitoring System complete as per specialist Contractor | C36: Sum | D36: 1 | E36: 2,000,000.00 | F36: =$D36*E36 -> 2,000,000.00 | Z36: 0 | AA36: =G36*E36 -> 0 | AB36: =H36*E36 -> 0 | AC36: =I36*E36 -> 0 | AD36: =J36*E36 -> 0 | AE36: =K36*E36 -> 0 | AF36: =L36*E36 -> 0 | AG36: 0 | AH36: =N36*E36 -> 0 | AI36: =O36*E36 -> 0 | AJ36: =P36*E36 -> 0 | AK36: =Q36*E36 -> 0 | AL36: =R36*E36 -> 0 | AM36: =S36*E36 -> 0 | AN36: =T36*E36 -> 0 | AO36: =W36*E36 -> 0 | AP36: =X36*E36 -> 0 | AQ36: =Y36*E36 -> 0 | AR36: 0 | AS36: =+E36*Z36 -> 0.00
AG37: 0
A38: 1.7.1 | B38: Contractor's Profit on the above amount | C38: % | E38: 0.03 | F38: =F36*E38 -> 50,000.00 | Z38: 0 | AA38: =G38*E38 -> 0 | AB38: =H38*E38 -> 0 | AC38: =I38*E38 -> 0 | AD38: =J38*E38 -> 0 | AE38: =K38*E38 -> 0 | AF38: =L38*E38 -> 0 | AG38: 0 | AH38: =N38*E38 -> 0 | AI38: =O38*E38 -> 0 | AJ38: =P38*E38 -> 0 | AK38: =Q38*E38 -> 0 | AL38: =R38*E38 -> 0 | AM38: =S38*E38 -> 0 | AN38: =T38*E38 -> 0 | AO38: =W38*E38 -> 0 | AP38: =X38*E38 -> 0 | AQ38: =Y38*E38 -> 0 | AR38: 0 | AS38: =+E38*Z38 -> 0.00
AG39: 0
A40: 1.80 | B40: Building Management System complete as per specialist Contractor | C40: Sum | D40: 1 | E40: 2,100,000.00 | F40: =$D40*E40 -> 2,100,000.00 | Z40: 0 | AA40: =G40*E40 -> 0 | AB40: =H40*E40 -> 0 | AC40: =I40*E40 -> 0 | AD40: =J40*E40 -> 0 | AE40: =K40*E40 -> 0 | AF40: =L40*E40 -> 0 | AG40: 0 | AH40: =N40*E40 -> 0 | AI40: =O40*E40 -> 0 | AJ40: =P40*E40 -> 0 | AK40: =Q40*E40 -> 0 | AL40: =R40*E40 -> 0 | AM40: =S40*E40 -> 0 | AN40: =T40*E40 -> 0 | AO40: =W40*E40 -> 0 | AP40: =X40*E40 -> 0 | AQ40: =Y40*E40 -> 0 | AR40: 0 | AS40: =+E40*Z40 -> 0.00
AG41: 0
A42: 1.8.1 | B42: Contractor's Profit on the above amount | C42: % | E42: 0.03 | F42: =F40*E42 -> 52,500.00 | Z42: =SUM(G42:Y42) -> 0 | AA42: =G42*E42 -> 0 | AB42: =H42*E42 -> 0 | AC42: =I42*E42 -> 0 | AD42: =J42*E42 -> 0 | AE42: =K42*E42 -> 0 | AF42: =L42*E42 -> 0 | AG42: 0 | AH42: =N42*E42 -> 0 | AI42: =O42*E42 -> 0 | AJ42: =P42*E42 -> 0 | AK42: =Q42*E42 -> 0 | AL42: =R42*E42 -> 0 | AM42: =S42*E42 -> 0 | AN42: =T42*E42 -> 0 | AO42: =W42*E42 -> 0 | AP42: =X42*E42 -> 0 | AQ42: =Y42*E42 -> 0 | AR42: 0 | AS42: =+E42*Z42 -> 0.00
B46: Amount Carried Forward | F46: =SUM(F16:F45) -> 17,370,000.00 | AS46: =SUM(AS16:AS45) -> 0.00
A48: MAIN HOSPITAL ELECTRICAL INSTALLATION
A49: CECILIA MAKIWANE HOSPITAL : PHASE 4C
A51: BILL NO. 2 : DISTRIBUTION BOARDS
A52: ITEM | B52: DESCRIPTION | C52: UNIT | D52: QTY | E52: RATE | F52: TENDER AMOUNT | G52: A | H52: B | I52: D | J52: E1 | K52: E2 | L52: F1 | M52: F2 | N52: G1 | O52: G2 | P52: H1 | Q52: H2 | R52: J1 | S52: J2 | T52: J3 | U52: Substation | V52: G/House | X52: N | Y52: Other | Z52: Total Qty | AA52: A | AB52: B | AC52: D | AD52: E1 | AE52: E2 | AF52: F1 | AG52: F2 | AH52: G1 | AI52: G2 | AJ52: H1 | AK52: H2 | AL52: J1 | AM52: J2 | AN52: J3 | AO52: K | AP52: N | AQ52: Other | AR52: Total Amount | AS52: Total Claimed
B53: AMOUNT CARRIED FORWARD FROM PREVIOUS BILL | F53: =F46 -> 17,370,000.00 | AS53: =+AS46 -> 0.00
A55: 1.10 | B55: Technical Training | C55: Sum | D55: 1 | E55: 250,000.00 | F55: =$D55*E55 -> 250,000.00 | Z55: =SUM(G55:Y55) -> 0 | AA55: =G55*E55 -> 0 | AB55: =H55*E55 -> 0.00 | AC55: =I55*E55 -> 0.00 | AD55: =J55*E55 -> 0.00 | AE55: =K55*E55 -> 0.00 | AF55: =L55*E55 -> 0.00 | AG55: =+M55*E55 -> 0.00 | AH55: =N55*E55 -> 0.00 | AI55: =O55*E55 -> 0.00 | AJ55: =P55*E55 -> 0.00 | AK55: =Q55*E55 -> 0.00 | AL55: =R55*E55 -> 0.00 | AM55: =S55*E55 -> 0.00 | AN55: =T55*E55 -> 0.00 | AO55: =W55*E55 -> 0.00 | AP55: =X55*E55 -> 0.00 | AQ55: =Y55*E55 -> 0.00 | AR55: =SUM(AA55:AQ55) -> 0.00 | AS55: =+E55*Z55 -> 0.00
AG56: 0.00
A57: 1.10.1 | B57: Contractor's Profit on the above amount | C57: % | E57: 0.10 | F57: =F55*E57 -> 25,000.00 | Z57: =SUM(G57:Y57) -> 0 | AA57: =G57*E57 -> 0 | AB57: =H57*E57 -> 0.00 | AC57: =I57*E57 -> 0.00 | AD57: =J57*E57 -> 0.00 | AE57: =K57*E57 -> 0.00 | AF57: =L57*E7 -> 0.00 | AG57: 0.00 | AH57: =N57*E57 -> 0.00 | AI57: =O57*E57 -> 0.00 | AJ57: =P57*E57 -> 0.00 | AK57: =Q57*E57 -> 0.00 | AL57: =R57*E57 -> 0.00 | AM57: =S57*E57 -> 0.00 | AN57: =T57*E57 -> 0.00 | AO57: =W57*E57 -> 0.00 | AP57: =X57*E57 -> 0.00 | AQ57: =Y57*F57 -> 0.00 | AR57: =SUM(AA57:AQ57) -> 0.00 | AS57: =+AS55*E57 -> 0.00
AG58: 0.00
A59: 1.11 | B59: Life Skills Training | C59: Sum | D59: 1 | E59: 50,000.00 | F59: =$D59*E59 -> 50,000.00 | Z59: 0 | AA59: =G59*E59 -> 0 | AB59: =H59*E59 -> 0.00 | AC59: =I59*E59 -> 0.00 | AD59: =J59*E59 -> 0.00 | AE59: =K59*E59 -> 0.00 | AF59: =L59*E9 -> 0.00 | AG59: 0.00 | AH59: =N59*E59 -> 0.00 | AI59: =O59*E59 -> 0.00 | AJ59: =P59*E59 -> 0.00 | AK59: =Q59*E59 -> 0.00 | AL59: =R59*E59 -> 0.00 | AM59: =S59*E59 -> 0.00 | AN59: =T59*E59 -> 0.00 | AO59: =W59*E59 -> 0.00 | AP59: =X59*E59 -> 0.00 | AQ59: =Y59*E59 -> 0.00 | AR59: 0.00 | AS59: =+E59*Z59 -> 0.00
AG60: 0.00
A61: 1.11.1 | B61: Contractor's Profit on the above amount | C61: % | E61: 0.10 | F61: =F59*E61 -> 5,000.00 | Z61: 0 | AA61: =G61*E61 -> 0 | AB61: =H61*E61 -> 0.00 | AC61: =I61*E61 -> 0.00 | AD61: =J61*E61 -> 0.00 | AE61: =K61*E61 -> 0.00 | AF61: =L61*E11 -> 0.00 | AG61: 0.00 | AH61: =N61*E61 -> 0.00 | AI61: =O61*E61 -> 0.00 | AJ61: =P61*E61 -> 0.00 | AK61: =Q61*E61 -> 0.00 | AL61: =R61*E61 -> 0.00 | AM61: =S61*E61 -> 0.00 | AN61: =T61*E61 -> 0.00 | AO61: =W61*E61 -> 0.00 | AP61: =X61*E61 -> 0.00 | AQ61: =Y61*E61 -> 0.00 | AR61: 0.00 | AS61: =+F61*Z61 -> 0.00
AG62: 0.00
A63: 1.12. | B63: Learners Stipend | C63: Sum | D63: 1 | E63: 75,000.00 | F63: =$D63*E63 -> 75,000.00 | Y63: 0.57 | Z63: 1 | AA63: =G63*E63 -> 0 | AB63: =H63*E63 -> 0.00 | AC63: =I63*E63 -> 0.00 | AD63: =J63*E63 -> 0.00 | AE63: =K63*E63 -> 0.00 | AF63: =L63*E13 -> 0.00 | AG63: 0.00 | AH63: =N63*E63 -> 0.00 | AI63: =O63*E63 -> 0.00 | AJ63: =P63*E63 -> 0.00 | AK63: =Q63*E63 -> 0.00 | AL63: =R63*E63 -> 0.00 | AM63: =S63*E63 -> 0.00 | AN63: =T63*E63 -> 0.00 | AO63: =W63*E63 -> 0.00 | AP63: =X63*E63 -> 0.00 | AQ63: =Y63*E63 -> 42,833.33 | AR63: 42,833.33 | AS63: =+E63*Z63 -> 42,833.33
AG64: 0.00
A65: 1.12.1 | B65: Contractor's Profit on the above amount | C65: % | E65: 0.10 | F65: =F63*E65 -> 7,500.00 | Z65: 0 | AA65: =G65*E65 -> 0 | AB65: =H65*E65 -> 0.00 | AC65: =I65*E65 -> 0.00 | AD65: =J65*E65 -> 0.00 | AE65: =K65*E65 -> 0.00 | AF65: =L65*E15 -> 0.00 | AG65: 0.00 | AH65: =N65*E65 -> 0.00 | AI65: =O65*E65 -> 0.00 | AJ65: =P65*E65 -> 0.00 | AK65: =Q65*E65 -> 0.00 | AL65: =R65*E65 -> 0.00 | AM65: =S65*E65 -> 0.00 | AN65: =T65*E65 -> 0.00 | AO65: =W65*E65 -> 0.00 | AP65: =X65*E65 -> 0.00 | AQ65: =Y65*E65 -> 0.00 | AR65: 0.00 | AS65: =+AS63*E65 -> 4,283.33
AG66: 0.00
A67: 1.13 | B67: SMME MANAGER | AG67: 0.00
AG68: 0.00
A69: 1.13.1 | B69: SMME Manager for all SMME Contracts as per Specification for the duration of the Project | C69: Sum | D69: 1 | E69: 320,000.00 | F69: =$D69*E69 -> 320,000.00 | Y69: 0.24 | Z69: =SUM(G69:Y69) -> 0 | AA69: =G69*E69 -> 0 | AB69: =H69*E69 -> 0.00 | AC69: =I69*E69 -> 0.00 | AD69: =J69*E69 -> 0.00 | AE69: =K69*E69 -> 0.00 | AF69: =L69*E19 -> 0.00 | AG69: 0.00 | AH69: =N69*E69 -> 0.00 | AI69: =O69*E69 -> 0.00 | AJ69: =P69*E69 -> 0.00 | AK69: =Q69*E69 -> 0.00 | AL69: =R69*E69 -> 0.00 | AM69: =S69*E69 -> 0.00 | AN69: =T69*E69 -> 0.00 | AO69: =W69*E69 -> 0.00 | AP69: =X69*E69 -> 0.00 | AQ69: =Y69*E69 -> 77,155.56 | AR69: 77,155.56 | AS69: =+E69*Z69 -> 77,155.56
B72: Amount Carried Forward to Summary Page | F72: =SUM(F53:F71) -> 18,102,500.00 | AS72: =SUM(AS53:AS71) -> 124,272.22
A74: MAIN HOSPITAL ELECTRICAL INSTALLATION
A75: CECILIA MAKIWANE HOSPITAL : PHASE 4C
A77: BILL NO. 2 : DISTRIBUTION BOARDS
A79: ITEM | B79: DESCRIPTION | C79: UNIT | D79: QTY | E79: RATE | F79: TENDER AMOUNT | G79: A-LV05 | H79: B-LV04 | I79: D-LV03 | J79: E1-LV03 | K79: E2 | L79: F1 | M79: F2 | N79: G1 | O79: G2 | P79: H1 | Q79: H2 | R79: J1 | S79: J2 | T79: J3 | U79: Substation | V79: G/House | X79: N | Y79: Other | Z79: Total Qty | AA79: A | AB79: B | AC79: D | AD79: E1 | AE79: E2 | AF79: F1 | AG79: F2 | AH79: G1 | AI79: G2 | AJ79: H1 | AK79: H2 | AL79: J1 | AM79: J2 | AN79: J3 | AO79: K | AP79: N | AQ79: Other | AR79: Total Amount | AS79: Total Claimed
A82: 2.0. | B82: Distrubution Board
B83: Flush mounted Distribution Boards fitted into frames and Trays with Doors to Specification
A85: 2.10 | B85: Peadiatric Ward
B86: Supply | C86: each | D86: 1 | E86: 39,286.80 | F86: =E86*D86 -> 39,286.80 | Z86: =SUM(G86:Y86) -> 0 | AA86: =G86*E86 -> 0 | AB86: =H86*E86 -> 0 | AC86: =I86*E86 -> 0 | AD86: =J86*E86 -> 0 | AE86: =K86*E86 -> 0 | AF86: =L86*E86 -> 0 | AG86: =+M86*E86 -> 0 | AH86: =N86*E86 -> 0 | AI86: =O86*E86 -> 0 | AJ86: =P86*E86 -> 0 | AK86: =Q86*E86 -> 0 | AL86: =R86*E86 -> 0 | AM86: =S86*E86 -> 0 | AN86: =T86*E86 -> 0 | AO86: =W86*E86 -> 0 | AP86: =X86*E86 -> 0 | AQ86: =Y86*E86 -> 0 | AR86: =SUM(AA86:AQ86) -> 0 | AS86: =+E86*Z86 -> 0.00
B87: Install | C87: each | D87: 1 | E87: 3,929.00 | F87: =E87*D87 -> 3,929.00 | Z87: =SUM(G87:Y87) -> 0 | AA87: =G87*E87 -> 0 | AB87: =H87*E87 -> 0 | AC87: =I87*E87 -> 0 | AD87: =J87*E87 -> 0 | AE87: =K87*E87 -> 0 | AF87: =L87*E87 -> 0 | AG87: 0 | AH87: =N87*E87 -> 0 | AI87: =O87*E87 -> 0 | AJ87: =P87*E87 -> 0 | AK87: =Q87*E87 -> 0 | AL87: =R87*E87 -> 0 | AM87: =S87*E87 -> 0 | AN87: =T87*E87 -> 0 | AO87: =W87*E87 -> 0 | AP87: =X87*E87 -> 0 | AQ87: =Y87*E87 -> 0 | AR87: =SUM(AA87:AQ87) -> 0 | AS87: =+E87*Z87 -> 0.00
AG88: 0
A89: 2.20 | B89: Babies and Toddlers Ward | AG89: 0
B90: Supply | C90: each | D90: 1 | E90: 39,438.99 | F90: 39,438.99 | Z90: 0 | AA90: =G90*E90 -> 0 | AB90: =H90*E90 -> 0 | AC90: =I90*E90 -> 0 | AD90: =J90*E90 -> 0 | AE90: =K90*E90 -> 0 | AF90: =L90*E90 -> 0 | AG90: 0 | AH90: =N90*E90 -> 0 | AI90: =O90*E90 -> 0 | AJ90: =P90*E90 -> 0 | AK90: =Q90*E90 -> 0 | AL90: =R90*E90 -> 0 | AM90: =S90*E90 -> 0 | AN90: =T90*E90 -> 0 | AO90: =W90*E90 -> 0 | AP90: =X90*E90 -> 0 | AQ90: =Y90*E90 -> 0 | AR90: 0 | AS90: =+E90*Z90 -> 0.00
B91: Install | C91: each | D91: 1 | E91: 3,944.00 | F91: 3,944.00 | Z91: 0 | AA91: =G91*E91 -> 0 | AB91: =H91*E91 -> 0 | AC91: =I91*E91 -> 0 | AD91: =J91*E91 -> 0 | AE91: =K91*E91 -> 0 | AF91: =L91*E91 -> 0 | AG91: 0 | AH91: =N91*E91 -> 0 | AI91: =O91*E91 -> 0 | AJ91: =P91*E91 -> 0 | AK91: =Q91*E91 -> 0 | AL91: =R91*E91 -> 0 | AM91: =S91*E91 -> 0 | AN91: =T91*E91 -> 0 | AO91: =W91*E91 -> 0 | AP91: =X91*E91 -> 0 | AQ91: =Y91*E91 -> 0 | AR91: 0 | AS91: =+E91*Z91 -> 0.00
AG92: 0
A93: 2.30 | B93: Male Medical Ward - Block D | AG93: 0
B94: Supply | C94: each | D94: 1 | E94: 34,635.14 | F94: 34,635.14 | Z94: 0 | AA94: =G94*E94 -> 0 | AB94: =H94*E94 -> 0 | AC94: =I94*E94 -> 0 | AD94: =J94*E94 -> 0 | AE94: =K94*E94 -> 0 | AF94: =L94*E94 -> 0 | AG94: 0 | AH94: =N94*E94 -> 0 | AI94: =O94*E94 -> 0 | AJ94: =P94*E94 -> 0 | AK94: =Q94*E94 -> 0 | AL94: =R94*E94 -> 0 | AM94: =S94*E94 -> 0 | AN94: =T94*E94 -> 0 | AO94: =W94*E94 -> 0 | AP94: =X94*E94 -> 0 | AQ94: =Y94*E94 -> 0 | AR94: 0 | AS94: =+E94*Z94 -> 0.00
B95: Install | C95: each | D95: 1 | E95: 3,464.00 | F95: 3,464.00 | Z95: 0 | AA95: =G95*E95 -> 0 | AB95: =H95*E95 -> 0 | AC95: =I95*E95 -> 0 | AD95: =J95*E95 -> 0 | AE95: =K95*E95 -> 0 | AF95: =L95*E95 -> 0 | AG95: 0 | AH95: =N95*E95 -> 0 | AI95: =O95*E95 -> 0 | AJ95: =P95*E95 -> 0 | AK95: =Q95*E95 -> 0 | AL95: =R95*E95 -> 0 | AM95: =S95*E95 -> 0 | AN95: =T95*E95 -> 0 | AO95: =W95*E95 -> 0 | AP95: =X95*E95 -> 0 | AQ95: =Y95*E95 -> 0 | AR95: 0 | AS95: =+E95*Z95 -> 0.00
AG96: 0
A97: 2.40 | B97: Acute Psyciatric Unit Ward | AG97: 0
B98: Supply | C98: each | D98: 1 | E98: 19,184.41 | F98: 19,184.41 | Z98: 0 | AA98: =G98*E98 -> 0 | AB98: =H98*E98 -> 0 | AC98: =I98*E98 -> 0 | AD98: =J98*E98 -> 0 | AE98: =K98*E98 -> 0 | AF98: =L98*E98 -> 0 | AG98: 0 | AH98: =N98*E98 -> 0 | AI98: =O98*E98 -> 0 | AJ98: =P98*E98 -> 0 | AK98: =Q98*E98 -> 0 | AL98: =R98*E98 -> 0 | AM98: =S98*E98 -> 0 | AN98: =T98*E98 -> 0 | AO98: =W98*E98 -> 0 | AP98: =X98*E98 -> 0 | AQ98: =Y98*E98 -> 0 | AR98: 0 | AS98: =+E98*Z98 -> 0.00
B99: Install | C99: each | D99: 1 | E99: 1,919.00 | F99: 1,919.00 | Z99: 0 | AA99: =G99*E99 -> 0 | AB99: =H99*E99 -> 0 | AC99: =I99*E99 -> 0 | AD99: =J99*E99 -> 0 | AE99: =K99*E99 -> 0 | AF99: =L99*E99 -> 0 | AG99: 0 | AH99: =N99*E99 -> 0 | AI99: =O99*E99 -> 0 | AJ99: =P99*E99 -> 0 | AK99: =Q99*E99 -> 0 | AL99: =R99*E99 -> 0 | AM99: =S99*E99 -> 0 | AN99: =T99*E99 -> 0 | AO99: =W99*E99 -> 0 | AP99: =X99*E99 -> 0 | AQ99: =Y99*E99 -> 0 | AR99: 0 | AS99: =+E99*Z99 -> 0.00
AG100: 0
A101: 2.50 | B101: Female Medical No1 Ward | AG101: 0
B102: Supply | C102: each | D102: 1 | E102: 40,020.42 | F102: 40,020.42 | Z102: 0 | AA102: =G102*E102 -> 0 | AB102: =H102*E102 -> 0 | AC102: =I102*E102 -> 0 | AD102: =J102*E102 -> 0 | AE102: =K102*E102 -> 0 | AF102: =L102*E102 -> 0 | AG102: 0 | AH102: =N102*E102 -> 0 | AI102: =O102*E102 -> 0 | AJ102: =P102*E102 -> 0 | AK102: =Q102*E102 -> 0 | AL102: =R102*E102 -> 0 | AM102: =S102*E102 -> 0 | AN102: =T102*E102 -> 0 | AO102: =W102*E102 -> 0 | AP102: =X102*E102 -> 0 | AQ102: =Y102*E102 -> 0 | AR102: 0 | AS102: =+E102*Z102 -> 0.00
B103: Install | C103: each | D103: 1 | E103: 4,003.00 | F103: 4,003.00 | Z103: 0 | AA103: =G103*E103 -> 0 | AB103: =H103*E103 -> 0 | AC103: =I103*E103 -> 0 | AD103: =J103*E103 -> 0 | AE103: =K103*E103 -> 0 | AF103: =L103*E103 -> 0 | AG103: 0 | AH103: =N103*E103 -> 0 | AI103: =O103*E103 -> 0 | AJ103: =P103*E103 -> 0 | AK103: =Q103*E103 -> 0 | AL103: =R103*E103 -> 0 | AM103: =S103*E103 -> 0 | AN103: =T103*E103 -> 0 | AO103: =W103*E103 -> 0 | AP103: =X103*E103 -> 0 | AQ103: =Y103*E103 -> 0 | AR103: 0 | AS103: =+E103*Z103 -> 0.00
AG104: 0
A105: 2.60 | B105: Female Medical No2 Ward | AG105: 0
B106: Supply | C106: each | D106: 1 | E106: 40,020.42 | F106: 40,020.42 | Z106: 0 | AA106: =G106*E106 -> 0 | AB106: =H106*E106 -> 0 | AC106: =I106*E106 -> 0 | AD106: =J106*E106 -> 0 | AE106: =K106*E106 -> 0 | AF106: =L106*E106 -> 0 | AG106: 0 | AH106: =N106*E106 -> 0 | AI106: =O106*E106 -> 0 | AJ106: =P106*E106 -> 0 | AK106: =Q106*E106 -> 0 | AL106: =R106*E106 -> 0 | AM106: =S106*E106 -> 0 | AN106: =T106*E106 -> 0 | AO106: =W106*E106 -> 0 | AP106: =X106*E106 -> 0 | AQ106: =Y106*E106 -> 0 | AR106: 0 | AS106: =+E106*Z106 -> 0.00
B107: Install | C107: each | D107: 1 | E107: 4,003.00 | F107: 4,003.00 | Z107: 0 | AA107: =G107*E107 -> 0 | AB107: =H107*E107 -> 0 | AC107: =I107*E107 -> 0 | AD107: =J107*E107 -> 0 | AE107: =K107*E107 -> 0 | AF107: =L107*E107 -> 0 | AG107: 0 | AH107: =N107*E107 -> 0 | AI107: =O107*E107 -> 0 | AJ107: =P107*E107 -> 0 | AK107: =Q107*E107 -> 0 | AL107: =R107*E107 -> 0 | AM107: =S107*E107 -> 0 | AN107: =T107*E107 -> 0 | AO107: =W107*E107 -> 0 | AP107: =X107*E107 -> 0 | AQ107: =Y107*E107 -> 0 | AR107: 0 | AS107: =+E107*Z107 -> 0.00
AG108: 0
A109: 2.70 | B109: Rehab / Stepdown Ward | AG109: 0
B110: Supply | C110: each | D110: 1 | E110: 39,305.55 | F110: 39,305.55 | Z110: 0 | AA110: =G110*E110 -> 0 | AB110: =H110*E110 -> 0 | AC110: =I110*E110 -> 0 | AD110: =J110*E110 -> 0 | AE110: =K110*E110 -> 0 | AF110: =L110*E110 -> 0 | AG110: 0 | AH110: =N110*E110 -> 0 | AI110: =O110*E110 -> 0 | AJ110: =P110*E110 -> 0 | AK110: =Q110*E110 -> 0 | AL110: =R110*E110 -> 0 | AM110: =S110*E110 -> 0 | AN110: =T110*E110 -> 0 | AO110: =W110*E110 -> 0 | AP110: =X110*E110 -> 0 | AQ110: =Y110*E110 -> 0 | AR110: 0 | AS110: =+E110*Z110 -> 0.00
B111: Install | C111: each | D111: 1 | E111: 3,931.00 | F111: 3,931.00 | Z111: 0 | AA111: =G111*E111 -> 0 | AB111: =H111*E111 -> 0 | AC111: =I111*E111 -> 0 | AD111: =J111*E111 -> 0 | AE111: =K111*E111 -> 0 | AF111: =L111*E111 -> 0 | AG111: 0 | AH111: =N111*E111 -> 0 | AI111: =O111*E111 -> 0 | AJ111: =P111*E111 -> 0 | AK111: =Q111*E111 -> 0 | AL111: =R111*E111 -> 0 | AM111: =S111*E111 -> 0 | AN111: =T111*E111 -> 0 | AO111: =W111*E111 -> 0 | AP111: =X111*E111 -> 0 | AQ111: =Y111*E111 -> 0 | AR111: 0 | AS111: =+E111*Z111 -> 0.00
AG112: 0
A113: 2.80 | B113: Female Surgical Ward No1 | AG113: 0
B114: Supply | C114: each | D114: 1 | E114: 25,541.19 | F114: 25,541.19 | Z114: 0 | AA114: =G114*E114 -> 0 | AB114: =H114*E114 -> 0 | AC114: =I114*E114 -> 0 | AD114: =J114*E114 -> 0 | AE114: =K114*E114 -> 0 | AF114: =L114*E114 -> 0 | AG114: 0 | AH114: =N114*E114 -> 0 | AI114: =O114*E114 -> 0 | AJ114: =P114*E114 -> 0 | AK114: =Q114*E114 -> 0 | AL114: =R114*E114 -> 0 | AM114: =S114*E114 -> 0 | AN114: =T114*E114 -> 0 | AO114: =W114*E114 -> 0 | AP114: =X114*E114 -> 0 | AQ114: =Y114*E114 -> 0 | AR114: 0 | AS114: =+E114*Z114 -> 0.00
B115: Install | C115: each | D115: 1 | E115: 2,555.00 | F115: 2,555.00 | Z115: 0 | AA115: =G115*E115 -> 0 | AB115: =H115*E115 -> 0 | AC115: =I115*E115 -> 0 | AD115: =J115*E115 -> 0 | AE115: =K115*E115 -> 0 | AF115: =L115*E115 -> 0 | AG115: 0 | AH115: =N115*E115 -> 0 | AI115: =O115*E115 -> 0 | AJ115: =P115*E115 -> 0 | AK115: =Q115*E115 -> 0 | AL115: =R115*E115 -> 0 | AM115: =S115*E115 -> 0 | AN115: =T115*E115 -> 0 | AO115: =W115*E115 -> 0 | AP115: =X115*E115 -> 0 | AQ115: =Y115*E115 -> 0 | AR115: 0 | AS115: =+E115*Z115 -> 0.00
AG116: 0
A117: 2.90 | B117: Female Surgical Ward No 2 | AG117: 0
B118: Supply | C118: each | D118: 1 | E118: 26,841.97 | F118: 26,841.97 | Z118: 0 | AA118: =G118*E118 -> 0 | AB118: =H118*E118 -> 0 | AC118: =I118*E118 -> 0 | AD118: =J118*E118 -> 0 | AE118: =K118*E118 -> 0 | AF118: =L118*E118 -> 0 | AG118: =+M118*E118 -> 0 | AH118: =N118*E118 -> 0 | AI118: =O118*E118 -> 0 | AJ118: =P118*E118 -> 0 | AK118: =Q118*E118 -> 0 | AL118: =R118*E118 -> 0 | AM118: =S118*E118 -> 0 | AN118: =T118*E118 -> 0 | AO118: =W118*E118 -> 0 | AP118: =X118*E118 -> 0 | AQ118: =Y118*E118 -> 0 | AR118: 0 | AS118: =+E118*Z118 -> 0.00
B119: Install | C119: each | D119: 1 | E119: 2,685.00 | F119: 2,685.00 | Z119: 0 | AA119: =G119*E119 -> 0 | AB119: =H119*E119 -> 0 | AC119: =I119*E119 -> 0 | AD119: =J119*E119 -> 0 | AE119: =K119*E119 -> 0 | AF119: =L119*E119 -> 0 | AG119: 0 | AH119: =N119*E119 -> 0 | AI119: =O119*E119 -> 0 | AJ119: =P119*E119 -> 0 | AK119: =Q119*E119 -> 0 | AL119: =R119*E119 -> 0 | AM119: =S119*E119 -> 0 | AN119: =T119*E119 -> 0 | AO119: =W119*E119 -> 0 | AP119: =X119*E119 -> 0 | AQ119: =Y119*E119 -> 0 | AR119: 0 | AS119: =+E119*Z119 -> 0.00
AG120: 0
A121: 2.10 | B121: Male Surgical Ward No 1 | AG121: 0
B122: Supply | C122: each | D122: 1 | E122: 25,838.15 | F122: 25,838.15 | Z122: 0 | AA122: =G122*E122 -> 0 | AB122: =H122*E122 -> 0 | AC122: =I122*E122 -> 0 | AD122: =J122*E122 -> 0 | AE122: =K122*E122 -> 0 | AF122: =L122*E122 -> 0 | AG122: 0 | AH122: =N122*E122 -> 0 | AI122: =O122*E122 -> 0 | AJ122: =P122*E122 -> 0 | AK122: =Q122*E122 -> 0 | AL122: =R122*E122 -> 0 | AM122: =S122*E122 -> 0 | AN122: =T122*E122 -> 0 | AO122: =W122*E122 -> 0 | AP122: =X122*E122 -> 0 | AQ122: =Y122*E122 -> 0 | AR122: 0 | AS122: =+E122*Z122 -> 0.00
B123: Install | C123: each | D123: 1 | E123: 2,584.00 | F123: 2,584.00 | Z123: 0 | AA123: =G123*E123 -> 0 | AB123: =H123*E123 -> 0 | AC123: =I123*E123 -> 0 | AD123: =J123*E123 -> 0 | AE123: =K123*E123 -> 0 | AF123: =L123*E123 -> 0 | AG123: 0 | AH123: =N123*E123 -> 0 | AI123: =O123*E123 -> 0 | AJ123: =P123*E123 -> 0 | AK123: =Q123*E123 -> 0 | AL123: =R123*E123 -> 0 | AM123: =S123*E123 -> 0 | AN123: =T123*E123 -> 0 | AO123: =W123*E123 -> 0 | AP123: =X123*E123 -> 0 | AQ123: =Y123*E123 -> 0 | AR123: 0 | AS123: =+E123*Z123 -> 0.00
AG124: 0
A125: 2.11 | B125: Male Surgical Ward No 2 | AG125: 0
B126: Supply | C126: each | D126: 1 | E126: 26,662.65 | F126: =E126*D126 -> 26,662.65 | Z126: 0 | AA126: =G126*E126 -> 0 | AB126: =H126*E126 -> 0 | AC126: =I126*E126 -> 0 | AD126: =J126*E126 -> 0 | AE126: =K126*E126 -> 0 | AF126: =L126*E126 -> 0 | AG126: 0 | AH126: =N126*E126 -> 0 | AI126: =O126*E126 -> 0 | AJ126: =P126*E126 -> 0 | AK126: =Q126*E126 -> 0 | AL126: =R126*E126 -> 0 | AM126: =S126*E126 -> 0 | AN126: =T126*E126 -> 0 | AO126: =W126*E126 -> 0 | AP126: =X126*E126 -> 0 | AQ126: =Y126*E126 -> 0 | AR126: 0 | AS126: =+E126*Z126 -> 0.00
B127: Install | C127: each | D127: 1 | E127: 2,667.00 | F127: 2,667.00 | Z127: 0 | AA127: =G127*E127 -> 0 | AB127: =H127*E127 -> 0 | AC127: =I127*E127 -> 0 | AD127: =J127*E127 -> 0 | AE127: =K127*E127 -> 0 | AF127: =L127*E127 -> 0 | AG127: 0 | AH127: =N127*E127 -> 0 | AI127: =O127*E127 -> 0 | AJ127: =P127*E127 -> 0 | AK127: =Q127*E127 -> 0 | AL127: =R127*E127 -> 0 | AM127: =S127*E127 -> 0 | AN127: =T127*E127 -> 0 | AO127: =W127*E127 -> 0 | AP127: =X127*E127 -> 0 | AQ127: =Y127*E127 -> 0 | AR127: 0 | AS127: =+E127*Z127 -> 0.00
AG128: 0
A129: 2.12 | B129: Female Medical Ward | AG129: 0
B130: Supply | C130: each | D130: 1 | E130: 27,180.07 | F130: 27,180.07 | Z130: 0 | AA130: =G130*E130 -> 0 | AB130: =H130*E130 -> 0 | AC130: =I130*E130 -> 0 | AD130: =J130*E130 -> 0 | AE130: =K130*E130 -> 0 | AF130: =L130*E130 -> 0 | AG130: 0 | AH130: =N130*E130 -> 0 | AI130: =O130*E130 -> 0 | AJ130: =P130*E130 -> 0 | AK130: =Q130*E130 -> 0 | AL130: =R130*E130 -> 0 | AM130: =S130*E130 -> 0 | AN130: =T130*E130 -> 0 | AO130: =W130*E130 -> 0 | AP130: =X130*E130 -> 0 | AQ130: =Y130*E130 -> 0 | AR130: 0 | AS130: =+E130*Z130 -> 0.00
B131: Install | C131: each | D131: 1 | E131: 2,719.00 | F131: 2,719.00 | Z131: 0 | AA131: =G131*E131 -> 0 | AB131: =H131*E131 -> 0 | AC131: =I131*E131 -> 0 | AD131: =J131*E131 -> 0 | AE131: =K131*E131 -> 0 | AF131: =L131*E131 -> 0 | AG131: 0 | AH131: =N131*E131 -> 0 | AI131: =O131*E131 -> 0 | AJ131: =P131*E131 -> 0 | AK131: =Q131*E131 -> 0 | AL131: =R131*E131 -> 0 | AM131: =S131*E131 -> 0 | AN131: =T131*E131 -> 0 | AO131: =W131*E131 -> 0 | AP131: =X131*E131 -> 0 | AQ131: =Y131*E131 -> 0 | AR131: 0 | AS131: =+E131*Z131 -> 0.00
AG132: 0
A133: 2.13 | B133: Male Medical Ward - Block B | AG133: 0
B134: Supply | C134: each | D134: 1 | E134: 24,680.15 | F134: 24,680.15 | Z134: 0 | AA134: =G134*E134 -> 0 | AB134: =H134*E134 -> 0 | AC134: =I134*E134 -> 0 | AD134: =J134*E134 -> 0 | AE134: =K134*E134 -> 0 | AF134: =L134*E134 -> 0 | AG134: 0 | AH134: =N134*E134 -> 0 | AI134: =O134*E134 -> 0 | AJ134: =P134*E134 -> 0 | AK134: =Q134*E134 -> 0 | AL134: =R134*E134 -> 0 | AM134: =S134*E134 -> 0 | AN134: =T134*E134 -> 0 | AO134: =W134*E134 -> 0 | AP134: =X134*E134 -> 0 | AQ134: =Y134*E134 -> 0 | AR134: 0 | AS134: =+E134*Z134 -> 0.00
B135: Install | C135: each | D135: 1 | E135: 2,469.00 | F135: 2,469.00 | Z135: 0 | AA135: =G135*E135 -> 0 | AB135: =H135*E135 -> 0 | AC135: =I135*E135 -> 0 | AD135: =J135*E135 -> 0 | AE135: =K135*E135 -> 0 | AF135: =L135*E135 -> 0 | AG135: 0 | AH135: =N135*E135 -> 0 | AI135: =O135*E135 -> 0 | AJ135: =P135*E135 -> 0 | AK135: =Q135*E135 -> 0 | AL135: =R135*E135 -> 0 | AM135: =S135*E135 -> 0 | AN135: =T135*E135 -> 0 | AO135: =W135*E135 -> 0 | AP135: =X135*E135 -> 0 | AQ135: =Y135*E135 -> 0 | AR135: =SUM(AA135:AQ135) -> 0 | AS135: =+E135*Z135 -> 0.00
B139: Amount Carried Forward | F139: =SUM(F81:F138) -> 449,507.91 | AS139: =SUM(AS81:AS138) -> 0.00
A141: MAIN HOSPITAL ELECTRICAL INSTALLATION
A142: CECILIA MAKIWANE HOSPITAL : PHASE 4C
A144: BILL NO. 2 : DISTRIBUTION BOARDS
A145: ITEM | B145: DESCRIPTION | C145: UNIT | D145: QTY | E145: RATE | F145: TENDER AMOUNT | G145: A-LV05 | H145: B-LV04 | I145: D-LV03 | J145: E1-LV03 | K145: E2 | L145: F1 | M145: F2 | N145: G1 | O145: G2 | P145: H1 | Q145: H2 | R145: J1 | S145: J2 | T145: J3 | U145: Substation | V145: G/House | X145: N | Y145: Other | Z145: Total Qty | AA145: A | AB145: B | AC145: D | AD145: E1 | AE145: E2 | AF145: F1 | AG145: F2 | AH145: G1 | AI145: G2 | AJ145: H1 | AK145: H2 | AL145: J1 | AM145: J2 | AN145: J3 | AO145: K | AP145: N | AQ145: Other | AR145: Total Amount | AS145: Total Claimed
B146: AMOUNT CARRIED FORWARD FROM PREVIOUS BILL | F146: =F139 -> 449,507.91 | AS146: =AS139 -> 0.00
A149: 2.14 | B149: Delivery Ward
B150: Supply | C150: each | D150: 1 | E150: 29,249.98 | F150: =$D150*E150 -> 29,249.98 | Z150: =SUM(G150:Y150) -> 0 | AA150: =G150*E150 -> 0 | AB150: =H150*E150 -> 0 | AC150: =I150*E150 -> 0 | AD150: =J150*E150 -> 0 | AE150: =K150*E150 -> 0 | AF150: =L150*E150 -> 0 | AG150: =+M150*E150 -> 0 | AH150: =N150*E150 -> 0 | AI150: =O150*E150 -> 0 | AJ150: =P150*E150 -> 0 | AK150: =Q150*E150 -> 0 | AL150: =R150*E150 -> 0 | AM150: =S150*E150 -> 0 | AN150: =T150*E150 -> 0 | AO150: =W150*E150 -> 0 | AP150: =X150*E150 -> 0 | AQ150: =Y150*E150 -> 0 | AR150: =SUM(AA150:AQ150) -> 0 | AS150: =+E150*Z150 -> 0.00
B151: Install | C151: each | D151: 1 | E151: 2,925.00 | F151: =$D151*E151 -> 2,925.00 | Z151: =SUM(G151:Y151) -> 0 | AA151: =G151*E151 -> 0 | AB151: =H151*E151 -> 0 | AC151: =I151*E151 -> 0 | AD151: =J151*E151 -> 0 | AE151: =K151*E151 -> 0 | AF151: =L151*E151 -> 0 | AG151: 0 | AH151: =N151*E151 -> 0 | AI151: =O151*E151 -> 0 | AJ151: =P151*E151 -> 0 | AK151: =Q151*E151 -> 0 | AL151: =R151*E151 -> 0 | AM151: =S151*E151 -> 0 | AN151: =T151*E151 -> 0 | AO151: =W151*E151 -> 0 | AP151: =X151*E151 -> 0 | AQ151: =Y151*E151 -> 0 | AR151: =SUM(AA151:AQ151) -> 0 | AS151: =+E151*Z151 -> 0.00
AG152: 0
A153: 2.15 | B153: Antenatal Ward | AG153: 0
B154: Supply | C154: each | D154: 1 | E154: 20,787.62 | F154: =$D154*E154 -> 20,787.62 | Z154: 0 | AA154: =G154*E154 -> 0 | AB154: =H154*E154 -> 0 | AC154: =I154*E154 -> 0 | AD154: =J154*E154 -> 0 | AE154: =K154*E154 -> 0 | AF154: =L154*E154 -> 0 | AG154: 0 | AH154: =N154*E154 -> 0 | AI154: =O154*E154 -> 0 | AJ154: =P154*E154 -> 0 | AK154: =Q154*E154 -> 0 | AL154: =R154*E154 -> 0 | AM154: =S154*E154 -> 0 | AN154: =T154*E154 -> 0 | AO154: =W154*E154 -> 0 | AP154: =X154*E154 -> 0 | AQ154: =Y154*E154 -> 0 | AR154: 0 | AS154: =+E154*Z154 -> 0.00
B155: Install | C155: each | D155: 1 | E155: 2,079.00 | F155: 2,079.00 | Z155: 0 | AA155: =G155*E155 -> 0 | AB155: =H155*E155 -> 0 | AC155: =I155*E155 -> 0 | AD155: =J155*E155 -> 0 | AE155: =K155*E155 -> 0 | AF155: =L155*E155 -> 0 | AG155: 0 | AH155: =N155*E155 -> 0 | AI155: =O155*E155 -> 0 | AJ155: =P155*E155 -> 0 | AK155: =Q155*E155 -> 0 | AL155: =R155*E155 -> 0 | AM155: =S155*E155 -> 0 | AN155: =T155*E155 -> 0 | AO155: =W155*E155 -> 0 | AP155: =X155*E155 -> 0 | AQ155: =Y155*E155 -> 0 | AR155: 0 | AS155: =+E155*Z155 -> 0.00
AG156: 0
A157: 2.16 | B157: Neonatal Ward | AG157: 0
B158: Supply | C158: each | D158: 1 | E158: 42,850.58 | F158: 42,850.58 | Z158: 0 | AA158: =G158*E158 -> 0 | AB158: =H158*E158 -> 0 | AC158: =I158*E158 -> 0 | AD158: =J158*E158 -> 0 | AE158: =K158*E158 -> 0 | AF158: =L158*E158 -> 0 | AG158: 0 | AH158: =N158*E158 -> 0 | AI158: =O158*E158 -> 0 | AJ158: =P158*E158 -> 0 | AK158: =Q158*E158 -> 0 | AL158: =R158*E158 -> 0 | AM158: =S158*E158 -> 0 | AN158: =T158*E158 -> 0 | AO158: =W158*E158 -> 0 | AP158: =X158*E158 -> 0 | AQ158: =Y158*E158 -> 0 | AR158: 0 | AS158: =+E158*Z158 -> 0.00
B159: Install | C159: each | D159: 1 | E159: 4,286.00 | F159: 4,286.00 | Z159: 0 | AA159: =G159*E159 -> 0 | AB159: =H159*E159 -> 0 | AC159: =I159*E159 -> 0 | AD159: =J159*E159 -> 0 | AE159: =K159*E159 -> 0 | AF159: =L159*E159 -> 0 | AG159: 0 | AH159: =N159*E159 -> 0 | AI159: =O159*E159 -> 0 | AJ159: =P159*E159 -> 0 | AK159: =Q159*E159 -> 0 | AL159: =R159*E159 -> 0 | AM159: =S159*E159 -> 0 | AN159: =T159*E159 -> 0 | AO159: =W159*E159 -> 0 | AP159: =X159*E159 -> 0 | AQ159: =Y159*E159 -> 0 | AR159: 0 | AS159: =+E159*Z159 -> 0.00
AG160: 0
A161: 2.17 | B161: Main Dist Board 5 CSSD | AG161: 0
B162: Supply | C162: each | D162: 1 | E162: 86,988.30 | F162: 86,988.30 | Z162: 0 | AA162: =G162*E162 -> 0 | AB162: =H162*E162 -> 0 | AC162: =I162*E162 -> 0 | AD162: =J162*E162 -> 0 | AE162: =K162*E162 -> 0 | AF162: =L162*E162 -> 0 | AG162: 0 | AH162: =N162*E162 -> 0 | AI162: =O162*E162 -> 0 | AJ162: =P162*E162 -> 0 | AK162: =Q162*E162 -> 0 | AL162: =R162*E162 -> 0 | AM162: =S162*E162 -> 0 | AN162: =T162*E162 -> 0 | AO162: =W162*E162 -> 0 | AP162: =X162*E162 -> 0 | AQ162: =Y162*E162 -> 0 | AR162: 0 | AS162: =+E162*Z162 -> 0.00
B163: Install | C163: each | D163: 1 | E163: 6,525.00 | F163: 6,525.00 | Z163: 0 | AA163: =G163*E163 -> 0 | AB163: =H163*E163 -> 0 | AC163: =I163*E163 -> 0 | AD163: =J163*E163 -> 0 | AE163: =K163*E163 -> 0 | AF163: =L163*E163 -> 0 | AG163: 0 | AH163: =N163*E163 -> 0 | AI163: =O163*E163 -> 0 | AJ163: =P163*E163 -> 0 | AK163: =Q163*E163 -> 0 | AL163: =R163*E163 -> 0 | AM163: =S163*E163 -> 0 | AN163: =T163*E163 -> 0 | AO163: =W163*E163 -> 0 | AP163: =X163*E163 -> 0 | AQ163: =Y163*E163 -> 0 | AR163: 0 | AS163: =+E163*Z163 -> 0.00
AG164: 0
A165: 2.18 | B165: Post Natal Wards | AG165: 0
B166: Supply | C166: each | D166: 1 | E166: 25,531.91 | F166: 25,531.91 | Z166: 0 | AA166: =G166*E166 -> 0 | AB166: =H166*E166 -> 0 | AC166: =I166*E166 -> 0 | AD166: =J166*E166 -> 0 | AE166: =K166*E166 -> 0 | AF166: =L166*E166 -> 0 | AG166: 0 | AH166: =N166*E166 -> 0 | AI166: =O166*E166 -> 0 | AJ166: =P166*E166 -> 0 | AK166: =Q166*E166 -> 0 | AL166: =R166*E166 -> 0 | AM166: =S166*E166 -> 0 | AN166: =T166*E166 -> 0 | AO166: =W166*E166 -> 0 | AP166: =X166*E166 -> 0 | AQ166: =Y166*E166 -> 0 | AR166: 0 | AS166: =+E166*Z166 -> 0.00
B167: Install | C167: each | D167: 1 | E167: 2,554.00 | F167: 2,554.00 | Z167: 0 | AA167: =G167*E167 -> 0 | AB167: =H167*E167 -> 0 | AC167: =I167*E167 -> 0 | AD167: =J167*E167 -> 0 | AE167: =K167*E167 -> 0 | AF167: =L167*E167 -> 0 | AG167: 0 | AH167: =N167*E167 -> 0 | AI167: =O167*E167 -> 0 | AJ167: =P167*E167 -> 0 | AK167: =Q167*E167 -> 0 | AL167: =R167*E167 -> 0 | AM167: =S167*E167 -> 0 | AN167: =T167*E167 -> 0 | AO167: =W167*E167 -> 0 | AP167: =X167*E167 -> 0 | AQ167: =Y167*E167 -> 0 | AR167: 0 | AS167: =+E167*Z167 -> 0.00
AG168: 0
A169: 2.19 | B169: Post Caesarian Ward | AG169: 0
B170: Supply | C170: each | D170: 1 | E170: 22,622.41 | F170: 22,622.41 | Y170: 1 | Z170: 1 | AA170: =G170*E170 -> 0 | AB170: =H170*E170 -> 0 | AC170: =I170*E170 -> 0 | AD170: =J170*E170 -> 0 | AE170: =K170*E170 -> 0 | AF170: =L170*E170 -> 0 | AG170: 0 | AH170: =N170*E170 -> 0 | AI170: =O170*E170 -> 0 | AJ170: =P170*E170 -> 0 | AK170: =Q170*E170 -> 0 | AL170: =R170*E170 -> 0 | AM170: =S170*E170 -> 0 | AN170: =T170*E170 -> 0 | AO170: =W170*E170 -> 0 | AP170: =X170*E170 -> 0 | AQ170: =Y170*E170 -> 22,622 | AR170: 22,622 | AS170: =+E170*Z170 -> 22,622.41
B171: Install | C171: each | D171: 1 | E171: 2,263.00 | F171: 2,263.00 | Z171: 0 | AA171: =G171*E171 -> 0 | AB171: =H171*E171 -> 0 | AC171: =I171*E171 -> 0 | AD171: =J171*E171 -> 0 | AE171: =K171*E171 -> 0 | AF171: =L171*E171 -> 0 | AG171: 0 | AH171: =N171*E171 -> 0 | AI171: =O171*E171 -> 0 | AJ171: =P171*E171 -> 0 | AK171: =Q171*E171 -> 0 | AL171: =R171*E171 -> 0 | AM171: =S171*E171 -> 0 | AN171: =T171*E171 -> 0 | AO171: =W171*E171 -> 0 | AP171: =X171*E171 -> 0 | AQ171: =Y171*E171 -> 0 | AR171: 0 | AS171: =+E171*Z171 -> 0.00
AG172: 0
A173: 2.20 | B173: Main Dist Board 2 Peadiatric OPD | AG173: 0
B174: Supply | C174: each | D174: 1 | E174: 85,455.24 | F174: 85,455.24 | Z174: 0 | AA174: =G174*E174 -> 0 | AB174: =H174*E174 -> 0 | AC174: =I174*E174 -> 0 | AD174: =J174*E174 -> 0 | AE174: =K174*E174 -> 0 | AF174: =L174*E174 -> 0 | AG174: 0 | AH174: =N174*E174 -> 0 | AI174: =O174*E174 -> 0 | AJ174: =P174*E174 -> 0 | AK174: =Q174*E174 -> 0 | AL174: =R174*E174 -> 0 | AM174: =S174*E174 -> 0 | AN174: =T174*E174 -> 0 | AO174: =W174*E174 -> 0 | AP174: =X174*E174 -> 0 | AQ174: =Y174*E174 -> 0 | AR174: 0 | AS174: =+E174*Z174 -> 0.00
B175: Install | C175: each | D175: 1 | E175: 6,410.00 | F175: 6,410.00 | Z175: 0 | AA175: =G175*E175 -> 0 | AB175: =H175*E175 -> 0 | AC175: =I175*E175 -> 0 | AD175: =J175*E175 -> 0 | AE175: =K175*E175 -> 0 | AF175: =L175*E175 -> 0 | AG175: 0 | AH175: =N175*E175 -> 0 | AI175: =O175*E175 -> 0 | AJ175: =P175*E175 -> 0 | AK175: =Q175*E175 -> 0 | AL175: =R175*E175 -> 0 | AM175: =S175*E175 -> 0 | AN175: =T175*E175 -> 0 | AO175: =W175*E175 -> 0 | AP175: =X175*E175 -> 0 | AQ175: =Y175*E175 -> 0 | AR175: 0 | AS175: =+E175*Z175 -> 0.00
AG176: 0
A177: 2.21 | B177: Laboratory | AG177: 0
B178: Supply | C178: each | D178: 1 | E178: 15,044.66 | F178: 15,044.66 | Z178: 0 | AA178: =G178*E178 -> 0 | AB178: =H178*E178 -> 0 | AC178: =I178*E178 -> 0 | AD178: =J178*E178 -> 0 | AE178: =K178*E178 -> 0 | AF178: =L178*E178 -> 0 | AG178: 0 | AH178: =N178*E178 -> 0 | AI178: =O178*E178 -> 0 | AJ178: =P178*E178 -> 0 | AK178: =Q178*E178 -> 0 | AL178: =R178*E178 -> 0 | AM178: =S178*E178 -> 0 | AN178: =T178*E178 -> 0 | AO178: =W178*E178 -> 0 | AP178: =X178*E178 -> 0 | AQ178: =Y178*E178 -> 0 | AR178: 0 | AS178: =+E178*Z178 -> 0.00
B179: Install | C179: each | D179: 1 | E179: 1,505.00 | F179: 1,505.00 | S179: 1 | Z179: 1 | AA179: =G179*E179 -> 0 | AB179: =H179*E179 -> 0 | AC179: =I179*E179 -> 0 | AD179: =J179*E179 -> 0 | AE179: =K179*E179 -> 0 | AF179: =L179*E179 -> 0 | AG179: 0 | AH179: =N179*E179 -> 0 | AI179: =O179*E179 -> 0 | AJ179: =P179*E179 -> 0 | AK179: =Q179*E179 -> 0 | AL179: =R179*E179 -> 0 | AM179: =S179*E179 -> 1,505 | AN179: =T179*E179 -> 0 | AO179: =W179*E179 -> 0 | AP179: =X179*E179 -> 0 | AQ179: =Y179*E179 -> 0 | AR179: 1,505 | AS179: =+E179*Z179 -> 1,505.00
AG180: 0
A181: 2.22 | B181: Pharmacy | AG181: 0
B182: Supply | C182: each | D182: 1 | E182: 18,937.44 | F182: 18,937.44 | Z182: 0 | AA182: =G182*E182 -> 0 | AB182: =H182*E182 -> 0 | AC182: =I182*E182 -> 0 | AD182: =J182*E182 -> 0 | AE182: =K182*E182 -> 0 | AF182: =L182*E182 -> 0 | AG182: =+M182*E182 -> 0 | AH182: =N182*E182 -> 0 | AI182: =O182*E182 -> 0 | AJ182: =P182*E182 -> 0 | AK182: =Q182*E182 -> 0 | AL182: =R182*E182 -> 0 | AM182: =S182*E182 -> 0 | AN182: =T182*E182 -> 0 | AO182: =W182*E182 -> 0 | AP182: =X182*E182 -> 0 | AQ182: =Y182*E182 -> 0 | AR182: 0 | AS182: =+E182*Z182 -> 0.00
B183: Install | C183: each | D183: 1 | E183: 1,894.00 | F183: 1,894.00 | Z183: 0 | AA183: =G183*E183 -> 0 | AB183: =H183*E183 -> 0 | AC183: =I183*E183 -> 0 | AD183: =J183*E183 -> 0 | AE183: =K183*E183 -> 0 | AF183: =L183*E183 -> 0 | AG183: 0 | AH183: =N183*E183 -> 0 | AI183: =O183*E183 -> 0 | AJ183: =P183*E183 -> 0 | AK183: =Q183*E183 -> 0 | AL183: =R183*E183 -> 0 | AM183: =S183*E183 -> 0 | AN183: =T183*E183 -> 0 | AO183: =W183*E183 -> 0 | AP183: =X183*E183 -> 0 | AQ183: =Y183*E183 -> 0 | AR183: 0 | AS183: =+E183*Z183 -> 0.00
AG184: 0
A185: 2.23 | B185: Ent, Opthalmology and Dental OPD | AG185: 0
B186: Supply | C186: each | D186: 1 | E186: 17,672.39 | F186: 17,672.39 | Z186: 0 | AA186: =G186*E186 -> 0 | AB186: =H186*E186 -> 0 | AC186: =I186*E186 -> 0 | AD186: =J186*E186 -> 0 | AE186: =K186*E186 -> 0 | AF186: =L186*E186 -> 0 | AG186: 0 | AH186: =N186*E186 -> 0 | AI186: =O186*E186 -> 0 | AJ186: =P186*E186 -> 0 | AK186: =Q186*E186 -> 0 | AL186: =R186*E186 -> 0 | AM186: =S186*E186 -> 0 | AN186: =T186*E186 -> 0 | AO186: =W186*E186 -> 0 | AP186: =X186*E186 -> 0 | AQ186: =Y186*E186 -> 0 | AR186: 0 | AS186: =+E186*Z186 -> 0.00
B187: Install | C187: each | D187: 1 | E187: 1,768.00 | F187: 1,768.00 | Z187: 0 | AA187: =G187*E187 -> 0 | AB187: =H187*E187 -> 0 | AC187: =I187*E187 -> 0 | AD187: =J187*E187 -> 0 | AE187: =K187*E187 -> 0 | AF187: =L187*E187 -> 0 | AG187: 0 | AH187: =N187*E187 -> 0 | AI187: =O187*E187 -> 0 | AJ187: =P187*E187 -> 0 | AK187: =Q187*E187 -> 0 | AL187: =R187*E187 -> 0 | AM187: =S187*E187 -> 0 | AN187: =T187*E187 -> 0 | AO187: =W187*E187 -> 0 | AP187: =X187*E187 -> 0 | AQ187: =Y187*E187 -> 0 | AR187: 0 | AS187: =+E187*Z187 -> 0.00
AG188: 0
A189: 2.24 | B189: Main Dist Board 3 OPD | AG189: 0
B190: Supply | C190: each | D190: 1 | E190: 64,169.02 | F190: 64,169.02 | Z190: 0 | AA190: =G190*E190 -> 0 | AB190: =H190*E190 -> 0 | AC190: =I190*E190 -> 0 | AD190: =J190*E190 -> 0 | AE190: =K190*E190 -> 0 | AF190: =L190*E190 -> 0 | AG190: 0 | AH190: =N190*E190 -> 0 | AI190: =O190*E190 -> 0 | AJ190: =P190*E190 -> 0 | AK190: =Q190*E190 -> 0 | AL190: =R190*E190 -> 0 | AM190: =S190*E190 -> 0 | AN190: =T190*E190 -> 0 | AO190: =W190*E190 -> 0 | AP190: =X190*E190 -> 0 | AQ190: =Y190*E190 -> 0 | AR190: 0 | AS190: =+E190*Z190 -> 0.00
B191: Install | C191: each | D191: 1 | E191: 6,417.00 | F191: 6,417.00 | Z191: 0 | AA191: =G191*E191 -> 0 | AB191: =H191*E191 -> 0 | AC191: =I191*E191 -> 0 | AD191: =J191*E191 -> 0 | AE191: =K191*E191 -> 0 | AF191: =L191*E191 -> 0 | AG191: 0 | AH191: =N191*E191 -> 0 | AI191: =O191*E191 -> 0 | AJ191: =P191*E191 -> 0 | AK191: =Q191*E191 -> 0 | AL191: =R191*E191 -> 0 | AM191: =S191*E191 -> 0 | AN191: =T191*E191 -> 0 | AO191: =W191*E191 -> 0 | AP191: =X191*E191 -> 0 | AQ191: =Y191*E191 -> 0 | AR191: 0 | AS191: =+E191*Z191 -> 0.00
AG192: 0
A193: 2.25 | B193: Radiology | AG193: 0
B194: Supply | C194: each | D194: 1 | E194: 38,396.48 | F194: 38,396.48 | Z194: 0 | AA194: =G194*E194 -> 0 | AB194: =H194*E194 -> 0 | AC194: =I194*E194 -> 0 | AD194: =J194*E194 -> 0 | AE194: =K194*E194 -> 0 | AF194: =L194*E194 -> 0 | AG194: 0 | AH194: =N194*E194 -> 0 | AI194: =O194*E194 -> 0 | AJ194: =P194*E194 -> 0 | AK194: =Q194*E194 -> 0 | AL194: =R194*E194 -> 0 | AM194: =S194*E194 -> 0 | AN194: =T194*E194 -> 0 | AO194: =W194*E194 -> 0 | AP194: =X194*E194 -> 0 | AQ194: =Y194*E194 -> 0 | AR194: 0 | AS194: =+E194*Z194 -> 0.00
B195: Install | C195: each | D195: 1 | E195: 3,840.00 | F195: 3,840.00 | Z195: 0 | AA195: =G195*E195 -> 0 | AB195: =H195*E195 -> 0 | AC195: =I195*E195 -> 0 | AD195: =J195*E195 -> 0 | AE195: =K195*E195 -> 0 | AF195: =L195*E195 -> 0 | AG195: 0 | AH195: =N195*E195 -> 0 | AI195: =O195*E195 -> 0 | AJ195: =P195*E195 -> 0 | AK195: =Q195*E195 -> 0 | AL195: =R195*E195 -> 0 | AM195: =S195*E195 -> 0 | AN195: =T195*E195 -> 0 | AO195: =W195*E195 -> 0 | AP195: =X195*E195 -> 0 | AQ195: =Y195*E195 -> 0 | AR195: 0 | AS195: =+E195*Z195 -> 0.00
AG196: 0
A197: 2.26 | B197: Main Dist Board 1 Admissions | AG197: 0
B198: Supply | C198: each | D198: 1 | E198: 62,978.27 | F198: 62,978.27 | Z198: 0 | AA198: =G198*E198 -> 0 | AB198: =H198*E198 -> 0 | AC198: =I198*E198 -> 0 | AD198: =J198*E198 -> 0 | AE198: =K198*E198 -> 0 | AF198: =L198*E198 -> 0 | AG198: 0 | AH198: =N198*E198 -> 0 | AI198: =O198*E198 -> 0 | AJ198: =P198*E198 -> 0 | AK198: =Q198*E198 -> 0 | AL198: =R198*E198 -> 0 | AM198: =S198*E198 -> 0 | AN198: =T198*E198 -> 0 | AO198: =W198*E198 -> 0 | AP198: =X198*E198 -> 0 | AQ198: =Y198*E198 -> 0 | AR198: 0 | AS198: =+E198*Z198 -> 0.00
B199: Install | C199: each | D199: 1 | E199: 6,298.00 | F199: 6,298.00 | Z199: 0 | AA199: =G199*E199 -> 0 | AB199: =H199*E199 -> 0 | AC199: =I199*E199 -> 0 | AD199: =J199*E199 -> 0 | AE199: =K199*E199 -> 0 | AF199: =L199*E199 -> 0 | AG199: 0 | AH199: =N199*E199 -> 0 | AI199: =O199*E199 -> 0 | AJ199: =P199*E199 -> 0 | AK199: =Q199*E199 -> 0 | AL199: =R199*E199 -> 0 | AM199: =S199*E199 -> 0 | AN199: =T199*E199 -> 0 | AO199: =W199*E199 -> 0 | AP199: =X199*E199 -> 0 | AQ199: =Y199*E199 -> 0 | AR199: 0 | AS199: =+E199*Z199 -> 0.00
B201: Amount Carried Forward | F201: =SUM(F146:F199) -> 1,028,956.21 | AS201: =SUM(AS146:AS199) -> 24,127.41
A203: MAIN HOSPITAL ELECTRICAL INSTALLATION
A204: CECILIA MAKIWANE HOSPITAL : PHASE 4C
A206: BILL NO. 2 : DISTRIBUTION BOARDS
A207: ITEM | B207: DESCRIPTION | C207: UNIT | D207: QTY | E207: RATE | F207: TENDER AMOUNT | G207: A-LV05 | H207: B-LV04 | I207: D-LV03 | J207: E1-LV03 | K207: E2 | L207: F1 | M207: F2 | N207: G1 | O207: G2 | P207: H1 | Q207: H2 | R207: J1 | S207: J2 | T207: J3 | U207: Substation | V207: G/House | X207: N | Y207: Other | Z207: Total Qty | AA207: A | AB207: B | AC207: D | AD207: E1 | AE207: E2 | AF207: F1 | AG207: F2 | AH207: G1 | AI207: G2 | AJ207: H1 | AK207: H2 | AL207: J1 | AM207: J2 | AN207: J3 | AO207: K | AP207: N | AQ207: Other | AR207: Total Amount | AS207: Total Claimed
B208: AMOUNT CARRIED FORWARD FROM PREVIOUS BILL | F208: =F201 -> 1,028,956.21 | AS208: =AS201 -> 24,127.41
A210: 2.27 | B210: Cafeteria
B211: Supply | C211: each | D211: 1 | E211: 18,612.34 | F211: =$D211*E211 -> 18,612.34 | Z211: =SUM(G211:Y211) -> 0 | AA211: =G211*E211 -> 0 | AB211: =H211*E211 -> 0 | AC211: =I211*E211 -> 0 | AD211: =J211*E211 -> 0 | AE211: =K211*E211 -> 0 | AF211: =L211*E211 -> 0 | AG211: =+M211*E211 -> 0 | AH211: =N211*E211 -> 0 | AI211: =O211*E211 -> 0 | AJ211: =P211*E211 -> 0 | AK211: =Q211*E211 -> 0 | AL211: =R211*E211 -> 0 | AM211: =S211*E211 -> 0 | AN211: =T211*E211 -> 0 | AO211: =W211*E211 -> 0 | AP211: =X211*E211 -> 0 | AQ211: =Y211*E211 -> 0 | AR211: =SUM(AA211:AQ211) -> 0 | AS211: =+E211*Z211 -> 0.00
B212: Install | C212: each | D212: 1 | E212: 1,862.00 | F212: =$D212*E212 -> 1,862.00 | Z212: =SUM(G212:Y212) -> 0 | AA212: =G212*E212 -> 0 | AB212: =H212*E212 -> 0 | AC212: =I212*E212 -> 0 | AD212: =J212*E212 -> 0 | AE212: =K212*E212 -> 0 | AF212: =L212*E212 -> 0 | AG212: 0 | AH212: =N212*E212 -> 0 | AI212: =O212*E212 -> 0 | AJ212: =P212*E212 -> 0 | AK212: =Q212*E212 -> 0 | AL212: =R212*E212 -> 0 | AM212: =S212*E212 -> 0 | AN212: =T212*E212 -> 0 | AO212: =W212*E212 -> 0 | AP212: =X212*E212 -> 0 | AQ212: =Y212*E212 -> 0 | AR212: =SUM(AA212:AQ212) -> 0 | AS212: =+E212*Z212 -> 0.00
AG213: 0
A214: 2.28 | B214: Rehabilatation No1 | AG214: 0
B215: Supply | C215: each | D215: 1 | E215: 17,559.16 | F215: =$D215*E215 -> 17,559.16 | Z215: 0 | AA215: =G215*E215 -> 0 | AB215: =H215*E215 -> 0 | AC215: =I215*E215 -> 0 | AD215: =J215*E215 -> 0 | AE215: =K215*E215 -> 0 | AF215: =L215*E215 -> 0 | AG215: 0 | AH215: =N215*E215 -> 0 | AI215: =O215*E215 -> 0 | AJ215: =P215*E215 -> 0 | AK215: =Q215*E215 -> 0 | AL215: =R215*E215 -> 0 | AM215: =S215*E215 -> 0 | AN215: =T215*E215 -> 0 | AO215: =W215*E215 -> 0 | AP215: =X215*E215 -> 0 | AQ215: =Y215*E215 -> 0 | AR215: 0 | AS215: =+E215*Z215 -> 0.00
B216: Install | C216: each | D216: 1 | E216: 1,756.00 | F216: 1,756.00 | Z216: 0 | AA216: =G216*E216 -> 0 | AB216: =H216*E216 -> 0 | AC216: =I216*E216 -> 0 | AD216: =J216*E216 -> 0 | AE216: =K216*E216 -> 0 | AF216: =L216*E216 -> 0 | AG216: 0 | AH216: =N216*E216 -> 0 | AI216: =O216*E216 -> 0 | AJ216: =P216*E216 -> 0 | AK216: =Q216*E216 -> 0 | AL216: =R216*E216 -> 0 | AM216: =S216*E216 -> 0 | AN216: =T216*E216 -> 0 | AO216: =W216*E216 -> 0 | AP216: =X216*E216 -> 0 | AQ216: =Y216*E216 -> 0 | AR216: 0 | AS216: =+E216*Z216 -> 0.00
AG217: 0
A218: 2.29 | B218: Rehabilatation No2 | AG218: 0
B219: Supply | C219: each | D219: 1 | E219: 17,946.75 | F219: 17,946.75 | Z219: 0 | AA219: =G219*E219 -> 0 | AB219: =H219*E219 -> 0 | AC219: =I219*E219 -> 0 | AD219: =J219*E219 -> 0 | AE219: =K219*E219 -> 0 | AF219: =L219*E219 -> 0 | AG219: 0 | AH219: =N219*E219 -> 0 | AI219: =O219*E219 -> 0 | AJ219: =P219*E219 -> 0 | AK219: =Q219*E219 -> 0 | AL219: =R219*E219 -> 0 | AM219: =S219*E219 -> 0 | AN219: =T219*E219 -> 0 | AO219: =W219*E219 -> 0 | AP219: =X219*E219 -> 0 | AQ219: =Y219*E219 -> 0 | AR219: 0 | AS219: =+E219*Z219 -> 0.00
B220: Install | C220: each | D220: 1 | E220: 1,795.00 | F220: 1,795.00 | Z220: 0 | AA220: =G220*E220 -> 0 | AB220: =H220*E220 -> 0 | AC220: =I220*E220 -> 0 | AD220: =J220*E220 -> 0 | AE220: =K220*E220 -> 0 | AF220: =L220*E220 -> 0 | AG220: 0 | AH220: =N220*E220 -> 0 | AI220: =O220*E220 -> 0 | AJ220: =P220*E220 -> 0 | AK220: =Q220*E220 -> 0 | AL220: =R220*E220 -> 0 | AM220: =S220*E220 -> 0 | AN220: =T220*E220 -> 0 | AO220: =W220*E220 -> 0 | AP220: =X220*E220 -> 0 | AQ220: =Y220*E220 -> 0 | AR220: 0 | AS220: =+E220*Z220 -> 0.00
AG221: 0
A222: 2.30 | B222: Accident and Emergency No1 | AG222: 0
B223: Supply | C223: each | D223: 1 | E223: 32,030.88 | F223: 32,030.88 | Z223: 0 | AA223: =G223*E223 -> 0 | AB223: =H223*E223 -> 0 | AC223: =I223*E223 -> 0 | AD223: =J223*E223 -> 0 | AE223: =K223*E223 -> 0 | AF223: =L223*E223 -> 0 | AG223: 0 | AH223: =N223*E223 -> 0 | AI223: =O223*E223 -> 0 | AJ223: =P223*E223 -> 0 | AK223: =Q223*E223 -> 0 | AL223: =R223*E223 -> 0 | AM223: =S223*E223 -> 0 | AN223: =T223*E223 -> 0 | AO223: =W223*E223 -> 0 | AP223: =X223*E223 -> 0 | AQ223: =Y223*E223 -> 0 | AR223: 0 | AS223: =+E223*Z223 -> 0.00
B224: Install | C224: each | D224: 1 | E224: 3,204.00 | F224: 3,204.00 | Z224: 0 | AA224: =G224*E224 -> 0 | AB224: =H224*E224 -> 0 | AC224: =I224*E224 -> 0 | AD224: =J224*E224 -> 0 | AE224: =K224*E224 -> 0 | AF224: =L224*E224 -> 0 | AG224: 0 | AH224: =N224*E224 -> 0 | AI224: =O224*E224 -> 0 | AJ224: =P224*E224 -> 0 | AK224: =Q224*E224 -> 0 | AL224: =R224*E224 -> 0 | AM224: =S224*E224 -> 0 | AN224: =T224*E224 -> 0 | AO224: =W224*E224 -> 0 | AP224: =X224*E224 -> 0 | AQ224: =Y224*E224 -> 0 | AR224: 0 | AS224: =+E224*Z224 -> 0.00
AG225: 0
A226: 2.31 | B226: Accident and Emergency No2 | AG226: 0
B227: Supply | C227: each | D227: 1 | E227: 47,906.01 | F227: 47,906.01 | Z227: 0 | AA227: =G227*E227 -> 0 | AB227: =H227*E227 -> 0 | AC227: =I227*E227 -> 0 | AD227: =J227*E227 -> 0 | AE227: =K227*E227 -> 0 | AF227: =L227*E227 -> 0 | AG227: 0 | AH227: =N227*E227 -> 0 | AI227: =O227*E227 -> 0 | AJ227: =P227*E227 -> 0 | AK227: =Q227*E227 -> 0 | AL227: =R227*E227 -> 0 | AM227: =S227*E227 -> 0 | AN227: =T227*E227 -> 0 | AO227: =W227*E227 -> 0 | AP227: =X227*E227 -> 0 | AQ227: =Y227*E227 -> 0 | AR227: 0 | AS227: =+E227*Z227 -> 0.00
B228: Install | C228: each | D228: 1 | E228: 4,791.00 | F228: 4,791.00 | Z228: 0 | AA228: =G228*E228 -> 0 | AB228: =H228*E228 -> 0 | AC228: =I228*E228 -> 0 | AD228: =J228*E228 -> 0 | AE228: =K228*E228 -> 0 | AF228: =L228*E228 -> 0 | AG228: 0 | AH228: =N228*E228 -> 0 | AI228: =O228*E228 -> 0 | AJ228: =P228*E228 -> 0 | AK228: =Q228*E228 -> 0 | AL228: =R228*E228 -> 0 | AM228: =S228*E228 -> 0 | AN228: =T228*E228 -> 0 | AO228: =W228*E228 -> 0 | AP228: =X228*E228 -> 0 | AQ228: =Y228*E228 -> 0 | AR228: 0 | AS228: =+E228*Z228 -> 0.00
AG229: 0
A230: 2.32 | B230: Burns Unit | AG230: 0
B231: Supply | C231: each | D231: 1 | E231: 29,463.63 | F231: 29,463.63 | Z231: 0 | AA231: =G231*E231 -> 0 | AB231: =H231*E231 -> 0 | AC231: =I231*E231 -> 0 | AD231: =J231*E231 -> 0 | AE231: =K231*E231 -> 0 | AF231: =L231*E231 -> 0 | AG231: 0 | AH231: =N231*E231 -> 0 | AI231: =O231*E231 -> 0 | AJ231: =P231*E231 -> 0 | AK231: =Q231*E231 -> 0 | AL231: =R231*E231 -> 0 | AM231: =S231*E231 -> 0 | AN231: =T231*E231 -> 0 | AO231: =W231*E231 -> 0 | AP231: =X231*E231 -> 0 | AQ231: =Y231*E231 -> 0 | AR231: 0 | AS231: =+E231*Z231 -> 0.00
B232: Install | C232: each | D232: 1 | E232: 2,947.00 | F232: 2,947.00 | Z232: 0 | AA232: =G232*E232 -> 0 | AB232: =H232*E232 -> 0 | AC232: =I232*E232 -> 0 | AD232: =J232*E232 -> 0 | AE232: =K232*E232 -> 0 | AF232: =L232*E232 -> 0 | AG232: 0 | AH232: =N232*E232 -> 0 | AI232: =O232*E232 -> 0 | AJ232: =P232*E232 -> 0 | AK232: =Q232*E232 -> 0 | AL232: =R232*E232 -> 0 | AM232: =S232*E232 -> 0 | AN232: =T232*E232 -> 0 | AO232: =W232*E232 -> 0 | AP232: =X232*E232 -> 0 | AQ232: =Y232*E232 -> 0 | AR232: 0 | AS232: =+E232*Z232 -> 0.00
... 1510 more rows

Sheet Block Breakdown Cum (hidden)
A2: MAIN HOSPITAL ELECTRICAL INSTALLATION
A3: CECILIA MAKIWANE HOSPITAL : PHASE 4C
A5: BILL NO. 1 : PROVISIONAL AND SUPERVISION AMOUNTS | E5: Besamandla
A6: ITEM | B6: DESCRIPTION | C6: UNIT | D6: QTY | E6: RATE | F6: TENDER AMOUNT | G6: Total Quantity Claimed to Date | AA6: Total Value Claimed to Date | AS6: Total Claimed
G7: A | H7: B | I7: D | J7: E1 | K7: E2 | L7: F1 | M7: F2 | N7: G1 | O7: G2 | P7: H1 | Q7: H2 | R7: J1 | S7: J2 | T7: J3 | U7: Substation | V7: G/House | W7: K | X7: N | Y7: Other | Z7: Total Qty | AA7: A | AB7: B | AC7: D | AD7: E1 | AE7: E2 | AF7: F1 | AG7: F2 | AH7: G1 | AI7: G2 | AJ7: H1 | AK7: H2 | AL7: J1 | AM7: J2 | AN7: J3 | AO7: K | AP7: N | AQ7: Other | AR7: Total Amount
B9: P&G Claim amounts For LV and MV | F9: WG 190 | AS9: =#REF!+#REF!+#REF!+#REF!+#REF!+#REF!+#REF!+#REF!+#REF!+#REF!+#REF!+#REF!+#REF!+#REF!+#REF!+#REF!+#REF!+#REF!+#REF!+#REF!+#REF!+#REF!+#REF!+#REF!+#REF!+#REF!+#REF!+#REF!+#REF!+#REF!+#REF!+#REF!+#REF!+#REF!+#REF!+#REF! -> 
A12: 1.00 | B12: Provisional amounts, pertaining specifically to the Electrical Installation Contract
B14: Provisional Amounts
A16: 1.10 | B16: An amount to receive, store, install and connect complete new Digital Xray viewing panels from Radiology Contractor or supplier | C16: Sum | D16: 1 | E16: 125,000.00 | F16: =$D16*E16 -> 125,000.00 | G16: =+'Block Breakdown This'!G16+'Block Breakdown Prev'!G16 -> 0.00 | H16: =+'Block Breakdown This'!H16+'Block Breakdown Prev'!H16 -> 0.00 | I16: =+'Block Breakdown This'!I$16+'Block Breakdown Prev'!I$16 -> 0.00 | J16: =+'Block Breakdown This'!J16+'Block Breakdown Prev'!J16 -> 0.00 | K16: =+'Block Breakdown This'!K16+'Block Breakdown Prev'!K16 -> 0.00 | L16: =+'Block Breakdown This'!L16+'Block Breakdown Prev'!L16 -> 0.00 | M16: =+'Block Breakdown This'!M16+'Block Breakdown Prev'!M16 -> 0.00 | N16: =+'Block Breakdown This'!N16+'Block Breakdown Prev'!N16 -> 0.00 | O16: =+'Block Breakdown This'!O16+'Block Breakdown Prev'!O16 -> 0.00 | P16: =+'Block Breakdown This'!P16+'Block Breakdown Prev'!P16 -> 0.00 | Q16: =+'Block Breakdown This'!Q16+'Block Breakdown Prev'!Q16 -> 0.00 | R16: =+'Block Breakdown This'!R16+'Block Breakdown Prev'!R16 -> 0.00 | S16: =+'Block Breakdown This'!S16+'Block Breakdown Prev'!S16 -> 0.00 | T16: =+'Block Breakdown This'!T16+'Block Breakdown Prev'!T16 -> 0.00 | U16: =+'Block Breakdown This'!U16+'Block Breakdown Prev'!U16 -> 0.00 | V16: =+'Block Breakdown This'!V16+'Block Breakdown Prev'!V16 -> 0.00 | W16: =+'Block Breakdown This'!W16+'Block Breakdown Prev'!W16 -> 0.00 | X16: =+'Block Breakdown This'!X16+'Block Breakdown Prev'!X16 -> 0.00 | Y16: =+'Block Breakdown This'!Y16+'Block Breakdown Prev'!Y16 -> 0.00 | Z16: =SUM(G16:Y16) -> 0.00 | AA16: =G16*E16 -> 0 | AB16: =H16*E16 -> 0 | AC16: =I16*E16 -> 0 | AD16: =J16*E16 -> 0 | AE16: =K16*E16 -> 0 | AF16: =L16*E16 -> 0 | AG16: =+M16*E16 -> 0 | AH16: =N16*E16 -> 0 | AI16: =O16*E16 -> 0 | AJ16: =P16*E16 -> 0 | AK16: =Q16*E16 -> 0 | AL16: =R16*E16 -> 0 | AM16: =S16*E16 -> 0 | AN16: =T16*E16 -> 0 | AO16: =W16*E16 -> 0 | AP16: =X16*E16 -> 0 | AQ16: =Y16*E16 -> 0 | AR16: =SUM(AA16:AQ16) -> 0 | AS16: =+E16*Z16 -> 0.00
AG17: 0
A18: 1.1.1 | B18: Contractor's Profit on the above amount | C18: % | E18: 0.10 | F18: =F16*E18 -> 12,500.00 | G18: =+'Block Breakdown This'!G18+'Block Breakdown Prev'!G18 -> 0.00 | H18: =+'Block Breakdown This'!H18+'Block Breakdown Prev'!H18 -> 0.00 | I18: =+'Block Breakdown This'!I18+'Block Breakdown Prev'!I18 -> 0.00 | J18: =+'Block Breakdown This'!J18+'Block Breakdown Prev'!J18 -> 0.00 | K18: =+'Block Breakdown This'!K18+'Block Breakdown Prev'!K18 -> 0.00 | L18: =+'Block Breakdown This'!L18+'Block Breakdown Prev'!L18 -> 0.00 | M18: =+'Block Breakdown This'!M18+'Block Breakdown Prev'!M18 -> 0.00 | N18: =+'Block Breakdown This'!N18+'Block Breakdown Prev'!N18 -> 0.00 | O18: =+'Block Breakdown This'!O18+'Block Breakdown Prev'!O18 -> 0.00 | P18: =+'Block Breakdown This'!P18+'Block Breakdown Prev'!P18 -> 0.00 | Q18: =+'Block Breakdown This'!Q18+'Block Breakdown Prev'!Q18 -> 0.00 | R18: =+'Block Breakdown This'!R18+'Block Breakdown Prev'!R18 -> 0.00 | S18: =+'Block Breakdown This'!S18+'Block Breakdown Prev'!S18 -> 0.00 | T18: =+'Block Breakdown This'!T18+'Block Breakdown Prev'!T18 -> 0.00 | U18: =+'Block Breakdown This'!U18+'Block Breakdown Prev'!U18 -> 0.00 | V18: =+'Block Breakdown This'!V18+'Block Breakdown Prev'!V18 -> 0.00 | W18: =+'Block Breakdown This'!W18+'Block Breakdown Prev'!W18 -> 0.00 | X18: =+'Block Breakdown This'!X18+'Block Breakdown Prev'!X18 -> 0.00 | Y18: =+'Block Breakdown This'!Y18+'Block Breakdown Prev'!Y18 -> 0.00 | Z18: =SUM(G18:Y18) -> 0.00 | AA18: =G18*E18 -> 0 | AB18: =H18*E18 -> 0 | AC18: =I18*E18 -> 0 | AD18: =J18*E18 -> 0 | AE18: =K18*E18 -> 0 | AF18: =L18*E18 -> 0 | AG18: 0 | AH18: =N18*E18 -> 0 | AI18: =O18*E18 -> 0 | AJ18: =P18*E18 -> 0 | AK18: =Q18*E18 -> 0 | AL18: =R18*E18 -> 0 | AM18: =S18*E18 -> 0 | AN18: =T18*E18 -> 0 | AO18: =W18*E18 -> 0 | AP18: =X18*E18 -> 0 | AQ18: =Y18*E18 -> 0 | AR18: =SUM(AA18:AQ18) -> 0 | AS18: =+E18*Z18 -> 0.00
AG19: 0
A20: 1.30 | B20: Specialist Lighting Contractor to complete the main Entrance and Façade of the Main Hospital | C20: Sum | D20: 1 | E20: 250,000.00 | F20: =$D20*E20 -> 250,000.00 | G20: =+'Block Breakdown This'!G20+'Block Breakdown Prev'!G20 -> 0.00 | H20: =+'Block Breakdown This'!H20+'Block Breakdown Prev'!H20 -> 0.00 | I20: =+'Block Breakdown This'!I20+'Block Breakdown Prev'!I20 -> 0.00 | J20: =+'Block Breakdown This'!J20+'Block Breakdown Prev'!J20 -> 0.00 | K20: =+'Block Breakdown This'!K20+'Block Breakdown Prev'!K20 -> 0.00 | L20: =+'Block Breakdown This'!L20+'Block Breakdown Prev'!L20 -> 0.00 | M20: =+'Block Breakdown This'!M20+'Block Breakdown Prev'!M20 -> 0.00 | N20: =+'Block Breakdown This'!N20+'Block Breakdown Prev'!N20 -> 0.00 | O20: =+'Block Breakdown This'!O20+'Block Breakdown Prev'!O20 -> 0.00 | P20: =+'Block Breakdown This'!P20+'Block Breakdown Prev'!P20 -> 0.00 | Q20: =+'Block Breakdown This'!Q20+'Block Breakdown Prev'!Q20 -> 0.00 | R20: =+'Block Breakdown This'!R20+'Block Breakdown Prev'!R20 -> 0.00 | S20: =+'Block Breakdown This'!S20+'Block Breakdown Prev'!S20 -> 0.00 | T20: =+'Block Breakdown This'!T20+'Block Breakdown Prev'!T20 -> 0.00 | U20: =+'Block Breakdown This'!U20+'Block Breakdown Prev'!U20 -> 0.00 | V20: =+'Block Breakdown This'!V20+'Block Breakdown Prev'!V20 -> 0.00 | W20: =+'Block Breakdown This'!W20+'Block Breakdown Prev'!W20 -> 0.00 | X20: =+'Block Breakdown This'!X20+'Block Breakdown Prev'!X20 -> 0.00 | Y20: =+'Block Breakdown This'!Y20+'Block Breakdown Prev'!Y20 -> 0.00 | Z20: 0.00 | AA20: =G20*E20 -> 0 | AB20: =H20*E20 -> 0 | AC20: =I20*E20 -> 0 | AD20: =J20*E20 -> 0 | AE20: =K20*E20 -> 0 | AF20: =L20*E20 -> 0 | AG20: 0 | AH20: =N20*E20 -> 0 | AI20: =O20*E20 -> 0 | AJ20: =P20*E20 -> 0 | AK20: =Q20*E20 -> 0 | AL20: =R20*E20 -> 0 | AM20: =S20*E20 -> 0 | AN20: =T20*E20 -> 0 | AO20: =W20*E20 -> 0 | AP20: =X20*E20 -> 0 | AQ20: =Y20*E20 -> 0 | AR20: 0 | AS20: =+E20*Z20 -> 0.00
AG21: 0
A22: 1.3.1 | B22: Contractor's Profit on the above amount | C22: % | E22: 0.10 | F22: =F20*E22 -> 25,000.00 | G22: =+'Block Breakdown This'!G22+'Block Breakdown Prev'!G22 -> 0.00 | H22: =+'Block Breakdown This'!H22+'Block Breakdown Prev'!H22 -> 0.00 | I22: =+'Block Breakdown This'!I22+'Block Breakdown Prev'!I22 -> 0.00 | J22: =+'Block Breakdown This'!J22+'Block Breakdown Prev'!J22 -> 0.00 | K22: =+'Block Breakdown This'!K22+'Block Breakdown Prev'!K22 -> 0.00 | L22: =+'Block Breakdown This'!L22+'Block Breakdown Prev'!L22 -> 0.00 | M22: =+'Block Breakdown This'!M22+'Block Breakdown Prev'!M22 -> 0.00 | N22: =+'Block Breakdown This'!N22+'Block Breakdown Prev'!N22 -> 0.00 | O22: =+'Block Breakdown This'!O22+'Block Breakdown Prev'!O22 -> 0.00 | P22: =+'Block Breakdown This'!P22+'Block Breakdown Prev'!P22 -> 0.00 | Q22: =+'Block Breakdown This'!Q22+'Block Breakdown Prev'!Q22 -> 0.00 | R22: =+'Block Breakdown This'!R22+'Block Breakdown Prev'!R22 -> 0.00 | S22: =+'Block Breakdown This'!S22+'Block Breakdown Prev'!S22 -> 0.00 | T22: =+'Block Breakdown This'!T22+'Block Breakdown Prev'!T22 -> 0.00 | U22: =+'Block Breakdown This'!U22+'Block Breakdown Prev'!U22 -> 0.00 | V22: =+'Block Breakdown This'!V22+'Block Breakdown Prev'!V22 -> 0.00 | W22: =+'Block Breakdown This'!W22+'Block Breakdown Prev'!W22 -> 0.00 | X22: =+'Block Breakdown This'!X22+'Block Breakdown Prev'!X22 -> 0.00 | Y22: =+'Block Breakdown This'!Y22+'Block Breakdown Prev'!Y22 -> 0.00 | Z22: 0.00 | AA22: =G22*E22 -> 0 | AB22: =H22*E22 -> 0 | AC22: =I22*E22 -> 0 | AD22: =J22*E22 -> 0 | AE22: =K22*E22 -> 0 | AF22: =L22*E22 -> 0 | AG22: 0 | AH22: =N22*E22 -> 0 | AI22: =O22*E22 -> 0 | AJ22: =P22*E22 -> 0 | AK22: =Q22*E22 -> 0 | AL22: =R22*E22 -> 0 | AM22: =S22*E22 -> 0 | AN22: =T22*E22 -> 0 | AO22: =W22*E22 -> 0 | AP22: =X22*E22 -> 0 | AQ22: =Y22*E22 -> 0 | AR22: 0 | AS22: =+E22*Z22 -> 0.00
AG23: 0
A24: 1.40 | B24: UPS System complete for the Main Hospital | C24: Sum | D24: 1 | E24: 3,200,000.00 | F24: =$D24*E24 -> 3,200,000.00 | G24: =+'Block Breakdown This'!G24+'Block Breakdown Prev'!G24 -> 0.00 | H24: =+'Block Breakdown This'!H24+'Block Breakdown Prev'!H24 -> 0.00 | I24: =+'Block Breakdown This'!I24+'Block Breakdown Prev'!I24 -> 0.00 | J24: =+'Block Breakdown This'!J24+'Block Breakdown Prev'!J24 -> 0.00 | K24: =+'Block Breakdown This'!K24+'Block Breakdown Prev'!K24 -> 0.00 | L24: =+'Block Breakdown This'!L24+'Block Breakdown Prev'!L24 -> 0.00 | M24: =+'Block Breakdown This'!M24+'Block Breakdown Prev'!M24 -> 0.00 | N24: =+'Block Breakdown This'!N24+'Block Breakdown Prev'!N24 -> 0.00 | O24: =+'Block Breakdown This'!O24+'Block Breakdown Prev'!O24 -> 0.00 | P24: =+'Block Breakdown This'!P24+'Block Breakdown Prev'!P24 -> 0.00 | Q24: =+'Block Breakdown This'!Q24+'Block Breakdown Prev'!Q24 -> 0.00 | R24: =+'Block Breakdown This'!R24+'Block Breakdown Prev'!R24 -> 0.00 | S24: =+'Block Breakdown This'!S24+'Block Breakdown Prev'!S24 -> 0.00 | T24: =+'Block Breakdown This'!T24+'Block Breakdown Prev'!T24 -> 0.00 | U24: =+'Block Breakdown This'!U24+'Block Breakdown Prev'!U24 -> 0.00 | V24: =+'Block Breakdown This'!V24+'Block Breakdown Prev'!V24 -> 0.00 | W24: =+'Block Breakdown This'!W24+'Block Breakdown Prev'!W24 -> 0.00 | X24: =+'Block Breakdown This'!X24+'Block Breakdown Prev'!X24 -> 0.00 | Y24: =+'Block Breakdown This'!Y24+'Block Breakdown Prev'!Y24 -> 0.00 | Z24: 0.00 | AA24: =G24*E24 -> 0 | AB24: =H24*E24 -> 0 | AC24: =I24*E24 -> 0 | AD24: =J24*E24 -> 0 | AE24: =K24*E24 -> 0 | AF24: =L24*E24 -> 0 | AG24: 0 | AH24: =N24*E24 -> 0 | AI24: =O24*E24 -> 0 | AJ24: =P24*E24 -> 0 | AK24: =Q24*E24 -> 0 | AL24: =R24*E24 -> 0 | AM24: =S24*E24 -> 0 | AN24: =T24*E24 -> 0 | AO24: =W24*E24 -> 0 | AP24: =X24*E24 -> 0 | AQ24: =Y24*E24 -> 0 | AR24: 0 | AS24: =+E24*Z24 -> 0.00
AG25: 0
A26: 1.4.1 | B26: Contractor's Profit on the above amount | C26: % | E26: 0.03 | F26: =F24*E26 -> 80,000.00 | G26: =+'Block Breakdown This'!G26+'Block Breakdown Prev'!G26 -> 0.00 | H26: =+'Block Breakdown This'!H26+'Block Breakdown Prev'!H26 -> 0.00 | I26: =+'Block Breakdown This'!I26+'Block Breakdown Prev'!I26 -> 0.00 | J26: =+'Block Breakdown This'!J26+'Block Breakdown Prev'!J26 -> 0.00 | K26: =+'Block Breakdown This'!K26+'Block Breakdown Prev'!K26 -> 0.00 | L26: =+'Block Breakdown This'!L26+'Block Breakdown Prev'!L26 -> 0.00 | M26: =+'Block Breakdown This'!M26+'Block Breakdown Prev'!M26 -> 0.00 | N26: =+'Block Breakdown This'!N26+'Block Breakdown Prev'!N26 -> 0.00 | O26: =+'Block Breakdown This'!O26+'Block Breakdown Prev'!O26 -> 0.00 | P26: =+'Block Breakdown This'!P26+'Block Breakdown Prev'!P26 -> 0.00 | Q26: =+'Block Breakdown This'!Q26+'Block Breakdown Prev'!Q26 -> 0.00 | R26: =+'Block Breakdown This'!R26+'Block Breakdown Prev'!R26 -> 0.00 | S26: =+'Block Breakdown This'!S26+'Block Breakdown Prev'!S26 -> 0.00 | T26: =+'Block Breakdown This'!T26+'Block Breakdown Prev'!T26 -> 0.00 | U26: =+'Block Breakdown This'!U26+'Block Breakdown Prev'!U26 -> 0.00 | V26: =+'Block Breakdown This'!V26+'Block Breakdown Prev'!V26 -> 0.00 | W26: =+'Block Breakdown This'!W26+'Block Breakdown Prev'!W26 -> 0.00 | X26: =+'Block Breakdown This'!X26+'Block Breakdown Prev'!X26 -> 0.00 | Y26: =+'Block Breakdown This'!Y26+'Block Breakdown Prev'!Y26 -> 0.00 | Z26: 0.00 | AA26: =G26*E26 -> 0 | AB26: =H26*E26 -> 0 | AC26: =I26*E26 -> 0 | AD26: =J26*E26 -> 0 | AE26: =K26*E26 -> 0 | AF26: =L26*E26 -> 0 | AG26: 0 | AH26: =N26*E26 -> 0 | AI26: =O26*E26 -> 0 | AJ26: =P26*E26 -> 0 | AK26: =Q26*E26 -> 0 | AL26: =R26*E26 -> 0 | AM26: =S26*E26 -> 0 | AN26: =T26*E26 -> 0 | AO26: =W26*E26 -> 0 | AP26: =X26*E26 -> 0 | AQ26: =Y26*E26 -> 0 | AR26: 0 | AS26: =+E26*Z26 -> 0.00
AG27: 0
A28: 1.50 | B28: Connection Fees for Power Supply | C28: Sum | D28: 1 | E28: 9,000,000.00 | F28: =$D28*E28 -> 9,000,000.00 | G28: =+'Block Breakdown This'!G28+'Block Breakdown Prev'!G28 -> 0.00 | H28: =+'Block Breakdown This'!H28+'Block Breakdown Prev'!H28 -> 0.00 | I28: =+'Block Breakdown This'!I28+'Block Breakdown Prev'!I28 -> 0.00 | J28: =+'Block Breakdown This'!J28+'Block Breakdown Prev'!J28 -> 0.00 | K28: =+'Block Breakdown This'!K28+'Block Breakdown Prev'!K28 -> 0.00 | L28: =+'Block Breakdown This'!L28+'Block Breakdown Prev'!L28 -> 0.00 | M28: =+'Block Breakdown This'!M28+'Block Breakdown Prev'!M28 -> 0.00 | N28: =+'Block Breakdown This'!N28+'Block Breakdown Prev'!N28 -> 0.00 | O28: =+'Block Breakdown This'!O28+'Block Breakdown Prev'!O28 -> 0.00 | P28: =+'Block Breakdown This'!P28+'Block Breakdown Prev'!P28 -> 0.00 | Q28: =+'Block Breakdown This'!Q28+'Block Breakdown Prev'!Q28 -> 0.00 | R28: =+'Block Breakdown This'!R28+'Block Breakdown Prev'!R28 -> 0.00 | S28: =+'Block Breakdown This'!S28+'Block Breakdown Prev'!S28 -> 0.00 | T28: =+'Block Breakdown This'!T28+'Block Breakdown Prev'!T28 -> 0.00 | U28: =+'Block Breakdown This'!U28+'Block Breakdown Prev'!U28 -> 0.00 | V28: =+'Block Breakdown This'!V28+'Block Breakdown Prev'!V28 -> 0.00 | W28: =+'Block Breakdown This'!W28+'Block Breakdown Prev'!W28 -> 0.00 | X28: =+'Block Breakdown This'!X28+'Block Breakdown Prev'!X28 -> 0.00 | Y28: =+'Block Breakdown This'!Y28+'Block Breakdown Prev'!Y28 -> 0.00 | Z28: 0.00 | AA28: =G28*E28 -> 0 | AB28: =H28*E28 -> 0 | AC28: =I28*E28 -> 0 | AD28: =J28*E28 -> 0 | AE28: =K28*E28 -> 0 | AF28: =L28*E28 -> 0 | AG28: 0 | AH28: =N28*E28 -> 0 | AI28: =O28*E28 -> 0 | AJ28: =P28*E28 -> 0 | AK28: =Q28*E28 -> 0 | AL28: =R28*E28 -> 0 | AM28: =S28*E28 -> 0 | AN28: =T28*E28 -> 0 | AO28: =W28*E28 -> 0 | AP28: =X28*E28 -> 0 | AQ28: =Y28*E28 -> 0 | AR28: 0 | AS28: =+E28*Z28 -> 0.00
AG29: 0
A30: 1.5.1 | B30: Contractor's Profit on the above amount | C30: % | E30: 0.01 | F30: =F28*E30 -> 90,000.00 | G30: =+'Block Breakdown This'!G30+'Block Breakdown Prev'!G30 -> 0.00 | H30: =+'Block Breakdown This'!H30+'Block Breakdown Prev'!H30 -> 0.00 | I30: =+'Block Breakdown This'!I30+'Block Breakdown Prev'!I30 -> 0.00 | J30: =+'Block Breakdown This'!J30+'Block Breakdown Prev'!J30 -> 0.00 | K30: =+'Block Breakdown This'!K30+'Block Breakdown Prev'!K30 -> 0.00 | L30: =+'Block Breakdown This'!L30+'Block Breakdown Prev'!L30 -> 0.00 | M30: =+'Block Breakdown This'!M30+'Block Breakdown Prev'!M30 -> 0.00 | N30: =+'Block Breakdown This'!N30+'Block Breakdown Prev'!N30 -> 0.00 | O30: =+'Block Breakdown This'!O30+'Block Breakdown Prev'!O30 -> 0.00 | P30: =+'Block Breakdown This'!P30+'Block Breakdown Prev'!P30 -> 0.00 | Q30: =+'Block Breakdown This'!Q30+'Block Breakdown Prev'!Q30 -> 0.00 | R30: =+'Block Breakdown This'!R30+'Block Breakdown Prev'!R30 -> 0.00 | S30: =+'Block Breakdown This'!S30+'Block Breakdown Prev'!S30 -> 0.00 | T30: =+'Block Breakdown This'!T30+'Block Breakdown Prev'!T30 -> 0.00 | U30: =+'Block Breakdown This'!U30+'Block Breakdown Prev'!U30 -> 0.00 | V30: =+'Block Breakdown This'!V30+'Block Breakdown Prev'!V30 -> 0.00 | W30: =+'Block Breakdown This'!W30+'Block Breakdown Prev'!W30 -> 0.00 | X30: =+'Block Breakdown This'!X30+'Block Breakdown Prev'!X30 -> 0.00 | Y30: =+'Block Breakdown This'!Y30+'Block Breakdown Prev'!Y30 -> 0.00 | Z30: 0.00 | AA30: =G30*E30 -> 0 | AB30: =H30*E30 -> 0 | AC30: =I30*E30 -> 0 | AD30: =J30*E30 -> 0 | AE30: =K30*E30 -> 0 | AF30: =L30*E30 -> 0 | AG30: 0 | AH30: =N30*E30 -> 0 | AI30: =O30*E30 -> 0 | AJ30: =P30*E30 -> 0 | AK30: =Q30*E30 -> 0 | AL30: =R30*E30 -> 0 | AM30: =S30*E30 -> 0 | AN30: =T30*E30 -> 0 | AO30: =W30*E30 -> 0 | AP30: =X30*E30 -> 0 | AQ30: =Y30*E30 -> 0 | AR30: 0 | AS30: =+E30*Z30 -> 0.00
AG31: 0
A32: 1.60 | B32: Dome lighting System complete as per specialist lighting Engineer | C32: Sum | D32: 1 | E32: 350,000.00 | F32: =$D32*E32 -> 350,000.00 | G32: =+'Block Breakdown This'!G32+'Block Breakdown Prev'!G32 -> 0.00 | H32: =+'Block Breakdown This'!H32+'Block Breakdown Prev'!H32 -> 0.00 | I32: =+'Block Breakdown This'!I32+'Block Breakdown Prev'!I32 -> 0.00 | J32: =+'Block Breakdown This'!J32+'Block Breakdown Prev'!J32 -> 0.00 | K32: =+'Block Breakdown This'!K32+'Block Breakdown Prev'!K32 -> 0.00 | L32: =+'Block Breakdown This'!L32+'Block Breakdown Prev'!L32 -> 0.00 | M32: =+'Block Breakdown This'!M32+'Block Breakdown Prev'!M32 -> 0.00 | N32: =+'Block Breakdown This'!N32+'Block Breakdown Prev'!N32 -> 0.00 | O32: =+'Block Breakdown This'!O32+'Block Breakdown Prev'!O32 -> 0.00 | P32: =+'Block Breakdown This'!P32+'Block Breakdown Prev'!P32 -> 0.00 | Q32: =+'Block Breakdown This'!Q32+'Block Breakdown Prev'!Q32 -> 0.00 | R32: =+'Block Breakdown This'!R32+'Block Breakdown Prev'!R32 -> 0.00 | S32: =+'Block Breakdown This'!S32+'Block Breakdown Prev'!S32 -> 0.00 | T32: =+'Block Breakdown This'!T32+'Block Breakdown Prev'!T32 -> 0.00 | U32: =+'Block Breakdown This'!U32+'Block Breakdown Prev'!U32 -> 0.00 | V32: =+'Block Breakdown This'!V32+'Block Breakdown Prev'!V32 -> 0.00 | W32: =+'Block Breakdown This'!W32+'Block Breakdown Prev'!W32 -> 0.00 | X32: =+'Block Breakdown This'!X32+'Block Breakdown Prev'!X32 -> 0.00 | Y32: =+'Block Breakdown This'!Y32+'Block Breakdown Prev'!Y32 -> 0.00 | Z32: 0.00 | AA32: =G32*E32 -> 0 | AB32: =H32*E32 -> 0 | AC32: =I32*E32 -> 0 | AD32: =J32*E32 -> 0 | AE32: =K32*E32 -> 0 | AF32: =L32*E32 -> 0 | AG32: 0 | AH32: =N32*E32 -> 0 | AI32: =O32*E32 -> 0 | AJ32: =P32*E32 -> 0 | AK32: =Q32*E32 -> 0 | AL32: =R32*E32 -> 0 | AM32: =S32*E32 -> 0 | AN32: =T32*E32 -> 0 | AO32: =W32*E32 -> 0 | AP32: =X32*E32 -> 0 | AQ32: =Y32*E32 -> 0 | AR32: 0 | AS32: =+E32*Z32 -> 0.00
AG33: 0
A34: 1.6.1 | B34: Contractor's Profit on the above amount | C34: % | E34: 0.10 | F34: =F32*E34 -> 35,000.00 | G34: =+'Block Breakdown This'!G34+'Block Breakdown Prev'!G34 -> 0.00 | H34: =+'Block Breakdown This'!H34+'Block Breakdown Prev'!H34 -> 0.00 | I34: =+'Block Breakdown This'!I34+'Block Breakdown Prev'!I34 -> 0.00 | J34: =+'Block Breakdown This'!J34+'Block Breakdown Prev'!J34 -> 0.00 | K34: =+'Block Breakdown This'!K34+'Block Breakdown Prev'!K34 -> 0.00 | L34: =+'Block Breakdown This'!L34+'Block Breakdown Prev'!L34 -> 0.00 | M34: =+'Block Breakdown This'!M34+'Block Breakdown Prev'!M34 -> 0.00 | N34: =+'Block Breakdown This'!N34+'Block Breakdown Prev'!N34 -> 0.00 | O34: =+'Block Breakdown This'!O34+'Block Breakdown Prev'!O34 -> 0.00 | P34: =+'Block Breakdown This'!P34+'Block Breakdown Prev'!P34 -> 0.00 | Q34: =+'Block Breakdown This'!Q34+'Block Breakdown Prev'!Q34 -> 0.00 | R34: =+'Block Breakdown This'!R34+'Block Breakdown Prev'!R34 -> 0.00 | S34: =+'Block Breakdown This'!S34+'Block Breakdown Prev'!S34 -> 0.00 | T34: =+'Block Breakdown This'!T34+'Block Breakdown Prev'!T34 -> 0.00 | U34: =+'Block Breakdown This'!U34+'Block Breakdown Prev'!U34 -> 0.00 | V34: =+'Block Breakdown This'!V34+'Block Breakdown Prev'!V34 -> 0.00 | W34: =+'Block Breakdown This'!W34+'Block Breakdown Prev'!W34 -> 0.00 | X34: =+'Block Breakdown This'!X34+'Block Breakdown Prev'!X34 -> 0.00 | Y34: =+'Block Breakdown This'!Y34+'Block Breakdown Prev'!Y34 -> 0.00 | Z34: 0.00 | AA34: =G34*E34 -> 0 | AB34: =H34*E34 -> 0 | AC34: =I34*E34 -> 0 | AD34: =J34*E34 -> 0 | AE34: =K34*E34 -> 0 | AF34: =L34*E34 -> 0 | AG34: 0 | AH34: =N34*E34 -> 0 | AI34: =O34*E34 -> 0 | AJ34: =P34*E34 -> 0 | AK34: =Q34*E34 -> 0 | AL34: =R34*E34 -> 0 | AM34: =S34*E34 -> 0 | AN34: =T34*E34 -> 0 | AO34: =W34*E34 -> 0 | AP34: =X34*E34 -> 0 | AQ34: =Y34*E34 -> 0 | AR34: 0 | AS34: =+E34*Z34 -> 0.00
AG35: 0
A36: 1.70 | B36: Power Monitoring System complete as per specialist Contractor | C36: Sum | D36: 1 | E36: 2,000,000.00 | F36: =$D36*E36 -> 2,000,000.00 | G36: =+'Block Breakdown This'!G36+'Block Breakdown Prev'!G36 -> 0.00 | H36: =+'Block Breakdown This'!H36+'Block Breakdown Prev'!H36 -> 0.00 | I36: =+'Block Breakdown This'!I36+'Block Breakdown Prev'!I36 -> 0.00 | J36: =+'Block Breakdown This'!J36+'Block Breakdown Prev'!J36 -> 0.00 | K36: =+'Block Breakdown This'!K36+'Block Breakdown Prev'!K36 -> 0.00 | L36: =+'Block Breakdown This'!L36+'Block Breakdown Prev'!L36 -> 0.00 | M36: =+'Block Breakdown This'!M36+'Block Breakdown Prev'!M36 -> 0.00 | N36: =+'Block Breakdown This'!N36+'Block Breakdown Prev'!N36 -> 0.00 | O36: =+'Block Breakdown This'!O36+'Block Breakdown Prev'!O36 -> 0.00 | P36: =+'Block Breakdown This'!P36+'Block Breakdown Prev'!P36 -> 0.00 | Q36: =+'Block Breakdown This'!Q36+'Block Breakdown Prev'!Q36 -> 0.00 | R36: =+'Block Breakdown This'!R36+'Block Breakdown Prev'!R36 -> 0.00 | S36: =+'Block Breakdown This'!S36+'Block Breakdown Prev'!S36 -> 0.00 | T36: =+'Block Breakdown This'!T36+'Block Breakdown Prev'!T36 -> 0.00 | U36: =+'Block Breakdown This'!U36+'Block Breakdown Prev'!U36 -> 0.00 | V36: =+'Block Breakdown This'!V36+'Block Breakdown Prev'!V36 -> 0.00 | W36: =+'Block Breakdown This'!W36+'Block Breakdown Prev'!W36 -> 0.00 | X36: =+'Block Breakdown This'!X36+'Block Breakdown Prev'!X36 -> 0.00 | Y36: =+'Block Breakdown This'!Y36+'Block Breakdown Prev'!Y36 -> 0.00 | Z36: 0.00 | AA36: =G36*E36 -> 0 | AB36: =H36*E36 -> 0 | AC36: =I36*E36 -> 0 | AD36: =J36*E36 -> 0 | AE36: =K36*E36 -> 0 | AF36: =L36*E36 -> 0 | AG36: 0 | AH36: =N36*E36 -> 0 | AI36: =O36*E36 -> 0 | AJ36: =P36*E36 -> 0 | AK36: =Q36*E36 -> 0 | AL36: =R36*E36 -> 0 | AM36: =S36*E36 -> 0 | AN36: =T36*E36 -> 0 | AO36: =W36*E36 -> 0 | AP36: =X36*E36 -> 0 | AQ36: =Y36*E36 -> 0 | AR36: 0 | AS36: =+E36*Z36 -> 0.00
AG37: 0
A38: 1.7.1 | B38: Contractor's Profit on the above amount | C38: % | E38: 0.03 | F38: =F36*E38 -> 50,000.00 | G38: =+'Block Breakdown This'!G38+'Block Breakdown Prev'!G38 -> 0.00 | H38: =+'Block Breakdown This'!H38+'Block Breakdown Prev'!H38 -> 0.00 | I38: =+'Block Breakdown This'!I38+'Block Breakdown Prev'!I38 -> 0.00 | J38: =+'Block Breakdown This'!J38+'Block Breakdown Prev'!J38 -> 0.00 | K38: =+'Block Breakdown This'!K38+'Block Breakdown Prev'!K38 -> 0.00 | L38: =+'Block Breakdown This'!L38+'Block Breakdown Prev'!L38 -> 0.00 | M38: =+'Block Breakdown This'!M38+'Block Breakdown Prev'!M38 -> 0.00 | N38: =+'Block Breakdown This'!N38+'Block Breakdown Prev'!N38 -> 0.00 | O38: =+'Block Breakdown This'!O38+'Block Breakdown Prev'!O38 -> 0.00 | P38: =+'Block Breakdown This'!P38+'Block Breakdown Prev'!P38 -> 0.00 | Q38: =+'Block Breakdown This'!Q38+'Block Breakdown Prev'!Q38 -> 0.00 | R38: =+'Block Breakdown This'!R38+'Block Breakdown Prev'!R38 -> 0.00 | S38: =+'Block Breakdown This'!S38+'Block Breakdown Prev'!S38 -> 0.00 | T38: =+'Block Breakdown This'!T38+'Block Breakdown Prev'!T38 -> 0.00 | U38: =+'Block Breakdown This'!U38+'Block Breakdown Prev'!U38 -> 0.00 | V38: =+'Block Breakdown This'!V38+'Block Breakdown Prev'!V38 -> 0.00 | W38: =+'Block Breakdown This'!W38+'Block Breakdown Prev'!W38 -> 0.00 | X38: =+'Block Breakdown This'!X38+'Block Breakdown Prev'!X38 -> 0.00 | Y38: =+'Block Breakdown This'!Y38+'Block Breakdown Prev'!Y38 -> 0.00 | Z38: 0.00 | AA38: =G38*E38 -> 0 | AB38: =H38*E38 -> 0 | AC38: =I38*E38 -> 0 | AD38: =J38*E38 -> 0 | AE38: =K38*E38 -> 0 | AF38: =L38*E38 -> 0 | AG38: 0 | AH38: =N38*E38 -> 0 | AI38: =O38*E38 -> 0 | AJ38: =P38*E38 -> 0 | AK38: =Q38*E38 -> 0 | AL38: =R38*E38 -> 0 | AM38: =S38*E38 -> 0 | AN38: =T38*E38 -> 0 | AO38: =W38*E38 -> 0 | AP38: =X38*E38 -> 0 | AQ38: =Y38*E38 -> 0 | AR38: 0 | AS38: =+E38*Z38 -> 0.00
AG39: 0
A40: 1.80 | B40: Building Management System complete as per specialist Contractor | C40: Sum | D40: 1 | E40: 2,100,000.00 | F40: =$D40*E40 -> 2,100,000.00 | G40: =+'Block Breakdown This'!G40+'Block Breakdown Prev'!G40 -> 0.00 | H40: =+'Block Breakdown This'!H40+'Block Breakdown Prev'!H40 -> 0.00 | I40: =+'Block Breakdown This'!I40+'Block Breakdown Prev'!I40 -> 0.00 | J40: =+'Block Breakdown This'!J40+'Block Breakdown Prev'!J40 -> 0.00 | K40: =+'Block Breakdown This'!K40+'Block Breakdown Prev'!K40 -> 0.00 | L40: =+'Block Breakdown This'!L40+'Block Breakdown Prev'!L40 -> 0.00 | M40: =+'Block Breakdown This'!M40+'Block Breakdown Prev'!M40 -> 0.00 | N40: =+'Block Breakdown This'!N40+'Block Breakdown Prev'!N40 -> 0.00 | O40: =+'Block Breakdown This'!O40+'Block Breakdown Prev'!O40 -> 0.00 | P40: =+'Block Breakdown This'!P40+'Block Breakdown Prev'!P40 -> 0.00 | Q40: =+'Block Breakdown This'!Q40+'Block Breakdown Prev'!Q40 -> 0.00 | R40: =+'Block Breakdown This'!R40+'Block Breakdown Prev'!R40 -> 0.00 | S40: =+'Block Breakdown This'!S40+'Block Breakdown Prev'!S40 -> 0.00 | T40: =+'Block Breakdown This'!T40+'Block Breakdown Prev'!T40 -> 0.00 | U40: =+'Block Breakdown This'!U40+'Block Breakdown Prev'!U40 -> 0.00 | V40: =+'Block Breakdown This'!V40+'Block Breakdown Prev'!V40 -> 0.00 | W40: =+'Block Breakdown This'!W40+'Block Breakdown Prev'!W40 -> 0.00 | X40: =+'Block Breakdown This'!X40+'Block Breakdown Prev'!X40 -> 0.00 | Y40: =+'Block Breakdown This'!Y40+'Block Breakdown Prev'!Y40 -> 0.00 | Z40: 0.00 | AA40: =G40*E40 -> 0 | AB40: =H40*E40 -> 0 | AC40: =I40*E40 -> 0 | AD40: =J40*E40 -> 0 | AE40: =K40*E40 -> 0 | AF40: =L40*E40 -> 0 | AG40: 0 | AH40: =N40*E40 -> 0 | AI40: =O40*E40 -> 0 | AJ40: =P40*E40 -> 0 | AK40: =Q40*E40 -> 0 | AL40: =R40*E40 -> 0 | AM40: =S40*E40 -> 0 | AN40: =T40*E40 -> 0 | AO40: =W40*E40 -> 0 | AP40: =X40*E40 -> 0 | AQ40: =Y40*E40 -> 0 | AR40: 0 | AS40: =+E40*Z40 -> 0.00
AG41: 0
A42: 1.8.1 | B42: Contractor's Profit on the above amount | C42: % | E42: 0.03 | F42: =F40*E42 -> 52,500.00 | G42: =+'Block Breakdown This'!G42+'Block Breakdown Prev'!G42 -> 0.00 | H42: =+'Block Breakdown This'!H42+'Block Breakdown Prev'!H42 -> 0.00 | I42: =+'Block Breakdown This'!I42+'Block Breakdown Prev'!I42 -> 0.00 | J42: =+'Block Breakdown This'!J42+'Block Breakdown Prev'!J42 -> 0.00 | K42: =+'Block Breakdown This'!K42+'Block Breakdown Prev'!K42 -> 0.00 | L42: =+'Block Breakdown This'!L42+'Block Breakdown Prev'!L42 -> 0.00 | M42: =+'Block Breakdown This'!M42+'Block Breakdown Prev'!M42 -> 0.00 | N42: =+'Block Breakdown This'!N42+'Block Breakdown Prev'!N42 -> 0.00 | O42: =+'Block Breakdown This'!O42+'Block Breakdown Prev'!O42 -> 0.00 | P42: =+'Block Breakdown This'!P42+'Block Breakdown Prev'!P42 -> 0.00 | Q42: =+'Block Breakdown This'!Q42+'Block Breakdown Prev'!Q42 -> 0.00 | R42: =+'Block Breakdown This'!R42+'Block Breakdown Prev'!R42 -> 0.00 | S42: =+'Block Breakdown This'!S42+'Block Breakdown Prev'!S42 -> 0.00 | T42: =+'Block Breakdown This'!T42+'Block Breakdown Prev'!T42 -> 0.00 | U42: =+'Block Breakdown This'!U42+'Block Breakdown Prev'!U42 -> 0.00 | V42: =+'Block Breakdown This'!V42+'Block Breakdown Prev'!V42 -> 0.00 | W42: =+'Block Breakdown This'!W42+'Block Breakdown Prev'!W42 -> 0.00 | X42: =+'Block Breakdown This'!X42+'Block Breakdown Prev'!X42 -> 0.00 | Y42: =+'Block Breakdown This'!Y42+'Block Breakdown Prev'!Y42 -> 0.00 | Z42: =SUM(G42:Y42) -> 0.00 | AA42: =G42*E42 -> 0 | AB42: =H42*E42 -> 0 | AC42: =I42*E42 -> 0 | AD42: =J42*E42 -> 0 | AE42: =K42*E42 -> 0 | AF42: =L42*E42 -> 0 | AG42: 0 | AH42: =N42*E42 -> 0 | AI42: =O42*E42 -> 0 | AJ42: =P42*E42 -> 0 | AK42: =Q42*E42 -> 0 | AL42: =R42*E42 -> 0 | AM42: =S42*E42 -> 0 | AN42: =T42*E42 -> 0 | AO42: =W42*E42 -> 0 | AP42: =X42*E42 -> 0 | AQ42: =Y42*E42 -> 0 | AR42: 0 | AS42: =+E42*Z42 -> 0.00
B46: Amount Carried Forward | F46: =SUM(F16:F45) -> 17,370,000.00 | AS46: =SUM(AS16:AS45) -> 0.00
A48: MAIN HOSPITAL ELECTRICAL INSTALLATION
A49: CECILIA MAKIWANE HOSPITAL : PHASE 4C
A51: BILL NO. 2 : DISTRIBUTION BOARDS
A52: ITEM | B52: DESCRIPTION | C52: UNIT | D52: QTY | E52: RATE | F52: TENDER AMOUNT | G52: A | H52: B | I52: D | J52: E1 | K52: E2 | L52: F1 | M52: F2 | N52: G1 | O52: G2 | P52: H1 | Q52: H2 | R52: J1 | S52: J2 | T52: J3 | U52: Substation | V52: G/House | W52: K | X52: N | Y52: Other | Z52: Total Qty | AA52: A | AB52: B | AC52: D | AD52: E1 | AE52: E2 | AF52: F1 | AG52: F2 | AH52: G1 | AI52: G2 | AJ52: H1 | AK52: H2 | AL52: J1 | AM52: J2 | AN52: J3 | AO52: K | AP52: N | AQ52: Other | AR52: Total Amount | AS52: Total Claimed
B53: AMOUNT CARRIED FORWARD FROM PREVIOUS BILL | F53: =F46 -> 17,370,000.00 | AS53: =+AS46 -> 0.00
A55: 1.10 | B55: Technical Training | C55: Sum | D55: 1 | E55: 250,000.00 | F55: =$D55*E55 -> 250,000.00 | G55: =+'Block Breakdown This'!G$55+'Block Breakdown Prev'!G$55 -> 0.00 | H55: =+'Block Breakdown This'!H55+'Block Breakdown Prev'!H55 -> 0.00 | I55: =+'Block Breakdown This'!I55+'Block Breakdown Prev'!I55 -> 0.00 | J55: =+'Block Breakdown This'!J55+'Block Breakdown Prev'!J55 -> 0.00 | K55: =+'Block Breakdown This'!K55+'Block Breakdown Prev'!K55 -> 0.00 | L55: =+'Block Breakdown This'!L55+'Block Breakdown Prev'!L55 -> 0.00 | M55: =+'Block Breakdown This'!M55+'Block Breakdown Prev'!M55 -> 0.00 | N55: =+'Block Breakdown This'!N55+'Block Breakdown Prev'!N55 -> 0.00 | O55: =+'Block Breakdown This'!O55+'Block Breakdown Prev'!O55 -> 0.00 | P55: =+'Block Breakdown This'!P55+'Block Breakdown Prev'!P55 -> 0.00 | Q55: =+'Block Breakdown This'!Q55+'Block Breakdown Prev'!Q55 -> 0.00 | R55: =+'Block Breakdown This'!R55+'Block Breakdown Prev'!R55 -> 0.00 | S55: =+'Block Breakdown This'!S55+'Block Breakdown Prev'!S55 -> 0.00 | T55: =+'Block Breakdown This'!T55+'Block Breakdown Prev'!T55 -> 0.00 | U55: =+'Block Breakdown This'!U55+'Block Breakdown Prev'!U55 -> 0.00 | V55: =+'Block Breakdown This'!V55+'Block Breakdown Prev'!V55 -> 0.00 | W55: =+'Block Breakdown This'!W55+'Block Breakdown Prev'!W55 -> 0.00 | X55: =+'Block Breakdown This'!X55+'Block Breakdown Prev'!X55 -> 0.00 | Y55: =+'Block Breakdown This'!Y55+'Block Breakdown Prev'!Y55 -> 0.10 | Z55: =SUM(G55:Y55) -> 0.10 | AA55: =G55*E55 -> 0 | AB55: =H55*E55 -> 0.00 | AC55: =I55*E55 -> 0.00 | AD55: =J55*E55 -> 0.00 | AE55: =K55*E55 -> 0.00 | AF55: =L55*E5 ->  | AG55: =+M55*E55 -> 0.00 | AH55: =N55*E55 -> 0.00 | AI55: =O55*E55 -> 0.00 | AJ55: =P55*E55 -> 0.00 | AK55: =Q55*E55 -> 0.00 | AL55: =R55*E55 -> 0.00 | AM55: =S55*E55 -> 0.00 | AN55: =T55*E55 -> 0.00 | AO55: =W55*E55 -> 0.00 | AP55: =X55*E55 -> 0.00 | AQ55: =Y55*E55 -> 25,000.00 | AR55: =SUM(AA55:AQ55) ->  | AS55: =+E55*Z55 -> 25,000.00
AG56: 0.00
A57: 1.10.1 | B57: Contractor's Profit on the above amount | C57: % | E57: 0.10 | F57: =F55*E57 -> 25,000.00 | G57: =+'Block Breakdown This'!G57+'Block Breakdown Prev'!G57 -> 0.00 | H57: =+'Block Breakdown This'!H57+'Block Breakdown Prev'!H57 -> 0.00 | I57: =+'Block Breakdown This'!I57+'Block Breakdown Prev'!I57 -> 0.00 | J57: =+'Block Breakdown This'!J57+'Block Breakdown Prev'!J57 -> 0.00 | K57: =+'Block Breakdown This'!K57+'Block Breakdown Prev'!K57 -> 0.00 | L57: =+'Block Breakdown This'!L57+'Block Breakdown Prev'!L57 -> 0.00 | M57: =+'Block Breakdown This'!M57+'Block Breakdown Prev'!M57 -> 0.00 | N57: =+'Block Breakdown This'!N57+'Block Breakdown Prev'!N57 -> 0.00 | O57: =+'Block Breakdown This'!O57+'Block Breakdown Prev'!O57 -> 0.00 | P57: =+'Block Breakdown This'!P57+'Block Breakdown Prev'!P57 -> 0.00 | Q57: =+'Block Breakdown This'!Q57+'Block Breakdown Prev'!Q57 -> 0.00 | R57: =+'Block Breakdown This'!R57+'Block Breakdown Prev'!R57 -> 0.00 | S57: =+'Block Breakdown This'!S57+'Block Breakdown Prev'!S57 -> 0.00 | T57: =+'Block Breakdown This'!T57+'Block Breakdown Prev'!T57 -> 0.00 | U57: =+'Block Breakdown This'!U57+'Block Breakdown Prev'!U57 -> 0.00 | V57: =+'Block Breakdown This'!V57+'Block Breakdown Prev'!V57 -> 0.00 | W57: =+'Block Breakdown This'!W57+'Block Breakdown Prev'!W57 -> 0.00 | X57: =+'Block Breakdown This'!X57+'Block Breakdown Prev'!X57 -> 0.00 | Y57: =+'Block Breakdown This'!Y57+'Block Breakdown Prev'!Y57 -> 0.40 | Z57: =SUM(G57:Y57) -> 0.40 | AA57: =G57*E57 -> 0 | AB57: =H57*E57 -> 0.00 | AC57: =I57*E57 -> 0.00 | AD57: =J57*E57 -> 0.00 | AE57: =K57*E57 -> 0.00 | AF57: =L57*E7 -> 0.00 | AG57: 0.00 | AH57: =N57*E57 -> 0.00 | AI57: =O57*E57 -> 0.00 | AJ57: =P57*E57 -> 0.00 | AK57: =Q57*E57 -> 0.00 | AL57: =R57*E57 -> 0.00 | AM57: =S57*E57 -> 0.00 | AN57: =T57*E57 -> 0.00 | AO57: =W57*E57 -> 0.00 | AP57: =X57*E57 -> 0.00 | AQ57: =Y57*E57 -> 0.04 | AR57: =SUM(AA57:AQ57) -> 0.04 | AS57: =+AS55*E57 -> 2,500.00
AG58: 0.00
A59: 1.11 | B59: Life Skills Training | C59: Sum | D59: 1 | E59: 50,000.00 | F59: =$D59*E59 -> 50,000.00 | G59: =+'Block Breakdown This'!G59+'Block Breakdown Prev'!G59 -> 0.00 | H59: =+'Block Breakdown This'!H59+'Block Breakdown Prev'!H59 -> 0.00 | I59: =+'Block Breakdown This'!I59+'Block Breakdown Prev'!I59 -> 0.00 | J59: =+'Block Breakdown This'!J59+'Block Breakdown Prev'!J59 -> 0.00 | K59: =+'Block Breakdown This'!K59+'Block Breakdown Prev'!K59 -> 0.00 | L59: =+'Block Breakdown This'!L59+'Block Breakdown Prev'!L59 -> 0.00 | M59: =+'Block Breakdown This'!M59+'Block Breakdown Prev'!M59 -> 0.00 | N59: =+'Block Breakdown This'!N59+'Block Breakdown Prev'!N59 -> 0.00 | O59: =+'Block Breakdown This'!O59+'Block Breakdown Prev'!O59 -> 0.00 | P59: =+'Block Breakdown This'!P59+'Block Breakdown Prev'!P59 -> 0.00 | Q59: =+'Block Breakdown This'!Q59+'Block Breakdown Prev'!Q59 -> 0.00 | R59: =+'Block Breakdown This'!R59+'Block Breakdown Prev'!R59 -> 0.00 | S59: =+'Block Breakdown This'!S59+'Block Breakdown Prev'!S59 -> 0.00 | T59: =+'Block Breakdown This'!T59+'Block Breakdown Prev'!T59 -> 0.00 | U59: =+'Block Breakdown This'!U59+'Block Breakdown Prev'!U59 -> 0.00 | V59: =+'Block Breakdown This'!V59+'Block Breakdown Prev'!V59 -> 0.00 | W59: =+'Block Breakdown This'!W59+'Block Breakdown Prev'!W59 -> 0.00 | X59: =+'Block Breakdown This'!X59+'Block Breakdown Prev'!X59 -> 0.00 | Y59: =+'Block Breakdown This'!Y59+'Block Breakdown Prev'!Y59 -> 0.00 | Z59: 0.00 | AA59: =G59*E59 -> 0 | AB59: =H59*E59 -> 0.00 | AC59: =I59*E59 -> 0.00 | AD59: =J59*E59 -> 0.00 | AE59: =K59*E59 -> 0.00 | AF59: =L59*E9 -> 0.00 | AG59: 0.00 | AH59: =N59*E59 -> 0.00 | AI59: =O59*E59 -> 0.00 | AJ59: =P59*E59 -> 0.00 | AK59: =Q59*E59 -> 0.00 | AL59: =R59*E59 -> 0.00 | AM59: =S59*E59 -> 0.00 | AN59: =T59*E59 -> 0.00 | AO59: =W59*E59 -> 0.00 | AP59: =X59*E59 -> 0.00 | AQ59: =Y59*E59 -> 0.00 | AR59: 0.00 | AS59: =+E59*Z59 -> 0.00
AG60: 0.00
A61: 1.11.1 | B61: Contractor's Profit on the above amount | C61: % | E61: 0.10 | F61: =F59*E61 -> 5,000.00 | G61: =+'Block Breakdown This'!G61+'Block Breakdown Prev'!G61 -> 0.00 | H61: =+'Block Breakdown This'!H61+'Block Breakdown Prev'!H61 -> 0.00 | I61: =+'Block Breakdown This'!I61+'Block Breakdown Prev'!I61 -> 0.00 | J61: =+'Block Breakdown This'!J61+'Block Breakdown Prev'!J61 -> 0.00 | K61: =+'Block Breakdown This'!K61+'Block Breakdown Prev'!K61 -> 0.00 | L61: =+'Block Breakdown This'!L61+'Block Breakdown Prev'!L61 -> 0.00 | M61: =+'Block Breakdown This'!M61+'Block Breakdown Prev'!M61 -> 0.00 | N61: =+'Block Breakdown This'!N61+'Block Breakdown Prev'!N61 -> 0.00 | O61: =+'Block Breakdown This'!O61+'Block Breakdown Prev'!O61 -> 0.00 | P61: =+'Block Breakdown This'!P61+'Block Breakdown Prev'!P61 -> 0.00 | Q61: =+'Block Breakdown This'!Q61+'Block Breakdown Prev'!Q61 -> 0.00 | R61: =+'Block Breakdown This'!R61+'Block Breakdown Prev'!R61 -> 0.00 | S61: =+'Block Breakdown This'!S61+'Block Breakdown Prev'!S61 -> 0.00 | T61: =+'Block Breakdown This'!T61+'Block Breakdown Prev'!T61 -> 0.00 | U61: =+'Block Breakdown This'!U61+'Block Breakdown Prev'!U61 -> 0.00 | V61: =+'Block Breakdown This'!V61+'Block Breakdown Prev'!V61 -> 0.00 | W61: =+'Block Breakdown This'!W61+'Block Breakdown Prev'!W61 -> 0.00 | X61: =+'Block Breakdown This'!X61+'Block Breakdown Prev'!X61 -> 0.00 | Y61: =+'Block Breakdown This'!Y61+'Block Breakdown Prev'!Y61 -> 0.00 | Z61: 0.00 | AA61: =G61*E61 -> 0 | AB61: =H61*E61 -> 0.00 | AC61: =I61*E61 -> 0.00 | AD61: =J61*E61 -> 0.00 | AE61: =K61*E61 -> 0.00 | AF61: =L61*E11 -> 0.00 | AG61: 0.00 | AH61: =N61*E61 -> 0.00 | AI61: =O61*E61 -> 0.00 | AJ61: =P61*E61 -> 0.00 | AK61: =Q61*E61 -> 0.00 | AL61: =R61*E61 -> 0.00 | AM61: =S61*E61 -> 0.00 | AN61: =T61*E61 -> 0.00 | AO61: =W61*E61 -> 0.00 | AP61: =X61*E61 -> 0.00 | AQ61: =Y61*E61 -> 0.00 | AR61: 0.00 | AS61: =+F61*Z61 -> 0.00
AG62: 0.00
A63: 1.12. | B63: Learners Stipend | C63: Sum | D63: 1 | E63: 75,000.00 | F63: =$D63*E63 -> 75,000.00 | G63: =+'Block Breakdown This'!G63+'Block Breakdown Prev'!G63 -> 0.00 | H63: =+'Block Breakdown This'!H63+'Block Breakdown Prev'!H63 -> 0.00 | I63: =+'Block Breakdown This'!I63+'Block Breakdown Prev'!I63 -> 0.00 | J63: =+'Block Breakdown This'!J63+'Block Breakdown Prev'!J63 -> 0.00 | K63: =+'Block Breakdown This'!K63+'Block Breakdown Prev'!K63 -> 0.00 | L63: =+'Block Breakdown This'!L63+'Block Breakdown Prev'!L63 -> 0.00 | M63: =+'Block Breakdown This'!M63+'Block Breakdown Prev'!M63 -> 0.00 | N63: =+'Block Breakdown This'!N63+'Block Breakdown Prev'!N63 -> 0.00 | O63: =+'Block Breakdown This'!O63+'Block Breakdown Prev'!O63 -> 0.00 | P63: =+'Block Breakdown This'!P63+'Block Breakdown Prev'!P63 -> 0.00 | Q63: =+'Block Breakdown This'!Q63+'Block Breakdown Prev'!Q63 -> 0.00 | R63: =+'Block Breakdown This'!R63+'Block Breakdown Prev'!R63 -> 0.00 | S63: =+'Block Breakdown This'!S63+'Block Breakdown Prev'!S63 -> 0.00 | T63: =+'Block Breakdown This'!T63+'Block Breakdown Prev'!T63 -> 0.00 | U63: =+'Block Breakdown This'!U63+'Block Breakdown Prev'!U63 -> 0.00 | V63: =+'Block Breakdown This'!V63+'Block Breakdown Prev'!V63 -> 0.00 | W63: =+'Block Breakdown This'!W63+'Block Breakdown Prev'!W63 -> 0.00 | X63: =+'Block Breakdown This'!X63+'Block Breakdown Prev'!X63 -> 0.00 | Y63: =+'Block Breakdown This'!Y63+'Block Breakdown Prev'!Y63 -> 0.57 | Z63: 0.57 | AA63: =G63*E63 -> 0 | AB63: =H63*E63 -> 0.00 | AC63: =I63*E63 -> 0.00 | AD63: =J63*E63 -> 0.00 | AE63: =K63*E63 -> 0.00 | AF63: =L63*E13 -> 0.00 | AG63: 0.00 | AH63: =N63*E63 -> 0.00 | AI63: =O63*E63 -> 0.00 | AJ63: =P63*E63 -> 0.00 | AK63: =Q63*E63 -> 0.00 | AL63: =R63*E63 -> 0.00 | AM63: =S63*E63 -> 0.00 | AN63: =T63*E63 -> 0.00 | AO63: =W63*E63 -> 0.00 | AP63: =X63*E63 -> 0.00 | AQ63: =Y63*E63 -> 42,833.33 | AR63: 42,833.33 | AS63: =+E63*Z63 -> 42,833.33
AG64: 0.00
A65: 1.12.1 | B65: Contractor's Profit on the above amount | C65: % | E65: 0.10 | F65: =F63*E65 -> 7,500.00 | G65: =+'Block Breakdown This'!G65+'Block Breakdown Prev'!G65 -> 0.00 | H65: =+'Block Breakdown This'!H65+'Block Breakdown Prev'!H65 -> 0.00 | I65: =+'Block Breakdown This'!I65+'Block Breakdown Prev'!I65 -> 0.00 | J65: =+'Block Breakdown This'!J65+'Block Breakdown Prev'!J65 -> 0.00 | K65: =+'Block Breakdown This'!K65+'Block Breakdown Prev'!K65 -> 0.00 | L65: =+'Block Breakdown This'!L65+'Block Breakdown Prev'!L65 -> 0.00 | M65: =+'Block Breakdown This'!M65+'Block Breakdown Prev'!M65 -> 0.00 | N65: =+'Block Breakdown This'!N65+'Block Breakdown Prev'!N65 -> 0.00 | O65: =+'Block Breakdown This'!O65+'Block Breakdown Prev'!O65 -> 0.00 | P65: =+'Block Breakdown This'!P65+'Block Breakdown Prev'!P65 -> 0.00 | Q65: =+'Block Breakdown This'!Q65+'Block Breakdown Prev'!Q65 -> 0.00 | R65: =+'Block Breakdown This'!R65+'Block Breakdown Prev'!R65 -> 0.00 | S65: =+'Block Breakdown This'!S65+'Block Breakdown Prev'!S65 -> 0.00 | T65: =+'Block Breakdown This'!T65+'Block Breakdown Prev'!T65 -> 0.00 | U65: =+'Block Breakdown This'!U65+'Block Breakdown Prev'!U65 -> 0.00 | V65: =+'Block Breakdown This'!V65+'Block Breakdown Prev'!V65 -> 0.00 | W65: =+'Block Breakdown This'!W65+'Block Breakdown Prev'!W65 -> 0.00 | X65: =+'Block Breakdown This'!X65+'Block Breakdown Prev'!X65 -> 0.00 | Y65: =+'Block Breakdown This'!Y65+'Block Breakdown Prev'!Y65 -> 0.00 | Z65: 0.00 | AA65: =G65*E65 -> 0 | AB65: =H65*E65 -> 0.00 | AC65: =I65*E65 -> 0.00 | AD65: =J65*E65 -> 0.00 | AE65: =K65*E65 -> 0.00 | AF65: =L65*E15 -> 0.00 | AG65: 0.00 | AH65: =N65*E65 -> 0.00 | AI65: =O65*E65 -> 0.00 | AJ65: =P65*E65 -> 0.00 | AK65: =Q65*E65 -> 0.00 | AL65: =R65*E65 -> 0.00 | AM65: =S65*E65 -> 0.00 | AN65: =T65*E65 -> 0.00 | AO65: =W65*E65 -> 0.00 | AP65: =X65*E65 -> 0.00 | AQ65: =Y65*E65 -> 0.00 | AR65: 0.00 | AS65: =+F65*Z65 -> 0.00
AG66: 0.00
A67: 1.13 | B67: SMME MANAGER | AG67: 0.00
AG68: 0.00
A69: 1.13.1 | B69: SMME Manager for all SMME Contracts as per Specification for the duration of the Project | C69: Sum | D69: 1 | E69: 320,000.00 | F69: =$D69*E69 -> 320,000.00 | G69: =+'Block Breakdown This'!G69+'Block Breakdown Prev'!G69 -> 0.00 | H69: =+'Block Breakdown This'!H69+'Block Breakdown Prev'!H69 -> 0.00 | I69: =+'Block Breakdown This'!I69+'Block Breakdown Prev'!I69 -> 0.00 | J69: =+'Block Breakdown This'!J69+'Block Breakdown Prev'!J69 -> 0.00 | K69: =+'Block Breakdown This'!K69+'Block Breakdown Prev'!K69 -> 0.00 | L69: =+'Block Breakdown This'!L69+'Block Breakdown Prev'!L69 -> 0.00 | M69: =+'Block Breakdown This'!M69+'Block Breakdown Prev'!M69 -> 0.00 | N69: =+'Block Breakdown This'!N69+'Block Breakdown Prev'!N69 -> 0.00 | O69: =+'Block Breakdown This'!O69+'Block Breakdown Prev'!O69 -> 0.00 | P69: =+'Block Breakdown This'!P69+'Block Breakdown Prev'!P69 -> 0.00 | Q69: =+'Block Breakdown This'!Q69+'Block Breakdown Prev'!Q69 -> 0.00 | R69: =+'Block Breakdown This'!R69+'Block Breakdown Prev'!R69 -> 0.00 | S69: =+'Block Breakdown This'!S69+'Block Breakdown Prev'!S69 -> 0.00 | T69: =+'Block Breakdown This'!T69+'Block Breakdown Prev'!T69 -> 0.00 | U69: =+'Block Breakdown This'!U69+'Block Breakdown Prev'!U69 -> 0.00 | V69: =+'Block Breakdown This'!V69+'Block Breakdown Prev'!V69 -> 0.00 | W69: =+'Block Breakdown This'!W69+'Block Breakdown Prev'!W69 -> 0.00 | X69: =+'Block Breakdown This'!X69+'Block Breakdown Prev'!X69 -> 0.00 | Y69: =+'Block Breakdown This'!Y69+'Block Breakdown Prev'!Y69 -> 0.86 | Z69: =SUM(G69:Y69) -> 0.86 | AA69: =G69*E69 -> 0 | AB69: =H69*E69 -> 0.00 | AC69: =I69*E69 -> 0.00 | AD69: =J69*E69 -> 0.00 | AE69: =K69*E69 -> 0.00 | AF69: =L69*E19 -> 0.00 | AG69: 0.00 | AH69: =N69*E69 -> 0.00 | AI69: =O69*E69 -> 0.00 | AJ69: =P69*E69 -> 0.00 | AK69: =Q69*E69 -> 0.00 | AL69: =R69*E69 -> 0.00 | AM69: =S69*E69 -> 0.00 | AN69: =T69*E69 -> 0.00 | AO69: =W69*E69 -> 0.00 | AP69: =X69*E69 -> 0.00 | AQ69: =Y69*E69 -> 274,133.33 | AR69: 274,133.33 | AS69: =+E69*Z69 -> 274,133.33
B72: Amount Carried Forward to Summary Page | F72: =SUM(F53:F71) -> 18,102,500.00 | AS72: =SUM(AS53:AS71) -> 344,466.67
A74: MAIN HOSPITAL ELECTRICAL INSTALLATION
A75: CECILIA MAKIWANE HOSPITAL : PHASE 4C
A77: BILL NO. 2 : DISTRIBUTION BOARDS
A79: ITEM | B79: DESCRIPTION | C79: UNIT | D79: QTY | E79: RATE | F79: TENDER AMOUNT | G79: A-LV05 | H79: B-LV04 | I79: D-LV03 | J79: E1-LV03 | K79: E2 | L79: F1 | M79: F2 | N79: G1 | O79: G2 | P79: H1 | Q79: H2 | R79: J1 | S79: J2 | T79: J3 | U79: Substation | V79: G/House | W79: K | X79: N | Y79: Other | Z79: Total Qty | AA79: A | AB79: B | AC79: D | AD79: E1 | AE79: E2 | AF79: F1 | AG79: F2 | AH79: G1 | AI79: G2 | AJ79: H1 | AK79: H2 | AL79: J1 | AM79: J2 | AN79: J3 | AO79: K | AP79: N | AQ79: Other | AR79: Total Amount | AS79: Total Claimed
A82: 2.0. | B82: Distrubution Board
B83: Flush mounted Distribution Boards fitted into frames and Trays with Doors to Specification
A85: 2.10 | B85: Peadiatric Ward
B86: Supply | C86: each | D86: 1 | E86: 39,286.80 | F86: =E86*D86 -> 39,286.80 | G86: =+'Block Breakdown This'!G$86+'Block Breakdown Prev'!G$86 -> 1.00 | H86: =+'Block Breakdown This'!H86+'Block Breakdown Prev'!H86 -> 0.00 | I86: =+'Block Breakdown This'!I86+'Block Breakdown Prev'!I86 -> 0.00 | J86: =+'Block Breakdown This'!J86+'Block Breakdown Prev'!J86 -> 0.00 | K86: =+'Block Breakdown This'!K86+'Block Breakdown Prev'!K86 -> 0.00 | L86: =+'Block Breakdown This'!L86+'Block Breakdown Prev'!L86 -> 0.00 | M86: =+'Block Breakdown This'!M86+'Block Breakdown Prev'!M86 -> 0.00 | N86: =+'Block Breakdown This'!N86+'Block Breakdown Prev'!N86 -> 0.00 | O86: =+'Block Breakdown This'!O86+'Block Breakdown Prev'!O86 -> 0.00 | P86: =+'Block Breakdown This'!P86+'Block Breakdown Prev'!P86 -> 0.00 | Q86: =+'Block Breakdown This'!Q86+'Block Breakdown Prev'!Q86 -> 0.00 | R86: =+'Block Breakdown This'!R86+'Block Breakdown Prev'!R86 -> 0.00 | S86: =+'Block Breakdown This'!S86+'Block Breakdown Prev'!S86 -> 0.00 | T86: =+'Block Breakdown This'!T86+'Block Breakdown Prev'!T86 -> 0.00 | U86: =+'Block Breakdown This'!U86+'Block Breakdown Prev'!U86 -> 0.00 | V86: =+'Block Breakdown This'!V86+'Block Breakdown Prev'!V86 -> 0.00 | W86: =+'Block Breakdown This'!W86+'Block Breakdown Prev'!W86 -> 0.00 | X86: =+'Block Breakdown This'!X86+'Block Breakdown Prev'!X86 -> 0.00 | Y86: =+'Block Breakdown This'!Y86+'Block Breakdown Prev'!Y86 -> 0.00 | Z86: =SUM(G86:Y86) -> 1.00 | AA86: =G86*E86 -> 39,287 | AB86: =H86*E86 -> 0 | AC86: =I86*E86 -> 0 | AD86: =J86*E86 -> 0 | AE86: =K86*E86 -> 0 | AF86: =L86*E86 -> 0 | AG86: =+M86*E86 -> 0 | AH86: =N86*E86 -> 0 | AI86: =O86*E86 -> 0 | AJ86: =P86*E86 -> 0 | AK86: =Q86*E86 -> 0 | AL86: =R86*E86 -> 0 | AM86: =S86*E86 -> 0 | AN86: =T86*E86 -> 0 | AO86: =W86*E86 -> 0 | AP86: =X86*E86 -> 0 | AQ86: =Y86*E86 -> 0 | AR86: =SUM(AA86:AQ86) -> 39,287 | AS86: =+E86*Z86 -> 39,286.80
B87: Install | C87: each | D87: 1 | E87: 3,929.00 | F87: =E87*D87 -> 3,929.00 | G87: =+'Block Breakdown This'!G87+'Block Breakdown Prev'!G87 -> 1.00 | H87: =+'Block Breakdown This'!H87+'Block Breakdown Prev'!H87 -> 0.00 | I87: =+'Block Breakdown This'!I87+'Block Breakdown Prev'!I87 -> 0.00 | J87: =+'Block Breakdown This'!J87+'Block Breakdown Prev'!J87 -> 0.00 | K87: =+'Block Breakdown This'!K87+'Block Breakdown Prev'!K87 -> 0.00 | L87: =+'Block Breakdown This'!L87+'Block Breakdown Prev'!L87 -> 0.00 | M87: =+'Block Breakdown This'!M87+'Block Breakdown Prev'!M87 -> 0.00 | N87: =+'Block Breakdown This'!N87+'Block Breakdown Prev'!N87 -> 0.00 | O87: =+'Block Breakdown This'!O87+'Block Breakdown Prev'!O87 -> 0.00 | P87: =+'Block Breakdown This'!P87+'Block Breakdown Prev'!P87 -> 0.00 | Q87: =+'Block Breakdown This'!Q87+'Block Breakdown Prev'!Q87 -> 0.00 | R87: =+'Block Breakdown This'!R87+'Block Breakdown Prev'!R87 -> 0.00 | S87: =+'Block Breakdown This'!S87+'Block Breakdown Prev'!S87 -> 0.00 | T87: =+'Block Breakdown This'!T87+'Block Breakdown Prev'!T87 -> 0.00 | U87: =+'Block Breakdown This'!U87+'Block Breakdown Prev'!U87 -> 0.00 | V87: =+'Block Breakdown This'!V87+'Block Breakdown Prev'!V87 -> 0.00 | W87: =+'Block Breakdown This'!W87+'Block Breakdown Prev'!W87 -> 0.00 | X87: =+'Block Breakdown This'!X87+'Block Breakdown Prev'!X87 -> 0.00 | Y87: =+'Block Breakdown This'!Y87+'Block Breakdown Prev'!Y87 -> 0.00 | Z87: =SUM(G87:Y87) -> 1.00 | AA87: =G87*E87 -> 3,929 | AB87: =H87*E87 -> 0 | AC87: =I87*E87 -> 0 | AD87: =J87*E87 -> 0 | AE87: =K87*E87 -> 0 | AF87: =L87*E87 -> 0 | AG87: 0 | AH87: =N87*E87 -> 0 | AI87: =O87*E87 -> 0 | AJ87: =P87*E87 -> 0 | AK87: =Q87*E87 -> 0 | AL87: =R87*E87 -> 0 | AM87: =S87*E87 -> 0 | AN87: =T87*E87 -> 0 | AO87: =W87*E87 -> 0 | AP87: =X87*E87 -> 0 | AQ87: =Y87*E87 -> 0 | AR87: =SUM(AA87:AQ87) -> 3,929 | AS87: =+E87*Z87 -> 3,929.00
AG88: 0
A89: 2.20 | B89: Babies and Toddlers Ward | AG89: 0
B90: Supply | C90: each | D90: 1 | E90: 39,438.99 | F90: 39,438.99 | G90: =+'Block Breakdown This'!G90+'Block Breakdown Prev'!G90 -> 1.00 | H90: =+'Block Breakdown This'!H90+'Block Breakdown Prev'!H90 -> 0.00 | I90: =+'Block Breakdown This'!I90+'Block Breakdown Prev'!I90 -> 0.00 | J90: =+'Block Breakdown This'!J90+'Block Breakdown Prev'!J90 -> 0.00 | K90: =+'Block Breakdown This'!K90+'Block Breakdown Prev'!K90 -> 0.00 | L90: =+'Block Breakdown This'!L90+'Block Breakdown Prev'!L90 -> 0.00 | M90: =+'Block Breakdown This'!M90+'Block Breakdown Prev'!M90 -> 0.00 | N90: =+'Block Breakdown This'!N90+'Block Breakdown Prev'!N90 -> 0.00 | O90: =+'Block Breakdown This'!O90+'Block Breakdown Prev'!O90 -> 0.00 | P90: =+'Block Breakdown This'!P90+'Block Breakdown Prev'!P90 -> 0.00 | Q90: =+'Block Breakdown This'!Q90+'Block Breakdown Prev'!Q90 -> 0.00 | R90: =+'Block Breakdown This'!R90+'Block Breakdown Prev'!R90 -> 0.00 | S90: =+'Block Breakdown This'!S90+'Block Breakdown Prev'!S90 -> 0.00 | T90: =+'Block Breakdown This'!T90+'Block Breakdown Prev'!T90 -> 0.00 | U90: =+'Block Breakdown This'!U90+'Block Breakdown Prev'!U90 -> 0.00 | V90: =+'Block Breakdown This'!V90+'Block Breakdown Prev'!V90 -> 0.00 | W90: =+'Block Breakdown This'!W90+'Block Breakdown Prev'!W90 -> 0.00 | X90: =+'Block Breakdown This'!X90+'Block Breakdown Prev'!X90 -> 0.00 | Y90: =+'Block Breakdown This'!Y90+'Block Breakdown Prev'!Y90 -> 0.00 | Z90: 1.00 | AA90: =G90*E90 -> 39,439 | AB90: =H90*E90 -> 0 | AC90: =I90*E90 -> 0 | AD90: =J90*E90 -> 0 | AE90: =K90*E90 -> 0 | AF90: =L90*E90 -> 0 | AG90: 0 | AH90: =N90*E90 -> 0 | AI90: =O90*E90 -> 0 | AJ90: =P90*E90 -> 0 | AK90: =Q90*E90 -> 0 | AL90: =R90*E90 -> 0 | AM90: =S90*E90 -> 0 | AN90: =T90*E90 -> 0 | AO90: =W90*E90 -> 0 | AP90: =X90*E90 -> 0 | AQ90: =Y90*E90 -> 0 | AR90: 39,439 | AS90: =+E90*Z90 -> 39,438.99
B91: Install | C91: each | D91: 1 | E91: 3,944.00 | F91: 3,944.00 | G91: =+'Block Breakdown This'!G91+'Block Breakdown Prev'!G91 -> 1.00 | H91: =+'Block Breakdown This'!H91+'Block Breakdown Prev'!H91 -> 0.00 | I91: =+'Block Breakdown This'!I91+'Block Breakdown Prev'!I91 -> 0.00 | J91: =+'Block Breakdown This'!J91+'Block Breakdown Prev'!J91 -> 0.00 | K91: =+'Block Breakdown This'!K91+'Block Breakdown Prev'!K91 -> 0.00 | L91: =+'Block Breakdown This'!L91+'Block Breakdown Prev'!L91 -> 0.00 | M91: =+'Block Breakdown This'!M91+'Block Breakdown Prev'!M91 -> 0.00 | N91: =+'Block Breakdown This'!N91+'Block Breakdown Prev'!N91 -> 0.00 | O91: =+'Block Breakdown This'!O91+'Block Breakdown Prev'!O91 -> 0.00 | P91: =+'Block Breakdown This'!P91+'Block Breakdown Prev'!P91 -> 0.00 | Q91: =+'Block Breakdown This'!Q91+'Block Breakdown Prev'!Q91 -> 0.00 | R91: =+'Block Breakdown This'!R91+'Block Breakdown Prev'!R91 -> 0.00 | S91: =+'Block Breakdown This'!S91+'Block Breakdown Prev'!S91 -> 0.00 | T91: =+'Block Breakdown This'!T91+'Block Breakdown Prev'!T91 -> 0.00 | U91: =+'Block Breakdown This'!U91+'Block Breakdown Prev'!U91 -> 0.00 | V91: =+'Block Breakdown This'!V91+'Block Breakdown Prev'!V91 -> 0.00 | W91: =+'Block Breakdown This'!W91+'Block Breakdown Prev'!W91 -> 0.00 | X91: =+'Block Breakdown This'!X91+'Block Breakdown Prev'!X91 -> 0.00 | Y91: =+'Block Breakdown This'!Y91+'Block Breakdown Prev'!Y91 -> 0.00 | Z91: 1.00 | AA91: =G91*E91 -> 3,944 | AB91: =H91*E91 -> 0 | AC91: =I91*E91 -> 0 | AD91: =J91*E91 -> 0 | AE91: =K91*E91 -> 0 | AF91: =L91*E91 -> 0 | AG91: 0 | AH91: =N91*E91 -> 0 | AI91: =O91*E91 -> 0 | AJ91: =P91*E91 -> 0 | AK91: =Q91*E91 -> 0 | AL91: =R91*E91 -> 0 | AM91: =S91*E91 -> 0 | AN91: =T91*E91 -> 0 | AO91: =W91*E91 -> 0 | AP91: =X91*E91 -> 0 | AQ91: =Y91*E91 -> 0 | AR91: 3,944 | AS91: =+E91*Z91 -> 3,944.00
AG92: 0
A93: 2.30 | B93: Male Medical Ward - Block D | AG93: 0
B94: Supply | C94: each | D94: 1 | E94: 34,635.14 | F94: 34,635.14 | G94: =+'Block Breakdown This'!G94+'Block Breakdown Prev'!G94 -> 0.00 | H94: =+'Block Breakdown This'!H94+'Block Breakdown Prev'!H94 -> 0.00 | I94: =+'Block Breakdown This'!I94+'Block Breakdown Prev'!I94 -> 1.00 | J94: =+'Block Breakdown This'!J94+'Block Breakdown Prev'!J94 -> 0.00 | K94: =+'Block Breakdown This'!K94+'Block Breakdown Prev'!K94 -> 0.00 | L94: =+'Block Breakdown This'!L94+'Block Breakdown Prev'!L94 -> 0.00 | M94: =+'Block Breakdown This'!M94+'Block Breakdown Prev'!M94 -> 0.00 | N94: =+'Block Breakdown This'!N94+'Block Breakdown Prev'!N94 -> 0.00 | O94: =+'Block Breakdown This'!O94+'Block Breakdown Prev'!O94 -> 0.00 | P94: =+'Block Breakdown This'!P94+'Block Breakdown Prev'!P94 -> 0.00 | Q94: =+'Block Breakdown This'!Q94+'Block Breakdown Prev'!Q94 -> 0.00 | R94: =+'Block Breakdown This'!R94+'Block Breakdown Prev'!R94 -> 0.00 | S94: =+'Block Breakdown This'!S94+'Block Breakdown Prev'!S94 -> 0.00 | T94: =+'Block Breakdown This'!T94+'Block Breakdown Prev'!T94 -> 0.00 | U94: =+'Block Breakdown This'!U94+'Block Breakdown Prev'!U94 -> 0.00 | V94: =+'Block Breakdown This'!V94+'Block Breakdown Prev'!V94 -> 0.00 | W94: =+'Block Breakdown This'!W94+'Block Breakdown Prev'!W94 -> 0.00 | X94: =+'Block Breakdown This'!X94+'Block Breakdown Prev'!X94 -> 0.00 | Y94: =+'Block Breakdown This'!Y94+'Block Breakdown Prev'!Y94 -> 0.00 | Z94: 1.00 | AA94: =G94*E94 -> 0 | AB94: =H94*E94 -> 0 | AC94: =I94*E94 -> 34,635 | AD94: =J94*E94 -> 0 | AE94: =K94*E94 -> 0 | AF94: =L94*E94 -> 0 | AG94: 0 | AH94: =N94*E94 -> 0 | AI94: =O94*E94 -> 0 | AJ94: =P94*E94 -> 0 | AK94: =Q94*E94 -> 0 | AL94: =R94*E94 -> 0 | AM94: =S94*E94 -> 0 | AN94: =T94*E94 -> 0 | AO94: =W94*E94 -> 0 | AP94: =X94*E94 -> 0 | AQ94: =Y94*E94 -> 0 | AR94: 34,635 | AS94: =+E94*Z94 -> 34,635.14
B95: Install | C95: each | D95: 1 | E95: 3,464.00 | F95: 3,464.00 | G95: =+'Block Breakdown This'!G95+'Block Breakdown Prev'!G95 -> 0.00 | H95: =+'Block Breakdown This'!H95+'Block Breakdown Prev'!H95 -> 0.00 | I95: =+'Block Breakdown This'!I95+'Block Breakdown Prev'!I95 -> 1.00 | J95: =+'Block Breakdown This'!J95+'Block Breakdown Prev'!J95 -> 0.00 | K95: =+'Block Breakdown This'!K95+'Block Breakdown Prev'!K95 -> 0.00 | L95: =+'Block Breakdown This'!L95+'Block Breakdown Prev'!L95 -> 0.00 | M95: =+'Block Breakdown This'!M95+'Block Breakdown Prev'!M95 -> 0.00 | N95: =+'Block Breakdown This'!N95+'Block Breakdown Prev'!N95 -> 0.00 | O95: =+'Block Breakdown This'!O95+'Block Breakdown Prev'!O95 -> 0.00 | P95: =+'Block Breakdown This'!P95+'Block Breakdown Prev'!P95 -> 0.00 | Q95: =+'Block Breakdown This'!Q95+'Block Breakdown Prev'!Q95 -> 0.00 | R95: =+'Block Breakdown This'!R95+'Block Breakdown Prev'!R95 -> 0.00 | S95: =+'Block Breakdown This'!S95+'Block Breakdown Prev'!S95 -> 0.00 | T95: =+'Block Breakdown This'!T95+'Block Breakdown Prev'!T95 -> 0.00 | U95: =+'Block Breakdown This'!U95+'Block Breakdown Prev'!U95 -> 0.00 | V95: =+'Block Breakdown This'!V95+'Block Breakdown Prev'!V95 -> 0.00 | W95: =+'Block Breakdown This'!W95+'Block Breakdown Prev'!W95 -> 0.00 | X95: =+'Block Breakdown This'!X95+'Block Breakdown Prev'!X95 -> 0.00 | Y95: =+'Block Breakdown This'!Y95+'Block Breakdown Prev'!Y95 -> 0.00 | Z95: 1.00 | AA95: =G95*E95 -> 0 | AB95: =H95*E95 -> 0 | AC95: =I95*E95 -> 3,464 | AD95: =J95*E95 -> 0 | AE95: =K95*E95 -> 0 | AF95: =L95*E95 -> 0 | AG95: 0 | AH95: =N95*E95 -> 0 | AI95: =O95*E95 -> 0 | AJ95: =P95*E95 -> 0 | AK95: =Q95*E95 -> 0 | AL95: =R95*E95 -> 0 | AM95: =S95*E95 -> 0 | AN95: =T95*E95 -> 0 | AO95: =W95*E95 -> 0 | AP95: =X95*E95 -> 0 | AQ95: =Y95*E95 -> 0 | AR95: 3,464 | AS95: =+E95*Z95 -> 3,464.00
AG96: 0
A97: 2.40 | B97: Acute Psyciatric Unit Ward | AG97: 0
B98: Supply | C98: each | D98: 1 | E98: 19,184.41 | F98: 19,184.41 | G98: =+'Block Breakdown This'!G98+'Block Breakdown Prev'!G98 -> 0.00 | H98: =+'Block Breakdown This'!H98+'Block Breakdown Prev'!H98 -> 1.00 | I98: =+'Block Breakdown This'!I98+'Block Breakdown Prev'!I98 -> 0.00 | J98: =+'Block Breakdown This'!J98+'Block Breakdown Prev'!J98 -> 0.00 | K98: =+'Block Breakdown This'!K98+'Block Breakdown Prev'!K98 -> 0.00 | L98: =+'Block Breakdown This'!L98+'Block Breakdown Prev'!L98 -> 0.00 | M98: =+'Block Breakdown This'!M98+'Block Breakdown Prev'!M98 -> 0.00 | N98: =+'Block Breakdown This'!N98+'Block Breakdown Prev'!N98 -> 0.00 | O98: =+'Block Breakdown This'!O98+'Block Breakdown Prev'!O98 -> 0.00 | P98: =+'Block Breakdown This'!P98+'Block Breakdown Prev'!P98 -> 0.00 | Q98: =+'Block Breakdown This'!Q98+'Block Breakdown Prev'!Q98 -> 0.00 | R98: =+'Block Breakdown This'!R98+'Block Breakdown Prev'!R98 -> 0.00 | S98: =+'Block Breakdown This'!S98+'Block Breakdown Prev'!S98 -> 0.00 | T98: =+'Block Breakdown This'!T98+'Block Breakdown Prev'!T98 -> 0.00 | U98: =+'Block Breakdown This'!U98+'Block Breakdown Prev'!U98 -> 0.00 | V98: =+'Block Breakdown This'!V98+'Block Breakdown Prev'!V98 -> 0.00 | W98: =+'Block Breakdown This'!W98+'Block Breakdown Prev'!W98 -> 0.00 | X98: =+'Block Breakdown This'!X98+'Block Breakdown Prev'!X98 -> 0.00 | Y98: =+'Block Breakdown This'!Y98+'Block Breakdown Prev'!Y98 -> 0.00 | Z98: 1.00 | AA98: =G98*E98 -> 0 | AB98: =H98*E98 -> 19,184 | AC98: =I98*E98 -> 0 | AD98: =J98*E98 -> 0 | AE98: =K98*E98 -> 0 | AF98: =L98*E98 -> 0 | AG98: 0 | AH98: =N98*E98 -> 0 | AI98: =O98*E98 -> 0 | AJ98: =P98*E98 -> 0 | AK98: =Q98*E98 -> 0 | AL98: =R98*E98 -> 0 | AM98: =S98*E98 -> 0 | AN98: =T98*E98 -> 0 | AO98: =W98*E98 -> 0 | AP98: =X98*E98 -> 0 | AQ98: =Y98*E98 -> 0 | AR98: 19,184 | AS98: =+E98*Z98 -> 19,184.41
B99: Install | C99: each | D99: 1 | E99: 1,919.00 | F99: 1,919.00 | G99: =+'Block Breakdown This'!G99+'Block Breakdown Prev'!G99 -> 0.00 | H99: =+'Block Breakdown This'!H99+'Block Breakdown Prev'!H99 -> 1.00 | I99: =+'Block Breakdown This'!I99+'Block Breakdown Prev'!I99 -> 0.00 | J99: =+'Block Breakdown This'!J99+'Block Breakdown Prev'!J99 -> 0.00 | K99: =+'Block Breakdown This'!K99+'Block Breakdown Prev'!K99 -> 0.00 | L99: =+'Block Breakdown This'!L99+'Block Breakdown Prev'!L99 -> 0.00 | M99: =+'Block Breakdown This'!M99+'Block Breakdown Prev'!M99 -> 0.00 | N99: =+'Block Breakdown This'!N99+'Block Breakdown Prev'!N99 -> 0.00 | O99: =+'Block Breakdown This'!O99+'Block Breakdown Prev'!O99 -> 0.00 | P99: =+'Block Breakdown This'!P99+'Block Breakdown Prev'!P99 -> 0.00 | Q99: =+'Block Breakdown This'!Q99+'Block Breakdown Prev'!Q99 -> 0.00 | R99: =+'Block Breakdown This'!R99+'Block Breakdown Prev'!R99 -> 0.00 | S99: =+'Block Breakdown This'!S99+'Block Breakdown Prev'!S99 -> 0.00 | T99: =+'Block Breakdown This'!T99+'Block Breakdown Prev'!T99 -> 0.00 | U99: =+'Block Breakdown This'!U99+'Block Breakdown Prev'!U99 -> 0.00 | V99: =+'Block Breakdown This'!V99+'Block Breakdown Prev'!V99 -> 0.00 | W99: =+'Block Breakdown This'!W99+'Block Breakdown Prev'!W99 -> 0.00 | X99: =+'Block Breakdown This'!X99+'Block Breakdown Prev'!X99 -> 0.00 | Y99: =+'Block Breakdown This'!Y99+'Block Breakdown Prev'!Y99 -> 0.00 | Z99: 1.00 | AA99: =G99*E99 -> 0 | AB99: =H99*E99 -> 1,919 | AC99: =I99*E99 -> 0 | AD99: =J99*E99 -> 0 | AE99: =K99*E99 -> 0 | AF99: =L99*E99 -> 0 | AG99: 0 | AH99: =N99*E99 -> 0 | AI99: =O99*E99 -> 0 | AJ99: =P99*E99 -> 0 | AK99: =Q99*E99 -> 0 | AL99: =R99*E99 -> 0 | AM99: =S99*E99 -> 0 | AN99: =T99*E99 -> 0 | AO99: =W99*E99 -> 0 | AP99: =X99*E99 -> 0 | AQ99: =Y99*E99 -> 0 | AR99: 1,919 | AS99: =+E99*Z99 -> 1,919.00
AG100: 0
A101: 2.50 | B101: Female Medical No1 Ward | AG101: 0
B102: Supply | C102: each | D102: 1 | E102: 40,020.42 | F102: 40,020.42 | G102: =+'Block Breakdown This'!G102+'Block Breakdown Prev'!G102 -> 0.00 | H102: =+'Block Breakdown This'!H102+'Block Breakdown Prev'!H102 -> 0.00 | I102: =+'Block Breakdown This'!I102+'Block Breakdown Prev'!I102 -> 1.00 | J102: =+'Block Breakdown This'!J102+'Block Breakdown Prev'!J102 -> 0.00 | K102: =+'Block Breakdown This'!K102+'Block Breakdown Prev'!K102 -> 0.00 | L102: =+'Block Breakdown This'!L102+'Block Breakdown Prev'!L102 -> 0.00 | M102: =+'Block Breakdown This'!M102+'Block Breakdown Prev'!M102 -> 0.00 | N102: =+'Block Breakdown This'!N102+'Block Breakdown Prev'!N102 -> 0.00 | O102: =+'Block Breakdown This'!O102+'Block Breakdown Prev'!O102 -> 0.00 | P102: =+'Block Breakdown This'!P102+'Block Breakdown Prev'!P102 -> 0.00 | Q102: =+'Block Breakdown This'!Q102+'Block Breakdown Prev'!Q102 -> 0.00 | R102: =+'Block Breakdown This'!R102+'Block Breakdown Prev'!R102 -> 0.00 | S102: =+'Block Breakdown This'!S102+'Block Breakdown Prev'!S102 -> 0.00 | T102: =+'Block Breakdown This'!T102+'Block Breakdown Prev'!T102 -> 0.00 | U102: =+'Block Breakdown This'!U102+'Block Breakdown Prev'!U102 -> 0.00 | V102: =+'Block Breakdown This'!V102+'Block Breakdown Prev'!V102 -> 0.00 | W102: =+'Block Breakdown This'!W102+'Block Breakdown Prev'!W102 -> 0.00 | X102: =+'Block Breakdown This'!X102+'Block Breakdown Prev'!X102 -> 0.00 | Y102: =+'Block Breakdown This'!Y102+'Block Breakdown Prev'!Y102 -> 0.00 | Z102: 1.00 | AA102: =G102*E102 -> 0 | AB102: =H102*E102 -> 0 | AC102: =I102*E102 -> 40,020 | AD102: =J102*E102 -> 0 | AE102: =K102*E102 -> 0 | AF102: =L102*E102 -> 0 | AG102: 0 | AH102: =N102*E102 -> 0 | AI102: =O102*E102 -> 0 | AJ102: =P102*E102 -> 0 | AK102: =Q102*E102 -> 0 | AL102: =R102*E102 -> 0 | AM102: =S102*E102 -> 0 | AN102: =T102*E102 -> 0 | AO102: =W102*E102 -> 0 | AP102: =X102*E102 -> 0 | AQ102: =Y102*E102 -> 0 | AR102: 40,020 | AS102: =+E102*Z102 -> 40,020.42
B103: Install | C103: each | D103: 1 | E103: 4,003.00 | F103: 4,003.00 | G103: =+'Block Breakdown This'!G103+'Block Breakdown Prev'!G103 -> 0.00 | H103: =+'Block Breakdown This'!H103+'Block Breakdown Prev'!H103 -> 0.00 | I103: =+'Block Breakdown This'!I103+'Block Breakdown Prev'!I103 -> 1.00 | J103: =+'Block Breakdown This'!J103+'Block Breakdown Prev'!J103 -> 0.00 | K103: =+'Block Breakdown This'!K103+'Block Breakdown Prev'!K103 -> 0.00 | L103: =+'Block Breakdown This'!L103+'Block Breakdown Prev'!L103 -> 0.00 | M103: =+'Block Breakdown This'!M103+'Block Breakdown Prev'!M103 -> 0.00 | N103: =+'Block Breakdown This'!N103+'Block Breakdown Prev'!N103 -> 0.00 | O103: =+'Block Breakdown This'!O103+'Block Breakdown Prev'!O103 -> 0.00 | P103: =+'Block Breakdown This'!P103+'Block Breakdown Prev'!P103 -> 0.00 | Q103: =+'Block Breakdown This'!Q103+'Block Breakdown Prev'!Q103 -> 0.00 | R103: =+'Block Breakdown This'!R103+'Block Breakdown Prev'!R103 -> 0.00 | S103: =+'Block Breakdown This'!S103+'Block Breakdown Prev'!S103 -> 0.00 | T103: =+'Block Breakdown This'!T103+'Block Breakdown Prev'!T103 -> 0.00 | U103: =+'Block Breakdown This'!U103+'Block Breakdown Prev'!U103 -> 0.00 | V103: =+'Block Breakdown This'!V103+'Block Breakdown Prev'!V103 -> 0.00 | W103: =+'Block Breakdown This'!W103+'Block Breakdown Prev'!W103 -> 0.00 | X103: =+'Block Breakdown This'!X103+'Block Breakdown Prev'!X103 -> 0.00 | Y103: =+'Block Breakdown This'!Y103+'Block Breakdown Prev'!Y103 -> 0.00 | Z103: 1.00 | AA103: =G103*E103 -> 0 | AB103: =H103*E103 -> 0 | AC103: =I103*E103 -> 4,003 | AD103: =J103*E103 -> 0 | AE103: =K103*E103 -> 0 | AF103: =L103*E103 -> 0 | AG103: 0 | AH103: =N103*E103 -> 0 | AI103: =O103*E103 -> 0 | AJ103: =P103*E103 -> 0 | AK103: =Q103*E103 -> 0 | AL103: =R103*E103 -> 0 | AM103: =S103*E103 -> 0 | AN103: =T103*E103 -> 0 | AO103: =W103*E103 -> 0 | AP103: =X103*E103 -> 0 | AQ103: =Y103*E103 -> 0 | AR103: 4,003 | AS103: =+E103*Z103 -> 4,003.00
AG104: 0
A105: 2.60 | B105: Female Medical No2 Ward | AG105: 0
B106: Supply | C106: each | D106: 1 | E106: 40,020.42 | F106: 40,020.42 | G106: =+'Block Breakdown This'!G106+'Block Breakdown Prev'!G106 -> 0.00 | H106: =+'Block Breakdown This'!H106+'Block Breakdown Prev'!H106 -> 0.00 | I106: =+'Block Breakdown This'!I106+'Block Breakdown Prev'!I106 -> 1.00 | J106: =+'Block Breakdown This'!J106+'Block Breakdown Prev'!J106 -> 0.00 | K106: =+'Block Breakdown This'!K106+'Block Breakdown Prev'!K106 -> 0.00 | L106: =+'Block Breakdown This'!L106+'Block Breakdown Prev'!L106 -> 0.00 | M106: =+'Block Breakdown This'!M106+'Block Breakdown Prev'!M106 -> 0.00 | N106: =+'Block Breakdown This'!N106+'Block Breakdown Prev'!N106 -> 0.00 | O106: =+'Block Breakdown This'!O106+'Block Breakdown Prev'!O106 -> 0.00 | P106: =+'Block Breakdown This'!P106+'Block Breakdown Prev'!P106 -> 0.00 | Q106: =+'Block Breakdown This'!Q106+'Block Breakdown Prev'!Q106 -> 0.00 | R106: =+'Block Breakdown This'!R106+'Block Breakdown Prev'!R106 -> 0.00 | S106: =+'Block Breakdown This'!S106+'Block Breakdown Prev'!S106 -> 0.00 | T106: =+'Block Breakdown This'!T106+'Block Breakdown Prev'!T106 -> 0.00 | U106: =+'Block Breakdown This'!U106+'Block Breakdown Prev'!U106 -> 0.00 | V106: =+'Block Breakdown This'!V106+'Block Breakdown Prev'!V106 -> 0.00 | W106: =+'Block Breakdown This'!W106+'Block Breakdown Prev'!W106 -> 0.00 | X106: =+'Block Breakdown This'!X106+'Block Breakdown Prev'!X106 -> 0.00 | Y106: =+'Block Breakdown This'!Y106+'Block Breakdown Prev'!Y106 -> 0.00 | Z106: 1.00 | AA106: =G106*E106 -> 0 | AB106: =H106*E106 -> 0 | AC106: =I106*E106 -> 40,020 | AD106: =J106*E106 -> 0 | AE106: =K106*E106 -> 0 | AF106: =L106*E106 -> 0 | AG106: 0 | AH106: =N106*E106 -> 0 | AI106: =O106*E106 -> 0 | AJ106: =P106*E106 -> 0 | AK106: =Q106*E106 -> 0 | AL106: =R106*E106 -> 0 | AM106: =S106*E106 -> 0 | AN106: =T106*E106 -> 0 | AO106: =W106*E106 -> 0 | AP106: =X106*E106 -> 0 | AQ106: =Y106*E106 -> 0 | AR106: 40,020 | AS106: =+E106*Z106 -> 40,020.42
B107: Install | C107: each | D107: 1 | E107: 4,003.00 | F107: 4,003.00 | G107: =+'Block Breakdown This'!G107+'Block Breakdown Prev'!G107 -> 0.00 | H107: =+'Block Breakdown This'!H107+'Block Breakdown Prev'!H107 -> 0.00 | I107: =+'Block Breakdown This'!I107+'Block Breakdown Prev'!I107 -> 1.00 | J107: =+'Block Breakdown This'!J107+'Block Breakdown Prev'!J107 -> 0.00 | K107: =+'Block Breakdown This'!K107+'Block Breakdown Prev'!K107 -> 0.00 | L107: =+'Block Breakdown This'!L107+'Block Breakdown Prev'!L107 -> 0.00 | M107: =+'Block Breakdown This'!M107+'Block Breakdown Prev'!M107 -> 0.00 | N107: =+'Block Breakdown This'!N107+'Block Breakdown Prev'!N107 -> 0.00 | O107: =+'Block Breakdown This'!O107+'Block Breakdown Prev'!O107 -> 0.00 | P107: =+'Block Breakdown This'!P107+'Block Breakdown Prev'!P107 -> 0.00 | Q107: =+'Block Breakdown This'!Q107+'Block Breakdown Prev'!Q107 -> 0.00 | R107: =+'Block Breakdown This'!R107+'Block Breakdown Prev'!R107 -> 0.00 | S107: =+'Block Breakdown This'!S107+'Block Breakdown Prev'!S107 -> 0.00 | T107: =+'Block Breakdown This'!T107+'Block Breakdown Prev'!T107 -> 0.00 | U107: =+'Block Breakdown This'!U107+'Block Breakdown Prev'!U107 -> 0.00 | V107: =+'Block Breakdown This'!V107+'Block Breakdown Prev'!V107 -> 0.00 | W107: =+'Block Breakdown This'!W107+'Block Breakdown Prev'!W107 -> 0.00 | X107: =+'Block Breakdown This'!X107+'Block Breakdown Prev'!X107 -> 0.00 | Y107: =+'Block Breakdown This'!Y107+'Block Breakdown Prev'!Y107 -> 0.00 | Z107: 1.00 | AA107: =G107*E107 -> 0 | AB107: =H107*E107 -> 0 | AC107: =I107*E107 -> 4,003 | AD107: =J107*E107 -> 0 | AE107: =K107*E107 -> 0 | AF107: =L107*E107 -> 0 | AG107: 0 | AH107: =N107*E107 -> 0 | AI107: =O107*E107 -> 0 | AJ107: =P107*E107 -> 0 | AK107: =Q107*E107 -> 0 | AL107: =R107*E107 -> 0 | AM107: =S107*E107 -> 0 | AN107: =T107*E107 -> 0 | AO107: =W107*E107 -> 0 | AP107: =X107*E107 -> 0 | AQ107: =Y107*E107 -> 0 | AR107: 4,003 | AS107: =+E107*Z107 -> 4,003.00
AG108: 0
A109: 2.70 | B109: Rehab / Stepdown Ward | AG109: 0
B110: Supply | C110: each | D110: 1 | E110: 39,305.55 | F110: 39,305.55 | G110: =+'Block Breakdown This'!G110+'Block Breakdown Prev'!G110 -> 0.00 | H110: =+'Block Breakdown This'!H110+'Block Breakdown Prev'!H110 -> 0.00 | I110: =+'Block Breakdown This'!I110+'Block Breakdown Prev'!I110 -> 1.00 | J110: =+'Block Breakdown This'!J110+'Block Breakdown Prev'!J110 -> 0.00 | K110: =+'Block Breakdown This'!K110+'Block Breakdown Prev'!K110 -> 0.00 | L110: =+'Block Breakdown This'!L110+'Block Breakdown Prev'!L110 -> 0.00 | M110: =+'Block Breakdown This'!M110+'Block Breakdown Prev'!M110 -> 0.00 | N110: =+'Block Breakdown This'!N110+'Block Breakdown Prev'!N110 -> 0.00 | O110: =+'Block Breakdown This'!O110+'Block Breakdown Prev'!O110 -> 0.00 | P110: =+'Block Breakdown This'!P110+'Block Breakdown Prev'!P110 -> 0.00 | Q110: =+'Block Breakdown This'!Q110+'Block Breakdown Prev'!Q110 -> 0.00 | R110: =+'Block Breakdown This'!R110+'Block Breakdown Prev'!R110 -> 0.00 | S110: =+'Block Breakdown This'!S110+'Block Breakdown Prev'!S110 -> 0.00 | T110: =+'Block Breakdown This'!T110+'Block Breakdown Prev'!T110 -> 0.00 | U110: =+'Block Breakdown This'!U110+'Block Breakdown Prev'!U110 -> 0.00 | V110: =+'Block Breakdown This'!V110+'Block Breakdown Prev'!V110 -> 0.00 | W110: =+'Block Breakdown This'!W110+'Block Breakdown Prev'!W110 -> 0.00 | X110: =+'Block Breakdown This'!X110+'Block Breakdown Prev'!X110 -> 0.00 | Y110: =+'Block Breakdown This'!Y110+'Block Breakdown Prev'!Y110 -> 0.00 | Z110: 1.00 | AA110: =G110*E110 -> 0 | AB110: =H110*E110 -> 0 | AC110: =I110*E110 -> 39,306 | AD110: =J110*E110 -> 0 | AE110: =K110*E110 -> 0 | AF110: =L110*E110 -> 0 | AG110: 0 | AH110: =N110*E110 -> 0 | AI110: =O110*E110 -> 0 | AJ110: =P110*E110 -> 0 | AK110: =Q110*E110 -> 0 | AL110: =R110*E110 -> 0 | AM110: =S110*E110 -> 0 | AN110: =T110*E110 -> 0 | AO110: =W110*E110 -> 0 | AP110: =X110*E110 -> 0 | AQ110: =Y110*E110 -> 0 | AR110: 39,306 | AS110: =+E110*Z110 -> 39,305.55
B111: Install | C111: each | D111: 1 | E111: 3,931.00 | F111: 3,931.00 | G111: =+'Block Breakdown This'!G111+'Block Breakdown Prev'!G111 -> 0.00 | H111: =+'Block Breakdown This'!H111+'Block Breakdown Prev'!H111 -> 0.00 | I111: =+'Block Breakdown This'!I111+'Block Breakdown Prev'!I111 -> 1.00 | J111: =+'Block Breakdown This'!J111+'Block Breakdown Prev'!J111 -> 0.00 | K111: =+'Block Breakdown This'!K111+'Block Breakdown Prev'!K111 -> 0.00 | L111: =+'Block Breakdown This'!L111+'Block Breakdown Prev'!L111 -> 0.00 | M111: =+'Block Breakdown This'!M111+'Block Breakdown Prev'!M111 -> 0.00 | N111: =+'Block Breakdown This'!N111+'Block Breakdown Prev'!N111 -> 0.00 | O111: =+'Block Breakdown This'!O111+'Block Breakdown Prev'!O111 -> 0.00 | P111: =+'Block Breakdown This'!P111+'Block Breakdown Prev'!P111 -> 0.00 | Q111: =+'Block Breakdown This'!Q111+'Block Breakdown Prev'!Q111 -> 0.00 | R111: =+'Block Breakdown This'!R111+'Block Breakdown Prev'!R111 -> 0.00 | S111: =+'Block Breakdown This'!S111+'Block Breakdown Prev'!S111 -> 0.00 | T111: =+'Block Breakdown This'!T111+'Block Breakdown Prev'!T111 -> 0.00 | U111: =+'Block Breakdown This'!U111+'Block Breakdown Prev'!U111 -> 0.00 | V111: =+'Block Breakdown This'!V111+'Block Breakdown Prev'!V111 -> 0.00 | W111: =+'Block Breakdown This'!W111+'Block Breakdown Prev'!W111 -> 0.00 | X111: =+'Block Breakdown This'!X111+'Block Breakdown Prev'!X111 -> 0.00 | Y111: =+'Block Breakdown This'!Y111+'Block Breakdown Prev'!Y111 -> 0.00 | Z111: 1.00 | AA111: =G111*E111 -> 0 | AB111: =H111*E111 -> 0 | AC111: =I111*E111 -> 3,931 | AD111: =J111*E111 -> 0 | AE111: =K111*E111 -> 0 | AF111: =L111*E111 -> 0 | AG111: 0 | AH111: =N111*E111 -> 0 | AI111: =O111*E111 -> 0 | AJ111: =P111*E111 -> 0 | AK111: =Q111*E111 -> 0 | AL111: =R111*E111 -> 0 | AM111: =S111*E111 -> 0 | AN111: =T111*E111 -> 0 | AO111: =W111*E111 -> 0 | AP111: =X111*E111 -> 0 | AQ111: =Y111*E111 -> 0 | AR111: 3,931 | AS111: =+E111*Z111 -> 3,931.00
AG112: 0
A113: 2.80 | B113: Female Surgical Ward No1 | AG113: 0
B114: Supply | C114: each | D114: 1 | E114: 25,541.19 | F114: 25,541.19 | G114: =+'Block Breakdown This'!G114+'Block Breakdown Prev'!G114 -> 1.00 | H114: =+'Block Breakdown This'!H114+'Block Breakdown Prev'!H114 -> 0.00 | I114: =+'Block Breakdown This'!I114+'Block Breakdown Prev'!I114 -> 0.00 | J114: =+'Block Breakdown This'!J114+'Block Breakdown Prev'!J114 -> 0.00 | K114: =+'Block Breakdown This'!K114+'Block Breakdown Prev'!K114 -> 0.00 | L114: =+'Block Breakdown This'!L114+'Block Breakdown Prev'!L114 -> 0.00 | M114: =+'Block Breakdown This'!M114+'Block Breakdown Prev'!M114 -> 0.00 | N114: =+'Block Breakdown This'!N114+'Block Breakdown Prev'!N114 -> 0.00 | O114: =+'Block Breakdown This'!O114+'Block Breakdown Prev'!O114 -> 0.00 | P114: =+'Block Breakdown This'!P114+'Block Breakdown Prev'!P114 -> 0.00 | Q114: =+'Block Breakdown This'!Q114+'Block Breakdown Prev'!Q114 -> 0.00 | R114: =+'Block Breakdown This'!R114+'Block Breakdown Prev'!R114 -> 0.00 | S114: =+'Block Breakdown This'!S114+'Block Breakdown Prev'!S114 -> 0.00 | T114: =+'Block Breakdown This'!T114+'Block Breakdown Prev'!T114 -> 0.00 | U114: =+'Block Breakdown This'!U114+'Block Breakdown Prev'!U114 -> 0.00 | V114: =+'Block Breakdown This'!V114+'Block Breakdown Prev'!V114 -> 0.00 | W114: =+'Block Breakdown This'!W114+'Block Breakdown Prev'!W114 -> 0.00 | X114: =+'Block Breakdown This'!X114+'Block Breakdown Prev'!X114 -> 0.00 | Y114: =+'Block Breakdown This'!Y114+'Block Breakdown Prev'!Y114 -> 0.00 | Z114: 1.00 | AA114: =G114*E114 -> 25,541 | AB114: =H114*E114 -> 0 | AC114: =I114*E114 -> 0 | AD114: =J114*E114 -> 0 | AE114: =K114*E114 -> 0 | AF114: =L114*E114 -> 0 | AG114: 0 | AH114: =N114*E114 -> 0 | AI114: =O114*E114 -> 0 | AJ114: =P114*E114 -> 0 | AK114: =Q114*E114 -> 0 | AL114: =R114*E114 -> 0 | AM114: =S114*E114 -> 0 | AN114: =T114*E114 -> 0 | AO114: =W114*E114 -> 0 | AP114: =X114*E114 -> 0 | AQ114: =Y114*E114 -> 0 | AR114: 25,541 | AS114: =+E114*Z114 -> 25,541.19
B115: Install | C115: each | D115: 1 | E115: 2,555.00 | F115: 2,555.00 | G115: =+'Block Breakdown This'!G115+'Block Breakdown Prev'!G115 -> 1.00 | H115: =+'Block Breakdown This'!H115+'Block Breakdown Prev'!H115 -> 0.00 | I115: =+'Block Breakdown This'!I115+'Block Breakdown Prev'!I115 -> 0.00 | J115: =+'Block Breakdown This'!J115+'Block Breakdown Prev'!J115 -> 0.00 | K115: =+'Block Breakdown This'!K115+'Block Breakdown Prev'!K115 -> 0.00 | L115: =+'Block Breakdown This'!L115+'Block Breakdown Prev'!L115 -> 0.00 | M115: =+'Block Breakdown This'!M115+'Block Breakdown Prev'!M115 -> 0.00 | N115: =+'Block Breakdown This'!N115+'Block Breakdown Prev'!N115 -> 0.00 | O115: =+'Block Breakdown This'!O115+'Block Breakdown Prev'!O115 -> 0.00 | P115: =+'Block Breakdown This'!P115+'Block Breakdown Prev'!P115 -> 0.00 | Q115: =+'Block Breakdown This'!Q115+'Block Breakdown Prev'!Q115 -> 0.00 | R115: =+'Block Breakdown This'!R115+'Block Breakdown Prev'!R115 -> 0.00 | S115: =+'Block Breakdown This'!S115+'Block Breakdown Prev'!S115 -> 0.00 | T115: =+'Block Breakdown This'!T115+'Block Breakdown Prev'!T115 -> 0.00 | U115: =+'Block Breakdown This'!U115+'Block Breakdown Prev'!U115 -> 0.00 | V115: =+'Block Breakdown This'!V115+'Block Breakdown Prev'!V115 -> 0.00 | W115: =+'Block Breakdown This'!W115+'Block Breakdown Prev'!W115 -> 0.00 | X115: =+'Block Breakdown This'!X115+'Block Breakdown Prev'!X115 -> 0.00 | Y115: =+'Block Breakdown This'!Y115+'Block Breakdown Prev'!Y115 -> 0.00 | Z115: 1.00 | AA115: =G115*E115 -> 2,555 | AB115: =H115*E115 -> 0 | AC115: =I115*E115 -> 0 | AD115: =J115*E115 -> 0 | AE115: =K115*E115 -> 0 | AF115: =L115*E115 -> 0 | AG115: 0 | AH115: =N115*E115 -> 0 | AI115: =O115*E115 -> 0 | AJ115: =P115*E115 -> 0 | AK115: =Q115*E115 -> 0 | AL115: =R115*E115 -> 0 | AM115: =S115*E115 -> 0 | AN115: =T115*E115 -> 0 | AO115: =W115*E115 -> 0 | AP115: =X115*E115 -> 0 | AQ115: =Y115*E115 -> 0 | AR115: 2,555 | AS115: =+E115*Z115 -> 2,555.00
AG116: 0
A117: 2.90 | B117: Female Surgical Ward No 2 | AG117: 0
B118: Supply | C118: each | D118: 1 | E118: 26,841.97 | F118: 26,841.97 | G118: =+'Block Breakdown This'!G118+'Block Breakdown Prev'!G118 -> 1.00 | H118: =+'Block Breakdown This'!H118+'Block Breakdown Prev'!H118 -> 0.00 | I118: =+'Block Breakdown This'!I118+'Block Breakdown Prev'!I118 -> 0.00 | J118: =+'Block Breakdown This'!J118+'Block Breakdown Prev'!J118 -> 0.00 | K118: =+'Block Breakdown This'!K118+'Block Breakdown Prev'!K118 -> 0.00 | L118: =+'Block Breakdown This'!L118+'Block Breakdown Prev'!L118 -> 0.00 | M118: =+'Block Breakdown This'!M118+'Block Breakdown Prev'!M118 -> 0.00 | N118: =+'Block Breakdown This'!N118+'Block Breakdown Prev'!N118 -> 0.00 | O118: =+'Block Breakdown This'!O118+'Block Breakdown Prev'!O118 -> 0.00 | P118: =+'Block Breakdown This'!P118+'Block Breakdown Prev'!P118 -> 0.00 | Q118: =+'Block Breakdown This'!Q118+'Block Breakdown Prev'!Q118 -> 0.00 | R118: =+'Block Breakdown This'!R118+'Block Breakdown Prev'!R118 -> 0.00 | S118: =+'Block Breakdown This'!S118+'Block Breakdown Prev'!S118 -> 0.00 | T118: =+'Block Breakdown This'!T118+'Block Breakdown Prev'!T118 -> 0.00 | U118: =+'Block Breakdown This'!U118+'Block Breakdown Prev'!U118 -> 0.00 | V118: =+'Block Breakdown This'!V118+'Block Breakdown Prev'!V118 -> 0.00 | W118: =+'Block Breakdown This'!W118+'Block Breakdown Prev'!W118 -> 0.00 | X118: =+'Block Breakdown This'!X118+'Block Breakdown Prev'!X118 -> 0.00 | Y118: =+'Block Breakdown This'!Y118+'Block Breakdown Prev'!Y118 -> 0.00 | Z118: 1.00 | AA118: =G118*E118 -> 26,842 | AB118: =H118*E118 -> 0 | AC118: =I118*E118 -> 0 | AD118: =J118*E118 -> 0 | AE118: =K118*E118 -> 0 | AF118: =L118*E118 -> 0 | AG118: =+M118*E118 -> 0 | AH118: =N118*E118 -> 0 | AI118: =O118*E118 -> 0 | AJ118: =P118*E118 -> 0 | AK118: =Q118*E118 -> 0 | AL118: =R118*E118 -> 0 | AM118: =S118*E118 -> 0 | AN118: =T118*E118 -> 0 | AO118: =W118*E118 -> 0 | AP118: =X118*E118 -> 0 | AQ118: =Y118*E118 -> 0 | AR118: 26,842 | AS118: =+E118*Z118 -> 26,841.97
B119: Install | C119: each | D119: 1 | E119: 2,685.00 | F119: 2,685.00 | G119: =+'Block Breakdown This'!G119+'Block Breakdown Prev'!G119 -> 1.00 | H119: =+'Block Breakdown This'!H119+'Block Breakdown Prev'!H119 -> 0.00 | I119: =+'Block Breakdown This'!I119+'Block Breakdown Prev'!I119 -> 0.00 | J119: =+'Block Breakdown This'!J119+'Block Breakdown Prev'!J119 -> 0.00 | K119: =+'Block Breakdown This'!K119+'Block Breakdown Prev'!K119 -> 0.00 | L119: =+'Block Breakdown This'!L119+'Block Breakdown Prev'!L119 -> 0.00 | M119: =+'Block Breakdown This'!M119+'Block Breakdown Prev'!M119 -> 0.00 | N119: =+'Block Breakdown This'!N119+'Block Breakdown Prev'!N119 -> 0.00 | O119: =+'Block Breakdown This'!O119+'Block Breakdown Prev'!O119 -> 0.00 | P119: =+'Block Breakdown This'!P119+'Block Breakdown Prev'!P119 -> 0.00 | Q119: =+'Block Breakdown This'!Q119+'Block Breakdown Prev'!Q119 -> 0.00 | R119: =+'Block Breakdown This'!R119+'Block Breakdown Prev'!R119 -> 0.00 | S119: =+'Block Breakdown This'!S119+'Block Breakdown Prev'!S119 -> 0.00 | T119: =+'Block Breakdown This'!T119+'Block Breakdown Prev'!T119 -> 0.00 | U119: =+'Block Breakdown This'!U119+'Block Breakdown Prev'!U119 -> 0.00 | V119: =+'Block Breakdown This'!V119+'Block Breakdown Prev'!V119 -> 0.00 | W119: =+'Block Breakdown This'!W119+'Block Breakdown Prev'!W119 -> 0.00 | X119: =+'Block Breakdown This'!X119+'Block Breakdown Prev'!X119 -> 0.00 | Y119: =+'Block Breakdown This'!Y119+'Block Breakdown Prev'!Y119 -> 0.00 | Z119: 1.00 | AA119: =G119*E119 -> 2,685 | AB119: =H119*E119 -> 0 | AC119: =I119*E119 -> 0 | AD119: =J119*E119 -> 0 | AE119: =K119*E119 -> 0 | AF119: =L119*E119 -> 0 | AG119: 0 | AH119: =N119*E119 -> 0 | AI119: =O119*E119 -> 0 | AJ119: =P119*E119 -> 0 | AK119: =Q119*E119 -> 0 | AL119: =R119*E119 -> 0 | AM119: =S119*E119 -> 0 | AN119: =T119*E119 -> 0 | AO119: =W119*E119 -> 0 | AP119: =X119*E119 -> 0 | AQ119: =Y119*E119 -> 0 | AR119: 2,685 | AS119: =+E119*Z119 -> 2,685.00
AG120: 0
A121: 2.10 | B121: Male Surgical Ward No 1 | AG121: 0
